Workbook

Sheet Scrum Summary
A1: PEGASYSTEMS SCRUM PROJECT EFFORT MODELING TOOL
A2: Sizing Tool Release Date: | C2: 2021-05-13 | E2: Sizing Tool Version: | G2: SCRUM V 24 | I2: ="© " & YEAR(C2) &" Pegasystems, Inc. All rights reserved." -> © 2021 Pegasystems, Inc. All rights reserved.
A4: PROJECT SIZING SUMMARY
A5: *CLIENT NAME: | E5: * Engagement NAME: | O5: =D21 -> Sprint-Initiate | P5: Sprint 1-N | Q5: Sprint-Z Hardening
E6: Multi-Release Schedule: | G6: N | N6: Pega Resource Hours: | O6: 480 | P6: 520 | Q6: 360
A7: *Pega Version: | C7: 8.5 | E7: MLP to View: | N7: Client Resource Hours: | O7: 320 | P7: 320 | Q7: 320
A8: Application Name: | E8: Agile Studio In Use: | G8: N | N8: Partner Resource Hours: | O8: 0 | P8: 0 | Q8: 0
A9: Application Version: | E9: Engagement Lead: | G9: Pega Led / Pega Powered
A10: *DCO To Be Used: | E10: Staffing Model: | G10: Pega / Client
A11: *Sizing Generated By: | E11: *Sizing Verified By:
A13: ESTIMATED SCRUM DETAILS
A14: Sprint | B14: Start Date | C14: Start Date | D14: End Date | E14: Sprint Len (wks) | F14: Num of Sprints | G14: Duration (wks)
A15: Sprint - Initiate: | C15: =IF('Sprint-Prepare'!$K$4 = "","", 'Sprint-Prepare'!$K$4) -> 2021-02-22 | D15: =IF('Sprint-Prepare'!$K$5 = "","", 'Sprint-Prepare'!$K$5) -> 2021-03-05 | E15: ='Sprint-Prepare'!D4 -> 2 | F15: 1 | G15: =E15*F15 -> 2
A16: Sprint 1 - N: | C16: =IF('Sprint 1-Sprint N'!K4 = "", "", 'Sprint 1-Sprint N'!K4) -> 2021-03-08 | D16: =IF('Sprint 1-Sprint N'!K5 = "", "", 'Sprint 1-Sprint N'!K5) -> 2021-03-19 | E16: ='Sprint 1-Sprint N'!D4 -> 2 | F16: =NumSprints -> 1 | G16: =E16*F16 -> 2
A17: Sprint - Z: | C17: =IFERROR('Sprint-Z Hardening'!K4, "") -> 2021-03-22 | D17: =IFERROR('Sprint-Z Hardening'!K5, "") -> 2021-04-02 | E17: ='Sprint-Z Hardening'!D4 -> 2 | F17: 1 | G17: =E17*F17 -> 2
E18: Total: | F18: =SUM(F15:F17) -> 3 | G18: =SUM(G15:G17) -> 6 | H18: =G17+H17 -> 2
A20: SUMMARY RESOURCE ALLOCATION
A21: Source | C21: Resource Count | D21: Sprint-Initiate | E21: Sprint 1-N | F21: Sprint-Z Hardening | G21: Total Billable | H21: % of Total Hours
A22: Pega | C22: =IF(RDFlag="Y",SUMIF('Rapid Delivery Planning'!$A$11:$A$67,A22,'Rapid Delivery Planning'!$G$11:$G$67),SUMIF('Resource Planning'!$A$11:$A$67,A22,'Resource Planning'!$G$11:$G$67)) -> 6.5 | D22: =SUMIF('Sprint-Prepare'!$C$12:$C$23, $A22, 'Sprint-Prepare'!$F$12:$F$23)+SUMIF('Consulting Services'!$C$9:$C$14, $A22, 'Consulting Services'!$E$9:$E$14) -> 480 | E22: =IF(RDFlag="Y",SUMIF('Rapid Delivery Planning'!$A$11:$A$67,A22,'Rapid Delivery Planning'!$O$11:$O$67),SUMIF('Resource Planning'!$A$11:$A$67,A22,'Resource Planning'!$O$11:$O$67))-SUM(D22,F22) -> 520 | F22: =SUMIF('Sprint-Z Hardening'!$C$12:$C$22, $A22, 'Sprint-Z Hardening'!$F$12:$F$22)+SUMIF('Consulting Services'!$C$9:$C$14, $A22, 'Consulting Services'!$I$9:$I$14) -> 360 | G22: =SUM(D22:F22) -> 1360 | H22: =G22/$G$25 -> 0.5862068966
A23: Client | B23: =IF('Sprint-Prepare'!$K$4 = "","", 'Sprint-Prepare'!$K$4) -> 44249 | C23: =IF(RDFlag="Y",SUMIF('Rapid Delivery Planning'!$A$11:$A$67,A23,'Rapid Delivery Planning'!$G$11:$G$67),SUMIF('Resource Planning'!$A$11:$A$67,A23,'Resource Planning'!$G$11:$G$67)) -> 4 | D23: =SUMIF('Sprint-Prepare'!$C$12:$C$23, $A23, 'Sprint-Prepare'!$F$12:$F$23)+SUMIF('Consulting Services'!$C$9:$C$14, $A23, 'Consulting Services'!$E$9:$E$14) -> 320 | E23: =IF(RDFlag="Y",SUMIF('Rapid Delivery Planning'!$A$11:$A$67,A23,'Rapid Delivery Planning'!$O$11:$O$67),SUMIF('Resource Planning'!$A$11:$A$67,A23,'Resource Planning'!$O$11:$O$67))-SUM(D23,F23) -> 320 | F23: =SUMIF('Sprint-Z Hardening'!$C$12:$C$22, $A23, 'Sprint-Z Hardening'!$F$12:$F$22)+SUMIF('Consulting Services'!$C$9:$C$14, $A23, 'Consulting Services'!$I$9:$I$14) -> 320 | G23: =SUM(D23:F23) -> 960 | H23: =G23/$G$25 -> 0.4137931034
A24: Partner | B24: =IF('Sprint-Prepare'!$K$4 = "","", 'Sprint-Prepare'!$K$4) -> 44249 | C24: =IF(RDFlag="Y",SUMIF('Rapid Delivery Planning'!$A$11:$A$67,A24,'Rapid Delivery Planning'!$G$11:$G$67),SUMIF('Resource Planning'!$A$11:$A$67,A24,'Resource Planning'!$G$11:$G$67)) -> 0 | D24: =SUMIF('Sprint-Prepare'!$C$12:$C$23, $A24, 'Sprint-Prepare'!$F$12:$F$23)+SUMIF('Consulting Services'!$C$9:$C$14, $A24, 'Consulting Services'!$E$9:$E$14) -> 0 | E24: =IF(RDFlag="Y",SUMIF('Rapid Delivery Planning'!$A$11:$A$67,A24,'Rapid Delivery Planning'!$O$11:$O$67),SUMIF('Resource Planning'!$A$11:$A$67,A24,'Resource Planning'!$O$11:$O$67))-SUM(D24,F24) -> 0 | F24: =SUMIF('Sprint-Z Hardening'!$C$12:$C$22, $A24, 'Sprint-Z Hardening'!$F$12:$F$22)+SUMIF('Consulting Services'!$C$9:$C$14, $A24, 'Consulting Services'!$I$9:$I$14) -> 0 | G24: =SUM(D24:F24) -> 0 | H24: =G24/$G$25 -> 0
A25: Total: | C25: =SUM(C22:C24) -> 10.5 | D25: =SUM(D22:D24) -> 800 | E25: =SUM(E22:E24) -> 840 | F25: =SUM(F22:F24) -> 680 | G25: =SUM(G22:G24) -> 2320
A27: PROPOSED STAFFING PLAN | K27: =IF(RDFlag="Y", 'Sprint 1-Sprint N'!I43, "") -> 

Sheet DataSummary (hidden)
A1: Name | B1: Value | C1: Units
A2: Sizing Type | B2: Scrum
A3: Project Type | B3: ='Scrum Summary'!C6 -> 0
A4: Initiate/Sprint- Duration | B4: ='Scrum Summary'!G15 -> 2 | C4: Weeks
A5: Iteration/Sprint Duration | B5: ='Scrum Summary'!F16 -> 1
A6: Num of Iterations/Sprints | B6: ='Scrum Summary'!$E$16 -> 2 | C6: Weeks
A7: Release/Sprint-Z Duration | B7: ='Scrum Summary'!G17 -> 2 | C7: Weeks
A8: FPR Duration | B8: =IF(RDFlag="Y", FPRSprint*Sprint1NLen+Sprint0Len, B9) -> 6 | C8: Weeks
A9: Total Duration | B9: ='Scrum Summary'!G18 -> 6 | C9: Weeks
A10: Pega Hours | B10: ='Scrum Summary'!$G22 -> 1360 | C10: Hours
A11: Client Hours | B11: ='Scrum Summary'!$G23 -> 960 | C11: Hours
A12: Partner Hours | B12: ='Scrum Summary'!$G24 -> 0 | C12: Hours
A13: Initiate/Sprint-0 Pega Resources | B13: =SUMIF('Resource Planning'!$A$11:$A$67, "Pega",'Resource Planning'!$C$11:$C$67) -> 6 | C13: Hours
A14: Initiate/Sprint-0 Partner Resources | B14: =SUMIF('Resource Planning'!$A$11:$A$67, "Partner",'Resource Planning'!$C$11:$C$67) -> 0 | C14: Hours
A15: Initiate/Sprint-0 Client Resources | B15: =SUMIF('Resource Planning'!$A$11:$A$67, "Client",'Resource Planning'!$C$11:$C$67) -> 4 | C15: Hours
A16: Iteration/Sprint Pega Resources | B16: =SUMIF('Resource Planning'!$A$11:$A$67, "Pega",'Resource Planning'!$G$11:$G$67) -> 6.5 | C16: Hours
A17: Iteration/Sprint Partner Resources | B17: =SUMIF('Resource Planning'!$A$11:$A$67, "Partner",'Resource Planning'!$G$11:$G$67) -> 0 | C17: Hours
A18: Iteration/Sprint Client Resources | B18: =SUMIF('Resource Planning'!$A$11:$A$67, "Client",'Resource Planning'!$G$11:$G$67) -> 4 | C18: Hours
A19: Release/Sprint-Z Pega Resources | B19: =SUMIF('Resource Planning'!$A$11:$A$67, "Pega",'Resource Planning'!$K$11:$K$67) -> 4.5 | C19: Hours
A20: Release/Sprint-Z Partner Resources | B20: =SUMIF('Resource Planning'!$A$11:$A$67, "Partner",'Resource Planning'!$K$11:$K$67) -> 0 | C20: Hours
A21: Release/Sprint-Z Client Resources | B21: =SUMIF('Resource Planning'!$A$11:$A$67, "Client",'Resource Planning'!$K$11:$K$67) -> 4 | C21: Hours
A22: FPR Pega Hours | B22: =IF(RDFlag="Y",SUMIF('Rapid Delivery Planning'!$A$11:$A$67,"Pega",'Rapid Delivery Planning'!$Q$11:$Q$67),B10) -> 1360 | C22: Hours
A23: FPR Partner Hours | B23: =IF(RDFlag="Y",SUMIF('Rapid Delivery Planning'!$A$11:$A$67,"Partner",'Rapid Delivery Planning'!$Q$11:$Q$67),B12) -> 0 | C23: Hours
A24: FPR Client Hours | B24: =IF(RDFlag="Y",SUMIF('Rapid Delivery Planning'!$A$11:$A$67,"Client",'Rapid Delivery Planning'!$Q$11:$Q$67),B11) -> 960 | C24: Hours
A25: Features | B25: =COUNTIF('CaseFeature Details'!F9:F12, "- FEATURE SECTION -") -> 0
A26: Reports | B26: =COUNTIF(ReportsCorr!M9:M12, ">" & 0) -> 0
A27: Interfaces | B27: =COUNTIF(Interfaces!Q9:Q12, ">" & 0) -> 0
A28: Robotics | B28: =COUNTIF(CDH!L9:L12, ">" & 0) -> 0
A29: DSM | B29: 0
A30: Start Date | B30: ='Sprint-Prepare'!K4 -> 2021-02-22
A31: FPR Start Date | B31: =B30 -> 2021-02-22
A32: FPR End Date | B32: =WORKDAY(B30,(B8*5)-1) -> 2021-04-02
A33: Project End Date | B33: ='Sprint-Z Hardening'!K5 -> 2021-04-02
A35: Case Types | B35: =COUNTIF('CaseFeature Details'!F9:F12, "- CASE TYPE SECTION -") -> 0
A36: Number of Stages | B36: =COUNTIFS('CaseFeature Details'!F9:F12, "Stage", 'CaseFeature Details'!T9:T12, ">"&0) -> 0
A37: Avg Stages/Case Type | B37: =IFERROR(B36/B35,0) -> 0
A38: Avg Num of Steps/Stage | B38: =IFERROR(SUM('CaseFeature Details'!H9:H12)/B36,0) -> 0
A40: Number of Epics | B40: =COUNTIFS('CaseFeature Details'!F9:F12, "Epic", 'CaseFeature Details'!T9:T12, ">"&0) -> 0
A41: Number of User Stories | B41: =COUNTIFS('CaseFeature Details'!F9:F12, "User Story", 'CaseFeature Details'!T9:T12, ">"&0)+ COUNTIFS('CaseFeature Details'!F9:F12, "Screen/UI User Story", 'CaseFeature Details'!T9:T12, ">"&0) -> 0

Sheet Instructions
A1: Tab Name | B1: Help Text
A2: =MID(CELL("filename",'Scrum Summary'!A1),FIND("]",CELL("filename",'Scrum Summary'!A1))+1,255) -> Scrum Summary | B2: In the “Project Sizing Summary” section, enter high-level details about your project. All other sections, graphs, and timelines in this worksheet update in real time as you provide values in the cells of other worksheets in the tool.
A3: =MID(CELL("filename",'Sprint-Prepare Task Details'!A1),FIND("]",CELL("filename",'Sprint-Prepare Task Details'!A1))+1,255) -> Sprint-Prepare Task Details | B3: Default "Best Practice" tasks have been listed. These tasks assume activities the team must accomplish before they can begin development. Typical initialization tasks include: getting access to repositories, allocating hardware, or installing software. Action: Adjust the estimated effort in "Column G".
A4: =MID(CELL("filename",'CaseFeature Details'!A1),FIND("]",CELL("filename",'CaseFeature Details'!A1))+1,255) -> CaseFeature Details | B4: Features are the key components or functionality of the Applications whose development work can be described by one or many Epics or User Stories Case Type represent business work in your application that follows a life cycle, or path, to completion. For example, “Handle Claim” or “Raise Complaint”. Action: List the inheriant case types features for your application, then Collaborate with stakeholders to capture what your application does in specifications or stories. You can adjust the estimated hours for an item by providing a positive or negative delta in hours. By default, specifications are created for the specifications and locally created stories that exist in your application.
A5: =MID(CELL("filename",ReportsCorr!A1),FIND("]",CELL("filename",ReportsCorr!A1))+1,255) -> ReportsCorr | B5: Action: List the Application OOTB Reports as needed. Collaborate with stakeholders to capture how your application reports information in specifications and stories. You can adjust the estimated hours for an item by providing a positive or negative delta in hours.
A6: =MID(CELL("filename",Interfaces!A1),FIND("]",CELL("filename",Interfaces!A1))+1,255) -> Interfaces | B6: Action: Include all known interfaces and services known. Collaborate with stakeholders to capture the integration points for your application in specifications and stories. You can adjust the estimated hours for an item by providing a positive or negative delta in hours.
A7: =MID(CELL("filename",CDH!A1),FIND("]",CELL("filename",CDH!A1))+1,255) -> CDH | B7: Pega CDH / Pega Marketing Help Text
A8: =MID(CELL("filename",'Sprint-Z Hardening Details'!A6),FIND("]",CELL("filename",'Sprint-Z Hardening Details'!A6))+1,255) -> Sprint-Z Hardening Details | B8: Default "Best Practice" tasks have been listed. These tasks assume activities the team must accomplish during hardening. Action: Adjust the estimated effort in "Column G".
A9: =MID(CELL("filename",'Consulting Services'!A1),FIND("]",CELL("filename",'Consulting Services'!A1))+1,255) -> Consulting Services | B9: Action: Include one-time/drop-in resources that your project requires. For example, you might need to consult a UX expert for two weeks or hire a test architect to work with the team for a few sprints.
A10: =MID(CELL("filename",'Sprint-Prepare'!A1),FIND("]",CELL("filename",'Sprint-Prepare'!A1))+1,255) -> Sprint-Prepare | B10: Action: In the “Pega Scrum” section, define an initialization sprint that you use to set up your environment and prepare for development. In the “Sprint Resource Assignments” section, list the sprint participants by role. Ensure that you provide an accurate availability and productivity level for each participant, because these values influence the estimated timeline and duration for your project.
A11: =MID(CELL("filename",'Sprint 1-Sprint N'!A1),FIND("]",CELL("filename",'Sprint 1-Sprint N'!A1))+1,255) -> Sprint 1-Sprint N | B11: Action: In the “Pega Scrum” section, define development sprints that you use to implement the specifications, stories, reports, and interfaces for your application. In the “Sprint Resource Assignments” section, list the sprint participants by role. Ensure that you provide an accurate availability and productivity level for each participant, because these values influence the estimated timeline and duration for your project. In the “Effort Details” section, you can refine the estimates by indicating what percentage of time is reserved for testing.
A12: =MID(CELL("filename",'Sprint-Z Hardening'!A1),FIND("]",CELL("filename",'Sprint-Z Hardening'!A1))+1,255) -> Sprint-Z Hardening | B12: In the “Pega Scrum” section, define a hardening sprint that you use to prepare your application for production. In the “Sprint Resource Assignments” section, list the sprint participants by role. Ensure that you provide an accurate availability and productivity level for each participant, because these values influence the estimated timeline and duration for your project.

Sheet Sprint-Prepare
A1: SPRINT-INITIATE RESOURCE PLANNING
A3: PEGA SCRUM | C3: =IF(F31>I24, "WARNING! - Work effort is greater than productive capacity. Please adjust resource model accordingly.", "") -> 
A4: Sprint- Initiate Length: | D4: 2 | E4: Weeks | F4: Estimated Sprint-Initiate Start Date: | K4: 2021-02-22
A5: Workdays within Sprint - Initiate: | D5: =5*Sprint0Len -> 10 | E5: Days | F5: Estimated Sprint-Initiate End Date: | K5: =IF(LEN(K4)<1,"",WORKDAY(K4,(D4*5)-1)) -> 2021-03-05
A6: Billable Hours/Work Day | D6: 8 | E6: Hours | M6: # Resources to add | Q6: 4
A7: Sprint Hours/Day : | D7: 7 | E7: Hours
A8: Sprint Backlog Planning %: | D8: 0 | F8: Sprint Capacity Hours w/o planning per Resource: | K8: =(D5*D7)*(1-D8) -> 70 | L8: Hours
A10: SPRINT RESOURCE ASSIGNMENTS | F10: HOURS DEDICATED
A11: Team Number | B11: Scrum Role | C11: Source | D11: Role | E11: Days Available During Sprint | F11: Total Billable Hours | G11: Productivity | H11: Allocation to Work Activities | I11: Work Capacity | J11: Sprint Ceremonies, Management, Mentoring, etc.
A12: =0 -> 0 | B12: <Select> | C12: <Select> | D12: <Select> | E12: =IF(AND(B12<>"", B12<>"<Select>"), $D$5, 0)* IF(D12="Practice Leader", 0.1, 1) -> 0 | F12: =E12*$D$6 -> 0 | G12: 1 | H12: 1 | I12: =IF(B12="Team Member",ROUNDDOWN(E12*$D$7*(1-$D$8)*G12*H12,0),0) -> 0 | J12: =F12-I12 -> 0
A13: 0 | B13: Scrum Master | C13: Pega | D13: Project Delivery Leader | E13: 10 | F13: =E13*$D$6 -> 80 | G13: 1 | H13: 0 | I13: =IF(B13="Team Member",ROUNDDOWN(E13*$D$7*(1-$D$8)*G13*H13,0),0) -> 0 | J13: =F13-I13 -> 80
A14: 0 | B14: Team Member | C14: Pega | D14: (L/S) Business Architect | E14: 10 | F14: 80 | G14: 1 | H14: 0.5 | I14: 35 | J14: 45
A15: 0 | B15: Team Member | C15: Pega | D15: Lead System Architect | E15: =IF(AND(B15<>"", B15<>"<Select>"), $D$5, 0)* IF(D15="Practice Leader", 0.1, 1) -> 10 | F15: =E15*$D$6 -> 80 | G15: 1 | H15: 0.8 | I15: =IF(B15="Team Member",ROUNDDOWN(E15*$D$7*(1-$D$8)*G15*H15,0),0) -> 56 | J15: 24
A16: 0 | B16: Team Member | C16: Pega | D16: (Sr) System Architect | E16: 10 | F16: =E16*$D$6 -> 80 | G16: 1 | H16: 1 | I16: =IF(B16="Team Member",ROUNDDOWN(E16*$D$7*(1-$D$8)*G16*H16,0),0) -> 70 | J16: 10
A17: =0 -> 0 | B17: Team Member | C17: Pega | D17: (Sr) System Architect | E17: 10 | F17: =E17*$D$6 -> 80 | G17: 1 | H17: 1 | I17: =IF(B17="Team Member",ROUNDDOWN(E17*$D$7*(1-$D$8)*G17*H17,0),0) -> 70 | J17: 10
A18: =0 -> 0 | B18: Team Member | C18: Pega | D18: Experience Designer | E18: 10 | F18: 80 | G18: 1 | H18: 1 | I18: 70 | J18: 10
A19: =0 -> 0 | B19: Other (non-Dev) | C19: Client | D19: Product Owner | E19: 10 | F19: 80 | G19: 1 | H19: 0 | I19: 0 | J19: 80
A20: 0 | B20: Team Member | C20: Client | D20: Test Lead | E20: 10 | F20: =E20*$D$6 -> 80 | G20: 0.4 | H20: 1 | I20: =IF(B20="Team Member",ROUNDDOWN(E20*$D$7*(1-$D$8)*G20*H20,0),0) -> 28 | J20: =F20-I20 -> 52
A21: 0 | B21: Team Member | C21: Client | D21: Business Architect | E21: 10 | F21: 80 | G21: 0.4 | H21: 1 | I21: 28 | J21: 52
A22: 0 | B22: Team Member | C22: Client | D22: System Architect | E22: 10 | F22: 80 | G22: 0.4 | H22: 1 | I22: 28 | J22: 52
A23: =0 -> 0 | B23: <Select> | C23: <Select> | D23: <Select> | E23: 0 | F23: 0 | G23: 1 | H23: 1 | I23: 0 | J23: 0
F24: =SUM(F12:F23) -> 800 | I24: =SUM(I12:I23) -> 385 | J24: =SUM(J12:J23) -> 415
A26: EFFORT DETAILS
A27: Effort Category | C27: Estimated Hrs | D27: Testing Hrs | F27: Total
D28: % | E28: Hrs
A29: Initiate Tasks Hrs: | C29: =SUMIF('Sprint-Prepare Task Details'!E9:E84,"Initiate Task",'Sprint-Prepare Task Details'!H9:H84) -> 114 | E29: =ROUNDUP(C29*D29,0) -> 0 | F29: =ROUNDUP(C29+E29,0) -> 114
A30: Infrastructure Tasks Hours: | C30: =SUMIF('Sprint-Prepare Task Details'!E9:E84,"Infrastructure Task",'Sprint-Prepare Task Details'!H9:H84) -> 260 | E30: =ROUNDUP(C30*D30,0) -> 0 | F30: =ROUNDUP(C30+E30,0) -> 260
C31: =SUM(C29:C30) -> 374 | E31: =SUM(E29:E30) -> 0 | F31: =SUM(F29:F30) -> 374

Sheet Sprint 1-Sprint N
A1: SPRINT 1 - SPRINT N RESOURCE PLANNING
A3: PEGA SCRUM | C3: =IF(OR(C36>ROUNDUP(I25,0)*$K$6,D36>ROUNDUP(J25,0)*$K$6,E36>ROUNDUP(K25,0)*$K$6), "WARNING! - Work effort is greater than productive capacity. Please adjust resource model accordingly.", "") -> 
A4: Single Sprint Length: | D4: 2 | E4: Weeks | F4: Estimated First Sprint Start Date: | K4: =IFERROR(WORKDAY('Sprint-Prepare'!K5, 1),"") -> 2021-03-08
A5: Workdays within Single Sprint: | D5: =Sprint1NLen*5 -> 10 | E5: Days | F5: Estimated Last Sprint End Date: | K5: =IF(LEN(K4)<1,"",WORKDAY(K4,(D4*NumSprints*5)-1)) -> 2021-03-19
A6: Billable Hours/Work Day | D6: 8 | E6: Hours | F6: Estimated Num of Sprints: | K6: =MAX(ROUNDUP(IF(RDFlag="Y", U55, MAX(IFERROR(H35/I26,0),1)),0),1) -> 1 | L6: Sprints | M6: # Resources to add | O6: 0
A7: Sprint Hours/Day : | D7: 6 | E7: Hours | F7: Sprint Capacity Hours w/o planning per Resource: | K7: =(D5*D7)*(1-D8) -> 54 | L7: Hours
A8: Sprint Backlog Planning %: | D8: 0.1 | F8: Excess/Unused Capacity | K8: =(NumSprints-IF(RDFlag="Y", U55, MAX(IFERROR(H35/I26,0),1)))*D5 -> 0 | L8: Days
A10: SPRINT RESOURCE ASSIGNMENTS | F10: HOURS DEDICATED
A11: Team Number | B11: Scrum Role | C11: Source | D11: Role | E11: Days Available During Sprint | F11: Total Billable Hours | G11: Productivity | H11: Allocation to Work Activities | I11: Design | J11: Build & Unit Test | K11: Test | L11: Sprint Ceremonies, Management, Mentoring, etc. | R11: Available hours | S11: Non-Available Hours | T11: Sprint Planning | U11: Available for Work
A12: =0 -> 0 | B12: <Select> | D12: <Select> | E12: =IF(AND(B12<>"", B12<>"<Select>"), $D$5, 0)* IF(D12="Practice Leader", 0.1, 1) -> 0 | F12: =E12*$D$6 -> 0 | G12: 1 | H12: 1 | I12: =VLOOKUP($D12,DropDowns!$E$3:$H$22,2,0)*$U12*$H12*$G12 -> 0 | J12: =VLOOKUP($D12,DropDowns!$E$3:$H$22,3,0)*$U12*$H12*$G12 -> 0 | K12: =VLOOKUP($D12,DropDowns!$E$3:$H$22,4,0)*$U12*$H12*$G12 -> 0 | L12: =T12+U12-SUM(I12:K12)+S12 -> 0 | R12: =E12*$D$7 -> 0 | S12: =F12-R12 -> 0 | T12: =R12*$D$8 -> 0 | U12: =R12-T12 -> 0
A13: 0 | B13: Scrum Master | C13: Pega | D13: Project Delivery Leader | E13: =1*Sprint1NDays -> 10 | F13: =E13*$D$6 -> 80 | G13: 1 | H13: 0 | I13: =VLOOKUP($D13,DropDowns!$E$3:$H$22,2,0)*$U13*$H13*$G13 -> 0 | J13: =VLOOKUP($D13,DropDowns!$E$3:$H$22,3,0)*$U13*$H13*$G13 -> 0 | K13: =VLOOKUP($D13,DropDowns!$E$3:$H$22,4,0)*$U13*$H13*$G13 -> 0 | L13: =T13+U13-SUM(I13:K13)+S13 -> 80 | R13: =E13*$D$7 -> 60 | S13: =F13-R13 -> 20 | T13: 6 | U13: 54
A14: 0 | B14: Team Member | C14: Pega | D14: (L/S) Business Architect | E14: 10 | F14: 80 | G14: 1 | H14: 1 | I14: =VLOOKUP($D14,DropDowns!$E$3:$H$22,2,0)*$U14*$H14*$G14 -> 43.2 | J14: =VLOOKUP($D14,DropDowns!$E$3:$H$22,3,0)*$U14*$H14*$G14 -> 5.4 | K14: =VLOOKUP($D14,DropDowns!$E$3:$H$22,4,0)*$U14*$H14*$G14 -> 5.4 | L14: 26 | R14: 60 | S14: 20 | T14: 6 | U14: 54
A15: 0 | B15: Team Member | C15: Pega | D15: Lead System Architect | E15: 10 | F15: 80 | G15: 1 | H15: 1 | I15: =VLOOKUP($D15,DropDowns!$E$3:$H$22,2,0)*$U15*$H15*$G15 -> 43.2 | J15: =VLOOKUP($D15,DropDowns!$E$3:$H$22,3,0)*$U15*$H15*$G15 -> 10.8 | K15: =VLOOKUP($D15,DropDowns!$E$3:$H$22,4,0)*$U15*$H15*$G15 -> 0 | L15: 26 | R15: 60 | S15: 20 | T15: 6 | U15: 54
A16: 0 | B16: Team Member | C16: Pega | D16: (Sr) System Architect | E16: 10 | F16: 80 | G16: 1 | H16: 1 | I16: =VLOOKUP($D16,DropDowns!$E$3:$H$22,2,0)*$U16*$H16*$G16 -> 10.8 | J16: =VLOOKUP($D16,DropDowns!$E$3:$H$22,3,0)*$U16*$H16*$G16 -> 43.2 | K16: =VLOOKUP($D16,DropDowns!$E$3:$H$22,4,0)*$U16*$H16*$G16 -> 0 | L16: 26 | R16: 60 | S16: 20 | T16: 6 | U16: 54
A17: 0 | B17: Team Member | C17: Pega | D17: (Sr) System Architect | E17: 10 | F17: 80 | G17: 1 | H17: 1 | I17: =VLOOKUP($D17,DropDowns!$E$3:$H$22,2,0)*$U17*$H17*$G17 -> 10.8 | J17: =VLOOKUP($D17,DropDowns!$E$3:$H$22,3,0)*$U17*$H17*$G17 -> 43.2 | K17: =VLOOKUP($D17,DropDowns!$E$3:$H$22,4,0)*$U17*$H17*$G17 -> 0 | L17: =T17+U17-SUM(I17:K17)+S17 -> 26 | R17: =E17*$D$7 -> 60 | S17: =F17-R17 -> 20 | T17: =R17*$D$8 -> 6 | U17: =R17-T17 -> 54
A18: 0 | B18: Team Member | C18: Pega | D18: (Sr) System Architect | E18: 10 | F18: 80 | G18: 1 | H18: 1 | I18: =VLOOKUP($D18,DropDowns!$E$3:$H$22,2,0)*$U18*$H18*$G18 -> 10.8 | J18: =VLOOKUP($D18,DropDowns!$E$3:$H$22,3,0)*$U18*$H18*$G18 -> 43.2 | K18: =VLOOKUP($D18,DropDowns!$E$3:$H$22,4,0)*$U18*$H18*$G18 -> 0 | L18: 26 | R18: 60 | S18: 20 | T18: 6 | U18: 54
A19: 0 | B19: Team Member | C19: Pega | D19: Experience Designer | E19: =0.5*Sprint1NDays -> 5 | F19: 40 | G19: 1 | H19: 1 | I19: =VLOOKUP($D19,DropDowns!$E$3:$H$22,2,0)*$U19*$H19*$G19 -> 21.6 | J19: =VLOOKUP($D19,DropDowns!$E$3:$H$22,3,0)*$U19*$H19*$G19 -> 0 | K19: =VLOOKUP($D19,DropDowns!$E$3:$H$22,4,0)*$U19*$H19*$G19 -> 5.4 | L19: 13 | R19: 30 | S19: 10 | T19: 3 | U19: 27
A20: 0 | B20: Other (non-Dev) | C20: Client | D20: Product Owner | E20: =1*Sprint1NDays -> 10 | F20: 80 | G20: 1 | H20: 0 | I20: =VLOOKUP($D20,DropDowns!$E$3:$H$22,2,0)*$U20*$H20*$G20 -> 0 | J20: =VLOOKUP($D20,DropDowns!$E$3:$H$22,3,0)*$U20*$H20*$G20 -> 0 | K20: =VLOOKUP($D20,DropDowns!$E$3:$H$22,4,0)*$U20*$H20*$G20 -> 0 | L20: 80 | R20: 60 | S20: 20 | T20: =R20*$D$8 -> 6 | U20: =R20-T20 -> 54
A21: =0 -> 0 | B21: Team Member | C21: Client | D21: Test Lead | E21: =1*Sprint1NDays -> 10 | F21: 80 | G21: 1 | H21: 1 | I21: =VLOOKUP($D21,DropDowns!$E$3:$H$22,2,0)*$U21*$H21*$G21 -> 0 | J21: =VLOOKUP($D21,DropDowns!$E$3:$H$22,3,0)*$U21*$H21*$G21 -> 0 | K21: =VLOOKUP($D21,DropDowns!$E$3:$H$22,4,0)*$U21*$H21*$G21 -> 54 | L21: =T21+U21-SUM(I21:K21)+S21 -> 26 | R21: =E21*$D$7 -> 60 | S21: =F21-R21 -> 20 | T21: 6 | U21: 54
A22: =0 -> 0 | B22: Team Member | C22: Client | D22: Tester | E22: =1*Sprint1NDays -> 10 | F22: 80 | G22: 1 | H22: 1 | I22: =VLOOKUP($D22,DropDowns!$E$3:$H$22,2,0)*$U22*$H22*$G22 -> 0 | J22: =VLOOKUP($D22,DropDowns!$E$3:$H$22,3,0)*$U22*$H22*$G22 -> 0 | K22: =VLOOKUP($D22,DropDowns!$E$3:$H$22,4,0)*$U22*$H22*$G22 -> 54 | L22: =T22+U22-SUM(I22:K22)+S22 -> 26 | R22: =E22*$D$7 -> 60 | S22: =F22-R22 -> 20 | T22: 6 | U22: 54
A23: 0 | B23: Team Member | C23: Client | D23: Tester | E23: =1*Sprint1NDays -> 10 | F23: 80 | G23: 1 | H23: 1 | I23: =VLOOKUP($D23,DropDowns!$E$3:$H$22,2,0)*$U23*$H23*$G23 -> 0 | J23: =VLOOKUP($D23,DropDowns!$E$3:$H$22,3,0)*$U23*$H23*$G23 -> 0 | K23: =VLOOKUP($D23,DropDowns!$E$3:$H$22,4,0)*$U23*$H23*$G23 -> 54 | L23: =T23+U23-SUM(I23:K23)+S23 -> 26 | R23: =E23*$D$7 -> 60 | S23: =F23-R23 -> 20 | T23: =R23*$D$8 -> 6 | U23: =R23-T23 -> 54
B24: <Select> | C24: <Select> | D24: <Select> | E24: 0 | F24: 0 | G24: 1 | H24: 1 | I24: =VLOOKUP($D24,DropDowns!$E$3:$H$22,2,0)*$U24*$H24*$G24 -> 0 | J24: =VLOOKUP($D24,DropDowns!$E$3:$H$22,3,0)*$U24*$H24*$G24 -> 0 | K24: =VLOOKUP($D24,DropDowns!$E$3:$H$22,4,0)*$U24*$H24*$G24 -> 0 | L24: 0 | R24: 0 | S24: 0 | T24: 0 | U24: 0
D25: =COUNTA(D12:D24)-2 -> 11 | F25: =SUM(F12:F24) -> 840 | I25: =SUM(I12:I24) -> 140.4 | J25: =SUM(J12:J24) -> 145.8 | K25: =SUM(K12:K24) -> 172.8 | L25: =SUM(L12:L24) -> 381 | R25: =SUM(R12:R24) -> 630 | S25: =SUM(S12:S24) -> 210 | T25: =SUM(T12:T24) -> 63 | U25: =SUM(U12:U24) -> 567
I26: =SUM(I25:K25) -> 459
A28: EFFORT DETAILS
A29: Effort Category | C29: Design | D29: Build & Unit Test | E29: Test | F29: Additional Risk and Contingencies * | H29: Total
F30: % | G30: Hrs
A31: Case & Feature Effort Hrs: | C31: ='CaseFeature Details'!N13 -> 0 | D31: ='CaseFeature Details'!O13 -> 0 | E31: ='CaseFeature Details'!P13 -> 0 | F31: 0.1 | G31: =ROUNDUP(SUM(C31:E31)*F31,0) -> 0 | H31: =ROUNDUP(SUM(C31:E31,G31),0) -> 0
A32: CDH Hrs: | C32: ='Work Effort'!H5*CDH!L13 -> 0 | D32: ='Work Effort'!I5*CDH!L13 -> 0 | E32: ='Work Effort'!J5*CDH!L13 -> 0 | F32: 0.1 | G32: =ROUNDUP(SUM(C32:E32)*F32,0) -> 0 | H32: =ROUNDUP(SUM(C32:E32,G32),0) -> 0
A33: Interfaces Effort Hrs: | C33: =Interfaces!K13 -> 0 | D33: =Interfaces!L13 -> 0 | E33: =Interfaces!M13 -> 0 | F33: 0.1 | G33: 0 | H33: 0
A34: Reports/ Corr Effort Hrs: | C34: =ReportsCorr!H13 -> 0 | D34: =ReportsCorr!I13 -> 0 | E34: =ReportsCorr!J13 -> 0 | F34: 0.1 | G34: 0 | H34: 0
A35: Risk / Contingency | C35: =SUMPRODUCT(C31:C34,SprintRisk) -> 0 | D35: =SUMPRODUCT(D31:D34,SprintRisk) -> 0 | E35: =SUMPRODUCT(E31:E34,SprintRisk) -> 0 | G35: =SUM(G31:G34) -> 0 | H35: =SUM(H31:H34) -> 0
A36: Total Effort for Work Activities | C36: =SUM(C31:C35) -> 0 | D36: =SUM(D31:D35) -> 0 | E36: 0
A38: * Additional Risk and Contingencies Factors
A39: Data Conversion: Low
A41: MULTI-RELEASE
A42: Release Name | C42: Short Name | D42: Hours (Specs, Reports, Interfaces, Robotics) | E42: Num of Sprints | F42: Release Sprint Needed | G42: Release Sprint | R42: Hours | S42: Num of Sprints | T42: Release Sprint Needed | U42: Release Sprint
A43: Release 1 | C43: R1 | D43: =R43+IF(T43=0,$R$54,0) -> 0 | E43: =MAX(IFERROR(D43/I$26,0),0) -> 0 | F43: =T43 -> 0 | G43: =IF(AND(D43>0,U43=$G$55,F43=0), "Sprint-Z", U43) -> 0 | I43: =IFERROR(IF((Sprint1NLen*G43 + 'Sprint-Prepare'!D4)>13, "Exceeded Rapid Delivery goal of 90 days/13 weeks ("& ROUNDDOWN((13-'Sprint-Prepare'!D4)/Sprint1NLen, 0)-1 &" working sprints & 1 release sprint) for FPR. Please adjust accordingly.",0),"") -> 0 | R43: =ROUNDUP(SUMIF('CaseFeature Details'!A$9:A$12,'Sprint 1-Sprint N'!C43,'CaseFeature Details'!T$9:T$12)*(1+$F$31)+SUMIF(CDH!$A$9:$A$12,'Sprint 1-Sprint N'!C43,CDH!$L$9:$L$12)*(1+$F$32)+SUMIF(ReportsCorr!$A$9:$A$12,'Sprint 1-Sprint N'!C43,ReportsCorr!$M$9:$M$12)*(1+$F$34)+SUMIF(Interfaces!$A$9:$A$12,'Sprint 1-Sprint N'!C43,Interfaces!$Q$9:$Q$12)*(1+$F$33),0) -> 0 | S43: =MAX(IFERROR(R43/I$26,0),0) -> 0 | T43: =IF(AND(S43>0,SUM(S44:S$54)>0),1,0) -> 0 | U43: =ROUNDUP($S$43,0)+$T$43 -> 0
A44: Release 2 | C44: R2 | D44: =R44+IF(AND(T44=0, T43>0),$R$54,0) -> 0 | E44: =MAX(IFERROR(D44/I$26,0),0) -> 0 | F44: =T44 -> 0 | G44: =IF(AND(D44>0,U44=$G$55,F44=0), "Sprint-Z", U44) -> 0 | R44: =ROUNDUP(SUMIF('CaseFeature Details'!A$9:A$12,'Sprint 1-Sprint N'!C44,'CaseFeature Details'!T$9:T$12)*(1+$F$31)+SUMIF(CDH!$A$9:$A$12,'Sprint 1-Sprint N'!C44,CDH!$L$9:$L$12)*(1+$F$32)+SUMIF(ReportsCorr!$A$9:$A$12,'Sprint 1-Sprint N'!C44,ReportsCorr!$M$9:$M$12)*(1+$F$34)+SUMIF(Interfaces!$A$9:$A$12,'Sprint 1-Sprint N'!C44,Interfaces!$Q$9:$Q$12)*(1+$F$33),0) -> 0 | S44: =MAX(IFERROR(R44/I$26,0),0) -> 0 | T44: =IF(AND(S44>0,SUM(S45:S$54)>0),1,0) -> 0 | U44: =IF($E44>0, ROUNDUP(SUM($E$43:$F44),0),0) -> 0
A45: Release 3 | C45: R3 | D45: =R45+IF(AND(T45=0, T44>0),$R$54,0) -> 0 | E45: 0 | F45: =T45 -> 0 | G45: 0 | R45: =ROUNDUP(SUMIF('CaseFeature Details'!A$9:A$12,'Sprint 1-Sprint N'!C45,'CaseFeature Details'!T$9:T$12)*(1+$F$31)+SUMIF(CDH!$A$9:$A$12,'Sprint 1-Sprint N'!C45,CDH!$L$9:$L$12)*(1+$F$32)+SUMIF(ReportsCorr!$A$9:$A$12,'Sprint 1-Sprint N'!C45,ReportsCorr!$M$9:$M$12)*(1+$F$34)+SUMIF(Interfaces!$A$9:$A$12,'Sprint 1-Sprint N'!C45,Interfaces!$Q$9:$Q$12)*(1+$F$33),0) -> 0 | S45: 0 | T45: =IF(AND(S45>0,SUM(S46:S$54)>0),1,0) -> 0 | U45: =IF($E45>0, ROUNDUP(SUM($E$43:$F45),0),0) -> 0
A46: Release 4 | C46: R4 | D46: =R46+IF(AND(T46=0, T45>0),$R$54,0) -> 0 | E46: 0 | F46: =T46 -> 0 | G46: 0 | R46: =ROUNDUP(SUMIF('CaseFeature Details'!A$9:A$12,'Sprint 1-Sprint N'!C46,'CaseFeature Details'!T$9:T$12)*(1+$F$31)+SUMIF(CDH!$A$9:$A$12,'Sprint 1-Sprint N'!C46,CDH!$L$9:$L$12)*(1+$F$32)+SUMIF(ReportsCorr!$A$9:$A$12,'Sprint 1-Sprint N'!C46,ReportsCorr!$M$9:$M$12)*(1+$F$34)+SUMIF(Interfaces!$A$9:$A$12,'Sprint 1-Sprint N'!C46,Interfaces!$Q$9:$Q$12)*(1+$F$33),0) -> 0 | S46: 0 | T46: =IF(AND(S46>0,SUM(S47:S$54)>0),1,0) -> 0 | U46: =IF($E46>0, ROUNDUP(SUM($E$43:$F46),0),0) -> 0
A47: Release 5 | C47: R5 | D47: 0 | E47: 0 | F47: 0 | G47: 0 | R47: =ROUNDUP(SUMIF('CaseFeature Details'!A$9:A$12,'Sprint 1-Sprint N'!C47,'CaseFeature Details'!T$9:T$12)*(1+$F$31)+SUMIF(CDH!$A$9:$A$12,'Sprint 1-Sprint N'!C47,CDH!$L$9:$L$12)*(1+$F$32)+SUMIF(ReportsCorr!$A$9:$A$12,'Sprint 1-Sprint N'!C47,ReportsCorr!$M$9:$M$12)*(1+$F$34)+SUMIF(Interfaces!$A$9:$A$12,'Sprint 1-Sprint N'!C47,Interfaces!$Q$9:$Q$12)*(1+$F$33),0) -> 0 | S47: 0 | T47: =IF(AND(S47>0,SUM(S48:S$54)>0),1,0) -> 0 | U47: =IF($E47>0, ROUNDUP(SUM($E$43:$F47),0),0) -> 0
A48: Release 6 | C48: R6 | D48: 0 | E48: 0 | F48: 0 | G48: 0 | R48: =ROUNDUP(SUMIF('CaseFeature Details'!A$9:A$12,'Sprint 1-Sprint N'!C48,'CaseFeature Details'!T$9:T$12)*(1+$F$31)+SUMIF(CDH!$A$9:$A$12,'Sprint 1-Sprint N'!C48,CDH!$L$9:$L$12)*(1+$F$32)+SUMIF(ReportsCorr!$A$9:$A$12,'Sprint 1-Sprint N'!C48,ReportsCorr!$M$9:$M$12)*(1+$F$34)+SUMIF(Interfaces!$A$9:$A$12,'Sprint 1-Sprint N'!C48,Interfaces!$Q$9:$Q$12)*(1+$F$33),0) -> 0 | S48: 0 | T48: =IF(AND(S48>0,SUM(S49:S$54)>0),1,0) -> 0 | U48: =IF($E48>0, ROUNDUP(SUM($E$43:$F48),0),0) -> 0
A49: Release 7 | C49: R7 | D49: 0 | E49: 0 | F49: 0 | G49: 0 | R49: =ROUNDUP(SUMIF('CaseFeature Details'!A$9:A$12,'Sprint 1-Sprint N'!C49,'CaseFeature Details'!T$9:T$12)*(1+$F$31)+SUMIF(CDH!$A$9:$A$12,'Sprint 1-Sprint N'!C49,CDH!$L$9:$L$12)*(1+$F$32)+SUMIF(ReportsCorr!$A$9:$A$12,'Sprint 1-Sprint N'!C49,ReportsCorr!$M$9:$M$12)*(1+$F$34)+SUMIF(Interfaces!$A$9:$A$12,'Sprint 1-Sprint N'!C49,Interfaces!$Q$9:$Q$12)*(1+$F$33),0) -> 0 | S49: 0 | T49: =IF(AND(S49>0,SUM(S50:S$54)>0),1,0) -> 0 | U49: =IF($E49>0, ROUNDUP(SUM($E$43:$F49),0),0) -> 0
A50: Release 8 | C50: R8 | D50: 0 | E50: 0 | F50: 0 | G50: 0 | R50: =ROUNDUP(SUMIF('CaseFeature Details'!A$9:A$12,'Sprint 1-Sprint N'!C50,'CaseFeature Details'!T$9:T$12)*(1+$F$31)+SUMIF(CDH!$A$9:$A$12,'Sprint 1-Sprint N'!C50,CDH!$L$9:$L$12)*(1+$F$32)+SUMIF(ReportsCorr!$A$9:$A$12,'Sprint 1-Sprint N'!C50,ReportsCorr!$M$9:$M$12)*(1+$F$34)+SUMIF(Interfaces!$A$9:$A$12,'Sprint 1-Sprint N'!C50,Interfaces!$Q$9:$Q$12)*(1+$F$33),0) -> 0 | S50: 0 | T50: =IF(AND(S50>0,SUM(S51:S$54)>0),1,0) -> 0 | U50: =IF($E50>0, ROUNDUP(SUM($E$43:$F50),0),0) -> 0
A51: Release 9 | C51: R9 | D51: 0 | E51: 0 | F51: 0 | G51: 0 | R51: =ROUNDUP(SUMIF('CaseFeature Details'!A$9:A$12,'Sprint 1-Sprint N'!C51,'CaseFeature Details'!T$9:T$12)*(1+$F$31)+SUMIF(CDH!$A$9:$A$12,'Sprint 1-Sprint N'!C51,CDH!$L$9:$L$12)*(1+$F$32)+SUMIF(ReportsCorr!$A$9:$A$12,'Sprint 1-Sprint N'!C51,ReportsCorr!$M$9:$M$12)*(1+$F$34)+SUMIF(Interfaces!$A$9:$A$12,'Sprint 1-Sprint N'!C51,Interfaces!$Q$9:$Q$12)*(1+$F$33),0) -> 0 | S51: 0 | T51: =IF(AND(S51>0,SUM(S52:S$54)>0),1,0) -> 0 | U51: =IF($E51>0, ROUNDUP(SUM($E$43:$F51),0),0) -> 0
A52: Release 10 | C52: R10 | D52: 0 | E52: 0 | F52: 0 | G52: 0 | R52: =ROUNDUP(SUMIF('CaseFeature Details'!A$9:A$12,'Sprint 1-Sprint N'!C52,'CaseFeature Details'!T$9:T$12)*(1+$F$31)+SUMIF(CDH!$A$9:$A$12,'Sprint 1-Sprint N'!C52,CDH!$L$9:$L$12)*(1+$F$32)+SUMIF(ReportsCorr!$A$9:$A$12,'Sprint 1-Sprint N'!C52,ReportsCorr!$M$9:$M$12)*(1+$F$34)+SUMIF(Interfaces!$A$9:$A$12,'Sprint 1-Sprint N'!C52,Interfaces!$Q$9:$Q$12)*(1+$F$33),0) -> 0 | S52: 0 | T52: =IF(AND(S52>0,SUM(S53:S$54)>0),1,0) -> 0 | U52: =IF($E52>0, ROUNDUP(SUM($E$43:$F52),0),0) -> 0
A53: Release 11 | C53: R11 | D53: 0 | E53: 0 | F53: 0 | G53: 0 | R53: =ROUNDUP(SUMIF('CaseFeature Details'!A$9:A$12,'Sprint 1-Sprint N'!C53,'CaseFeature Details'!T$9:T$12)*(1+$F$31)+SUMIF(CDH!$A$9:$A$12,'Sprint 1-Sprint N'!C53,CDH!$L$9:$L$12)*(1+$F$32)+SUMIF(ReportsCorr!$A$9:$A$12,'Sprint 1-Sprint N'!C53,ReportsCorr!$M$9:$M$12)*(1+$F$34)+SUMIF(Interfaces!$A$9:$A$12,'Sprint 1-Sprint N'!C53,Interfaces!$Q$9:$Q$12)*(1+$F$33),0) -> 0 | S53: 0 | T53: =IF(AND(S53>0,SUM(S54:S$54)>0),1,0) -> 0 | U53: =IF($E53>0, ROUNDUP(SUM($E$43:$F53),0),0) -> 0
A54: Unassigned | D54: 0 | E54: 0 | F54: =T54 -> 0 | G54: 0 | R54: =ROUNDUP(SUMIF('CaseFeature Details'!A$9:A$12,"",'CaseFeature Details'!T$9:T$12)*(1+$F$31)+SUMIF(CDH!$A$9:$A$12,"",CDH!$L$9:$L$12)*(1+$F$32)+SUMIF(ReportsCorr!$A$9:$A$12,"",ReportsCorr!$M$9:$M$12)*(1+$F$34)+SUMIF(Interfaces!$A$9:$A$12,"",Interfaces!$Q$9:$Q$12)*(1+$F$33),0) -> 0 | S54: 0 | T54: 0 | U54: 0
A55: Total | D55: =R55 -> 0 | E55: =S55 -> 0 | F55: =T55 -> 0 | G55: =ROUNDUP(SUM(E55:F55),0) -> 0 | R55: =SUM(R43:R54) -> 0 | S55: =SUM(S43:S54) -> 0 | T55: =SUM(T43:T54) -> 0 | U55: =SUM(S55:T55) -> 0

Sheet Sprint-Z Hardening
A1: SPRINT-Z HARDENING RESOURCE PLANNING
A3: PEGA SCRUM | C3: =IF(F31>I23, "WARNING! - Work effort is greater than productive capacity. Please adjust resource model accordingly.", "") -> 
A4: Sprint-Z Length: | D4: 2 | E4: Weeks | F4: Estimated Sprint-Z Start Date: | K4: =IFERROR(WORKDAY('Sprint 1-Sprint N'!K5, 1),"") -> 2021-03-22
A5: Workdays within Sprint - Z: | D5: =SprintZLen*5 -> 10 | E5: Days | F5: Estimated Sprint-Z End Date: | K5: =IFERROR(IF(WORKDAY(K4,D5-1)<K4,K4,WORKDAY(K4,D5-1)),"") -> 2021-04-02
A6: Billable Hours/Work Day | D6: 8 | E6: Hours | M6: # Resources to add | O6: 1
A7: Sprint Hours/Day : | D7: 7 | E7: Hours
A8: Sprint Backlog Planning %: | D8: 0 | F8: Sprint Capacity Hours w/o planning per Resource: | K8: =(D5*D7)*(1-D8) -> 70 | L8: Hours
A10: SPRINT RESOURCE ASSIGNMENTS | F10: HOURS DEDICATED
A11: Team Number | B11: Scrum Role | C11: Source | D11: Role | E11: Days Available During Sprint | F11: Total Billable Hours | G11: Productivity | H11: Allocation to Work Activities | I11: Work Effort Capacity | J11: Sprint Governance/ Management | K11: Other Non-Dev Activities
A12: =0 -> 0 | B12: <Select> | C12: <Select> | D12: <Select> | E12: =IF(AND(B12<>"", B12<>"<Select>"), $D$5, 0)* IF(D12="Practice Leader", 0.1, 1) -> 0 | F12: =E12*$D$6 -> 0 | G12: 1 | H12: 1 | I12: =IF(B12="Team Member",ROUNDDOWN(E12*$D$7*(1-$D$8)*G12*H12,0),0) -> 0 | J12: =IF(OR(B12="Scrum Master",B12="Product Owner",D12="Practice Leader"),ROUNDDOWN(E12*$D$7*(1-$D$8)*G12,0),0) -> 0 | K12: =F12-SUM(I12:J12) -> 0
A13: =0 -> 0 | B13: Scrum Master | C13: Pega | D13: Project Delivery Leader | E13: =IF(AND(B13<>"", B13<>"<Select>"), $D$5, 0)* IF(D13="Practice Leader", 0.1, 1) -> 10 | F13: =E13*$D$6 -> 80 | G13: 1 | H13: 0 | I13: =IF(B13="Team Member",ROUNDDOWN(E13*$D$7*(1-$D$8)*G13*H13,0),0) -> 0 | J13: =IF(OR(B13="Scrum Master",B13="Product Owner",D13="Practice Leader"),ROUNDDOWN(E13*$D$7*(1-$D$8)*G13,0),0) -> 70 | K13: =F13-SUM(I13:J13) -> 10
A14: =0 -> 0 | B14: Team Member | C14: Pega | D14: (L/S) Business Architect | E14: 10 | F14: 80 | G14: 1 | H14: 0.5 | I14: 35 | J14: 0 | K14: 45
A15: =0 -> 0 | B15: Team Member | C15: Pega | D15: Lead System Architect | E15: 10 | F15: =E15*$D$6 -> 80 | G15: 1 | H15: 0.8 | I15: =IF(B15="Team Member",ROUNDDOWN(E15*$D$7*(1-$D$8)*G15*H15,0),0) -> 56 | J15: =IF(OR(B15="Scrum Master",B15="Product Owner",D15="Practice Leader"),ROUNDDOWN(E15*$D$7*(1-$D$8)*G15,0),0) -> 0 | K15: =F15-SUM(I15:J15) -> 24
A16: =0 -> 0 | B16: Team Member | C16: Pega | D16: (Sr) System Architect | E16: 10 | F16: 80 | G16: 1 | H16: 1 | I16: 70 | J16: 0 | K16: 10
A17: =0 -> 0 | B17: Team Member | C17: Pega | D17: Experience Designer | E17: 5 | F17: =E17*$D$6 -> 40 | G17: 1 | H17: 1 | I17: =IF(B17="Team Member",ROUNDDOWN(E17*$D$7*(1-$D$8)*G17*H17,0),0) -> 35 | J17: =IF(OR(B17="Scrum Master",B17="Product Owner",D17="Practice Leader"),ROUNDDOWN(E17*$D$7*(1-$D$8)*G17,0),0) -> 0 | K17: =F17-SUM(I17:J17) -> 5
A18: =0 -> 0 | B18: Other (non-Dev) | C18: Client | D18: Product Owner | E18: =IF(AND(B18<>"", B18<>"<Select>"), $D$5, 0)* IF(D18="Practice Leader", 0.1, 1) -> 10 | F18: =E18*$D$6 -> 80 | G18: 1 | H18: 0 | I18: =IF(B18="Team Member",ROUNDDOWN(E18*$D$7*(1-$D$8)*G18*H18,0),0) -> 0 | J18: =IF(OR(B18="Scrum Master",B18="Product Owner",D18="Practice Leader"),ROUNDDOWN(E18*$D$7*(1-$D$8)*G18,0),0) -> 0 | K18: =F18-SUM(I18:J18) -> 80
A19: =0 -> 0 | B19: Team Member | C19: Client | D19: Test Lead | E19: 10 | F19: 80 | G19: 0.4 | H19: 1 | I19: 28 | J19: 0 | K19: 52
A20: =0 -> 0 | B20: Team Member | C20: Client | D20: Business Architect | E20: 10 | F20: 80 | G20: 0.4 | H20: 1 | I20: 28 | J20: 0 | K20: 52
A21: =0 -> 0 | B21: Team Member | C21: Client | D21: System Architect | E21: 10 | F21: 80 | G21: 0.4 | H21: 1 | I21: 28 | J21: 0 | K21: 52
A22: =0 -> 0 | B22: <Select> | C22: <Select> | D22: <Select> | E22: 0 | F22: 0 | G22: 1 | H22: 1 | I22: 0 | J22: 0 | K22: 0
F23: =SUM(F12:F22) -> 680 | I23: =SUM(I12:I22) -> 280 | J23: =SUM(J12:J22) -> 70 | K23: =SUM(K12:K21) -> 330
A25: EFFORT DETAILS
A26: Effort Category | C26: Estimated Hrs | D26: Additional Testing Hrs | F26: Total
D27: % | E27: Hrs
A28: Hardening Tasks Hrs: | C28: =SUMIF('Sprint-Z Hardening Details'!E9:E12,"Hardening Task",'Sprint-Z Hardening Details'!H9:H12) -> 0 | E28: =ROUNDUP(C28*D28,0) -> 0 | F28: =ROUNDUP(C28+E28,0) -> 0
A29: Handover Tasks Hours: | C29: =SUMIF('Sprint-Z Hardening Details'!E9:E12,"Handover",'Sprint-Z Hardening Details'!H9:H12) -> 0 | E29: =ROUNDUP(C29*D29,0) -> 0 | F29: =ROUNDUP(C29+E29,0) -> 0
A30: UAT Support Hours: | C30: =SUMIF('Sprint-Z Hardening Details'!E9:E12,"UAT Support",'Sprint-Z Hardening Details'!H9:H12) -> 0 | E30: =ROUNDUP(C30*D30,0) -> 0 | F30: =ROUNDUP(C30+E30,0) -> 0
C31: =SUM(C28:C30) -> 0 | E31: =SUM(E28:E30) -> 0 | F31: =SUM(F28:F30) -> 0

Sheet Consulting Services
A1: CONSULTING SERVICES
A2: Items added into this section will not impact the overall project duration. These items add Consulting Services across the project implementation.
A4: # Services to Add | C4: 1
A6: CONSULTING SERVICES
A7: ID | B7: Consulting Service | C7: Source | D7: Role | E7: Sprint-0 Hours | F7: Sprint 1-N Hours | I7: Sprint-Z Hours | J7: Total Estimated Hours
F8: Sprint-0 | G8: Sprint-1 | H8: Sprint-11
A9: =ROW()-9 -> 0 | B9: <Select a Service> | C9: <Select> | D9: <Select> | J9: =SUM(E9:I9) -> 0
A10: 1 | B10: Design Review | C10: Pega | D10: Lead System Architect | J10: 0
A11: 2 | B11: Performance Review/Tuning Level-1 | C11: Pega | D11: Lead System Architect | J11: 0
A12: 3 | B12: Usability Reviews | C12: Pega | D12: Business Architect | J12: 0
A13: 4 | B13: User Experience Design/Config Srvs | C13: Pega | D13: UX Sr. Director | J13: 0
A14: 5 | B14: <Select a Service> | C14: Pega | D14: <Select> | J14: 0
E15: =SUM(E9:E14) -> 0 | F15: =SUM(F9:H14) -> 0 | I15: =SUM(I9:I14) -> 0 | J15: =SUM(J9:J14) -> 0

Sheet Sprint-Prepare Task Details
A1: SPRINT-INITIATE DETAILS
D3: Number of Rows to add: | E3: 70
D4: Release(s) to View (Read-only, copied from Feature Details worksheet) | E4: =IF(MLPFilter ="", "", MLPFilter) -> 
A7: Release Tag | C7: ID | D7: Task Name | E7: Task Type | F7: In scope for this project? | G7: Estimated Hours | H7: Total Hours
B9: =CTL(A9,$E$4) -> 1 | C9: =ROW()-9 -> 0 | E9: <Select> | F9: Yes | H9: =IF(F9="yes",G9,0) -> 0
B10: =CTL(A10,$E$4) -> 1 | C10: =ROW()-9 -> 1 | D10: Agreed steering committee and governance plan for project and business as usual operations | E10: Initiate Task | F10: Yes | G10: 4 | H10: =IF(F10="yes",G10,0) -> 4
B11: 1 | C11: 2 | D11: Agreed risk and issue management process and escalation | E11: Initiate Task | F11: Yes | G11: 4 | H11: 4
B12: 1 | C12: 3 | D12: Revision management and deployment roles & responsibilities (IT - business delegation) | E12: Initiate Task | F12: Yes | G12: 4 | H12: 4
B13: 1 | C13: 4 | D13: Agreed workstreams, workstream ownership, resource estimates and concurrence on who will provide resources | E13: Initiate Task | F13: Yes | G13: 4 | H13: 4
B14: 1 | C14: 5 | D14: Agreed change management plan and change control process | E14: Initiate Task | F14: Yes | G14: 4 | H14: 4
B15: 1 | C15: 6 | D15: Agreed gateway points for solution and design review sign-off | E15: Initiate Task | F15: Yes | G15: 4 | H15: 4
B16: 1 | C16: 7 | D16: Enablement / training plan for delivery team resources | E16: Initiate Task | F16: Yes | G16: 4 | H16: 4
B17: 1 | C17: 8 | D17: Review and agreement to Pega Agile Enabled Methodology | E17: Initiate Task | F17: Yes | G17: 4 | H17: 4
B18: 1 | C18: 9 | D18: 2 or 3 specific, measurable, relevant, time-bound business objectives with agreed metrics for determining success | E18: Initiate Task | F18: Yes | G18: 4 | H18: 4
B19: 1 | C19: 10 | D19: Agreed focus, channel enablement, demonstrable capabilities and defined results for first three phases | E19: Initiate Task | F19: Yes | G19: 4 | H19: 4
B20: 1 | C20: 11 | D20: PREPARE Phase | E20: - SECTION HEADER - | H20: 0
B21: 1 | C21: 12 | D21: CASE TYPE BACKLOG REVIEW | E21: - SECTION HEADER - | H21: 0
B22: 1 | C22: 13 | D22: conduct Case Type Gap analysis | E22: Infrastructure Task | F22: Yes | G22: 8 | H22: 8
B23: 1 | C23: 14 | D23: review and map case type to OOTB | E23: Infrastructure Task | F23: Yes | G23: 2 | H23: 2
B24: 1 | C24: 15 | D24: if no OOTB fits, build application using Plaform | E24: Infrastructure Task | H24: 0
B25: 1 | C25: 16 | D25: Add case types and features to a new case type backlog | E25: Infrastructure Task | H25: 0
B26: 1 | C26: 17 | D26: Identify existing customer journeys for MLP | E26: Initiate Task | F26: Yes | G26: 8 | H26: 8
B27: 1 | C27: 18 | D27: modify existing case types | E27: Infrastructure Task | F27: Yes | G27: 4 | H27: 4
B28: 1 | C28: 19 | D28: add case types and requirements | E28: Initiate Task | F28: Yes | G28: 8 | H28: 8
B29: 1 | C29: 20 | D29: remove unneeded case types and requirements | E29: Initiate Task | F29: Yes | G29: 2 | H29: 2
B30: 1 | C30: 21 | D30: prioritize case types and features | E30: Infrastructure Task | F30: Yes | G30: 4 | H30: 4
B31: 1 | C31: 22 | D31: Building a Case type Backlog | E31: - SECTION HEADER - | H31: 0
B32: 1 | C32: 23 | D32: start with 6-10 case types | H32: 0
B33: 1 | C33: 24 | D33: investigate and refine the case types to select top three (MLP) | E33: Initiate Task | F33: Yes | G33: 6 | H33: 6
B34: 1 | C34: 25 | D34: Case Type Backlog Prioritization | E34: - SECTION HEADER - | H34: 0
B35: 1 | C35: 26 | D35: prioritize case types and features backlog by given business scenario | E35: Initiate Task | F35: Yes | G35: 4 | H35: 4
B36: 1 | C36: 27 | D36: Gather existng process documentation | E36: - SECTION HEADER - | H36: 0
B37: 1 | C37: 28 | D37: identify data entities and personsa | E37: Initiate Task | F37: Yes | G37: 4 | H37: 4
B38: 1 | C38: 29 | D38: list the type of information gathered when identify data and personas | E38: Initiate Task | F38: Yes | G38: 4 | H38: 4
B39: 1 | C39: 30 | D39: Define when to defer a case type based on data and persona | E39: Initiate Task | F39: Yes | G39: 2 | H39: 2
B40: 1 | C40: 31 | D40: Data | E40: - SECTION HEADER - | H40: 0
B41: 1 | C41: 32 | D41: Required data to support the case type | E41: Infrastructure Task | F41: Yes | G41: 2 | H41: 2
B42: 1 | C42: 33 | D42: Define where the data comes from | E42: Infrastructure Task | F42: Yes | G42: 2 | H42: 2
B43: 1 | C43: 34 | D43: define special requirements needed by persona and by channel | E43: Infrastructure Task | F43: Yes | G43: 2 | H43: 2
B44: 1 | C44: 35 | D44: define the data format, if known | E44: Infrastructure Task | F44: Yes | G44: 2 | H44: 2
B45: 1 | C45: 36 | D45: define integrations you need to source and update data | E45: Infrastructure Task | F45: Yes | G45: 2 | H45: 2
B46: 1 | C46: 37 | D46: consider sizing and effort to complete integration | E46: Infrastructure Task | F46: Yes | G46: 2 | H46: 2
B47: 1 | C47: 38 | D47: existing or new integration is needed | E47: Infrastructure Task | F47: Yes | G47: 2 | H47: 2
B48: 1 | C48: 39 | D48: define timeline for integration availability | E48: Infrastructure Task | F48: Yes | G48: 2 | H48: 2
B49: 1 | C49: 40 | D49: Refine Scope with Integration Designer | E49: Infrastructure Task | F49: Yes | G49: 2 | H49: 2
B50: 1 | C50: 41 | D50: Expose SOR and current availability | E50: Infrastructure Task | F50: Yes | G50: 2 | H50: 2
B51: 1 | C51: 42 | D51: Persona | E51: - SECTION HEADER - | H51: 0
B52: 1 | C52: 43 | D52: special requirements for that particular persona within a channel to complete a case | E52: Infrastructure Task | F52: Yes | G52: 1 | H52: 1
B53: 1 | C53: 44 | D53: Review/define any special hardware , offline processes or training requirements | E53: Infrastructure Task | F53: Yes | G53: 1 | H53: 1
B54: =CTL(A54,$E$4) -> 1 | C54: =ROW()-9 -> 45 | D54: Enhanced reporting specifications (i.e., ‘To Be’) | E54: Initiate Task | F54: Yes | G54: 4 | H54: 4
B55: 1 | C55: 46 | D55: Data source access and channel application integration high level diagram | E55: Initiate Task | F55: Yes | G55: 4 | H55: 4
B56: 1 | C56: 47 | D56: Capacity sizing inputs for Pega (number of agents, customers, interactions, etc. – daily, monthly, peak hour) | E56: Initiate Task | F56: Yes | G56: 4 | H56: 4
B57: 1 | C57: 48 | D57: High level environment & infrastructure plan with general delivery dates by customer | E57: Initiate Task | F57: Yes | G57: 4 | H57: 4
B58: 1 | C58: 49 | D58: Identification of any real time data services and review of impact on performance | E58: Initiate Task | F58: Yes | G58: 4 | H58: 4
B59: 1 | C59: 50 | D59: General agreement on ‘definition of done’ for each phase | E59: Initiate Task | F59: Yes | G59: 4 | H59: 4
B60: 1 | C60: 51 | D60: Review of business and IT testing requirements (specifications, test cycles, performance SLA’s) | E60: Initiate Task | F60: Yes | G60: 4 | H60: 4
B61: 1 | C61: 52 | D61: Review of test data / automated testing | E61: Initiate Task | F61: Yes | G61: 4 | H61: 4
B62: 1 | C62: 53 | D62: Facilites, badging, phone, network, desks | E62: Initiate Task | F62: Yes | G62: 4 | H62: 4
B63: 1 | C63: 54 | D63: Set up Application Profile | E63: - SECTION HEADER - | F63: Yes | G63: 0 | H63: 0
B64: 1 | C64: 55 | D64: Generate the Application Profile | E64: Infrastructure Task | F64: Yes | G64: 2 | H64: 2
B65: 1 | C65: 56 | D65: Generate the Application Document | E65: Infrastructure Task | F65: Yes | G65: 2 | H65: 2
B66: 1 | C66: 57 | D66: Run the New Application Wizard | E66: Infrastructure Task | F66: Yes | G66: 2 | H66: 2
B67: 1 | C67: 58 | D67: Update a case type (one for each needing update) | E67: Infrastructure Task | F67: Yes | G67: 4 | H67: 4
B68: 1 | C68: 59 | D68: Add a case type (one for each needed) | E68: Infrastructure Task | F68: Yes | G68: 4 | H68: 4
B69: 1 | C69: 60 | D69: Define the data model | E69: Infrastructure Task | F69: Yes | G69: 8 | H69: 8
B70: 1 | C70: 61 | D70: Case Specialization | E70: Infrastructure Task | F70: Yes | G70: 8 | H70: 8
B71: 1 | C71: 62 | D71: Prep Designer Studio/Agile Studio for DCO Sessions | E71: Infrastructure Task | F71: Yes | G71: 8 | H71: 8
B72: 1 | C72: 63 | D72: Technical Application Foundational | E72: - SECTION HEADER - | F72: Yes | H72: 0
B73: 1 | C73: 64 | D73: Supporting the installation of the environments – Recommend 16 hours | E73: Infrastructure Task | F73: Yes | G73: 16 | H73: 16
B74: 1 | C74: 65 | D74: Initial Data Model – Recommend 40 hours | E74: Infrastructure Task | F74: Yes | G74: 40 | H74: 40
B75: 1 | C75: 66 | D75: Layer cake and Enterprise Class Structure - Recommend 24 hours (Deciding on the Enterprise Class Structure/ time with the client to define the FW layer and how many implementation layers should be built. Coming up with the ECS on paper.) | E75: Infrastructure Task | F75: Yes | G75: 24 | H75: 24
B76: 1 | C76: 67 | D76: Establish Rule set strategy - Recommend 2 hours | E76: Infrastructure Task | F76: Yes | G76: 2 | H76: 2
B77: 1 | C77: 68 | D77: Establish Deployment Strategy – Recommend 4 hours | E77: Infrastructure Task | F77: Yes | G77: 4 | H77: 4
B78: 1 | C78: 69 | D78: Dev Ops ( Optional 20 per week) | E78: Infrastructure Task | F78: Yes | G78: 20 | H78: 20
B79: 1 | C79: 70 | D79: Collaborate on Unit and Integration Testing Strategy – Recommend 4 hours | E79: Infrastructure Task | F79: Yes | G79: 4 | H79: 4
B80: 1 | C80: 71 | D80: Ongoing Engagement Recommendations | E80: - SECTION HEADER - | F80: Yes | H80: 0
B81: 1 | C81: 72 | D81: Data Model – Recommend 40 hours. ( Justification: The data model requires regular effort by the LSA - to manage adding new classes, new properties) | E81: Infrastructure Task | F81: Yes | G81: 40 | H81: 40
B82: 1 | C82: 73 | D82: Design and Code reviews – Recommend 1 hour for design review and 1 hour for code review per use case. | E82: Infrastructure Task | F82: Yes | H82: 0
B83: 1 | C83: 74 | D83: IF using Cloud, Recommend triaging connectivity issues - 32 hours – | E83: Infrastructure Task | F83: Yes | G83: 32 | H83: 32
B84: =CTL(A84,$E$4) -> 1 | C84: =ROW()-9 -> 75 | E84: <Select> | F84: Yes | H84: 0
F85: Totals: | G85: =SUM(G9:G84) -> 374 | H85: =SUM(H9:H84) -> 374

Sheet CaseFeature Details
A1: CASE TYPE & FEATURE DETAILS
C3: Number of Rows to add: | E3: 24
C4: Release(s) to View (comma delimited list) | E4: =IF(MLPFilter ="", "", MLPFilter) -> 
C5: Sprints(s) to View (comma delimited list)
A7: Release Tag | B7: Sprint Number | C7: ID | D7: Case, Feature, Stage, Epic, or User Story | E7: Item Maturity | F7: Item Type | G7: Complexity | H7: Num of Steps (Stages only) | I7: Channels Doubliclick cell or enter 'X' (cases only) | N7: Design | O7: Build & Unit Test | P7: Test | Q7: Subtotal | R7: Auto Estimated Hrs | S7: Total Adj Hrs | T7: Total Effort | U7: Adjustment Justification
I8: Web | J8: Call Center | K8: Mobile | M8: Other | V8: Tag logic | W8: Sprint logic | X8: Tag & Sprint logic | Y8: Design | Z8: build | AA8: test
C9: =ROW()-9 -> 0 | E9: <Select> | F9: <Select> | G9: <Select> | N9: =$T9*'Work Effort'!H$2 -> 0 | O9: =$T9*'Work Effort'!I$2 -> 0 | P9: =$T9*'Work Effort'!J$2 -> 0 | Q9: =ROUNDUP(SUM(Y9:AA9),0)*IF('Scrum Summary'!$C$10="No",(Scaling!$C$102),1)*(1+IF(I9="X",Scaling!$C$166,0)+IF(J9="X",Scaling!$C$167,0)+IF(K9="X",Scaling!$C$168,0)+IF(L9="X",Scaling!$C$169,0)+IF(M9="X",Scaling!$C$170,0)) -> 0 | R9: =Q9*$X9 -> 0 | S9: 0 | T9: =SUM(R9:S9)*$X9 -> 0 | V9: =CTL(A9, $E$4) -> 1 | W9: =CTL(B9, $E$5) -> 1 | X9: =V9*W9 -> 1 | Y9: =IFERROR((VLOOKUP($E9, INDIRECT(VLOOKUP($F9,ScaleRngLkup,2,0)),3,0)*VLOOKUP($G9, INDIRECT(VLOOKUP($F9,ScaleRngLkup,3,0)),3,0)),0)*MAX(1,H9*0.9) -> 0 | Z9: =IFERROR((VLOOKUP($E9, INDIRECT(VLOOKUP($F9,ScaleRngLkup,2,0)),4,0)*VLOOKUP($G9, INDIRECT(VLOOKUP($F9,ScaleRngLkup,3,0)),4,0)),0)*MAX(1,H9*0.9) -> 0 | AA9: =IFERROR((VLOOKUP($E9, INDIRECT(VLOOKUP($F9,ScaleRngLkup,2,0)),5,0)*VLOOKUP($G9, INDIRECT(VLOOKUP($F9,ScaleRngLkup,3,0)),5,0)),0)*MAX(1,H9*0.9) -> 0
C10: =ROW()-9 -> 1 | E10: <Select> | F10: <Select> | G10: <Select> | N10: =$T10*'Work Effort'!H$2 -> 0 | O10: =$T10*'Work Effort'!I$2 -> 0 | P10: =$T10*'Work Effort'!J$2 -> 0 | Q10: =ROUNDUP(SUM(Y10:AA10),0)*IF('Scrum Summary'!$C$10="No",(Scaling!$C$102),1)*(1+IF(I10="X",Scaling!$C$166,0)+IF(J10="X",Scaling!$C$167,0)+IF(K10="X",Scaling!$C$168,0)+IF(L10="X",Scaling!$C$169,0)+IF(M10="X",Scaling!$C$170,0)) -> 0 | R10: =Q10*$X10 -> 0 | S10: 0 | T10: =SUM(R10:S10)*$X10 -> 0 | V10: =CTL(A10, $E$4) -> 1 | W10: =CTL(B10, $E$5) -> 1 | X10: =V10*W10 -> 1 | Y10: =IFERROR((VLOOKUP($E10, INDIRECT(VLOOKUP($F10,ScaleRngLkup,2,0)),3,0)*VLOOKUP($G10, INDIRECT(VLOOKUP($F10,ScaleRngLkup,3,0)),3,0)),0)*MAX(1,H10*0.9) -> 0 | Z10: =IFERROR((VLOOKUP($E10, INDIRECT(VLOOKUP($F10,ScaleRngLkup,2,0)),4,0)*VLOOKUP($G10, INDIRECT(VLOOKUP($F10,ScaleRngLkup,3,0)),4,0)),0)*MAX(1,H10*0.9) -> 0 | AA10: =IFERROR((VLOOKUP($E10, INDIRECT(VLOOKUP($F10,ScaleRngLkup,2,0)),5,0)*VLOOKUP($G10, INDIRECT(VLOOKUP($F10,ScaleRngLkup,3,0)),5,0)),0)*MAX(1,H10*0.9) -> 0
C11: 2 | E11: <Select> | F11: <Select> | G11: <Select> | N11: =$T11*'Work Effort'!H$2 -> 0 | O11: =$T11*'Work Effort'!I$2 -> 0 | P11: =$T11*'Work Effort'!J$2 -> 0 | Q11: =ROUNDUP(SUM(Y11:AA11),0)*IF('Scrum Summary'!$C$10="No",(Scaling!$C$102),1)*(1+IF(I11="X",Scaling!$C$166,0)+IF(J11="X",Scaling!$C$167,0)+IF(K11="X",Scaling!$C$168,0)+IF(L11="X",Scaling!$C$169,0)+IF(M11="X",Scaling!$C$170,0)) -> 0 | R11: 0 | S11: 0 | T11: 0 | V11: 1 | W11: 1 | X11: 1 | Y11: 0 | Z11: 0 | AA11: 0
C12: =ROW()-9 -> 3 | E12: <Select> | F12: <Select> | G12: <Select> | N12: =$T12*'Work Effort'!H$2 -> 0 | O12: =$T12*'Work Effort'!I$2 -> 0 | P12: =$T12*'Work Effort'!J$2 -> 0 | Q12: =ROUNDUP(SUM(Y12:AA12),0)*IF('Scrum Summary'!$C$10="No",(Scaling!$C$102),1)*(1+IF(I12="X",Scaling!$C$166,0)+IF(J12="X",Scaling!$C$167,0)+IF(K12="X",Scaling!$C$168,0)+IF(L12="X",Scaling!$C$169,0)+IF(M12="X",Scaling!$C$170,0)) -> 0 | R12: =Q12*$X12 -> 0 | S12: 0 | T12: =SUM(R12:S12)*$X12 -> 0 | V12: =CTL(A12, $E$4) -> 1 | W12: =CTL(B12, $E$5) -> 1 | X12: =V12*W12 -> 1 | Y12: 0 | Z12: 0 | AA12: 0
I13: Totals | N13: =SUM(N9:N12) -> 0 | O13: 0 | P13: 0 | Q13: 0 | R13: 0 | S13: 0 | T13: 0

Sheet ReportsCorr
A1: REPORTS AND CORRESPONDENCES
B3: Number of Rows to add: | E3: 1
B4: Release(s) to View (Read-only, copied from CaseFeature Details worksheet) | E4: =IF(MLPFilter ="", "", MLPFilter) -> 
B5: Sprints(s) to View (Read-only, copied from CaseFeature Details worksheet) | E5: =IF('CaseFeature Details'!E5="", "", 'CaseFeature Details'!E5) -> 
A7: REPORTS AND CORRESPONDENCES
A8: Release Tag | B8: Sprint Tag | C8: ID | D8: Report/Correspondence Name | E8: Type | F8: Business Impact | G8: Complexity | H8: Design | I8: Build & Unit Test | J8: Testing | K8: Auto Estimated Hrs | L8: Hrs Adjustment | M8: Total Effort | N8: Adjustment Justification | O8: Tag logic | P8: Sprint logic | Q8: Tag & Sprint logic | R8: Design | S8: Build & Unit Test | T8: Testing
C9: =ROW()-9 -> 0 | F9: <Select> | H9: =$M9*'Work Effort'!H$3 -> 0 | I9: =$M9*'Work Effort'!I$3 -> 0 | J9: =$M9*'Work Effort'!J$3 -> 0 | K9: =ROUNDUP(SUM(R9:T9)*$Q9,0) -> 0 | L9: 0 | M9: =SUM(K9:L9)*$Q9 -> 0 | O9: =CTL(A9, $E$4) -> 1 | P9: =CTL(B9,$E$5) -> 1 | Q9: =O9*P9 -> 1 | R9: =ROUND(S9/(Scaling!$E$5+Scaling!$E$6)*Scaling!$E$4,0)*$Q9 -> 0 | S9: =IFERROR(ROUNDUP((IF((LEN(G9)=0),0,(VLOOKUP(E9,Scaling!$B$92:$F$95,2,FALSE)*HLOOKUP(CONCATENATE(LEFT(E9,1),"-",LEFT(G9,1)),Scaling!$C$127:$N$128,2,FALSE)))*(IF(G9="Low",VLOOKUP(E9,Scaling!$B$92:$F$95,5,FALSE),0)+IF(G9="Medium",VLOOKUP(E9,Scaling!$B$92:$F$95,4,FALSE),0)+IF(G9="High",VLOOKUP(E9,Scaling!$B$92:$F$95,3,FALSE),0))),0)*$Q9,0) -> 0 | T9: =ROUNDUP(ROUND(S9/(Scaling!$E$5+Scaling!$E$6)*Scaling!$E$6,0)*Scaling!$E$7,0)*$Q9 -> 0
C10: 1 | H10: =$M10*'Work Effort'!H$3 -> 0 | I10: =$M10*'Work Effort'!I$3 -> 0 | J10: =$M10*'Work Effort'!J$3 -> 0 | K10: =ROUNDUP(SUM(R10:T10)*$Q10,0) -> 0 | L10: 0 | M10: =SUM(K10:L10)*$Q10 -> 0 | O10: =CTL(A10, $E$4) -> 1 | P10: =CTL(B10,$E$5) -> 1 | Q10: =O10*P10 -> 1 | R10: =ROUND(S10/(Scaling!$E$5+Scaling!$E$6)*Scaling!$E$4,0)*$Q10 -> 0 | S10: =IFERROR(ROUNDUP((IF((LEN(G10)=0),0,(VLOOKUP(E10,Scaling!$B$92:$F$95,2,FALSE)*HLOOKUP(CONCATENATE(LEFT(E10,1),"-",LEFT(G10,1)),Scaling!$C$127:$N$128,2,FALSE)))*(IF(G10="Low",VLOOKUP(E10,Scaling!$B$92:$F$95,5,FALSE),0)+IF(G10="Medium",VLOOKUP(E10,Scaling!$B$92:$F$95,4,FALSE),0)+IF(G10="High",VLOOKUP(E10,Scaling!$B$92:$F$95,3,FALSE),0))),0)*$Q10,0) -> 0 | T10: =ROUNDUP(ROUND(S10/(Scaling!$E$5+Scaling!$E$6)*Scaling!$E$6,0)*Scaling!$E$7,0)*$Q10 -> 0
C11: 2 | H11: =$M11*'Work Effort'!H$3 -> 0 | I11: =$M11*'Work Effort'!I$3 -> 0 | J11: =$M11*'Work Effort'!J$3 -> 0 | K11: =ROUNDUP(SUM(R11:T11)*$Q11,0) -> 0 | L11: 0 | M11: =SUM(K11:L11)*$Q11 -> 0 | O11: =CTL(A11, $E$4) -> 1 | P11: =CTL(B11,$E$5) -> 1 | Q11: =O11*P11 -> 1 | R11: =ROUND(S11/(Scaling!$E$5+Scaling!$E$6)*Scaling!$E$4,0)*$Q11 -> 0 | S11: =IFERROR(ROUNDUP((IF((LEN(G11)=0),0,(VLOOKUP(E11,Scaling!$B$92:$F$95,2,FALSE)*HLOOKUP(CONCATENATE(LEFT(E11,1),"-",LEFT(G11,1)),Scaling!$C$127:$N$128,2,FALSE)))*(IF(G11="Low",VLOOKUP(E11,Scaling!$B$92:$F$95,5,FALSE),0)+IF(G11="Medium",VLOOKUP(E11,Scaling!$B$92:$F$95,4,FALSE),0)+IF(G11="High",VLOOKUP(E11,Scaling!$B$92:$F$95,3,FALSE),0))),0)*$Q11,0) -> 0 | T11: =ROUNDUP(ROUND(S11/(Scaling!$E$5+Scaling!$E$6)*Scaling!$E$6,0)*Scaling!$E$7,0)*$Q11 -> 0
C12: 3 | E12: <Select> | F12: <Select> | G12: <Select> | H12: =$M12*'Work Effort'!H$3 -> 0 | I12: =$M12*'Work Effort'!I$3 -> 0 | J12: =$M12*'Work Effort'!J$3 -> 0 | K12: 0 | L12: 0 | M12: 0 | O12: =CTL(A12, $E$4) -> 1 | P12: =CTL(B12,$E$5) -> 1 | Q12: =O12*P12 -> 1 | R12: =ROUND(S12/(Scaling!$E$5+Scaling!$E$6)*Scaling!$E$4,0)*$Q12 -> 0 | S12: =IFERROR(ROUNDUP((IF((LEN(G12)=0),0,(VLOOKUP(E12,Scaling!$B$92:$F$95,2,FALSE)*HLOOKUP(CONCATENATE(LEFT(E12,1),"-",LEFT(G12,1)),Scaling!$C$127:$N$128,2,FALSE)))*(IF(G12="Low",VLOOKUP(E12,Scaling!$B$92:$F$95,5,FALSE),0)+IF(G12="Medium",VLOOKUP(E12,Scaling!$B$92:$F$95,4,FALSE),0)+IF(G12="High",VLOOKUP(E12,Scaling!$B$92:$F$95,3,FALSE),0))),0)*$Q12,0) -> 0 | T12: =ROUNDUP(ROUND(S12/(Scaling!$E$5+Scaling!$E$6)*Scaling!$E$6,0)*Scaling!$E$7,0)*$Q12 -> 0
G13: Totals | H13: =SUM(H9:H12) -> 0 | I13: 0 | J13: 0 | K13: 0 | L13: 0 | M13: 0

Sheet Interfaces
A1: INTERFACES
B3: Number of Rows to add: | E3: 11
B4: Release(s) to View (Read-only, copied from CaseFeature Details worksheet) | E4: =IF(MLPFilter ="", "", MLPFilter) -> 
B5: Sprints(s) to View (Read-only, copied from CaseFeature Details worksheet) | E5: =IF('CaseFeature Details'!E5="", "", 'CaseFeature Details'!E5) -> 
A7: INTERFACES
A8: Release Tag | B8: Sprint Tag | C8: ID | D8: Interface Name | E8: Type | F8: System | G8: Complexity | H8: Data Source Exists | I8: # of Interchanges | J8: Hrs Per Interchange | K8: Design | L8: Build & Unit Test | M8: Testing | N8: Subtotal | O8: Auto Estimated Hrs | P8: Hrs Adjustment | Q8: Total Effort | R8: Justification Required | S8: Tag logic | T8: Sprint logic | U8: is source Pega | V8: Tag, Sprint, Pega logic
C9: =ROW()-9 -> 0 | E9: <Select> | G9: <Select> | H9: <Select> | K9: ='Work Effort'!H$4*Interfaces!$N9 -> 0 | L9: ='Work Effort'!I$4*Interfaces!$N9 -> 0 | M9: ='Work Effort'!J$4*Interfaces!$N9 -> 0 | N9: =IFERROR(ROUNDUP(IF((LEN(G9)=0),0,VLOOKUP(E9,Scaling!$B$48:$F$89,2,FALSE))*(IF(G9="OOTB", 0.1)+IF(G9="Low",VLOOKUP(E9,Scaling!$B$48:$F$89,5,FALSE),0)+IF(G9="Medium",VLOOKUP(E9,Scaling!$B$48:$F$89,4,FALSE),0)+IF(G9="High",VLOOKUP(E9,Scaling!$B$48:$F$89,3,FALSE),0))*IF(H9="No",VLOOKUP(E9,Scaling!$B$47:$G$89,6,FALSE),1)+(I9*J9),0)*IF(LEN(E9)>0,VLOOKUP(E9,Scaling!$B$48:$H$89,7,FALSE),0),100)/SUM('Work Effort'!$I$4:$J$4) -> 0 | O9: =N9*$V9 -> 0 | P9: 0 | Q9: =SUM(O9:P9)*$V9 -> 0 | S9: =CTL(A9, $E$4) -> 1 | T9: =CTL(A9, $E$5) -> 1 | U9: =IF(F9="Pega", 0.8,1) -> 1 | V9: =S9*T9*U9 -> 1
C10: =ROW()-9 -> 1 | E10: <Select> | G10: <Select> | H10: <Select> | K10: ='Work Effort'!H$4*Interfaces!$N10 -> 0 | L10: ='Work Effort'!I$4*Interfaces!$N10 -> 0 | M10: ='Work Effort'!J$4*Interfaces!$N10 -> 0 | N10: =IFERROR(ROUNDUP(IF((LEN(G10)=0),0,VLOOKUP(E10,Scaling!$B$48:$F$89,2,FALSE))*(IF(G10="OOTB", 0.1)+IF(G10="Low",VLOOKUP(E10,Scaling!$B$48:$F$89,5,FALSE),0)+IF(G10="Medium",VLOOKUP(E10,Scaling!$B$48:$F$89,4,FALSE),0)+IF(G10="High",VLOOKUP(E10,Scaling!$B$48:$F$89,3,FALSE),0))*IF(H10="No",VLOOKUP(E10,Scaling!$B$47:$G$89,6,FALSE),1)+(I10*J10),0)*IF(LEN(E10)>0,VLOOKUP(E10,Scaling!$B$48:$H$89,7,FALSE),0),100)/SUM('Work Effort'!$I$4:$J$4) -> 0 | O10: =N10*$V10 -> 0 | P10: 0 | Q10: =SUM(O10:P10)*$V10 -> 0 | S10: =CTL(A10, $E$4) -> 1 | T10: =CTL(A10, $E$5) -> 1 | U10: =IF(F10="Pega", 0.8,1) -> 1 | V10: =S10*T10*U10 -> 1
C11: 2 | E11: <Select> | G11: <Select> | H11: <Select> | K11: ='Work Effort'!H$4*Interfaces!$N11 -> 0 | L11: ='Work Effort'!I$4*Interfaces!$N11 -> 0 | M11: ='Work Effort'!J$4*Interfaces!$N11 -> 0 | N11: =IFERROR(ROUNDUP(IF((LEN(G11)=0),0,VLOOKUP(E11,Scaling!$B$48:$F$89,2,FALSE))*(IF(G11="OOTB", 0.1)+IF(G11="Low",VLOOKUP(E11,Scaling!$B$48:$F$89,5,FALSE),0)+IF(G11="Medium",VLOOKUP(E11,Scaling!$B$48:$F$89,4,FALSE),0)+IF(G11="High",VLOOKUP(E11,Scaling!$B$48:$F$89,3,FALSE),0))*IF(H11="No",VLOOKUP(E11,Scaling!$B$47:$G$89,6,FALSE),1)+(I11*J11),0)*IF(LEN(E11)>0,VLOOKUP(E11,Scaling!$B$48:$H$89,7,FALSE),0),100)/SUM('Work Effort'!$I$4:$J$4) -> 0 | O11: 0 | P11: 0 | Q11: 0 | S11: 1 | T11: 1 | U11: 1 | V11: 1
C12: =ROW()-9 -> 3 | E12: <Select> | G12: <Select> | H12: <Select> | K12: ='Work Effort'!H$4*Interfaces!$N12 -> 0 | L12: ='Work Effort'!I$4*Interfaces!$N12 -> 0 | M12: ='Work Effort'!J$4*Interfaces!$N12 -> 0 | N12: =IFERROR(ROUNDUP(IF((LEN(G12)=0),0,VLOOKUP(E12,Scaling!$B$48:$F$89,2,FALSE))*(IF(G12="OOTB", 0.1)+IF(G12="Low",VLOOKUP(E12,Scaling!$B$48:$F$89,5,FALSE),0)+IF(G12="Medium",VLOOKUP(E12,Scaling!$B$48:$F$89,4,FALSE),0)+IF(G12="High",VLOOKUP(E12,Scaling!$B$48:$F$89,3,FALSE),0))*IF(H12="No",VLOOKUP(E12,Scaling!$B$47:$G$89,6,FALSE),1)+(I12*J12),0)*IF(LEN(E12)>0,VLOOKUP(E12,Scaling!$B$48:$H$89,7,FALSE),0),100)/SUM('Work Effort'!$I$4:$J$4) -> 0 | O12: =N12*$V12 -> 0 | P12: 0 | Q12: =SUM(O12:P12)*$V12 -> 0 | S12: =CTL(A12, $E$4) -> 1 | T12: =CTL(A12, $E$5) -> 1 | U12: 1 | V12: 1
J13: Totals | K13: =SUM(K9:K12) -> 0 | L13: 0 | M13: 0 | N13: 0 | O13: 0 | P13: 0 | Q13: 0

Sheet CDH
A1: PEGA CUSTOMER DECISION HUB
B3: Number of Rows to add: | E3: 2
B4: Release(s) to View (Read-only, copied from CaseFeature Details worksheet) | E4: =IF(MLPFilter ="", "", MLPFilter) -> 
B5: Sprints(s) to View (Read-only, copied from CaseFeature Details worksheet) | E5: =IF('CaseFeature Details'!E5="", "", 'CaseFeature Details'!E5) -> 
A7: PEGA CDH
A8: Release Tag | B8: Sprint Tag | C8: ID | D8: CDH Specification Name | E8: Type | F8: Business Impact | G8: Complexity | H8: Subtotal | I8: Unit Testing | J8: Auto Estimated Hrs | K8: Hrs Adjustment | L8: Total Effort | M8: Adjustment Justification | N8: Tag logic | O8: Sprint logic | P8: Tag & Sprint logic
C9: =ROW()-9 -> 0 | E9: <Select> | F9: <Select> | G9: <Select> | H9: =IFERROR(ROUNDUP(IF((LEN(G9)=0),0,VLOOKUP(E9,Scaling!$B$153:$H$155,2,FALSE))*VLOOKUP(E9,Scaling!$B$153:$H$155,HLOOKUP(G9,Scaling!$D$151:$H$152,2,0),FALSE),0)*$P9,0) -> 0 | I9: =IFERROR(MROUND((H9*0.5)-VLOOKUP(E9,Scaling!$B$153:$H$155,HLOOKUP(G9,Scaling!$D$151:$H$152,2,0),0),4)*$P9,0) -> 0 | J9: =SUM(H9:I9)*$P9 -> 0 | K9: 0 | L9: =SUM(J9:K9)*$P9 -> 0 | N9: =CTL(A9, $E$4) -> 1 | O9: =CTL(B9, $E$5) -> 1 | P9: =N9*O9 -> 1
C10: =ROW()-9 -> 1 | E10: <Select> | F10: <Select> | G10: <Select> | H10: =IFERROR(ROUNDUP(IF((LEN(G10)=0),0,VLOOKUP(E10,Scaling!$B$153:$H$155,2,FALSE))*VLOOKUP(E10,Scaling!$B$153:$H$155,HLOOKUP(G10,Scaling!$D$151:$H$152,2,0),FALSE),0)*$P10,0) -> 0 | I10: =IFERROR(MROUND((H10*0.5)-VLOOKUP(E10,Scaling!$B$153:$H$155,HLOOKUP(G10,Scaling!$D$151:$H$152,2,0),0),4)*$P10,0) -> 0 | J10: =SUM(H10:I10)*$P10 -> 0 | K10: 0 | L10: =SUM(J10:K10)*$P10 -> 0 | N10: =CTL(A10, $E$4) -> 1 | O10: =CTL(B10, $E$5) -> 1 | P10: =N10*O10 -> 1
C11: 2 | E11: <Select> | F11: <Select> | G11: <Select> | H11: =IFERROR(ROUNDUP(IF((LEN(G11)=0),0,VLOOKUP(E11,Scaling!$B$153:$H$155,2,FALSE))*VLOOKUP(E11,Scaling!$B$153:$H$155,HLOOKUP(G11,Scaling!$D$151:$H$152,2,0),FALSE),0)*$P11,0) -> 0 | I11: =IFERROR(MROUND((H11*0.5)-VLOOKUP(E11,Scaling!$B$153:$H$155,HLOOKUP(G11,Scaling!$D$151:$H$152,2,0),0),4)*$P11,0) -> 0 | J11: 0 | K11: 0 | L11: 0 | N11: 1 | O11: 1 | P11: 1
C12: =ROW()-9 -> 3 | E12: <Select> | F12: <Select> | G12: <Select> | H12: =IFERROR(ROUNDUP(IF((LEN(G12)=0),0,VLOOKUP(E12,Scaling!$B$153:$H$155,2,FALSE))*VLOOKUP(E12,Scaling!$B$153:$H$155,HLOOKUP(G12,Scaling!$D$151:$H$152,2,0),FALSE),0)*$P12,0) -> 0 | I12: =IFERROR(MROUND((H12*0.5)-VLOOKUP(E12,Scaling!$B$153:$H$155,HLOOKUP(G12,Scaling!$D$151:$H$152,2,0),0),4)*$P12,0) -> 0 | J12: =SUM(H12:I12)*$P12 -> 0 | K12: 0 | L12: =SUM(J12:K12)*$P12 -> 0 | N12: =CTL(A12, $E$4) -> 1 | O12: =CTL(B12, $E$5) -> 1 | P12: =N12*O12 -> 1
G13: Totals | H13: =SUM(H9:H12) -> 0 | I13: =SUM(I9:I12) -> 0 | J13: =SUM(J9:J12) -> 0 | K13: =SUM(K9:K12) -> 0 | L13: =SUM(L9:L12) -> 0

Sheet Sprint-Z Hardening Details
A1: SPRINT-Z HARDENING DETAILS
D3: Number of Rows to add: | E3: 1
D4: Release(s) to View (Read-only, copied from Feature Details worksheet)
A7: Release Tag | C7: ID | D7: Task Name | E7: Task Type | F7: Business Impact | G7: Estimated Hours | H7: Total Hours
C9: =ROW()-9 -> 0 | E9: <Select> | F9: <Select> | H9: =G9 -> 0
C10: =ROW()-9 -> 1 | E10: <Select> | F10: <Select> | H10: =G10 -> 0
C11: =ROW()-9 -> 2 | E11: <Select> | F11: <Select> | H11: =G11 -> 0
C12: =ROW()-9 -> 3 | E12: <Select> | F12: <Select> | H12: =G12 -> 0
F13: Totals: | G13: =SUM(G9:G12) -> 0 | H13: =SUM(H9:H12) -> 0

Sheet CTB Import (hidden)
A1: CASE TYPE BACKLOG DATA IMPORT TOOL
B3: Select Case Type Backlog File to import (CTB file must be v24 or newer)
B7: Import process may take a few minutes. Please be patient.

Sheet EZ Sizer Import (hidden)
A1: EZ SIZER DATA IMPORT TOOL
B3: Select the EZ Sizer export file to import
B7: Import process may take a few minutes. Please be patient.

Sheet Scaling (hidden)
A1: CUSTOM SCALING SETTINGS
A3: General Project | B3: Design/Test Factors | C3: Use Cases % | D3: Interfaces % | E3: Reports/ Corr %
B4: I | C4: 0.13 | D4: 0.1 | E4: 0.05
B5: E | C5: 0.32 | D5: 0.2 | E5: 0.2
B6: C | C6: 0.55 | D6: 0.7 | E6: 0.75
B7: T | C7: 0.65 | D7: 0.26 | E7: 0.25
A11: Baseline Effort | B11: Baseline Effort for Refinement / Develop Hrs
B12: Screen Hours | C12: 3.4
B13: Interfaces Hours | C13: 1.7
A16: Work Estimates | C16: Feature/Case Details | J16: Multiplication Factor | S16: Range Lookup
C17: Maturity | E17: Design | F17: Build & Unit Test | G17: Test | H17: Total | L17: Design | M17: Build & Unit Test | N17: Test | S17: Lookup | T17: Scale Range | U17: Factor Range
B18: Epic | C18: New | D18: 0 | E18: =$H18*'Work Effort'!H$2 -> 12.3 | F18: =$H18*'Work Effort'!I$2 -> 16.4 | G18: =$H18*'Work Effort'!J$2 -> 12.3 | H18: 41 | I18: 0 | J18: OOTB | K18: 0 | L18: 0 | M18: 0 | N18: 1 | O18: 0 | P18: 0 | S18: Epic | T18: EpicScale | U18: EpicFactor
C19: Extend | D19: =3*D24 -> 0 | E19: =$H19*'Work Effort'!H$2 -> 5.7 | F19: =$H19*'Work Effort'!I$2 -> 7.6 | G19: =$H19*'Work Effort'!J$2 -> 5.7 | H19: 19 | I19: 0 | J19: Low | K19: 0 | L19: 1 | M19: 1 | N19: 1 | O19: 0 | P19: 0 | S19: User Story | T19: UserStoryScale | U19: UserStoryFactor
C20: OOB (Existing) | D20: =3*D25 -> 0 | E20: =$H20*'Work Effort'!H$2 -> 0.78 | F20: =$H20*'Work Effort'!I$2 -> 1.04 | G20: =$H20*'Work Effort'!J$2 -> 0.78 | H20: 2.6 | I20: 0 | J20: Medium | K20: 0 | L20: 2 | M20: 2 | N20: 2 | O20: 0 | P20: 0 | S20: Stage | T20: StepScale | U20: StepFactor
C21: Custom | D21: 0 | E21: =$H21*'Work Effort'!H$2 -> 0 | F21: =$H21*'Work Effort'!I$2 -> 0 | G21: =$H21*'Work Effort'!J$2 -> 0 | H21: 0 | I21: 0 | J21: High | K21: 0 | L21: 2.7 | M21: 2.7 | N21: 2.7 | O21: 0 | P21: 0 | S21: Case Type | T21: CaseScale | U21: CaseFactor
C22: Custom2 | D22: 0 | E22: =$H22*'Work Effort'!H$2 -> 0 | F22: =$H22*'Work Effort'!I$2 -> 0 | G22: =$H22*'Work Effort'!J$2 -> 0 | H22: 0 | I22: 0 | J22: Complex | K22: 0 | L22: 3.5 | M22: 3.5 | N22: 3.5 | O22: 0 | P22: 0 | S22: EMPTY
B23: User Story | C23: New | D23: 0 | E23: =$H23*'Work Effort'!H$2 -> 4.5 | F23: =$H23*'Work Effort'!I$2 -> 6 | G23: =$H23*'Work Effort'!J$2 -> 4.5 | H23: 15 | I23: 0 | J23: OOTB | K23: 0 | L23: 0 | M23: 0 | N23: 1 | O23: 0 | P23: 0 | S23: EMPTY
C24: Extend | D24: 0 | E24: =$H24*'Work Effort'!H$2 -> 2.4 | F24: =$H24*'Work Effort'!I$2 -> 3.2 | G24: =$H24*'Work Effort'!J$2 -> 2.4 | H24: 8 | I24: 0 | J24: Low | K24: 0 | L24: 1 | M24: 1 | N24: 1 | O24: 0 | P24: 0 | S24: EMPTY
C25: OOB (Existing) | D25: 0 | E25: =$H25*'Work Effort'!H$2 -> 0.3 | F25: =$H25*'Work Effort'!I$2 -> 0.4 | G25: =$H25*'Work Effort'!J$2 -> 0.3 | H25: 1 | I25: 0 | J25: Medium | K25: 0 | L25: 1.8 | M25: 1.8 | N25: 1.8 | O25: 0 | P25: 0 | S25: EMPTY
C26: Custom | D26: 0 | E26: =$H26*'Work Effort'!H$2 -> 0 | F26: =$H26*'Work Effort'!I$2 -> 0 | G26: =$H26*'Work Effort'!J$2 -> 0 | H26: 0 | I26: 0 | J26: High | K26: 0 | L26: 2.6 | M26: 2.6 | N26: 2.6 | O26: 0 | P26: 0
C27: Custom2 | D27: 0 | E27: =$H27*'Work Effort'!H$2 -> 0 | F27: =$H27*'Work Effort'!I$2 -> 0 | G27: =$H27*'Work Effort'!J$2 -> 0 | H27: 0 | I27: 0 | J27: Complex | K27: 0 | L27: 3.3 | M27: 3.3 | N27: 3.3 | O27: 0 | P27: 0
B28: Case Type | C28: New | D28: 0 | E28: =$H28*'Work Effort'!H$2 -> 8.4 | F28: =$H28*'Work Effort'!I$2 -> 11.2 | G28: =$H28*'Work Effort'!J$2 -> 8.4 | H28: 28 | I28: 0 | J28: OOTB | K28: 0 | L28: 0 | M28: 0 | N28: 1 | O28: 0 | P28: 0
C29: Extend | D29: 0 | E29: =$H29*'Work Effort'!H$2 -> 4.2 | F29: =$H29*'Work Effort'!I$2 -> 5.6 | G29: =$H29*'Work Effort'!J$2 -> 4.2 | H29: 14 | I29: 0 | J29: Low | K29: 0 | L29: 1 | M29: 1 | N29: 1 | O29: 0 | P29: 0
C30: OOB (Existing) | D30: 0 | E30: =$H30*'Work Effort'!H$2 -> 0.6 | F30: =$H30*'Work Effort'!I$2 -> 0.8 | G30: =$H30*'Work Effort'!J$2 -> 0.6 | H30: 2 | I30: 0 | J30: Medium | K30: 0 | L30: 1.8 | M30: 1.9 | N30: 1.8 | O30: 0 | P30: 0
C31: Custom | D31: 0 | E31: =$H31*'Work Effort'!H$2 -> 0 | F31: =$H31*'Work Effort'!I$2 -> 0 | G31: =$H31*'Work Effort'!J$2 -> 0 | H31: 0 | I31: 0 | J31: High | K31: 0 | L31: 2.5 | M31: 2.6 | N31: 2.5 | O31: 0 | P31: 0
C32: Custom2 | D32: 0 | E32: =$H32*'Work Effort'!H$2 -> 0 | F32: =$H32*'Work Effort'!I$2 -> 0 | G32: =$H32*'Work Effort'!J$2 -> 0 | H32: 0 | I32: 0 | J32: Complex | K32: 0 | L32: 3.3 | M32: 3.3 | N32: 3.3 | O32: 0 | P32: 0
B33: Step | C33: New | D33: 0 | E33: =$H33*'Work Effort'!H$2 -> 3.6 | F33: =$H33*'Work Effort'!I$2 -> 4.8 | G33: =$H33*'Work Effort'!J$2 -> 3.6 | H33: 12 | I33: 0 | J33: OOTB | K33: 0 | L33: 0 | M33: 0 | N33: 1 | O33: 0 | P33: 0
C34: Extend | D34: 0 | E34: =$H34*'Work Effort'!H$2 -> 1.8 | F34: =$H34*'Work Effort'!I$2 -> 2.4 | G34: =$H34*'Work Effort'!J$2 -> 1.8 | H34: 6 | I34: 0 | J34: Low | K34: 0 | L34: 1 | M34: 1 | N34: 1 | O34: 0 | P34: 0
C35: OOB (Existing) | D35: 0 | E35: =$H35*'Work Effort'!H$2 -> 0.3 | F35: =$H35*'Work Effort'!I$2 -> 0.4 | G35: =$H35*'Work Effort'!J$2 -> 0.3 | H35: 1 | I35: 0 | J35: Medium | K35: 0 | L35: 1.8 | M35: 1.8 | N35: 1.8 | O35: 0 | P35: 0
C36: Custom | D36: 0 | E36: =$H36*'Work Effort'!H$2 -> 0 | F36: =$H36*'Work Effort'!I$2 -> 0 | G36: =$H36*'Work Effort'!J$2 -> 0 | H36: 0 | I36: 0 | J36: High | K36: 0 | L36: 2.6 | M36: 2.6 | N36: 2.6 | O36: 0 | P36: 0
C37: Custom2 | D37: 0 | E37: =$H37*'Work Effort'!H$2 -> 0 | F37: =$H37*'Work Effort'!I$2 -> 0 | G37: =$H37*'Work Effort'!J$2 -> 0 | H37: 0 | I37: 0 | J37: Complex | K37: 0 | L37: 3.3 | M37: 3.3 | N37: 3.3 | O37: 0 | P37: 0
B38: EMPTY | C38: New | D38: 0 | E38: 0 | F38: 0 | G38: 0 | H38: 0 | I38: 0 | J38: Low | K38: 0 | L38: 0 | M38: 0 | N38: 0 | O38: 0 | P38: 0
C39: Extend | D39: =D34*2 -> 0 | E39: 0 | F39: 0 | G39: 0 | H39: 0 | I39: 0 | J39: Medium | K39: 0 | L39: 0 | M39: 0 | N39: 0 | O39: 0 | P39: 0
C40: OOB (Existing) | D40: =D35*2 -> 0 | E40: 0 | F40: 0 | G40: 0 | H40: 0 | I40: 0 | J40: High | K40: 0 | L40: 0 | M40: 0 | N40: 0 | O40: 0 | P40: 0
C41: Custom | D41: 0 | E41: 0 | F41: 0 | G41: 0 | H41: 0 | I41: 0 | J41: Complex | K41: 0 | L41: 0 | M41: 0 | N41: 0 | O41: 0 | P41: 0
B42: EMPTY | C42: New | D42: 0 | E42: 0 | F42: 0 | G42: 0 | H42: 0 | I42: 0 | J42: Low | K42: 0 | L42: 0 | M42: 0 | N42: 0 | O42: 0 | P42: 0
C43: Extend | D43: 0 | E43: 0 | F43: 0 | G43: 0 | H43: 0 | I43: 0 | J43: Medium | K43: 0 | L43: 0 | M43: 0 | N43: 0 | O43: 0 | P43: 0
C44: OOB (Existing) | D44: 0 | E44: 0 | F44: 0 | G44: 0 | H44: 0 | I44: 0 | J44: High | K44: 0 | L44: 0 | M44: 0 | N44: 0 | O44: 0 | P44: 0
C45: Custom | D45: 0 | E45: 0 | F45: 0 | G45: 0 | H45: 0 | I45: 0 | J45: Complex | K45: 0 | L45: 0 | M45: 0 | N45: 0 | O45: 0 | P45: 0
A47: row 47 | C47: Base Line Hrs | D47: High | E47: Medium | F47: Low | G47: DataSource Does not Exist | H47: PRPC Version Master Factor | I47: 7.x | J47: 8.x | K47: 6.x
A48: Interface | B48: <Select> | C48: 0 | D48: 2.26 | E48: 1.5 | F48: 1 | G48: 1.1 | H48: =IF(LEFT(TRIM(PRPCVer),1)="7",I48,IF(LEFT(TRIM(PRPCVer),1)="8",J48,1)) -> 0.8 | I48: 0.9 | J48: 0.8 | K48: 1
B49: Connector | C49: 60 | D49: 2.26 | E49: 1.5 | F49: 1 | G49: 1.1 | H49: 0.8 | I49: 0.9 | J49: 0.8 | K49: 1
B50: Connect Adobe PDF | C50: 60 | D50: 2.26 | E50: 1.5 | F50: 1 | G50: 1.1 | H50: 0.8 | I50: 0.9 | J50: 0.8 | K50: 1
B51: Connect CMIS | C51: 60 | D51: 2.26 | E51: 1.5 | F51: 1 | G51: 1.1 | H51: 0.8 | I51: 0.9 | J51: 0.8 | K51: 1
B52: Connect dotNet | C52: 52 | D52: 2.26 | E52: 1.5 | F52: 1 | G52: 1.1 | H52: 0.8 | I52: 0.9 | J52: 0.8 | K52: 1
B53: Connect Directed Web Access | C53: 80 | D53: 2.26 | E53: 1.5 | F53: 1 | G53: 1.1 | H53: 0.8 | I53: 0.9 | J53: 0.8 | K53: 1
B54: Connect EJB | C54: 70 | D54: 2.26 | E54: 1.5 | F54: 1 | G54: 1.1 | H54: 0.8 | I54: 0.9 | J54: 0.8 | K54: 1
B55: Connect File | C55: 60 | D55: 2.26 | E55: 1.5 | F55: 1 | G55: 1.1 | H55: 0.8 | I55: 0.9 | J55: 0.8 | K55: 1
B56: Connect FTP | C56: 51 | D56: 2.26 | E56: 1.5 | F56: 1 | G56: 1.1 | H56: 0.8 | I56: 0.9 | J56: 0.8 | K56: 1
B57: Connect HTTP | C57: 51 | D57: 2.26 | E57: 1.5 | F57: 1 | G57: 1.1 | H57: 0.8 | I57: 0.9 | J57: 0.8 | K57: 1
B58: Connect Java | C58: 65 | D58: 2.26 | E58: 1.5 | F58: 1 | G58: 1.1 | H58: 0.8 | I58: 0.9 | J58: 0.8 | K58: 1
B59: Connect JCA | C59: 107 | D59: 2.26 | E59: 1.5 | F59: 1 | G59: 1.1 | H59: 0.8 | I59: 0.9 | J59: 0.8 | K59: 1
B60: Connect JMS | C60: 65 | D60: 2.26 | E60: 1.5 | F60: 1 | G60: 1.1 | H60: 0.8 | I60: 0.9 | J60: 0.8 | K60: 1
B61: Connect MQ | C61: 80 | D61: 2.26 | E61: 1.5 | F61: 1 | G61: 1.1 | H61: 0.8 | I61: 0.9 | J61: 0.8 | K61: 1
B62: Connect PegaDISTRIBUTION Manager | C62: 100 | D62: 2.26 | E62: 1.5 | F62: 1 | G62: 1.1 | H62: 0.8 | I62: 0.9 | J62: 0.8 | K62: 1
B63: Connect PegaIMAGE Manager | C63: 97 | D63: 2.26 | E63: 1.5 | F63: 1 | G63: 1.1 | H63: 0.8 | I63: 0.9 | J63: 0.8 | K63: 1
B64: Connect REST | C64: 60 | D64: 2.26 | E64: 1.5 | F64: 1 | G64: 1.1 | H64: 0.8 | I64: 0.9 | J64: 0.8 | K64: 1
B65: Connect SAP | C65: 60 | D65: 2.26 | E65: 1.5 | F65: 1 | G65: 1.1 | H65: 0.8 | I65: 0.9 | J65: 0.8 | K65: 1
B66: Connect SOAP | C66: 51 | D66: 2.26 | E66: 1.5 | F66: 1 | G66: 1.1 | H66: 0.8 | I66: 0.9 | J66: 0.8 | K66: 1
B67: Connect SQL | C67: 51 | D67: 2.26 | E67: 1.5 | F67: 1 | G67: 1.1 | H67: 0.8 | I67: 0.9 | J67: 0.8 | K67: 1
B68: Pega | C68: 80 | D68: 2.26 | E68: 1.5 | F68: 1 | G68: 1.1 | H68: 0.8 | I68: 0.9 | J68: 0.8 | K68: 1
B69: Service | C69: 100 | D69: 2.26 | E69: 1.5 | F69: 1 | G69: 1.1 | H69: 0.8 | I69: 0.9 | J69: 0.8 | K69: 1
B70: Service Adobe PDF | C70: 60 | D70: 2.26 | E70: 1.5 | F70: 1 | G70: 1.1 | H70: 0.8 | I70: 0.9 | J70: 0.8 | K70: 1
B71: Service BPEL | C71: 93 | D71: 2.26 | E71: 1.5 | F71: 1 | G71: 1.1 | H71: 0.8 | I71: 0.9 | J71: 0.8 | K71: 1
B72: Service COM | C72: 65 | D72: 2.26 | E72: 1.5 | F72: 1 | G72: 1.1 | H72: 0.8 | I72: 0.9 | J72: 0.8 | K72: 1
B73: Service CORBA | C73: 70 | D73: 2.26 | E73: 1.5 | F73: 1 | G73: 1.1 | H73: 0.8 | I73: 0.9 | J73: 0.8 | K73: 1
B74: Service dotNet | C74: 65 | D74: 2.26 | E74: 1.5 | F74: 1 | G74: 1.1 | H74: 0.8 | I74: 0.9 | J74: 0.8 | K74: 1
B75: Service EJB | C75: 88 | D75: 2.26 | E75: 1.5 | F75: 1 | G75: 1.1 | H75: 0.8 | I75: 0.9 | J75: 0.8 | K75: 1
B76: Service Email | C76: 46 | D76: 2.26 | E76: 1.5 | F76: 1 | G76: 1.1 | H76: 0.8 | I76: 0.9 | J76: 0.8 | K76: 1
B77: Service File | C77: 70 | D77: 2.26 | E77: 1.5 | F77: 1 | G77: 1.1 | H77: 0.8 | I77: 0.9 | J77: 0.8 | K77: 1
B78: Service Http | C78: 65 | D78: 2.26 | E78: 1.5 | F78: 1 | G78: 1.1 | H78: 0.8 | I78: 0.9 | J78: 0.8 | K78: 1
B79: Service Java | C79: 70 | D79: 2.26 | E79: 1.5 | F79: 1 | G79: 1.1 | H79: 0.8 | I79: 0.9 | J79: 0.8 | K79: 1
B80: Service JMS | C80: 70 | D80: 2.26 | E80: 1.5 | F80: 1 | G80: 1.1 | H80: 0.8 | I80: 0.9 | J80: 0.8 | K80: 1
B81: Service JSR94 | C81: 100 | D81: 2.26 | E81: 1.5 | F81: 1 | G81: 1.1 | H81: 0.8 | I81: 0.9 | J81: 0.8 | K81: 1
B82: Service MQ | C82: 80 | D82: 2.26 | E82: 1.5 | F82: 1 | G82: 1.1 | H82: 0.8 | I82: 0.9 | J82: 0.8 | K82: 1
B83: Service Pegasystems SnapStart | C83: 51 | D83: 2.26 | E83: 1.5 | F83: 1 | G83: 1.1 | H83: 0.8 | I83: 0.9 | J83: 0.8 | K83: 1
B84: Service Portlet | C84: 84 | D84: 2.26 | E84: 1.5 | F84: 1 | G84: 1.1 | H84: 0.8 | I84: 0.9 | J84: 0.8 | K84: 1
B85: Service REST | C85: 70 | D85: 2.26 | E85: 1.5 | F85: 1 | G85: 1.1 | H85: 0.8 | I85: 0.9 | J85: 0.8 | K85: 1
B86: Service SAP | C86: 70 | D86: 2.26 | E86: 1.5 | F86: 1 | G86: 1.1 | H86: 0.8 | I86: 0.9 | J86: 0.8 | K86: 1
B87: Service SOAP | C87: 65 | D87: 2.26 | E87: 1.5 | F87: 1 | G87: 1.1 | H87: 0.8 | I87: 0.9 | J87: 0.8 | K87: 1
B88: Other / Unknown | C88: 107 | D88: 2.26 | E88: 1.5 | F88: 1 | G88: 1.1 | H88: =IF(LEFT(TRIM(PRPCVer),1)="7",I88,IF(LEFT(TRIM(PRPCVer),1)="8",J88,1)) -> 0.8 | I88: 0.9 | J88: 0.8 | K88: 1
B89: Attachment | C89: 40 | D89: 2.26 | E89: 1.5 | F89: 1 | G89: 1.1 | H89: 0.8 | I89: 0.9 | J89: 0.8 | K89: 1
C91: Base Line Hrs | D91: High | E91: Medium | F91: Low
A92: Reports | B92: Emulate Existing | C92: 20 | D92: 2 | E92: 1.4 | F92: 1
B93: Brand New | C93: 32 | D93: 2 | E93: 1.4 | F93: 1
B94: Out of Box | C94: 3 | D94: 2 | E94: 1.4 | F94: 1
B95: Correspondence | C95: 8 | D95: 2 | E95: 1.4 | F95: 1
C98: Base Line Hrs | D98: High | E98: Medium | F98: Low | G98: Complex
A99: UseCase/Work type DCO Effort | B99: Inception | C99: 2 | D99: 1.75 | E99: 1.5 | F99: 1 | G99: 2.25
C101: % Increase W/out DCO
A102: non-DCO Effort Increase | B102: Elab/Const | C102: 1.25
A104: Unit Testing | B104: Level | C104: Design | D104: Elaboration | E104: Construction | F104: Transition
B105: Level 3 | C105: 0.04 | D105: 0.07 | E105: 0.1 | F105: 0.01
B106: Level 2 | C106: 0.03 | D106: 0.05 | E106: 0.06 | F106: 0
B107: Level 1 | C107: 0.02 | D107: 0.05 | E107: 0.04 | F107: 0
B108: N/A | C108: 0 | D108: 0 | E108: 0 | F108: 0
A111: PRPC Version Factor for Use Cases | B111: PRPC Version | C111: Screens (Count) | G111: Complex UI Components (hrs) | K111: Declarative and Decision rules (hrs) | O111: Flow Development (hrs) | S111: Activities (hrs) | W111: Interfaces (Count)
C112: Low | D112: Medium | E112: High | F112: Complex | G112: Low | H112: Medium | I112: High | J112: Complex | K112: Low | L112: Medium | M112: High | N112: Complex | O112: Low | P112: Medium | Q112: High | R112: Complex | S112: Low | T112: Medium | U112: High | V112: Complex | W112: Low | X112: Medium | Y112: High | Z112: Complex
B113: Characteristic Factor | C113: =IF((LEN(PRPCVer)=0),0,VLOOKUP(PRPCVer,$B$114:$Z$124,2,FALSE)) -> 0.9 | D113: =IF((LEN(PRPCVer)=0),0,VLOOKUP(PRPCVer,$B$114:$Z$124,3,FALSE)) -> 0.9 | E113: =IF((LEN(PRPCVer)=0),0,VLOOKUP(PRPCVer,$B$114:$Z$124,4,FALSE)) -> 0.9 | F113: =IF((LEN(PRPCVer)=0),0,VLOOKUP(PRPCVer,$B$114:$Z$124,5,FALSE)) -> 0.9 | G113: =IF((LEN(PRPCVer)=0),0,VLOOKUP(PRPCVer,$B$114:$Z$124,6,FALSE)) -> 0.9 | H113: =IF((LEN(PRPCVer)=0),0,VLOOKUP(PRPCVer,$B$114:$Z$124,7,FALSE)) -> 0.9 | I113: =IF((LEN(PRPCVer)=0),0,VLOOKUP(PRPCVer,$B$114:$Z$124,8,FALSE)) -> 0.9 | J113: =IF((LEN(PRPCVer)=0),0,VLOOKUP(PRPCVer,$B$114:$Z$124,9,FALSE)) -> 0.9 | K113: =IF((LEN(PRPCVer)=0),0,VLOOKUP(PRPCVer,$B$114:$Z$124,10,FALSE)) -> 0.9 | L113: =IF((LEN(PRPCVer)=0),0,VLOOKUP(PRPCVer,$B$114:$Z$124,11,FALSE)) -> 0.9 | M113: =IF((LEN(PRPCVer)=0),0,VLOOKUP(PRPCVer,$B$114:$Z$124,12,FALSE)) -> 0.9 | N113: =IF((LEN(PRPCVer)=0),0,VLOOKUP(PRPCVer,$B$114:$Z$124,13,FALSE)) -> 0.9 | O113: =IF((LEN(PRPCVer)=0),0,VLOOKUP(PRPCVer,$B$114:$Z$124,14,FALSE)) -> 0.9 | P113: =IF((LEN(PRPCVer)=0),0,VLOOKUP(PRPCVer,$B$114:$Z$124,15,FALSE)) -> 0.9 | Q113: =IF((LEN(PRPCVer)=0),0,VLOOKUP(PRPCVer,$B$114:$Z$124,16,FALSE)) -> 0.9 | R113: =IF((LEN(PRPCVer)=0),0,VLOOKUP(PRPCVer,$B$114:$Z$124,17,FALSE)) -> 0.9 | S113: =IF((LEN(PRPCVer)=0),0,VLOOKUP(PRPCVer,$B$114:$Z$124,18,FALSE)) -> 0.9 | T113: =IF((LEN(PRPCVer)=0),0,VLOOKUP(PRPCVer,$B$114:$Z$124,19,FALSE)) -> 0.9 | U113: =IF((LEN(PRPCVer)=0),0,VLOOKUP(PRPCVer,$B$114:$Z$124,20,FALSE)) -> 0.9 | V113: =IF((LEN(PRPCVer)=0),0,VLOOKUP(PRPCVer,$B$114:$Z$124,21,FALSE)) -> 0.9 | W113: =IF((LEN(PRPCVer)=0),0,VLOOKUP(PRPCVer,$B$114:$Z$124,22,FALSE)) -> 0.9 | X113: =IF((LEN(PRPCVer)=0),0,VLOOKUP(PRPCVer,$B$114:$Z$124,23,FALSE)) -> 0.9 | Y113: =IF((LEN(PRPCVer)=0),0,VLOOKUP(PRPCVer,$B$114:$Z$124,24,FALSE)) -> 0.9 | Z113: =IF((LEN(PRPCVer)=0),0,VLOOKUP(PRPCVer,$B$114:$Z$124,25,FALSE)) -> 0.9
B114: 8.6 | C114: 0.9 | D114: 0.9 | E114: 0.9 | F114: 0.9 | G114: 0.9 | H114: 0.9 | I114: 0.9 | J114: 0.9 | K114: 0.9 | L114: 0.9 | M114: 0.9 | N114: 0.9 | O114: 0.9 | P114: 0.9 | Q114: 0.9 | R114: 0.9 | S114: 0.9 | T114: 0.9 | U114: 0.9 | V114: 0.9 | W114: 0.9 | X114: 0.9 | Y114: 0.9 | Z114: 0.9
B115: 8.5 | C115: 0.9 | D115: 0.9 | E115: 0.9 | F115: 0.9 | G115: 0.9 | H115: 0.9 | I115: 0.9 | J115: 0.9 | K115: 0.9 | L115: 0.9 | M115: 0.9 | N115: 0.9 | O115: 0.9 | P115: 0.9 | Q115: 0.9 | R115: 0.9 | S115: 0.9 | T115: 0.9 | U115: 0.9 | V115: 0.9 | W115: 0.9 | X115: 0.9 | Y115: 0.9 | Z115: 0.9
B116: 8.4 | C116: 1 | D116: 1 | E116: 1 | F116: 1 | G116: 1 | H116: 1 | I116: 1 | J116: 1 | K116: 1 | L116: 1 | M116: 1 | N116: 1 | O116: 1 | P116: 1 | Q116: 1 | R116: 1 | S116: 1 | T116: 1 | U116: 1 | V116: 1 | W116: 1 | X116: 1 | Y116: 1 | Z116: 1
B117: 8.3 | C117: 1 | D117: 1 | E117: 1 | F117: 1 | G117: 1 | H117: 1 | I117: 1 | J117: 1 | K117: 1 | L117: 1 | M117: 1 | N117: 1 | O117: 1 | P117: 1 | Q117: 1 | R117: 1 | S117: 1 | T117: 1 | U117: 1 | V117: 1 | W117: 1 | X117: 1 | Y117: 1 | Z117: 1
B118: 8.2 | C118: 1 | D118: 1 | E118: 1 | F118: 1 | G118: 1 | H118: 1 | I118: 1 | J118: 1 | K118: 1 | L118: 1 | M118: 1 | N118: 1 | O118: 1 | P118: 1 | Q118: 1 | R118: 1 | S118: 1 | T118: 1 | U118: 1 | V118: 1 | W118: 1 | X118: 1 | Y118: 1 | Z118: 1
B119: 8.1 | C119: 1 | D119: 1 | E119: 1 | F119: 1 | G119: 1 | H119: 1 | I119: 1 | J119: 1 | K119: 1 | L119: 1 | M119: 1 | N119: 1 | O119: 1 | P119: 1 | Q119: 1 | R119: 1 | S119: 1 | T119: 1 | U119: 1 | V119: 1 | W119: 1 | X119: 1 | Y119: 1 | Z119: 1
B120: 7.4 | C120: 1 | D120: 1 | E120: 1 | F120: 1 | G120: 1 | H120: 1 | I120: 1 | J120: 1 | K120: 1 | L120: 1 | M120: 1 | N120: 1 | O120: 1 | P120: 1 | Q120: 1 | R120: 1 | S120: 1 | T120: 1 | U120: 1 | V120: 1 | W120: 1 | X120: 1 | Y120: 1 | Z120: 1
B121: 7.3 | C121: 1 | D121: 1 | E121: 1 | F121: 1 | G121: 1 | H121: 1 | I121: 1 | J121: 1 | K121: 1 | L121: 1 | M121: 1 | N121: 1 | O121: 1 | P121: 1 | Q121: 1 | R121: 1 | S121: 1 | T121: 1 | U121: 1 | V121: 1 | W121: 1 | X121: 1 | Y121: 1 | Z121: 1
B122: 7.2 | C122: 1 | D122: 1 | E122: 1 | F122: 1 | G122: 1 | H122: 1 | I122: 1 | J122: 1 | K122: 1 | L122: 1 | M122: 1 | N122: 1 | O122: 1 | P122: 1 | Q122: 1 | R122: 1 | S122: 1 | T122: 1 | U122: 1 | V122: 1 | W122: 1 | X122: 1 | Y122: 1 | Z122: 1
A126: PRPC Version Factor for Reports/Corr | B126: PRPC Version | C126: Emulate Existing | F126: Brand New | I126: Out of Box | L126: Correspondence
C127: E-L | D127: E-M | E127: E-H | F127: B-L | G127: B-M | H127: B-H | I127: O-L | J127: O-M | K127: O-H | L127: C-L | M127: C-M | N127: C-H
B128: Characteristic Factor | C128: =IF((LEN(PRPCVer)=0),0,VLOOKUP(PRPCVer,$B$129:$N$139,2,FALSE)) -> 0.51 | D128: =IF((LEN(PRPCVer)=0),0,VLOOKUP(PRPCVer,$B$129:$N$139,3,FALSE)) -> 0.4335 | E128: =IF((LEN(PRPCVer)=0),0,VLOOKUP(PRPCVer,$B$129:$N$139,4,FALSE)) -> 0.357 | F128: =IF((LEN(PRPCVer)=0),0,VLOOKUP(PRPCVer,$B$129:$N$139,5,FALSE)) -> 0.476 | G128: =IF((LEN(PRPCVer)=0),0,VLOOKUP(PRPCVer,$B$129:$N$139,6,FALSE)) -> 0.442 | H128: =IF((LEN(PRPCVer)=0),0,VLOOKUP(PRPCVer,$B$129:$N$139,7,FALSE)) -> 0.3825 | I128: =IF((LEN(PRPCVer)=0),0,VLOOKUP(PRPCVer,$B$129:$N$139,8,FALSE)) -> 0.85 | J128: =IF((LEN(PRPCVer)=0),0,VLOOKUP(PRPCVer,$B$129:$N$139,9,FALSE)) -> 0.6035 | K128: =IF((LEN(PRPCVer)=0),0,VLOOKUP(PRPCVer,$B$129:$N$139,10,FALSE)) -> 0.425 | L128: =IF((LEN(PRPCVer)=0),0,VLOOKUP(PRPCVer,$B$129:$N$139,11,FALSE)) -> 0.85 | M128: =IF((LEN(PRPCVer)=0),0,VLOOKUP(PRPCVer,$B$129:$N$139,12,FALSE)) -> 0.85 | N128: =IF((LEN(PRPCVer)=0),0,VLOOKUP(PRPCVer,$B$129:$N$139,13,FALSE)) -> 0.85
B129: 8.6 | C129: 0.51 | D129: 0.4335 | E129: 0.357 | F129: 0.476 | G129: 0.442 | H129: 0.3825 | I129: 0.85 | J129: 0.6035 | K129: 0.425 | L129: 0.85 | M129: 0.85 | N129: 0.85
B130: 8.5 | C130: 0.51 | D130: 0.4335 | E130: 0.357 | F130: 0.476 | G130: 0.442 | H130: 0.3825 | I130: 0.85 | J130: 0.6035 | K130: 0.425 | L130: 0.85 | M130: 0.85 | N130: 0.85
B131: 8.4 | C131: 0.51 | D131: 0.4335 | E131: 0.357 | F131: 0.476 | G131: 0.442 | H131: 0.3825 | I131: 0.85 | J131: 0.6035 | K131: 0.425 | L131: 0.85 | M131: 0.85 | N131: 0.85
B132: 8.3 | C132: 0.51 | D132: 0.4335 | E132: 0.357 | F132: 0.476 | G132: 0.442 | H132: 0.3825 | I132: 0.85 | J132: 0.6035 | K132: 0.425 | L132: 0.85 | M132: 0.85 | N132: 0.85
B133: 8.2 | C133: 0.6 | D133: 0.51 | E133: 0.42 | F133: 0.56 | G133: 0.52 | H133: 0.45 | I133: 1 | J133: 0.71 | K133: 0.5 | L133: 1 | M133: 1 | N133: 1
B134: 8.1 | C134: 0.51 | D134: 0.4335 | E134: 0.357 | F134: 0.476 | G134: 0.442 | H134: 0.3825 | I134: 0.85 | J134: 0.6035 | K134: 0.425 | L134: 0.85 | M134: 0.85 | N134: 0.85
B135: 7.4 | C135: 0.51 | D135: 0.4335 | E135: 0.357 | F135: 0.476 | G135: 0.442 | H135: 0.3825 | I135: 0.85 | J135: 0.6035 | K135: 0.425 | L135: 0.85 | M135: 0.85 | N135: 0.85
B136: 7.3 | C136: 0.6 | D136: 0.51 | E136: 0.42 | F136: 0.56 | G136: 0.52 | H136: 0.45 | I136: 1 | J136: 0.71 | K136: 0.5 | L136: 1 | M136: 1 | N136: 1
B137: 7.2 | C137: 0.6 | D137: 0.51 | E137: 0.42 | F137: 0.56 | G137: 0.52 | H137: 0.45 | I137: 1 | J137: 0.71 | K137: 0.5 | L137: 1 | M137: 1 | N137: 1
C141: Base Line Hrs | D141: High | E141: Medium | F141: Low
A142: Infrastructure | B142: Implement Foundation Structure (Org, Classes, ETC) | C142: 12 | D142: 1.7 | E142: 1.5 | F142: 1
B143: Enterprise Vulnerability Assessment | C143: 88 | D143: 1.91 | E143: 1.45 | F143: 1
B144: Development Server Setup | C144: 16 | D144: 1.5 | E144: 1.3 | F144: 1
B145: QA System Setup | C145: 12 | D145: 1.5 | E145: 1.3 | F145: 1
B146: Production System Setup | C146: 24 | D146: 1.5 | E146: 1.3 | F146: 1
B147: Training System Setup | C147: 12 | D147: 1.5 | E147: 1.3 | F147: 1
B148: SandBox System Setup | C148: 12 | D148: 1.5 | E148: 1.3 | F148: 1
B149: Framework Installations | C149: 6 | D149: 1.5 | E149: 1.3 | F149: 1
C151: Base Line Hrs | D151: High | E151: Medium-High | F151: Medium | G151: Low-Medium | H151: Low
C152: 2 | D152: 3 | E152: 4 | F152: 5 | G152: 6 | H152: 7
A153: CDH-Marketing | B153: Feature | C153: 8 | D153: 4 | E153: 3 | F153: 2 | G153: 1.5 | H153: 1
B154: Sub-feature | C154: 8 | D154: 4 | E154: 3 | F154: 2 | G154: 1.5 | H154: 1
B155: Sub-sub-feature | C155: 8 | D155: 4 | E155: 3 | F155: 2 | G155: 1.5 | H155: 1
C160: Hours-New | D160: Hours-OOTB
A161: Case Type | B161: Step | C161: 8 | D161: 2
B162: Persona | C162: 2 | D162: 1
C164: Factor
A165: Channels
B166: Web | C166: 0.25
B167: Call Center | C167: 0.5
B168: Mobile | C168: 0.5
B170: Other | C170: 0.5

Sheet Resource Planning (hidden)
A1: RESOURCE PLANNING
R2: Elapsed Time: | T2: 0.02 sec
A3: PROPOSED STAFFING PLAN
A4: SOURCE | B4: ROLE | C4: SPRINT-INITIATE | G4: SPRINT 1- N | K4: SPRINT-Z | O4: TOTAL (HRS) | P4: 1
H5: Sprint-1 | I5: Sprint-1 | J5: Sprint-9 | P5: ="Hide" -> Hide
G6: # | H6: Sprint-1 | P6: 1
C7: # | D7: ='Sprint-Prepare'!$K$4 -> 2021-02-22 | E7: =($D$7+((E8-1)*7))*E$9 -> 2021-03-01 | F7: =($D$7+((F8-1)*7))*F$9 -> 00:00:00 | H7: =($D$7+((H8-1)*7))*H$9 -> 2021-03-08 | I7: =($D$7+((I8-1)*7))*I$9 -> 2021-03-15 | J7: 00:00:00 | K7: # | L7: =($D$7+((L8-1)*7))*L$9 -> 2021-03-22 | M7: =($D$7+((M8-1)*7))*M$9 -> 2021-03-29 | N7: 00:00:00 | O7: ='Sprint-Z Hardening'!$K$5 -> 2021-04-02 | P7: 1
D8: =COLUMN()-3 -> 1 | E8: =COLUMN()-3 -> 2 | F8: =COLUMN()-3 -> 3 | H8: =COLUMN()-5 -> 3 | I8: =COLUMN()-5 -> 4 | J8: =COLUMN()-5 -> 5 | L8: =COLUMN()-7 -> 5 | M8: =COLUMN()-7 -> 6 | N8: =COLUMN()-7 -> 7 | P8: ="Hide" -> Hide
D9: =NOT(COLUMNS(Sprint0)=D8) -> TRUE | E9: =NOT(COLUMNS(Sprint0)=E8) -> TRUE | F9: =NOT(COLUMNS(Sprint0)=F8) -> FALSE | H9: =NOT((COLUMNS(Sprint0)+COLUMNS(Sprint1N)-1)=H8) -> TRUE | I9: =NOT((COLUMNS(Sprint0)+COLUMNS(Sprint1N)-1)=I8) -> TRUE | J9: FALSE | L9: =NOT((COLUMNS(Sprint0)+COLUMNS(Sprint1N)+COLUMNS(SprintZ)-2)=L8) -> TRUE | M9: =NOT((COLUMNS(Sprint0)+COLUMNS(Sprint1N)+COLUMNS(SprintZ)-2)=M8) -> TRUE | N9: =NOT((COLUMNS(Sprint0)+COLUMNS(Sprint1N)+COLUMNS(SprintZ)-2)=N8) -> FALSE | P9: ="Hide" -> Hide
D10: ="w"&D8*D9 -> w1 | E10: ="w"&E8*E9 -> w2 | F10: ="w"&F8*F9 -> w0 | H10: ="w"&H8*H9 -> w3 | I10: ="w"&I8*I9 -> w4 | J10: ="w"&J8*J9 -> w0 | L10: ="w"&L8*L9 -> w5 | M10: ="w"&M8*M9 -> w6 | N10: ="w"&N8*N9 -> w0 | O10: =(N8-1) & " Wks" -> 6 Wks | P10: 1
A11: Pega | B11: Practice Leader | C11: =SUM(D11:F11)/'Calculations Page'!$C$5 -> 0 | D11: =(SUMIFS('Sprint-Prepare'!$E$12:$E$23,'Sprint-Prepare'!$C$12:$C$23,'Resource Planning'!$A11, 'Sprint-Prepare'!$D$12:$D$23,'Resource Planning'!$B11)*'Sprint-Prepare'!$D$6/'Sprint-Prepare'!$D$4+ SUMIFS('Consulting Services'!$E$9:$E$14,'Consulting Services'!$C$9:$C$14,'Resource Planning'!$A11,'Consulting Services'!$D$9:$D$14,'Resource Planning'!$B11)/Sprint0Len)*D$9 -> 0 | E11: =(SUMIFS('Sprint-Prepare'!$E$12:$E$23,'Sprint-Prepare'!$C$12:$C$23,'Resource Planning'!$A11, 'Sprint-Prepare'!$D$12:$D$23,'Resource Planning'!$B11)*'Sprint-Prepare'!$D$6/'Sprint-Prepare'!$D$4+ SUMIFS('Consulting Services'!$E$9:$E$14,'Consulting Services'!$C$9:$C$14,'Resource Planning'!$A11,'Consulting Services'!$D$9:$D$14,'Resource Planning'!$B11)/Sprint0Len)*E$9 -> 0 | F11: =(SUMIFS('Sprint-Prepare'!$E$12:$E$23,'Sprint-Prepare'!$C$12:$C$23,'Resource Planning'!$A11, 'Sprint-Prepare'!$D$12:$D$23,'Resource Planning'!$B11)*'Sprint-Prepare'!$D$6/'Sprint-Prepare'!$D$4+ SUMIFS('Consulting Services'!$E$9:$E$14,'Consulting Services'!$C$9:$C$14,'Resource Planning'!$A11,'Consulting Services'!$D$9:$D$14,'Resource Planning'!$B11)/Sprint0Len)*F$9 -> 0 | G11: =IFERROR(SUM(H11:J11)/'Calculations Page'!$C$6,0) -> 0 | H11: =(SUMIFS('Sprint 1-Sprint N'!$E$12:$E$24,'Sprint 1-Sprint N'!$C$12:$C$24,'Resource Planning'!$A11, 'Sprint 1-Sprint N'!$D$12:$D$24,'Resource Planning'!$B11)*'Sprint 1-Sprint N'!$D$6/'Sprint 1-Sprint N'!$D$4 + SUMPRODUCT(('Consulting Services'!$C$9:$C$14='Resource Planning'!$A11)*('Consulting Services'!$D$9:$D$14='Resource Planning'!$B11)*(Sprint1NSvc='Resource Planning'!H$5)*('Consulting Services'!$F$9:$H$14))/Sprint1NLen)*H$9 -> 0 | I11: =(SUMIFS('Sprint 1-Sprint N'!$E$12:$E$24,'Sprint 1-Sprint N'!$C$12:$C$24,'Resource Planning'!$A11, 'Sprint 1-Sprint N'!$D$12:$D$24,'Resource Planning'!$B11)*'Sprint 1-Sprint N'!$D$6/'Sprint 1-Sprint N'!$D$4 + SUMPRODUCT(('Consulting Services'!$C$9:$C$14='Resource Planning'!$A11)*('Consulting Services'!$D$9:$D$14='Resource Planning'!$B11)*(Sprint1NSvc='Resource Planning'!I$5)*('Consulting Services'!$F$9:$H$14))/Sprint1NLen)*I$9 -> 0 | J11: =(SUMIFS('Sprint 1-Sprint N'!$E$12:$E$24,'Sprint 1-Sprint N'!$C$12:$C$24,'Resource Planning'!$A11, 'Sprint 1-Sprint N'!$D$12:$D$24,'Resource Planning'!$B11)*'Sprint 1-Sprint N'!$D$6/'Sprint 1-Sprint N'!$D$4 + SUMPRODUCT(('Consulting Services'!$C$9:$C$14='Resource Planning'!$A11)*('Consulting Services'!$D$9:$D$14='Resource Planning'!$B11)*(Sprint1NSvc='Resource Planning'!J$5)*('Consulting Services'!$F$9:$H$14))/Sprint1NLen)*J$9 -> 0 | K11: =SUM(L11:N11)/'Calculations Page'!$C$7 -> 0 | L11: =(SUMIFS('Sprint-Z Hardening'!$E$12:$E$22,'Sprint-Z Hardening'!$C$12:$C$22,'Resource Planning'!$A11, 'Sprint-Z Hardening'!$D$12:$D$22,'Resource Planning'!$B11)*'Sprint-Z Hardening'!$D$6/'Sprint-Z Hardening'!$D$4 + SUMIFS('Consulting Services'!$I$9:$I$14,'Consulting Services'!$C$9:$C$14,'Resource Planning'!$A11,'Consulting Services'!$D$9:$D$14,'Resource Planning'!$B11)/SprintZLen)*L$9 -> 0 | M11: =(SUMIFS('Sprint-Z Hardening'!$E$12:$E$22,'Sprint-Z Hardening'!$C$12:$C$22,'Resource Planning'!$A11, 'Sprint-Z Hardening'!$D$12:$D$22,'Resource Planning'!$B11)*'Sprint-Z Hardening'!$D$6/'Sprint-Z Hardening'!$D$4 + SUMIFS('Consulting Services'!$I$9:$I$14,'Consulting Services'!$C$9:$C$14,'Resource Planning'!$A11,'Consulting Services'!$D$9:$D$14,'Resource Planning'!$B11)/SprintZLen)*M$9 -> 0 | N11: =(SUMIFS('Sprint-Z Hardening'!$E$12:$E$22,'Sprint-Z Hardening'!$C$12:$C$22,'Resource Planning'!$A11, 'Sprint-Z Hardening'!$D$12:$D$22,'Resource Planning'!$B11)*'Sprint-Z Hardening'!$D$6/'Sprint-Z Hardening'!$D$4 + SUMIFS('Consulting Services'!$I$9:$I$14,'Consulting Services'!$C$9:$C$14,'Resource Planning'!$A11,'Consulting Services'!$D$9:$D$14,'Resource Planning'!$B11)/SprintZLen)*N$9 -> 0 | O11: =SUM(D11:F11,H11:J11,L11:N11) -> 0 | P11: =IF(O11=0, "Hide",O11) -> Hide
A12: Pega | B12: Project Delivery Leader | C12: =SUM(D12:F12)/'Calculations Page'!$C$5 -> 1 | D12: =(SUMIFS('Sprint-Prepare'!$E$12:$E$23,'Sprint-Prepare'!$C$12:$C$23,'Resource Planning'!$A12, 'Sprint-Prepare'!$D$12:$D$23,'Resource Planning'!$B12)*'Sprint-Prepare'!$D$6/'Sprint-Prepare'!$D$4+ SUMIFS('Consulting Services'!$E$9:$E$14,'Consulting Services'!$C$9:$C$14,'Resource Planning'!$A12,'Consulting Services'!$D$9:$D$14,'Resource Planning'!$B12)/Sprint0Len)*D$9 -> 40 | E12: =(SUMIFS('Sprint-Prepare'!$E$12:$E$23,'Sprint-Prepare'!$C$12:$C$23,'Resource Planning'!$A12, 'Sprint-Prepare'!$D$12:$D$23,'Resource Planning'!$B12)*'Sprint-Prepare'!$D$6/'Sprint-Prepare'!$D$4+ SUMIFS('Consulting Services'!$E$9:$E$14,'Consulting Services'!$C$9:$C$14,'Resource Planning'!$A12,'Consulting Services'!$D$9:$D$14,'Resource Planning'!$B12)/Sprint0Len)*E$9 -> 40 | F12: =(SUMIFS('Sprint-Prepare'!$E$12:$E$23,'Sprint-Prepare'!$C$12:$C$23,'Resource Planning'!$A12, 'Sprint-Prepare'!$D$12:$D$23,'Resource Planning'!$B12)*'Sprint-Prepare'!$D$6/'Sprint-Prepare'!$D$4+ SUMIFS('Consulting Services'!$E$9:$E$14,'Consulting Services'!$C$9:$C$14,'Resource Planning'!$A12,'Consulting Services'!$D$9:$D$14,'Resource Planning'!$B12)/Sprint0Len)*F$9 -> 0 | G12: =IFERROR(SUM(H12:J12)/'Calculations Page'!$C$6,0) -> 1 | H12: =(SUMIFS('Sprint 1-Sprint N'!$E$12:$E$24,'Sprint 1-Sprint N'!$C$12:$C$24,'Resource Planning'!$A12, 'Sprint 1-Sprint N'!$D$12:$D$24,'Resource Planning'!$B12)*'Sprint 1-Sprint N'!$D$6/'Sprint 1-Sprint N'!$D$4 + SUMPRODUCT(('Consulting Services'!$C$9:$C$14='Resource Planning'!$A12)*('Consulting Services'!$D$9:$D$14='Resource Planning'!$B12)*(Sprint1NSvc='Resource Planning'!H$5)*('Consulting Services'!$F$9:$H$14))/Sprint1NLen)*H$9 -> 40 | I12: =(SUMIFS('Sprint 1-Sprint N'!$E$12:$E$24,'Sprint 1-Sprint N'!$C$12:$C$24,'Resource Planning'!$A12, 'Sprint 1-Sprint N'!$D$12:$D$24,'Resource Planning'!$B12)*'Sprint 1-Sprint N'!$D$6/'Sprint 1-Sprint N'!$D$4 + SUMPRODUCT(('Consulting Services'!$C$9:$C$14='Resource Planning'!$A12)*('Consulting Services'!$D$9:$D$14='Resource Planning'!$B12)*(Sprint1NSvc='Resource Planning'!I$5)*('Consulting Services'!$F$9:$H$14))/Sprint1NLen)*I$9 -> 40 | J12: =(SUMIFS('Sprint 1-Sprint N'!$E$12:$E$24,'Sprint 1-Sprint N'!$C$12:$C$24,'Resource Planning'!$A12, 'Sprint 1-Sprint N'!$D$12:$D$24,'Resource Planning'!$B12)*'Sprint 1-Sprint N'!$D$6/'Sprint 1-Sprint N'!$D$4 + SUMPRODUCT(('Consulting Services'!$C$9:$C$14='Resource Planning'!$A12)*('Consulting Services'!$D$9:$D$14='Resource Planning'!$B12)*(Sprint1NSvc='Resource Planning'!J$5)*('Consulting Services'!$F$9:$H$14))/Sprint1NLen)*J$9 -> 0 | K12: =SUM(L12:N12)/'Calculations Page'!$C$7 -> 1 | L12: =(SUMIFS('Sprint-Z Hardening'!$E$12:$E$22,'Sprint-Z Hardening'!$C$12:$C$22,'Resource Planning'!$A12, 'Sprint-Z Hardening'!$D$12:$D$22,'Resource Planning'!$B12)*'Sprint-Z Hardening'!$D$6/'Sprint-Z Hardening'!$D$4 + SUMIFS('Consulting Services'!$I$9:$I$14,'Consulting Services'!$C$9:$C$14,'Resource Planning'!$A12,'Consulting Services'!$D$9:$D$14,'Resource Planning'!$B12)/SprintZLen)*L$9 -> 40 | M12: =(SUMIFS('Sprint-Z Hardening'!$E$12:$E$22,'Sprint-Z Hardening'!$C$12:$C$22,'Resource Planning'!$A12, 'Sprint-Z Hardening'!$D$12:$D$22,'Resource Planning'!$B12)*'Sprint-Z Hardening'!$D$6/'Sprint-Z Hardening'!$D$4 + SUMIFS('Consulting Services'!$I$9:$I$14,'Consulting Services'!$C$9:$C$14,'Resource Planning'!$A12,'Consulting Services'!$D$9:$D$14,'Resource Planning'!$B12)/SprintZLen)*M$9 -> 40 | N12: =(SUMIFS('Sprint-Z Hardening'!$E$12:$E$22,'Sprint-Z Hardening'!$C$12:$C$22,'Resource Planning'!$A12, 'Sprint-Z Hardening'!$D$12:$D$22,'Resource Planning'!$B12)*'Sprint-Z Hardening'!$D$6/'Sprint-Z Hardening'!$D$4 + SUMIFS('Consulting Services'!$I$9:$I$14,'Consulting Services'!$C$9:$C$14,'Resource Planning'!$A12,'Consulting Services'!$D$9:$D$14,'Resource Planning'!$B12)/SprintZLen)*N$9 -> 0 | O12: 240 | P12: =IF(O12=0, "Hide",O12) -> 240
A13: Pega | B13: (L/S) Business Architect | C13: =SUM(D13:F13)/'Calculations Page'!$C$5 -> 1 | D13: =(SUMIFS('Sprint-Prepare'!$E$12:$E$23,'Sprint-Prepare'!$C$12:$C$23,'Resource Planning'!$A13, 'Sprint-Prepare'!$D$12:$D$23,'Resource Planning'!$B13)*'Sprint-Prepare'!$D$6/'Sprint-Prepare'!$D$4+ SUMIFS('Consulting Services'!$E$9:$E$14,'Consulting Services'!$C$9:$C$14,'Resource Planning'!$A13,'Consulting Services'!$D$9:$D$14,'Resource Planning'!$B13)/Sprint0Len)*D$9 -> 40 | E13: =(SUMIFS('Sprint-Prepare'!$E$12:$E$23,'Sprint-Prepare'!$C$12:$C$23,'Resource Planning'!$A13, 'Sprint-Prepare'!$D$12:$D$23,'Resource Planning'!$B13)*'Sprint-Prepare'!$D$6/'Sprint-Prepare'!$D$4+ SUMIFS('Consulting Services'!$E$9:$E$14,'Consulting Services'!$C$9:$C$14,'Resource Planning'!$A13,'Consulting Services'!$D$9:$D$14,'Resource Planning'!$B13)/Sprint0Len)*E$9 -> 40 | F13: =(SUMIFS('Sprint-Prepare'!$E$12:$E$23,'Sprint-Prepare'!$C$12:$C$23,'Resource Planning'!$A13, 'Sprint-Prepare'!$D$12:$D$23,'Resource Planning'!$B13)*'Sprint-Prepare'!$D$6/'Sprint-Prepare'!$D$4+ SUMIFS('Consulting Services'!$E$9:$E$14,'Consulting Services'!$C$9:$C$14,'Resource Planning'!$A13,'Consulting Services'!$D$9:$D$14,'Resource Planning'!$B13)/Sprint0Len)*F$9 -> 0 | G13: =IFERROR(SUM(H13:J13)/'Calculations Page'!$C$6,0) -> 1 | H13: =(SUMIFS('Sprint 1-Sprint N'!$E$12:$E$24,'Sprint 1-Sprint N'!$C$12:$C$24,'Resource Planning'!$A13, 'Sprint 1-Sprint N'!$D$12:$D$24,'Resource Planning'!$B13)*'Sprint 1-Sprint N'!$D$6/'Sprint 1-Sprint N'!$D$4 + SUMPRODUCT(('Consulting Services'!$C$9:$C$14='Resource Planning'!$A13)*('Consulting Services'!$D$9:$D$14='Resource Planning'!$B13)*(Sprint1NSvc='Resource Planning'!H$5)*('Consulting Services'!$F$9:$H$14))/Sprint1NLen)*H$9 -> 40 | I13: =(SUMIFS('Sprint 1-Sprint N'!$E$12:$E$24,'Sprint 1-Sprint N'!$C$12:$C$24,'Resource Planning'!$A13, 'Sprint 1-Sprint N'!$D$12:$D$24,'Resource Planning'!$B13)*'Sprint 1-Sprint N'!$D$6/'Sprint 1-Sprint N'!$D$4 + SUMPRODUCT(('Consulting Services'!$C$9:$C$14='Resource Planning'!$A13)*('Consulting Services'!$D$9:$D$14='Resource Planning'!$B13)*(Sprint1NSvc='Resource Planning'!I$5)*('Consulting Services'!$F$9:$H$14))/Sprint1NLen)*I$9 -> 40 | J13: =(SUMIFS('Sprint 1-Sprint N'!$E$12:$E$24,'Sprint 1-Sprint N'!$C$12:$C$24,'Resource Planning'!$A13, 'Sprint 1-Sprint N'!$D$12:$D$24,'Resource Planning'!$B13)*'Sprint 1-Sprint N'!$D$6/'Sprint 1-Sprint N'!$D$4 + SUMPRODUCT(('Consulting Services'!$C$9:$C$14='Resource Planning'!$A13)*('Consulting Services'!$D$9:$D$14='Resource Planning'!$B13)*(Sprint1NSvc='Resource Planning'!J$5)*('Consulting Services'!$F$9:$H$14))/Sprint1NLen)*J$9 -> 0 | K13: =SUM(L13:N13)/'Calculations Page'!$C$7 -> 1 | L13: =(SUMIFS('Sprint-Z Hardening'!$E$12:$E$22,'Sprint-Z Hardening'!$C$12:$C$22,'Resource Planning'!$A13, 'Sprint-Z Hardening'!$D$12:$D$22,'Resource Planning'!$B13)*'Sprint-Z Hardening'!$D$6/'Sprint-Z Hardening'!$D$4 + SUMIFS('Consulting Services'!$I$9:$I$14,'Consulting Services'!$C$9:$C$14,'Resource Planning'!$A13,'Consulting Services'!$D$9:$D$14,'Resource Planning'!$B13)/SprintZLen)*L$9 -> 40 | M13: =(SUMIFS('Sprint-Z Hardening'!$E$12:$E$22,'Sprint-Z Hardening'!$C$12:$C$22,'Resource Planning'!$A13, 'Sprint-Z Hardening'!$D$12:$D$22,'Resource Planning'!$B13)*'Sprint-Z Hardening'!$D$6/'Sprint-Z Hardening'!$D$4 + SUMIFS('Consulting Services'!$I$9:$I$14,'Consulting Services'!$C$9:$C$14,'Resource Planning'!$A13,'Consulting Services'!$D$9:$D$14,'Resource Planning'!$B13)/SprintZLen)*M$9 -> 40 | N13: =(SUMIFS('Sprint-Z Hardening'!$E$12:$E$22,'Sprint-Z Hardening'!$C$12:$C$22,'Resource Planning'!$A13, 'Sprint-Z Hardening'!$D$12:$D$22,'Resource Planning'!$B13)*'Sprint-Z Hardening'!$D$6/'Sprint-Z Hardening'!$D$4 + SUMIFS('Consulting Services'!$I$9:$I$14,'Consulting Services'!$C$9:$C$14,'Resource Planning'!$A13,'Consulting Services'!$D$9:$D$14,'Resource Planning'!$B13)/SprintZLen)*N$9 -> 0 | O13: 240 | P13: 240
A14: Pega | B14: Lead System Architect | C14: =SUM(D14:F14)/'Calculations Page'!$C$5 -> 1 | D14: =(SUMIFS('Sprint-Prepare'!$E$12:$E$23,'Sprint-Prepare'!$C$12:$C$23,'Resource Planning'!$A14, 'Sprint-Prepare'!$D$12:$D$23,'Resource Planning'!$B14)*'Sprint-Prepare'!$D$6/'Sprint-Prepare'!$D$4+ SUMIFS('Consulting Services'!$E$9:$E$14,'Consulting Services'!$C$9:$C$14,'Resource Planning'!$A14,'Consulting Services'!$D$9:$D$14,'Resource Planning'!$B14)/Sprint0Len)*D$9 -> 40 | E14: =(SUMIFS('Sprint-Prepare'!$E$12:$E$23,'Sprint-Prepare'!$C$12:$C$23,'Resource Planning'!$A14, 'Sprint-Prepare'!$D$12:$D$23,'Resource Planning'!$B14)*'Sprint-Prepare'!$D$6/'Sprint-Prepare'!$D$4+ SUMIFS('Consulting Services'!$E$9:$E$14,'Consulting Services'!$C$9:$C$14,'Resource Planning'!$A14,'Consulting Services'!$D$9:$D$14,'Resource Planning'!$B14)/Sprint0Len)*E$9 -> 40 | F14: =(SUMIFS('Sprint-Prepare'!$E$12:$E$23,'Sprint-Prepare'!$C$12:$C$23,'Resource Planning'!$A14, 'Sprint-Prepare'!$D$12:$D$23,'Resource Planning'!$B14)*'Sprint-Prepare'!$D$6/'Sprint-Prepare'!$D$4+ SUMIFS('Consulting Services'!$E$9:$E$14,'Consulting Services'!$C$9:$C$14,'Resource Planning'!$A14,'Consulting Services'!$D$9:$D$14,'Resource Planning'!$B14)/Sprint0Len)*F$9 -> 0 | G14: =IFERROR(SUM(H14:J14)/'Calculations Page'!$C$6,0) -> 1 | H14: =(SUMIFS('Sprint 1-Sprint N'!$E$12:$E$24,'Sprint 1-Sprint N'!$C$12:$C$24,'Resource Planning'!$A14, 'Sprint 1-Sprint N'!$D$12:$D$24,'Resource Planning'!$B14)*'Sprint 1-Sprint N'!$D$6/'Sprint 1-Sprint N'!$D$4 + SUMPRODUCT(('Consulting Services'!$C$9:$C$14='Resource Planning'!$A14)*('Consulting Services'!$D$9:$D$14='Resource Planning'!$B14)*(Sprint1NSvc='Resource Planning'!H$5)*('Consulting Services'!$F$9:$H$14))/Sprint1NLen)*H$9 -> 40 | I14: =(SUMIFS('Sprint 1-Sprint N'!$E$12:$E$24,'Sprint 1-Sprint N'!$C$12:$C$24,'Resource Planning'!$A14, 'Sprint 1-Sprint N'!$D$12:$D$24,'Resource Planning'!$B14)*'Sprint 1-Sprint N'!$D$6/'Sprint 1-Sprint N'!$D$4 + SUMPRODUCT(('Consulting Services'!$C$9:$C$14='Resource Planning'!$A14)*('Consulting Services'!$D$9:$D$14='Resource Planning'!$B14)*(Sprint1NSvc='Resource Planning'!I$5)*('Consulting Services'!$F$9:$H$14))/Sprint1NLen)*I$9 -> 40 | J14: =(SUMIFS('Sprint 1-Sprint N'!$E$12:$E$24,'Sprint 1-Sprint N'!$C$12:$C$24,'Resource Planning'!$A14, 'Sprint 1-Sprint N'!$D$12:$D$24,'Resource Planning'!$B14)*'Sprint 1-Sprint N'!$D$6/'Sprint 1-Sprint N'!$D$4 + SUMPRODUCT(('Consulting Services'!$C$9:$C$14='Resource Planning'!$A14)*('Consulting Services'!$D$9:$D$14='Resource Planning'!$B14)*(Sprint1NSvc='Resource Planning'!J$5)*('Consulting Services'!$F$9:$H$14))/Sprint1NLen)*J$9 -> 0 | K14: =SUM(L14:N14)/'Calculations Page'!$C$7 -> 1 | L14: =(SUMIFS('Sprint-Z Hardening'!$E$12:$E$22,'Sprint-Z Hardening'!$C$12:$C$22,'Resource Planning'!$A14, 'Sprint-Z Hardening'!$D$12:$D$22,'Resource Planning'!$B14)*'Sprint-Z Hardening'!$D$6/'Sprint-Z Hardening'!$D$4 + SUMIFS('Consulting Services'!$I$9:$I$14,'Consulting Services'!$C$9:$C$14,'Resource Planning'!$A14,'Consulting Services'!$D$9:$D$14,'Resource Planning'!$B14)/SprintZLen)*L$9 -> 40 | M14: =(SUMIFS('Sprint-Z Hardening'!$E$12:$E$22,'Sprint-Z Hardening'!$C$12:$C$22,'Resource Planning'!$A14, 'Sprint-Z Hardening'!$D$12:$D$22,'Resource Planning'!$B14)*'Sprint-Z Hardening'!$D$6/'Sprint-Z Hardening'!$D$4 + SUMIFS('Consulting Services'!$I$9:$I$14,'Consulting Services'!$C$9:$C$14,'Resource Planning'!$A14,'Consulting Services'!$D$9:$D$14,'Resource Planning'!$B14)/SprintZLen)*M$9 -> 40 | N14: =(SUMIFS('Sprint-Z Hardening'!$E$12:$E$22,'Sprint-Z Hardening'!$C$12:$C$22,'Resource Planning'!$A14, 'Sprint-Z Hardening'!$D$12:$D$22,'Resource Planning'!$B14)*'Sprint-Z Hardening'!$D$6/'Sprint-Z Hardening'!$D$4 + SUMIFS('Consulting Services'!$I$9:$I$14,'Consulting Services'!$C$9:$C$14,'Resource Planning'!$A14,'Consulting Services'!$D$9:$D$14,'Resource Planning'!$B14)/SprintZLen)*N$9 -> 0 | O14: 240 | P14: 240
A15: Pega | B15: (Sr) System Architect | C15: =SUM(D15:F15)/'Calculations Page'!$C$5 -> 2 | D15: =(SUMIFS('Sprint-Prepare'!$E$12:$E$23,'Sprint-Prepare'!$C$12:$C$23,'Resource Planning'!$A15, 'Sprint-Prepare'!$D$12:$D$23,'Resource Planning'!$B15)*'Sprint-Prepare'!$D$6/'Sprint-Prepare'!$D$4+ SUMIFS('Consulting Services'!$E$9:$E$14,'Consulting Services'!$C$9:$C$14,'Resource Planning'!$A15,'Consulting Services'!$D$9:$D$14,'Resource Planning'!$B15)/Sprint0Len)*D$9 -> 80 | E15: =(SUMIFS('Sprint-Prepare'!$E$12:$E$23,'Sprint-Prepare'!$C$12:$C$23,'Resource Planning'!$A15, 'Sprint-Prepare'!$D$12:$D$23,'Resource Planning'!$B15)*'Sprint-Prepare'!$D$6/'Sprint-Prepare'!$D$4+ SUMIFS('Consulting Services'!$E$9:$E$14,'Consulting Services'!$C$9:$C$14,'Resource Planning'!$A15,'Consulting Services'!$D$9:$D$14,'Resource Planning'!$B15)/Sprint0Len)*E$9 -> 80 | F15: =(SUMIFS('Sprint-Prepare'!$E$12:$E$23,'Sprint-Prepare'!$C$12:$C$23,'Resource Planning'!$A15, 'Sprint-Prepare'!$D$12:$D$23,'Resource Planning'!$B15)*'Sprint-Prepare'!$D$6/'Sprint-Prepare'!$D$4+ SUMIFS('Consulting Services'!$E$9:$E$14,'Consulting Services'!$C$9:$C$14,'Resource Planning'!$A15,'Consulting Services'!$D$9:$D$14,'Resource Planning'!$B15)/Sprint0Len)*F$9 -> 0 | G15: =IFERROR(SUM(H15:J15)/'Calculations Page'!$C$6,0) -> 3 | H15: =(SUMIFS('Sprint 1-Sprint N'!$E$12:$E$24,'Sprint 1-Sprint N'!$C$12:$C$24,'Resource Planning'!$A15, 'Sprint 1-Sprint N'!$D$12:$D$24,'Resource Planning'!$B15)*'Sprint 1-Sprint N'!$D$6/'Sprint 1-Sprint N'!$D$4 + SUMPRODUCT(('Consulting Services'!$C$9:$C$14='Resource Planning'!$A15)*('Consulting Services'!$D$9:$D$14='Resource Planning'!$B15)*(Sprint1NSvc='Resource Planning'!H$5)*('Consulting Services'!$F$9:$H$14))/Sprint1NLen)*H$9 -> 120 | I15: =(SUMIFS('Sprint 1-Sprint N'!$E$12:$E$24,'Sprint 1-Sprint N'!$C$12:$C$24,'Resource Planning'!$A15, 'Sprint 1-Sprint N'!$D$12:$D$24,'Resource Planning'!$B15)*'Sprint 1-Sprint N'!$D$6/'Sprint 1-Sprint N'!$D$4 + SUMPRODUCT(('Consulting Services'!$C$9:$C$14='Resource Planning'!$A15)*('Consulting Services'!$D$9:$D$14='Resource Planning'!$B15)*(Sprint1NSvc='Resource Planning'!I$5)*('Consulting Services'!$F$9:$H$14))/Sprint1NLen)*I$9 -> 120 | J15: =(SUMIFS('Sprint 1-Sprint N'!$E$12:$E$24,'Sprint 1-Sprint N'!$C$12:$C$24,'Resource Planning'!$A15, 'Sprint 1-Sprint N'!$D$12:$D$24,'Resource Planning'!$B15)*'Sprint 1-Sprint N'!$D$6/'Sprint 1-Sprint N'!$D$4 + SUMPRODUCT(('Consulting Services'!$C$9:$C$14='Resource Planning'!$A15)*('Consulting Services'!$D$9:$D$14='Resource Planning'!$B15)*(Sprint1NSvc='Resource Planning'!J$5)*('Consulting Services'!$F$9:$H$14))/Sprint1NLen)*J$9 -> 0 | K15: =SUM(L15:N15)/'Calculations Page'!$C$7 -> 1 | L15: =(SUMIFS('Sprint-Z Hardening'!$E$12:$E$22,'Sprint-Z Hardening'!$C$12:$C$22,'Resource Planning'!$A15, 'Sprint-Z Hardening'!$D$12:$D$22,'Resource Planning'!$B15)*'Sprint-Z Hardening'!$D$6/'Sprint-Z Hardening'!$D$4 + SUMIFS('Consulting Services'!$I$9:$I$14,'Consulting Services'!$C$9:$C$14,'Resource Planning'!$A15,'Consulting Services'!$D$9:$D$14,'Resource Planning'!$B15)/SprintZLen)*L$9 -> 40 | M15: =(SUMIFS('Sprint-Z Hardening'!$E$12:$E$22,'Sprint-Z Hardening'!$C$12:$C$22,'Resource Planning'!$A15, 'Sprint-Z Hardening'!$D$12:$D$22,'Resource Planning'!$B15)*'Sprint-Z Hardening'!$D$6/'Sprint-Z Hardening'!$D$4 + SUMIFS('Consulting Services'!$I$9:$I$14,'Consulting Services'!$C$9:$C$14,'Resource Planning'!$A15,'Consulting Services'!$D$9:$D$14,'Resource Planning'!$B15)/SprintZLen)*M$9 -> 40 | N15: =(SUMIFS('Sprint-Z Hardening'!$E$12:$E$22,'Sprint-Z Hardening'!$C$12:$C$22,'Resource Planning'!$A15, 'Sprint-Z Hardening'!$D$12:$D$22,'Resource Planning'!$B15)*'Sprint-Z Hardening'!$D$6/'Sprint-Z Hardening'!$D$4 + SUMIFS('Consulting Services'!$I$9:$I$14,'Consulting Services'!$C$9:$C$14,'Resource Planning'!$A15,'Consulting Services'!$D$9:$D$14,'Resource Planning'!$B15)/SprintZLen)*N$9 -> 0 | O15: 480 | P15: 480
A16: Pega | B16: Experience Designer | C16: =SUM(D16:F16)/'Calculations Page'!$C$5 -> 1 | D16: =(SUMIFS('Sprint-Prepare'!$E$12:$E$23,'Sprint-Prepare'!$C$12:$C$23,'Resource Planning'!$A16, 'Sprint-Prepare'!$D$12:$D$23,'Resource Planning'!$B16)*'Sprint-Prepare'!$D$6/'Sprint-Prepare'!$D$4+ SUMIFS('Consulting Services'!$E$9:$E$14,'Consulting Services'!$C$9:$C$14,'Resource Planning'!$A16,'Consulting Services'!$D$9:$D$14,'Resource Planning'!$B16)/Sprint0Len)*D$9 -> 40 | E16: =(SUMIFS('Sprint-Prepare'!$E$12:$E$23,'Sprint-Prepare'!$C$12:$C$23,'Resource Planning'!$A16, 'Sprint-Prepare'!$D$12:$D$23,'Resource Planning'!$B16)*'Sprint-Prepare'!$D$6/'Sprint-Prepare'!$D$4+ SUMIFS('Consulting Services'!$E$9:$E$14,'Consulting Services'!$C$9:$C$14,'Resource Planning'!$A16,'Consulting Services'!$D$9:$D$14,'Resource Planning'!$B16)/Sprint0Len)*E$9 -> 40 | F16: =(SUMIFS('Sprint-Prepare'!$E$12:$E$23,'Sprint-Prepare'!$C$12:$C$23,'Resource Planning'!$A16, 'Sprint-Prepare'!$D$12:$D$23,'Resource Planning'!$B16)*'Sprint-Prepare'!$D$6/'Sprint-Prepare'!$D$4+ SUMIFS('Consulting Services'!$E$9:$E$14,'Consulting Services'!$C$9:$C$14,'Resource Planning'!$A16,'Consulting Services'!$D$9:$D$14,'Resource Planning'!$B16)/Sprint0Len)*F$9 -> 0 | G16: =IFERROR(SUM(H16:J16)/'Calculations Page'!$C$6,0) -> 0.5 | H16: =(SUMIFS('Sprint 1-Sprint N'!$E$12:$E$24,'Sprint 1-Sprint N'!$C$12:$C$24,'Resource Planning'!$A16, 'Sprint 1-Sprint N'!$D$12:$D$24,'Resource Planning'!$B16)*'Sprint 1-Sprint N'!$D$6/'Sprint 1-Sprint N'!$D$4 + SUMPRODUCT(('Consulting Services'!$C$9:$C$14='Resource Planning'!$A16)*('Consulting Services'!$D$9:$D$14='Resource Planning'!$B16)*(Sprint1NSvc='Resource Planning'!H$5)*('Consulting Services'!$F$9:$H$14))/Sprint1NLen)*H$9 -> 20 | I16: =(SUMIFS('Sprint 1-Sprint N'!$E$12:$E$24,'Sprint 1-Sprint N'!$C$12:$C$24,'Resource Planning'!$A16, 'Sprint 1-Sprint N'!$D$12:$D$24,'Resource Planning'!$B16)*'Sprint 1-Sprint N'!$D$6/'Sprint 1-Sprint N'!$D$4 + SUMPRODUCT(('Consulting Services'!$C$9:$C$14='Resource Planning'!$A16)*('Consulting Services'!$D$9:$D$14='Resource Planning'!$B16)*(Sprint1NSvc='Resource Planning'!I$5)*('Consulting Services'!$F$9:$H$14))/Sprint1NLen)*I$9 -> 20 | J16: =(SUMIFS('Sprint 1-Sprint N'!$E$12:$E$24,'Sprint 1-Sprint N'!$C$12:$C$24,'Resource Planning'!$A16, 'Sprint 1-Sprint N'!$D$12:$D$24,'Resource Planning'!$B16)*'Sprint 1-Sprint N'!$D$6/'Sprint 1-Sprint N'!$D$4 + SUMPRODUCT(('Consulting Services'!$C$9:$C$14='Resource Planning'!$A16)*('Consulting Services'!$D$9:$D$14='Resource Planning'!$B16)*(Sprint1NSvc='Resource Planning'!J$5)*('Consulting Services'!$F$9:$H$14))/Sprint1NLen)*J$9 -> 0 | K16: =SUM(L16:N16)/'Calculations Page'!$C$7 -> 0.5 | L16: =(SUMIFS('Sprint-Z Hardening'!$E$12:$E$22,'Sprint-Z Hardening'!$C$12:$C$22,'Resource Planning'!$A16, 'Sprint-Z Hardening'!$D$12:$D$22,'Resource Planning'!$B16)*'Sprint-Z Hardening'!$D$6/'Sprint-Z Hardening'!$D$4 + SUMIFS('Consulting Services'!$I$9:$I$14,'Consulting Services'!$C$9:$C$14,'Resource Planning'!$A16,'Consulting Services'!$D$9:$D$14,'Resource Planning'!$B16)/SprintZLen)*L$9 -> 20 | M16: =(SUMIFS('Sprint-Z Hardening'!$E$12:$E$22,'Sprint-Z Hardening'!$C$12:$C$22,'Resource Planning'!$A16, 'Sprint-Z Hardening'!$D$12:$D$22,'Resource Planning'!$B16)*'Sprint-Z Hardening'!$D$6/'Sprint-Z Hardening'!$D$4 + SUMIFS('Consulting Services'!$I$9:$I$14,'Consulting Services'!$C$9:$C$14,'Resource Planning'!$A16,'Consulting Services'!$D$9:$D$14,'Resource Planning'!$B16)/SprintZLen)*M$9 -> 20 | N16: =(SUMIFS('Sprint-Z Hardening'!$E$12:$E$22,'Sprint-Z Hardening'!$C$12:$C$22,'Resource Planning'!$A16, 'Sprint-Z Hardening'!$D$12:$D$22,'Resource Planning'!$B16)*'Sprint-Z Hardening'!$D$6/'Sprint-Z Hardening'!$D$4 + SUMIFS('Consulting Services'!$I$9:$I$14,'Consulting Services'!$C$9:$C$14,'Resource Planning'!$A16,'Consulting Services'!$D$9:$D$14,'Resource Planning'!$B16)/SprintZLen)*N$9 -> 0 | O16: 160 | P16: 160
A17: Pega | B17: Lead Robotics BA | C17: =SUM(D17:F17)/'Calculations Page'!$C$5 -> 0 | D17: =(SUMIFS('Sprint-Prepare'!$E$12:$E$23,'Sprint-Prepare'!$C$12:$C$23,'Resource Planning'!$A17, 'Sprint-Prepare'!$D$12:$D$23,'Resource Planning'!$B17)*'Sprint-Prepare'!$D$6/'Sprint-Prepare'!$D$4+ SUMIFS('Consulting Services'!$E$9:$E$14,'Consulting Services'!$C$9:$C$14,'Resource Planning'!$A17,'Consulting Services'!$D$9:$D$14,'Resource Planning'!$B17)/Sprint0Len)*D$9 -> 0 | E17: =(SUMIFS('Sprint-Prepare'!$E$12:$E$23,'Sprint-Prepare'!$C$12:$C$23,'Resource Planning'!$A17, 'Sprint-Prepare'!$D$12:$D$23,'Resource Planning'!$B17)*'Sprint-Prepare'!$D$6/'Sprint-Prepare'!$D$4+ SUMIFS('Consulting Services'!$E$9:$E$14,'Consulting Services'!$C$9:$C$14,'Resource Planning'!$A17,'Consulting Services'!$D$9:$D$14,'Resource Planning'!$B17)/Sprint0Len)*E$9 -> 0 | F17: =(SUMIFS('Sprint-Prepare'!$E$12:$E$23,'Sprint-Prepare'!$C$12:$C$23,'Resource Planning'!$A17, 'Sprint-Prepare'!$D$12:$D$23,'Resource Planning'!$B17)*'Sprint-Prepare'!$D$6/'Sprint-Prepare'!$D$4+ SUMIFS('Consulting Services'!$E$9:$E$14,'Consulting Services'!$C$9:$C$14,'Resource Planning'!$A17,'Consulting Services'!$D$9:$D$14,'Resource Planning'!$B17)/Sprint0Len)*F$9 -> 0 | G17: =IFERROR(SUM(H17:J17)/'Calculations Page'!$C$6,0) -> 0 | H17: =(SUMIFS('Sprint 1-Sprint N'!$E$12:$E$24,'Sprint 1-Sprint N'!$C$12:$C$24,'Resource Planning'!$A17, 'Sprint 1-Sprint N'!$D$12:$D$24,'Resource Planning'!$B17)*'Sprint 1-Sprint N'!$D$6/'Sprint 1-Sprint N'!$D$4 + SUMPRODUCT(('Consulting Services'!$C$9:$C$14='Resource Planning'!$A17)*('Consulting Services'!$D$9:$D$14='Resource Planning'!$B17)*(Sprint1NSvc='Resource Planning'!H$5)*('Consulting Services'!$F$9:$H$14))/Sprint1NLen)*H$9 -> 0 | I17: =(SUMIFS('Sprint 1-Sprint N'!$E$12:$E$24,'Sprint 1-Sprint N'!$C$12:$C$24,'Resource Planning'!$A17, 'Sprint 1-Sprint N'!$D$12:$D$24,'Resource Planning'!$B17)*'Sprint 1-Sprint N'!$D$6/'Sprint 1-Sprint N'!$D$4 + SUMPRODUCT(('Consulting Services'!$C$9:$C$14='Resource Planning'!$A17)*('Consulting Services'!$D$9:$D$14='Resource Planning'!$B17)*(Sprint1NSvc='Resource Planning'!I$5)*('Consulting Services'!$F$9:$H$14))/Sprint1NLen)*I$9 -> 0 | J17: =(SUMIFS('Sprint 1-Sprint N'!$E$12:$E$24,'Sprint 1-Sprint N'!$C$12:$C$24,'Resource Planning'!$A17, 'Sprint 1-Sprint N'!$D$12:$D$24,'Resource Planning'!$B17)*'Sprint 1-Sprint N'!$D$6/'Sprint 1-Sprint N'!$D$4 + SUMPRODUCT(('Consulting Services'!$C$9:$C$14='Resource Planning'!$A17)*('Consulting Services'!$D$9:$D$14='Resource Planning'!$B17)*(Sprint1NSvc='Resource Planning'!J$5)*('Consulting Services'!$F$9:$H$14))/Sprint1NLen)*J$9 -> 0 | K17: =SUM(L17:N17)/'Calculations Page'!$C$7 -> 0 | L17: =(SUMIFS('Sprint-Z Hardening'!$E$12:$E$22,'Sprint-Z Hardening'!$C$12:$C$22,'Resource Planning'!$A17, 'Sprint-Z Hardening'!$D$12:$D$22,'Resource Planning'!$B17)*'Sprint-Z Hardening'!$D$6/'Sprint-Z Hardening'!$D$4 + SUMIFS('Consulting Services'!$I$9:$I$14,'Consulting Services'!$C$9:$C$14,'Resource Planning'!$A17,'Consulting Services'!$D$9:$D$14,'Resource Planning'!$B17)/SprintZLen)*L$9 -> 0 | M17: =(SUMIFS('Sprint-Z Hardening'!$E$12:$E$22,'Sprint-Z Hardening'!$C$12:$C$22,'Resource Planning'!$A17, 'Sprint-Z Hardening'!$D$12:$D$22,'Resource Planning'!$B17)*'Sprint-Z Hardening'!$D$6/'Sprint-Z Hardening'!$D$4 + SUMIFS('Consulting Services'!$I$9:$I$14,'Consulting Services'!$C$9:$C$14,'Resource Planning'!$A17,'Consulting Services'!$D$9:$D$14,'Resource Planning'!$B17)/SprintZLen)*M$9 -> 0 | N17: =(SUMIFS('Sprint-Z Hardening'!$E$12:$E$22,'Sprint-Z Hardening'!$C$12:$C$22,'Resource Planning'!$A17, 'Sprint-Z Hardening'!$D$12:$D$22,'Resource Planning'!$B17)*'Sprint-Z Hardening'!$D$6/'Sprint-Z Hardening'!$D$4 + SUMIFS('Consulting Services'!$I$9:$I$14,'Consulting Services'!$C$9:$C$14,'Resource Planning'!$A17,'Consulting Services'!$D$9:$D$14,'Resource Planning'!$B17)/SprintZLen)*N$9 -> 0 | O17: 0 | P17: Hide
A18: Pega | B18: Lead Robotics SA | C18: =SUM(D18:F18)/'Calculations Page'!$C$5 -> 0 | D18: =(SUMIFS('Sprint-Prepare'!$E$12:$E$23,'Sprint-Prepare'!$C$12:$C$23,'Resource Planning'!$A18, 'Sprint-Prepare'!$D$12:$D$23,'Resource Planning'!$B18)*'Sprint-Prepare'!$D$6/'Sprint-Prepare'!$D$4+ SUMIFS('Consulting Services'!$E$9:$E$14,'Consulting Services'!$C$9:$C$14,'Resource Planning'!$A18,'Consulting Services'!$D$9:$D$14,'Resource Planning'!$B18)/Sprint0Len)*D$9 -> 0 | E18: =(SUMIFS('Sprint-Prepare'!$E$12:$E$23,'Sprint-Prepare'!$C$12:$C$23,'Resource Planning'!$A18, 'Sprint-Prepare'!$D$12:$D$23,'Resource Planning'!$B18)*'Sprint-Prepare'!$D$6/'Sprint-Prepare'!$D$4+ SUMIFS('Consulting Services'!$E$9:$E$14,'Consulting Services'!$C$9:$C$14,'Resource Planning'!$A18,'Consulting Services'!$D$9:$D$14,'Resource Planning'!$B18)/Sprint0Len)*E$9 -> 0 | F18: =(SUMIFS('Sprint-Prepare'!$E$12:$E$23,'Sprint-Prepare'!$C$12:$C$23,'Resource Planning'!$A18, 'Sprint-Prepare'!$D$12:$D$23,'Resource Planning'!$B18)*'Sprint-Prepare'!$D$6/'Sprint-Prepare'!$D$4+ SUMIFS('Consulting Services'!$E$9:$E$14,'Consulting Services'!$C$9:$C$14,'Resource Planning'!$A18,'Consulting Services'!$D$9:$D$14,'Resource Planning'!$B18)/Sprint0Len)*F$9 -> 0 | G18: =IFERROR(SUM(H18:J18)/'Calculations Page'!$C$6,0) -> 0 | H18: =(SUMIFS('Sprint 1-Sprint N'!$E$12:$E$24,'Sprint 1-Sprint N'!$C$12:$C$24,'Resource Planning'!$A18, 'Sprint 1-Sprint N'!$D$12:$D$24,'Resource Planning'!$B18)*'Sprint 1-Sprint N'!$D$6/'Sprint 1-Sprint N'!$D$4 + SUMPRODUCT(('Consulting Services'!$C$9:$C$14='Resource Planning'!$A18)*('Consulting Services'!$D$9:$D$14='Resource Planning'!$B18)*(Sprint1NSvc='Resource Planning'!H$5)*('Consulting Services'!$F$9:$H$14))/Sprint1NLen)*H$9 -> 0 | I18: =(SUMIFS('Sprint 1-Sprint N'!$E$12:$E$24,'Sprint 1-Sprint N'!$C$12:$C$24,'Resource Planning'!$A18, 'Sprint 1-Sprint N'!$D$12:$D$24,'Resource Planning'!$B18)*'Sprint 1-Sprint N'!$D$6/'Sprint 1-Sprint N'!$D$4 + SUMPRODUCT(('Consulting Services'!$C$9:$C$14='Resource Planning'!$A18)*('Consulting Services'!$D$9:$D$14='Resource Planning'!$B18)*(Sprint1NSvc='Resource Planning'!I$5)*('Consulting Services'!$F$9:$H$14))/Sprint1NLen)*I$9 -> 0 | J18: =(SUMIFS('Sprint 1-Sprint N'!$E$12:$E$24,'Sprint 1-Sprint N'!$C$12:$C$24,'Resource Planning'!$A18, 'Sprint 1-Sprint N'!$D$12:$D$24,'Resource Planning'!$B18)*'Sprint 1-Sprint N'!$D$6/'Sprint 1-Sprint N'!$D$4 + SUMPRODUCT(('Consulting Services'!$C$9:$C$14='Resource Planning'!$A18)*('Consulting Services'!$D$9:$D$14='Resource Planning'!$B18)*(Sprint1NSvc='Resource Planning'!J$5)*('Consulting Services'!$F$9:$H$14))/Sprint1NLen)*J$9 -> 0 | K18: =SUM(L18:N18)/'Calculations Page'!$C$7 -> 0 | L18: =(SUMIFS('Sprint-Z Hardening'!$E$12:$E$22,'Sprint-Z Hardening'!$C$12:$C$22,'Resource Planning'!$A18, 'Sprint-Z Hardening'!$D$12:$D$22,'Resource Planning'!$B18)*'Sprint-Z Hardening'!$D$6/'Sprint-Z Hardening'!$D$4 + SUMIFS('Consulting Services'!$I$9:$I$14,'Consulting Services'!$C$9:$C$14,'Resource Planning'!$A18,'Consulting Services'!$D$9:$D$14,'Resource Planning'!$B18)/SprintZLen)*L$9 -> 0 | M18: =(SUMIFS('Sprint-Z Hardening'!$E$12:$E$22,'Sprint-Z Hardening'!$C$12:$C$22,'Resource Planning'!$A18, 'Sprint-Z Hardening'!$D$12:$D$22,'Resource Planning'!$B18)*'Sprint-Z Hardening'!$D$6/'Sprint-Z Hardening'!$D$4 + SUMIFS('Consulting Services'!$I$9:$I$14,'Consulting Services'!$C$9:$C$14,'Resource Planning'!$A18,'Consulting Services'!$D$9:$D$14,'Resource Planning'!$B18)/SprintZLen)*M$9 -> 0 | N18: =(SUMIFS('Sprint-Z Hardening'!$E$12:$E$22,'Sprint-Z Hardening'!$C$12:$C$22,'Resource Planning'!$A18, 'Sprint-Z Hardening'!$D$12:$D$22,'Resource Planning'!$B18)*'Sprint-Z Hardening'!$D$6/'Sprint-Z Hardening'!$D$4 + SUMIFS('Consulting Services'!$I$9:$I$14,'Consulting Services'!$C$9:$C$14,'Resource Planning'!$A18,'Consulting Services'!$D$9:$D$14,'Resource Planning'!$B18)/SprintZLen)*N$9 -> 0 | O18: 0 | P18: Hide
A19: Pega | B19: (Sr) Robotics SA | C19: =SUM(D19:F19)/'Calculations Page'!$C$5 -> 0 | D19: =(SUMIFS('Sprint-Prepare'!$E$12:$E$23,'Sprint-Prepare'!$C$12:$C$23,'Resource Planning'!$A19, 'Sprint-Prepare'!$D$12:$D$23,'Resource Planning'!$B19)*'Sprint-Prepare'!$D$6/'Sprint-Prepare'!$D$4+ SUMIFS('Consulting Services'!$E$9:$E$14,'Consulting Services'!$C$9:$C$14,'Resource Planning'!$A19,'Consulting Services'!$D$9:$D$14,'Resource Planning'!$B19)/Sprint0Len)*D$9 -> 0 | E19: =(SUMIFS('Sprint-Prepare'!$E$12:$E$23,'Sprint-Prepare'!$C$12:$C$23,'Resource Planning'!$A19, 'Sprint-Prepare'!$D$12:$D$23,'Resource Planning'!$B19)*'Sprint-Prepare'!$D$6/'Sprint-Prepare'!$D$4+ SUMIFS('Consulting Services'!$E$9:$E$14,'Consulting Services'!$C$9:$C$14,'Resource Planning'!$A19,'Consulting Services'!$D$9:$D$14,'Resource Planning'!$B19)/Sprint0Len)*E$9 -> 0 | F19: =(SUMIFS('Sprint-Prepare'!$E$12:$E$23,'Sprint-Prepare'!$C$12:$C$23,'Resource Planning'!$A19, 'Sprint-Prepare'!$D$12:$D$23,'Resource Planning'!$B19)*'Sprint-Prepare'!$D$6/'Sprint-Prepare'!$D$4+ SUMIFS('Consulting Services'!$E$9:$E$14,'Consulting Services'!$C$9:$C$14,'Resource Planning'!$A19,'Consulting Services'!$D$9:$D$14,'Resource Planning'!$B19)/Sprint0Len)*F$9 -> 0 | G19: =IFERROR(SUM(H19:J19)/'Calculations Page'!$C$6,0) -> 0 | H19: =(SUMIFS('Sprint 1-Sprint N'!$E$12:$E$24,'Sprint 1-Sprint N'!$C$12:$C$24,'Resource Planning'!$A19, 'Sprint 1-Sprint N'!$D$12:$D$24,'Resource Planning'!$B19)*'Sprint 1-Sprint N'!$D$6/'Sprint 1-Sprint N'!$D$4 + SUMPRODUCT(('Consulting Services'!$C$9:$C$14='Resource Planning'!$A19)*('Consulting Services'!$D$9:$D$14='Resource Planning'!$B19)*(Sprint1NSvc='Resource Planning'!H$5)*('Consulting Services'!$F$9:$H$14))/Sprint1NLen)*H$9 -> 0 | I19: =(SUMIFS('Sprint 1-Sprint N'!$E$12:$E$24,'Sprint 1-Sprint N'!$C$12:$C$24,'Resource Planning'!$A19, 'Sprint 1-Sprint N'!$D$12:$D$24,'Resource Planning'!$B19)*'Sprint 1-Sprint N'!$D$6/'Sprint 1-Sprint N'!$D$4 + SUMPRODUCT(('Consulting Services'!$C$9:$C$14='Resource Planning'!$A19)*('Consulting Services'!$D$9:$D$14='Resource Planning'!$B19)*(Sprint1NSvc='Resource Planning'!I$5)*('Consulting Services'!$F$9:$H$14))/Sprint1NLen)*I$9 -> 0 | J19: =(SUMIFS('Sprint 1-Sprint N'!$E$12:$E$24,'Sprint 1-Sprint N'!$C$12:$C$24,'Resource Planning'!$A19, 'Sprint 1-Sprint N'!$D$12:$D$24,'Resource Planning'!$B19)*'Sprint 1-Sprint N'!$D$6/'Sprint 1-Sprint N'!$D$4 + SUMPRODUCT(('Consulting Services'!$C$9:$C$14='Resource Planning'!$A19)*('Consulting Services'!$D$9:$D$14='Resource Planning'!$B19)*(Sprint1NSvc='Resource Planning'!J$5)*('Consulting Services'!$F$9:$H$14))/Sprint1NLen)*J$9 -> 0 | K19: =SUM(L19:N19)/'Calculations Page'!$C$7 -> 0 | L19: =(SUMIFS('Sprint-Z Hardening'!$E$12:$E$22,'Sprint-Z Hardening'!$C$12:$C$22,'Resource Planning'!$A19, 'Sprint-Z Hardening'!$D$12:$D$22,'Resource Planning'!$B19)*'Sprint-Z Hardening'!$D$6/'Sprint-Z Hardening'!$D$4 + SUMIFS('Consulting Services'!$I$9:$I$14,'Consulting Services'!$C$9:$C$14,'Resource Planning'!$A19,'Consulting Services'!$D$9:$D$14,'Resource Planning'!$B19)/SprintZLen)*L$9 -> 0 | M19: =(SUMIFS('Sprint-Z Hardening'!$E$12:$E$22,'Sprint-Z Hardening'!$C$12:$C$22,'Resource Planning'!$A19, 'Sprint-Z Hardening'!$D$12:$D$22,'Resource Planning'!$B19)*'Sprint-Z Hardening'!$D$6/'Sprint-Z Hardening'!$D$4 + SUMIFS('Consulting Services'!$I$9:$I$14,'Consulting Services'!$C$9:$C$14,'Resource Planning'!$A19,'Consulting Services'!$D$9:$D$14,'Resource Planning'!$B19)/SprintZLen)*M$9 -> 0 | N19: =(SUMIFS('Sprint-Z Hardening'!$E$12:$E$22,'Sprint-Z Hardening'!$C$12:$C$22,'Resource Planning'!$A19, 'Sprint-Z Hardening'!$D$12:$D$22,'Resource Planning'!$B19)*'Sprint-Z Hardening'!$D$6/'Sprint-Z Hardening'!$D$4 + SUMIFS('Consulting Services'!$I$9:$I$14,'Consulting Services'!$C$9:$C$14,'Resource Planning'!$A19,'Consulting Services'!$D$9:$D$14,'Resource Planning'!$B19)/SprintZLen)*N$9 -> 0 | O19: 0 | P19: Hide
A20: Pega | B20: Lead Decisioning Architect | C20: =SUM(D20:F20)/'Calculations Page'!$C$5 -> 0 | D20: =(SUMIFS('Sprint-Prepare'!$E$12:$E$23,'Sprint-Prepare'!$C$12:$C$23,'Resource Planning'!$A20, 'Sprint-Prepare'!$D$12:$D$23,'Resource Planning'!$B20)*'Sprint-Prepare'!$D$6/'Sprint-Prepare'!$D$4+ SUMIFS('Consulting Services'!$E$9:$E$14,'Consulting Services'!$C$9:$C$14,'Resource Planning'!$A20,'Consulting Services'!$D$9:$D$14,'Resource Planning'!$B20)/Sprint0Len)*D$9 -> 0 | E20: =(SUMIFS('Sprint-Prepare'!$E$12:$E$23,'Sprint-Prepare'!$C$12:$C$23,'Resource Planning'!$A20, 'Sprint-Prepare'!$D$12:$D$23,'Resource Planning'!$B20)*'Sprint-Prepare'!$D$6/'Sprint-Prepare'!$D$4+ SUMIFS('Consulting Services'!$E$9:$E$14,'Consulting Services'!$C$9:$C$14,'Resource Planning'!$A20,'Consulting Services'!$D$9:$D$14,'Resource Planning'!$B20)/Sprint0Len)*E$9 -> 0 | F20: =(SUMIFS('Sprint-Prepare'!$E$12:$E$23,'Sprint-Prepare'!$C$12:$C$23,'Resource Planning'!$A20, 'Sprint-Prepare'!$D$12:$D$23,'Resource Planning'!$B20)*'Sprint-Prepare'!$D$6/'Sprint-Prepare'!$D$4+ SUMIFS('Consulting Services'!$E$9:$E$14,'Consulting Services'!$C$9:$C$14,'Resource Planning'!$A20,'Consulting Services'!$D$9:$D$14,'Resource Planning'!$B20)/Sprint0Len)*F$9 -> 0 | G20: =IFERROR(SUM(H20:J20)/'Calculations Page'!$C$6,0) -> 0 | H20: =(SUMIFS('Sprint 1-Sprint N'!$E$12:$E$24,'Sprint 1-Sprint N'!$C$12:$C$24,'Resource Planning'!$A20, 'Sprint 1-Sprint N'!$D$12:$D$24,'Resource Planning'!$B20)*'Sprint 1-Sprint N'!$D$6/'Sprint 1-Sprint N'!$D$4 + SUMPRODUCT(('Consulting Services'!$C$9:$C$14='Resource Planning'!$A20)*('Consulting Services'!$D$9:$D$14='Resource Planning'!$B20)*(Sprint1NSvc='Resource Planning'!H$5)*('Consulting Services'!$F$9:$H$14))/Sprint1NLen)*H$9 -> 0 | I20: =(SUMIFS('Sprint 1-Sprint N'!$E$12:$E$24,'Sprint 1-Sprint N'!$C$12:$C$24,'Resource Planning'!$A20, 'Sprint 1-Sprint N'!$D$12:$D$24,'Resource Planning'!$B20)*'Sprint 1-Sprint N'!$D$6/'Sprint 1-Sprint N'!$D$4 + SUMPRODUCT(('Consulting Services'!$C$9:$C$14='Resource Planning'!$A20)*('Consulting Services'!$D$9:$D$14='Resource Planning'!$B20)*(Sprint1NSvc='Resource Planning'!I$5)*('Consulting Services'!$F$9:$H$14))/Sprint1NLen)*I$9 -> 0 | J20: =(SUMIFS('Sprint 1-Sprint N'!$E$12:$E$24,'Sprint 1-Sprint N'!$C$12:$C$24,'Resource Planning'!$A20, 'Sprint 1-Sprint N'!$D$12:$D$24,'Resource Planning'!$B20)*'Sprint 1-Sprint N'!$D$6/'Sprint 1-Sprint N'!$D$4 + SUMPRODUCT(('Consulting Services'!$C$9:$C$14='Resource Planning'!$A20)*('Consulting Services'!$D$9:$D$14='Resource Planning'!$B20)*(Sprint1NSvc='Resource Planning'!J$5)*('Consulting Services'!$F$9:$H$14))/Sprint1NLen)*J$9 -> 0 | K20: =SUM(L20:N20)/'Calculations Page'!$C$7 -> 0 | L20: =(SUMIFS('Sprint-Z Hardening'!$E$12:$E$22,'Sprint-Z Hardening'!$C$12:$C$22,'Resource Planning'!$A20, 'Sprint-Z Hardening'!$D$12:$D$22,'Resource Planning'!$B20)*'Sprint-Z Hardening'!$D$6/'Sprint-Z Hardening'!$D$4 + SUMIFS('Consulting Services'!$I$9:$I$14,'Consulting Services'!$C$9:$C$14,'Resource Planning'!$A20,'Consulting Services'!$D$9:$D$14,'Resource Planning'!$B20)/SprintZLen)*L$9 -> 0 | M20: =(SUMIFS('Sprint-Z Hardening'!$E$12:$E$22,'Sprint-Z Hardening'!$C$12:$C$22,'Resource Planning'!$A20, 'Sprint-Z Hardening'!$D$12:$D$22,'Resource Planning'!$B20)*'Sprint-Z Hardening'!$D$6/'Sprint-Z Hardening'!$D$4 + SUMIFS('Consulting Services'!$I$9:$I$14,'Consulting Services'!$C$9:$C$14,'Resource Planning'!$A20,'Consulting Services'!$D$9:$D$14,'Resource Planning'!$B20)/SprintZLen)*M$9 -> 0 | N20: =(SUMIFS('Sprint-Z Hardening'!$E$12:$E$22,'Sprint-Z Hardening'!$C$12:$C$22,'Resource Planning'!$A20, 'Sprint-Z Hardening'!$D$12:$D$22,'Resource Planning'!$B20)*'Sprint-Z Hardening'!$D$6/'Sprint-Z Hardening'!$D$4 + SUMIFS('Consulting Services'!$I$9:$I$14,'Consulting Services'!$C$9:$C$14,'Resource Planning'!$A20,'Consulting Services'!$D$9:$D$14,'Resource Planning'!$B20)/SprintZLen)*N$9 -> 0 | O20: 0 | P20: Hide
A21: Pega | B21: Sr. Decisioning Architect | C21: =SUM(D21:F21)/'Calculations Page'!$C$5 -> 0 | D21: =(SUMIFS('Sprint-Prepare'!$E$12:$E$23,'Sprint-Prepare'!$C$12:$C$23,'Resource Planning'!$A21, 'Sprint-Prepare'!$D$12:$D$23,'Resource Planning'!$B21)*'Sprint-Prepare'!$D$6/'Sprint-Prepare'!$D$4+ SUMIFS('Consulting Services'!$E$9:$E$14,'Consulting Services'!$C$9:$C$14,'Resource Planning'!$A21,'Consulting Services'!$D$9:$D$14,'Resource Planning'!$B21)/Sprint0Len)*D$9 -> 0 | E21: =(SUMIFS('Sprint-Prepare'!$E$12:$E$23,'Sprint-Prepare'!$C$12:$C$23,'Resource Planning'!$A21, 'Sprint-Prepare'!$D$12:$D$23,'Resource Planning'!$B21)*'Sprint-Prepare'!$D$6/'Sprint-Prepare'!$D$4+ SUMIFS('Consulting Services'!$E$9:$E$14,'Consulting Services'!$C$9:$C$14,'Resource Planning'!$A21,'Consulting Services'!$D$9:$D$14,'Resource Planning'!$B21)/Sprint0Len)*E$9 -> 0 | F21: =(SUMIFS('Sprint-Prepare'!$E$12:$E$23,'Sprint-Prepare'!$C$12:$C$23,'Resource Planning'!$A21, 'Sprint-Prepare'!$D$12:$D$23,'Resource Planning'!$B21)*'Sprint-Prepare'!$D$6/'Sprint-Prepare'!$D$4+ SUMIFS('Consulting Services'!$E$9:$E$14,'Consulting Services'!$C$9:$C$14,'Resource Planning'!$A21,'Consulting Services'!$D$9:$D$14,'Resource Planning'!$B21)/Sprint0Len)*F$9 -> 0 | G21: =IFERROR(SUM(H21:J21)/'Calculations Page'!$C$6,0) -> 0 | H21: =(SUMIFS('Sprint 1-Sprint N'!$E$12:$E$24,'Sprint 1-Sprint N'!$C$12:$C$24,'Resource Planning'!$A21, 'Sprint 1-Sprint N'!$D$12:$D$24,'Resource Planning'!$B21)*'Sprint 1-Sprint N'!$D$6/'Sprint 1-Sprint N'!$D$4 + SUMPRODUCT(('Consulting Services'!$C$9:$C$14='Resource Planning'!$A21)*('Consulting Services'!$D$9:$D$14='Resource Planning'!$B21)*(Sprint1NSvc='Resource Planning'!H$5)*('Consulting Services'!$F$9:$H$14))/Sprint1NLen)*H$9 -> 0 | I21: =(SUMIFS('Sprint 1-Sprint N'!$E$12:$E$24,'Sprint 1-Sprint N'!$C$12:$C$24,'Resource Planning'!$A21, 'Sprint 1-Sprint N'!$D$12:$D$24,'Resource Planning'!$B21)*'Sprint 1-Sprint N'!$D$6/'Sprint 1-Sprint N'!$D$4 + SUMPRODUCT(('Consulting Services'!$C$9:$C$14='Resource Planning'!$A21)*('Consulting Services'!$D$9:$D$14='Resource Planning'!$B21)*(Sprint1NSvc='Resource Planning'!I$5)*('Consulting Services'!$F$9:$H$14))/Sprint1NLen)*I$9 -> 0 | J21: =(SUMIFS('Sprint 1-Sprint N'!$E$12:$E$24,'Sprint 1-Sprint N'!$C$12:$C$24,'Resource Planning'!$A21, 'Sprint 1-Sprint N'!$D$12:$D$24,'Resource Planning'!$B21)*'Sprint 1-Sprint N'!$D$6/'Sprint 1-Sprint N'!$D$4 + SUMPRODUCT(('Consulting Services'!$C$9:$C$14='Resource Planning'!$A21)*('Consulting Services'!$D$9:$D$14='Resource Planning'!$B21)*(Sprint1NSvc='Resource Planning'!J$5)*('Consulting Services'!$F$9:$H$14))/Sprint1NLen)*J$9 -> 0 | K21: =SUM(L21:N21)/'Calculations Page'!$C$7 -> 0 | L21: =(SUMIFS('Sprint-Z Hardening'!$E$12:$E$22,'Sprint-Z Hardening'!$C$12:$C$22,'Resource Planning'!$A21, 'Sprint-Z Hardening'!$D$12:$D$22,'Resource Planning'!$B21)*'Sprint-Z Hardening'!$D$6/'Sprint-Z Hardening'!$D$4 + SUMIFS('Consulting Services'!$I$9:$I$14,'Consulting Services'!$C$9:$C$14,'Resource Planning'!$A21,'Consulting Services'!$D$9:$D$14,'Resource Planning'!$B21)/SprintZLen)*L$9 -> 0 | M21: =(SUMIFS('Sprint-Z Hardening'!$E$12:$E$22,'Sprint-Z Hardening'!$C$12:$C$22,'Resource Planning'!$A21, 'Sprint-Z Hardening'!$D$12:$D$22,'Resource Planning'!$B21)*'Sprint-Z Hardening'!$D$6/'Sprint-Z Hardening'!$D$4 + SUMIFS('Consulting Services'!$I$9:$I$14,'Consulting Services'!$C$9:$C$14,'Resource Planning'!$A21,'Consulting Services'!$D$9:$D$14,'Resource Planning'!$B21)/SprintZLen)*M$9 -> 0 | N21: =(SUMIFS('Sprint-Z Hardening'!$E$12:$E$22,'Sprint-Z Hardening'!$C$12:$C$22,'Resource Planning'!$A21, 'Sprint-Z Hardening'!$D$12:$D$22,'Resource Planning'!$B21)*'Sprint-Z Hardening'!$D$6/'Sprint-Z Hardening'!$D$4 + SUMIFS('Consulting Services'!$I$9:$I$14,'Consulting Services'!$C$9:$C$14,'Resource Planning'!$A21,'Consulting Services'!$D$9:$D$14,'Resource Planning'!$B21)/SprintZLen)*N$9 -> 0 | O21: 0 | P21: Hide
A22: Pega | B22: Mktg & Dec Bus Consultant | C22: =SUM(D22:F22)/'Calculations Page'!$C$5 -> 0 | D22: =(SUMIFS('Sprint-Prepare'!$E$12:$E$23,'Sprint-Prepare'!$C$12:$C$23,'Resource Planning'!$A22, 'Sprint-Prepare'!$D$12:$D$23,'Resource Planning'!$B22)*'Sprint-Prepare'!$D$6/'Sprint-Prepare'!$D$4+ SUMIFS('Consulting Services'!$E$9:$E$14,'Consulting Services'!$C$9:$C$14,'Resource Planning'!$A22,'Consulting Services'!$D$9:$D$14,'Resource Planning'!$B22)/Sprint0Len)*D$9 -> 0 | E22: =(SUMIFS('Sprint-Prepare'!$E$12:$E$23,'Sprint-Prepare'!$C$12:$C$23,'Resource Planning'!$A22, 'Sprint-Prepare'!$D$12:$D$23,'Resource Planning'!$B22)*'Sprint-Prepare'!$D$6/'Sprint-Prepare'!$D$4+ SUMIFS('Consulting Services'!$E$9:$E$14,'Consulting Services'!$C$9:$C$14,'Resource Planning'!$A22,'Consulting Services'!$D$9:$D$14,'Resource Planning'!$B22)/Sprint0Len)*E$9 -> 0 | F22: =(SUMIFS('Sprint-Prepare'!$E$12:$E$23,'Sprint-Prepare'!$C$12:$C$23,'Resource Planning'!$A22, 'Sprint-Prepare'!$D$12:$D$23,'Resource Planning'!$B22)*'Sprint-Prepare'!$D$6/'Sprint-Prepare'!$D$4+ SUMIFS('Consulting Services'!$E$9:$E$14,'Consulting Services'!$C$9:$C$14,'Resource Planning'!$A22,'Consulting Services'!$D$9:$D$14,'Resource Planning'!$B22)/Sprint0Len)*F$9 -> 0 | G22: =IFERROR(SUM(H22:J22)/'Calculations Page'!$C$6,0) -> 0 | H22: =(SUMIFS('Sprint 1-Sprint N'!$E$12:$E$24,'Sprint 1-Sprint N'!$C$12:$C$24,'Resource Planning'!$A22, 'Sprint 1-Sprint N'!$D$12:$D$24,'Resource Planning'!$B22)*'Sprint 1-Sprint N'!$D$6/'Sprint 1-Sprint N'!$D$4 + SUMPRODUCT(('Consulting Services'!$C$9:$C$14='Resource Planning'!$A22)*('Consulting Services'!$D$9:$D$14='Resource Planning'!$B22)*(Sprint1NSvc='Resource Planning'!H$5)*('Consulting Services'!$F$9:$H$14))/Sprint1NLen)*H$9 -> 0 | I22: =(SUMIFS('Sprint 1-Sprint N'!$E$12:$E$24,'Sprint 1-Sprint N'!$C$12:$C$24,'Resource Planning'!$A22, 'Sprint 1-Sprint N'!$D$12:$D$24,'Resource Planning'!$B22)*'Sprint 1-Sprint N'!$D$6/'Sprint 1-Sprint N'!$D$4 + SUMPRODUCT(('Consulting Services'!$C$9:$C$14='Resource Planning'!$A22)*('Consulting Services'!$D$9:$D$14='Resource Planning'!$B22)*(Sprint1NSvc='Resource Planning'!I$5)*('Consulting Services'!$F$9:$H$14))/Sprint1NLen)*I$9 -> 0 | J22: =(SUMIFS('Sprint 1-Sprint N'!$E$12:$E$24,'Sprint 1-Sprint N'!$C$12:$C$24,'Resource Planning'!$A22, 'Sprint 1-Sprint N'!$D$12:$D$24,'Resource Planning'!$B22)*'Sprint 1-Sprint N'!$D$6/'Sprint 1-Sprint N'!$D$4 + SUMPRODUCT(('Consulting Services'!$C$9:$C$14='Resource Planning'!$A22)*('Consulting Services'!$D$9:$D$14='Resource Planning'!$B22)*(Sprint1NSvc='Resource Planning'!J$5)*('Consulting Services'!$F$9:$H$14))/Sprint1NLen)*J$9 -> 0 | K22: =SUM(L22:N22)/'Calculations Page'!$C$7 -> 0 | L22: =(SUMIFS('Sprint-Z Hardening'!$E$12:$E$22,'Sprint-Z Hardening'!$C$12:$C$22,'Resource Planning'!$A22, 'Sprint-Z Hardening'!$D$12:$D$22,'Resource Planning'!$B22)*'Sprint-Z Hardening'!$D$6/'Sprint-Z Hardening'!$D$4 + SUMIFS('Consulting Services'!$I$9:$I$14,'Consulting Services'!$C$9:$C$14,'Resource Planning'!$A22,'Consulting Services'!$D$9:$D$14,'Resource Planning'!$B22)/SprintZLen)*L$9 -> 0 | M22: =(SUMIFS('Sprint-Z Hardening'!$E$12:$E$22,'Sprint-Z Hardening'!$C$12:$C$22,'Resource Planning'!$A22, 'Sprint-Z Hardening'!$D$12:$D$22,'Resource Planning'!$B22)*'Sprint-Z Hardening'!$D$6/'Sprint-Z Hardening'!$D$4 + SUMIFS('Consulting Services'!$I$9:$I$14,'Consulting Services'!$C$9:$C$14,'Resource Planning'!$A22,'Consulting Services'!$D$9:$D$14,'Resource Planning'!$B22)/SprintZLen)*M$9 -> 0 | N22: =(SUMIFS('Sprint-Z Hardening'!$E$12:$E$22,'Sprint-Z Hardening'!$C$12:$C$22,'Resource Planning'!$A22, 'Sprint-Z Hardening'!$D$12:$D$22,'Resource Planning'!$B22)*'Sprint-Z Hardening'!$D$6/'Sprint-Z Hardening'!$D$4 + SUMIFS('Consulting Services'!$I$9:$I$14,'Consulting Services'!$C$9:$C$14,'Resource Planning'!$A22,'Consulting Services'!$D$9:$D$14,'Resource Planning'!$B22)/SprintZLen)*N$9 -> 0 | O22: 0 | P22: Hide
A23: Pega | B23: Product Owner | C23: =SUM(D23:F23)/'Calculations Page'!$C$5 -> 0 | D23: =(SUMIFS('Sprint-Prepare'!$E$12:$E$23,'Sprint-Prepare'!$C$12:$C$23,'Resource Planning'!$A23, 'Sprint-Prepare'!$D$12:$D$23,'Resource Planning'!$B23)*'Sprint-Prepare'!$D$6/'Sprint-Prepare'!$D$4+ SUMIFS('Consulting Services'!$E$9:$E$14,'Consulting Services'!$C$9:$C$14,'Resource Planning'!$A23,'Consulting Services'!$D$9:$D$14,'Resource Planning'!$B23)/Sprint0Len)*D$9 -> 0 | E23: =(SUMIFS('Sprint-Prepare'!$E$12:$E$23,'Sprint-Prepare'!$C$12:$C$23,'Resource Planning'!$A23, 'Sprint-Prepare'!$D$12:$D$23,'Resource Planning'!$B23)*'Sprint-Prepare'!$D$6/'Sprint-Prepare'!$D$4+ SUMIFS('Consulting Services'!$E$9:$E$14,'Consulting Services'!$C$9:$C$14,'Resource Planning'!$A23,'Consulting Services'!$D$9:$D$14,'Resource Planning'!$B23)/Sprint0Len)*E$9 -> 0 | F23: =(SUMIFS('Sprint-Prepare'!$E$12:$E$23,'Sprint-Prepare'!$C$12:$C$23,'Resource Planning'!$A23, 'Sprint-Prepare'!$D$12:$D$23,'Resource Planning'!$B23)*'Sprint-Prepare'!$D$6/'Sprint-Prepare'!$D$4+ SUMIFS('Consulting Services'!$E$9:$E$14,'Consulting Services'!$C$9:$C$14,'Resource Planning'!$A23,'Consulting Services'!$D$9:$D$14,'Resource Planning'!$B23)/Sprint0Len)*F$9 -> 0 | G23: =IFERROR(SUM(H23:J23)/'Calculations Page'!$C$6,0) -> 0 | H23: =(SUMIFS('Sprint 1-Sprint N'!$E$12:$E$24,'Sprint 1-Sprint N'!$C$12:$C$24,'Resource Planning'!$A23, 'Sprint 1-Sprint N'!$D$12:$D$24,'Resource Planning'!$B23)*'Sprint 1-Sprint N'!$D$6/'Sprint 1-Sprint N'!$D$4 + SUMPRODUCT(('Consulting Services'!$C$9:$C$14='Resource Planning'!$A23)*('Consulting Services'!$D$9:$D$14='Resource Planning'!$B23)*(Sprint1NSvc='Resource Planning'!H$5)*('Consulting Services'!$F$9:$H$14))/Sprint1NLen)*H$9 -> 0 | I23: =(SUMIFS('Sprint 1-Sprint N'!$E$12:$E$24,'Sprint 1-Sprint N'!$C$12:$C$24,'Resource Planning'!$A23, 'Sprint 1-Sprint N'!$D$12:$D$24,'Resource Planning'!$B23)*'Sprint 1-Sprint N'!$D$6/'Sprint 1-Sprint N'!$D$4 + SUMPRODUCT(('Consulting Services'!$C$9:$C$14='Resource Planning'!$A23)*('Consulting Services'!$D$9:$D$14='Resource Planning'!$B23)*(Sprint1NSvc='Resource Planning'!I$5)*('Consulting Services'!$F$9:$H$14))/Sprint1NLen)*I$9 -> 0 | J23: =(SUMIFS('Sprint 1-Sprint N'!$E$12:$E$24,'Sprint 1-Sprint N'!$C$12:$C$24,'Resource Planning'!$A23, 'Sprint 1-Sprint N'!$D$12:$D$24,'Resource Planning'!$B23)*'Sprint 1-Sprint N'!$D$6/'Sprint 1-Sprint N'!$D$4 + SUMPRODUCT(('Consulting Services'!$C$9:$C$14='Resource Planning'!$A23)*('Consulting Services'!$D$9:$D$14='Resource Planning'!$B23)*(Sprint1NSvc='Resource Planning'!J$5)*('Consulting Services'!$F$9:$H$14))/Sprint1NLen)*J$9 -> 0 | K23: =SUM(L23:N23)/'Calculations Page'!$C$7 -> 0 | L23: =(SUMIFS('Sprint-Z Hardening'!$E$12:$E$22,'Sprint-Z Hardening'!$C$12:$C$22,'Resource Planning'!$A23, 'Sprint-Z Hardening'!$D$12:$D$22,'Resource Planning'!$B23)*'Sprint-Z Hardening'!$D$6/'Sprint-Z Hardening'!$D$4 + SUMIFS('Consulting Services'!$I$9:$I$14,'Consulting Services'!$C$9:$C$14,'Resource Planning'!$A23,'Consulting Services'!$D$9:$D$14,'Resource Planning'!$B23)/SprintZLen)*L$9 -> 0 | M23: =(SUMIFS('Sprint-Z Hardening'!$E$12:$E$22,'Sprint-Z Hardening'!$C$12:$C$22,'Resource Planning'!$A23, 'Sprint-Z Hardening'!$D$12:$D$22,'Resource Planning'!$B23)*'Sprint-Z Hardening'!$D$6/'Sprint-Z Hardening'!$D$4 + SUMIFS('Consulting Services'!$I$9:$I$14,'Consulting Services'!$C$9:$C$14,'Resource Planning'!$A23,'Consulting Services'!$D$9:$D$14,'Resource Planning'!$B23)/SprintZLen)*M$9 -> 0 | N23: =(SUMIFS('Sprint-Z Hardening'!$E$12:$E$22,'Sprint-Z Hardening'!$C$12:$C$22,'Resource Planning'!$A23, 'Sprint-Z Hardening'!$D$12:$D$22,'Resource Planning'!$B23)*'Sprint-Z Hardening'!$D$6/'Sprint-Z Hardening'!$D$4 + SUMIFS('Consulting Services'!$I$9:$I$14,'Consulting Services'!$C$9:$C$14,'Resource Planning'!$A23,'Consulting Services'!$D$9:$D$14,'Resource Planning'!$B23)/SprintZLen)*N$9 -> 0 | O23: 0 | P23: Hide
A24: Pega | B24: Test Lead | C24: =SUM(D24:F24)/'Calculations Page'!$C$5 -> 0 | D24: =(SUMIFS('Sprint-Prepare'!$E$12:$E$23,'Sprint-Prepare'!$C$12:$C$23,'Resource Planning'!$A24, 'Sprint-Prepare'!$D$12:$D$23,'Resource Planning'!$B24)*'Sprint-Prepare'!$D$6/'Sprint-Prepare'!$D$4+ SUMIFS('Consulting Services'!$E$9:$E$14,'Consulting Services'!$C$9:$C$14,'Resource Planning'!$A24,'Consulting Services'!$D$9:$D$14,'Resource Planning'!$B24)/Sprint0Len)*D$9 -> 0 | E24: =(SUMIFS('Sprint-Prepare'!$E$12:$E$23,'Sprint-Prepare'!$C$12:$C$23,'Resource Planning'!$A24, 'Sprint-Prepare'!$D$12:$D$23,'Resource Planning'!$B24)*'Sprint-Prepare'!$D$6/'Sprint-Prepare'!$D$4+ SUMIFS('Consulting Services'!$E$9:$E$14,'Consulting Services'!$C$9:$C$14,'Resource Planning'!$A24,'Consulting Services'!$D$9:$D$14,'Resource Planning'!$B24)/Sprint0Len)*E$9 -> 0 | F24: =(SUMIFS('Sprint-Prepare'!$E$12:$E$23,'Sprint-Prepare'!$C$12:$C$23,'Resource Planning'!$A24, 'Sprint-Prepare'!$D$12:$D$23,'Resource Planning'!$B24)*'Sprint-Prepare'!$D$6/'Sprint-Prepare'!$D$4+ SUMIFS('Consulting Services'!$E$9:$E$14,'Consulting Services'!$C$9:$C$14,'Resource Planning'!$A24,'Consulting Services'!$D$9:$D$14,'Resource Planning'!$B24)/Sprint0Len)*F$9 -> 0 | G24: =IFERROR(SUM(H24:J24)/'Calculations Page'!$C$6,0) -> 0 | H24: =(SUMIFS('Sprint 1-Sprint N'!$E$12:$E$24,'Sprint 1-Sprint N'!$C$12:$C$24,'Resource Planning'!$A24, 'Sprint 1-Sprint N'!$D$12:$D$24,'Resource Planning'!$B24)*'Sprint 1-Sprint N'!$D$6/'Sprint 1-Sprint N'!$D$4 + SUMPRODUCT(('Consulting Services'!$C$9:$C$14='Resource Planning'!$A24)*('Consulting Services'!$D$9:$D$14='Resource Planning'!$B24)*(Sprint1NSvc='Resource Planning'!H$5)*('Consulting Services'!$F$9:$H$14))/Sprint1NLen)*H$9 -> 0 | I24: =(SUMIFS('Sprint 1-Sprint N'!$E$12:$E$24,'Sprint 1-Sprint N'!$C$12:$C$24,'Resource Planning'!$A24, 'Sprint 1-Sprint N'!$D$12:$D$24,'Resource Planning'!$B24)*'Sprint 1-Sprint N'!$D$6/'Sprint 1-Sprint N'!$D$4 + SUMPRODUCT(('Consulting Services'!$C$9:$C$14='Resource Planning'!$A24)*('Consulting Services'!$D$9:$D$14='Resource Planning'!$B24)*(Sprint1NSvc='Resource Planning'!I$5)*('Consulting Services'!$F$9:$H$14))/Sprint1NLen)*I$9 -> 0 | J24: =(SUMIFS('Sprint 1-Sprint N'!$E$12:$E$24,'Sprint 1-Sprint N'!$C$12:$C$24,'Resource Planning'!$A24, 'Sprint 1-Sprint N'!$D$12:$D$24,'Resource Planning'!$B24)*'Sprint 1-Sprint N'!$D$6/'Sprint 1-Sprint N'!$D$4 + SUMPRODUCT(('Consulting Services'!$C$9:$C$14='Resource Planning'!$A24)*('Consulting Services'!$D$9:$D$14='Resource Planning'!$B24)*(Sprint1NSvc='Resource Planning'!J$5)*('Consulting Services'!$F$9:$H$14))/Sprint1NLen)*J$9 -> 0 | K24: =SUM(L24:N24)/'Calculations Page'!$C$7 -> 0 | L24: =(SUMIFS('Sprint-Z Hardening'!$E$12:$E$22,'Sprint-Z Hardening'!$C$12:$C$22,'Resource Planning'!$A24, 'Sprint-Z Hardening'!$D$12:$D$22,'Resource Planning'!$B24)*'Sprint-Z Hardening'!$D$6/'Sprint-Z Hardening'!$D$4 + SUMIFS('Consulting Services'!$I$9:$I$14,'Consulting Services'!$C$9:$C$14,'Resource Planning'!$A24,'Consulting Services'!$D$9:$D$14,'Resource Planning'!$B24)/SprintZLen)*L$9 -> 0 | M24: =(SUMIFS('Sprint-Z Hardening'!$E$12:$E$22,'Sprint-Z Hardening'!$C$12:$C$22,'Resource Planning'!$A24, 'Sprint-Z Hardening'!$D$12:$D$22,'Resource Planning'!$B24)*'Sprint-Z Hardening'!$D$6/'Sprint-Z Hardening'!$D$4 + SUMIFS('Consulting Services'!$I$9:$I$14,'Consulting Services'!$C$9:$C$14,'Resource Planning'!$A24,'Consulting Services'!$D$9:$D$14,'Resource Planning'!$B24)/SprintZLen)*M$9 -> 0 | N24: =(SUMIFS('Sprint-Z Hardening'!$E$12:$E$22,'Sprint-Z Hardening'!$C$12:$C$22,'Resource Planning'!$A24, 'Sprint-Z Hardening'!$D$12:$D$22,'Resource Planning'!$B24)*'Sprint-Z Hardening'!$D$6/'Sprint-Z Hardening'!$D$4 + SUMIFS('Consulting Services'!$I$9:$I$14,'Consulting Services'!$C$9:$C$14,'Resource Planning'!$A24,'Consulting Services'!$D$9:$D$14,'Resource Planning'!$B24)/SprintZLen)*N$9 -> 0 | O24: 0 | P24: Hide
A25: Pega | B25: Tester | C25: =SUM(D25:F25)/'Calculations Page'!$C$5 -> 0 | D25: =(SUMIFS('Sprint-Prepare'!$E$12:$E$23,'Sprint-Prepare'!$C$12:$C$23,'Resource Planning'!$A25, 'Sprint-Prepare'!$D$12:$D$23,'Resource Planning'!$B25)*'Sprint-Prepare'!$D$6/'Sprint-Prepare'!$D$4+ SUMIFS('Consulting Services'!$E$9:$E$14,'Consulting Services'!$C$9:$C$14,'Resource Planning'!$A25,'Consulting Services'!$D$9:$D$14,'Resource Planning'!$B25)/Sprint0Len)*D$9 -> 0 | E25: =(SUMIFS('Sprint-Prepare'!$E$12:$E$23,'Sprint-Prepare'!$C$12:$C$23,'Resource Planning'!$A25, 'Sprint-Prepare'!$D$12:$D$23,'Resource Planning'!$B25)*'Sprint-Prepare'!$D$6/'Sprint-Prepare'!$D$4+ SUMIFS('Consulting Services'!$E$9:$E$14,'Consulting Services'!$C$9:$C$14,'Resource Planning'!$A25,'Consulting Services'!$D$9:$D$14,'Resource Planning'!$B25)/Sprint0Len)*E$9 -> 0 | F25: =(SUMIFS('Sprint-Prepare'!$E$12:$E$23,'Sprint-Prepare'!$C$12:$C$23,'Resource Planning'!$A25, 'Sprint-Prepare'!$D$12:$D$23,'Resource Planning'!$B25)*'Sprint-Prepare'!$D$6/'Sprint-Prepare'!$D$4+ SUMIFS('Consulting Services'!$E$9:$E$14,'Consulting Services'!$C$9:$C$14,'Resource Planning'!$A25,'Consulting Services'!$D$9:$D$14,'Resource Planning'!$B25)/Sprint0Len)*F$9 -> 0 | G25: =IFERROR(SUM(H25:J25)/'Calculations Page'!$C$6,0) -> 0 | H25: =(SUMIFS('Sprint 1-Sprint N'!$E$12:$E$24,'Sprint 1-Sprint N'!$C$12:$C$24,'Resource Planning'!$A25, 'Sprint 1-Sprint N'!$D$12:$D$24,'Resource Planning'!$B25)*'Sprint 1-Sprint N'!$D$6/'Sprint 1-Sprint N'!$D$4 + SUMPRODUCT(('Consulting Services'!$C$9:$C$14='Resource Planning'!$A25)*('Consulting Services'!$D$9:$D$14='Resource Planning'!$B25)*(Sprint1NSvc='Resource Planning'!H$5)*('Consulting Services'!$F$9:$H$14))/Sprint1NLen)*H$9 -> 0 | I25: =(SUMIFS('Sprint 1-Sprint N'!$E$12:$E$24,'Sprint 1-Sprint N'!$C$12:$C$24,'Resource Planning'!$A25, 'Sprint 1-Sprint N'!$D$12:$D$24,'Resource Planning'!$B25)*'Sprint 1-Sprint N'!$D$6/'Sprint 1-Sprint N'!$D$4 + SUMPRODUCT(('Consulting Services'!$C$9:$C$14='Resource Planning'!$A25)*('Consulting Services'!$D$9:$D$14='Resource Planning'!$B25)*(Sprint1NSvc='Resource Planning'!I$5)*('Consulting Services'!$F$9:$H$14))/Sprint1NLen)*I$9 -> 0 | J25: =(SUMIFS('Sprint 1-Sprint N'!$E$12:$E$24,'Sprint 1-Sprint N'!$C$12:$C$24,'Resource Planning'!$A25, 'Sprint 1-Sprint N'!$D$12:$D$24,'Resource Planning'!$B25)*'Sprint 1-Sprint N'!$D$6/'Sprint 1-Sprint N'!$D$4 + SUMPRODUCT(('Consulting Services'!$C$9:$C$14='Resource Planning'!$A25)*('Consulting Services'!$D$9:$D$14='Resource Planning'!$B25)*(Sprint1NSvc='Resource Planning'!J$5)*('Consulting Services'!$F$9:$H$14))/Sprint1NLen)*J$9 -> 0 | K25: =SUM(L25:N25)/'Calculations Page'!$C$7 -> 0 | L25: =(SUMIFS('Sprint-Z Hardening'!$E$12:$E$22,'Sprint-Z Hardening'!$C$12:$C$22,'Resource Planning'!$A25, 'Sprint-Z Hardening'!$D$12:$D$22,'Resource Planning'!$B25)*'Sprint-Z Hardening'!$D$6/'Sprint-Z Hardening'!$D$4 + SUMIFS('Consulting Services'!$I$9:$I$14,'Consulting Services'!$C$9:$C$14,'Resource Planning'!$A25,'Consulting Services'!$D$9:$D$14,'Resource Planning'!$B25)/SprintZLen)*L$9 -> 0 | M25: =(SUMIFS('Sprint-Z Hardening'!$E$12:$E$22,'Sprint-Z Hardening'!$C$12:$C$22,'Resource Planning'!$A25, 'Sprint-Z Hardening'!$D$12:$D$22,'Resource Planning'!$B25)*'Sprint-Z Hardening'!$D$6/'Sprint-Z Hardening'!$D$4 + SUMIFS('Consulting Services'!$I$9:$I$14,'Consulting Services'!$C$9:$C$14,'Resource Planning'!$A25,'Consulting Services'!$D$9:$D$14,'Resource Planning'!$B25)/SprintZLen)*M$9 -> 0 | N25: =(SUMIFS('Sprint-Z Hardening'!$E$12:$E$22,'Sprint-Z Hardening'!$C$12:$C$22,'Resource Planning'!$A25, 'Sprint-Z Hardening'!$D$12:$D$22,'Resource Planning'!$B25)*'Sprint-Z Hardening'!$D$6/'Sprint-Z Hardening'!$D$4 + SUMIFS('Consulting Services'!$I$9:$I$14,'Consulting Services'!$C$9:$C$14,'Resource Planning'!$A25,'Consulting Services'!$D$9:$D$14,'Resource Planning'!$B25)/SprintZLen)*N$9 -> 0 | O25: 0 | P25: Hide
A26: Pega | B26: Business Architect | C26: =SUM(D26:F26)/'Calculations Page'!$C$5 -> 0 | D26: =(SUMIFS('Sprint-Prepare'!$E$12:$E$23,'Sprint-Prepare'!$C$12:$C$23,'Resource Planning'!$A26, 'Sprint-Prepare'!$D$12:$D$23,'Resource Planning'!$B26)*'Sprint-Prepare'!$D$6/'Sprint-Prepare'!$D$4+ SUMIFS('Consulting Services'!$E$9:$E$14,'Consulting Services'!$C$9:$C$14,'Resource Planning'!$A26,'Consulting Services'!$D$9:$D$14,'Resource Planning'!$B26)/Sprint0Len)*D$9 -> 0 | E26: =(SUMIFS('Sprint-Prepare'!$E$12:$E$23,'Sprint-Prepare'!$C$12:$C$23,'Resource Planning'!$A26, 'Sprint-Prepare'!$D$12:$D$23,'Resource Planning'!$B26)*'Sprint-Prepare'!$D$6/'Sprint-Prepare'!$D$4+ SUMIFS('Consulting Services'!$E$9:$E$14,'Consulting Services'!$C$9:$C$14,'Resource Planning'!$A26,'Consulting Services'!$D$9:$D$14,'Resource Planning'!$B26)/Sprint0Len)*E$9 -> 0 | F26: =(SUMIFS('Sprint-Prepare'!$E$12:$E$23,'Sprint-Prepare'!$C$12:$C$23,'Resource Planning'!$A26, 'Sprint-Prepare'!$D$12:$D$23,'Resource Planning'!$B26)*'Sprint-Prepare'!$D$6/'Sprint-Prepare'!$D$4+ SUMIFS('Consulting Services'!$E$9:$E$14,'Consulting Services'!$C$9:$C$14,'Resource Planning'!$A26,'Consulting Services'!$D$9:$D$14,'Resource Planning'!$B26)/Sprint0Len)*F$9 -> 0 | G26: =IFERROR(SUM(H26:J26)/'Calculations Page'!$C$6,0) -> 0 | H26: =(SUMIFS('Sprint 1-Sprint N'!$E$12:$E$24,'Sprint 1-Sprint N'!$C$12:$C$24,'Resource Planning'!$A26, 'Sprint 1-Sprint N'!$D$12:$D$24,'Resource Planning'!$B26)*'Sprint 1-Sprint N'!$D$6/'Sprint 1-Sprint N'!$D$4 + SUMPRODUCT(('Consulting Services'!$C$9:$C$14='Resource Planning'!$A26)*('Consulting Services'!$D$9:$D$14='Resource Planning'!$B26)*(Sprint1NSvc='Resource Planning'!H$5)*('Consulting Services'!$F$9:$H$14))/Sprint1NLen)*H$9 -> 0 | I26: =(SUMIFS('Sprint 1-Sprint N'!$E$12:$E$24,'Sprint 1-Sprint N'!$C$12:$C$24,'Resource Planning'!$A26, 'Sprint 1-Sprint N'!$D$12:$D$24,'Resource Planning'!$B26)*'Sprint 1-Sprint N'!$D$6/'Sprint 1-Sprint N'!$D$4 + SUMPRODUCT(('Consulting Services'!$C$9:$C$14='Resource Planning'!$A26)*('Consulting Services'!$D$9:$D$14='Resource Planning'!$B26)*(Sprint1NSvc='Resource Planning'!I$5)*('Consulting Services'!$F$9:$H$14))/Sprint1NLen)*I$9 -> 0 | J26: =(SUMIFS('Sprint 1-Sprint N'!$E$12:$E$24,'Sprint 1-Sprint N'!$C$12:$C$24,'Resource Planning'!$A26, 'Sprint 1-Sprint N'!$D$12:$D$24,'Resource Planning'!$B26)*'Sprint 1-Sprint N'!$D$6/'Sprint 1-Sprint N'!$D$4 + SUMPRODUCT(('Consulting Services'!$C$9:$C$14='Resource Planning'!$A26)*('Consulting Services'!$D$9:$D$14='Resource Planning'!$B26)*(Sprint1NSvc='Resource Planning'!J$5)*('Consulting Services'!$F$9:$H$14))/Sprint1NLen)*J$9 -> 0 | K26: =SUM(L26:N26)/'Calculations Page'!$C$7 -> 0 | L26: =(SUMIFS('Sprint-Z Hardening'!$E$12:$E$22,'Sprint-Z Hardening'!$C$12:$C$22,'Resource Planning'!$A26, 'Sprint-Z Hardening'!$D$12:$D$22,'Resource Planning'!$B26)*'Sprint-Z Hardening'!$D$6/'Sprint-Z Hardening'!$D$4 + SUMIFS('Consulting Services'!$I$9:$I$14,'Consulting Services'!$C$9:$C$14,'Resource Planning'!$A26,'Consulting Services'!$D$9:$D$14,'Resource Planning'!$B26)/SprintZLen)*L$9 -> 0 | M26: =(SUMIFS('Sprint-Z Hardening'!$E$12:$E$22,'Sprint-Z Hardening'!$C$12:$C$22,'Resource Planning'!$A26, 'Sprint-Z Hardening'!$D$12:$D$22,'Resource Planning'!$B26)*'Sprint-Z Hardening'!$D$6/'Sprint-Z Hardening'!$D$4 + SUMIFS('Consulting Services'!$I$9:$I$14,'Consulting Services'!$C$9:$C$14,'Resource Planning'!$A26,'Consulting Services'!$D$9:$D$14,'Resource Planning'!$B26)/SprintZLen)*M$9 -> 0 | N26: =(SUMIFS('Sprint-Z Hardening'!$E$12:$E$22,'Sprint-Z Hardening'!$C$12:$C$22,'Resource Planning'!$A26, 'Sprint-Z Hardening'!$D$12:$D$22,'Resource Planning'!$B26)*'Sprint-Z Hardening'!$D$6/'Sprint-Z Hardening'!$D$4 + SUMIFS('Consulting Services'!$I$9:$I$14,'Consulting Services'!$C$9:$C$14,'Resource Planning'!$A26,'Consulting Services'!$D$9:$D$14,'Resource Planning'!$B26)/SprintZLen)*N$9 -> 0 | O26: 0 | P26: Hide
A27: Pega | B27: System Architect | C27: =SUM(D27:F27)/'Calculations Page'!$C$5 -> 0 | D27: =(SUMIFS('Sprint-Prepare'!$E$12:$E$23,'Sprint-Prepare'!$C$12:$C$23,'Resource Planning'!$A27, 'Sprint-Prepare'!$D$12:$D$23,'Resource Planning'!$B27)*'Sprint-Prepare'!$D$6/'Sprint-Prepare'!$D$4+ SUMIFS('Consulting Services'!$E$9:$E$14,'Consulting Services'!$C$9:$C$14,'Resource Planning'!$A27,'Consulting Services'!$D$9:$D$14,'Resource Planning'!$B27)/Sprint0Len)*D$9 -> 0 | E27: =(SUMIFS('Sprint-Prepare'!$E$12:$E$23,'Sprint-Prepare'!$C$12:$C$23,'Resource Planning'!$A27, 'Sprint-Prepare'!$D$12:$D$23,'Resource Planning'!$B27)*'Sprint-Prepare'!$D$6/'Sprint-Prepare'!$D$4+ SUMIFS('Consulting Services'!$E$9:$E$14,'Consulting Services'!$C$9:$C$14,'Resource Planning'!$A27,'Consulting Services'!$D$9:$D$14,'Resource Planning'!$B27)/Sprint0Len)*E$9 -> 0 | F27: =(SUMIFS('Sprint-Prepare'!$E$12:$E$23,'Sprint-Prepare'!$C$12:$C$23,'Resource Planning'!$A27, 'Sprint-Prepare'!$D$12:$D$23,'Resource Planning'!$B27)*'Sprint-Prepare'!$D$6/'Sprint-Prepare'!$D$4+ SUMIFS('Consulting Services'!$E$9:$E$14,'Consulting Services'!$C$9:$C$14,'Resource Planning'!$A27,'Consulting Services'!$D$9:$D$14,'Resource Planning'!$B27)/Sprint0Len)*F$9 -> 0 | G27: =IFERROR(SUM(H27:J27)/'Calculations Page'!$C$6,0) -> 0 | H27: =(SUMIFS('Sprint 1-Sprint N'!$E$12:$E$24,'Sprint 1-Sprint N'!$C$12:$C$24,'Resource Planning'!$A27, 'Sprint 1-Sprint N'!$D$12:$D$24,'Resource Planning'!$B27)*'Sprint 1-Sprint N'!$D$6/'Sprint 1-Sprint N'!$D$4 + SUMPRODUCT(('Consulting Services'!$C$9:$C$14='Resource Planning'!$A27)*('Consulting Services'!$D$9:$D$14='Resource Planning'!$B27)*(Sprint1NSvc='Resource Planning'!H$5)*('Consulting Services'!$F$9:$H$14))/Sprint1NLen)*H$9 -> 0 | I27: =(SUMIFS('Sprint 1-Sprint N'!$E$12:$E$24,'Sprint 1-Sprint N'!$C$12:$C$24,'Resource Planning'!$A27, 'Sprint 1-Sprint N'!$D$12:$D$24,'Resource Planning'!$B27)*'Sprint 1-Sprint N'!$D$6/'Sprint 1-Sprint N'!$D$4 + SUMPRODUCT(('Consulting Services'!$C$9:$C$14='Resource Planning'!$A27)*('Consulting Services'!$D$9:$D$14='Resource Planning'!$B27)*(Sprint1NSvc='Resource Planning'!I$5)*('Consulting Services'!$F$9:$H$14))/Sprint1NLen)*I$9 -> 0 | J27: =(SUMIFS('Sprint 1-Sprint N'!$E$12:$E$24,'Sprint 1-Sprint N'!$C$12:$C$24,'Resource Planning'!$A27, 'Sprint 1-Sprint N'!$D$12:$D$24,'Resource Planning'!$B27)*'Sprint 1-Sprint N'!$D$6/'Sprint 1-Sprint N'!$D$4 + SUMPRODUCT(('Consulting Services'!$C$9:$C$14='Resource Planning'!$A27)*('Consulting Services'!$D$9:$D$14='Resource Planning'!$B27)*(Sprint1NSvc='Resource Planning'!J$5)*('Consulting Services'!$F$9:$H$14))/Sprint1NLen)*J$9 -> 0 | K27: =SUM(L27:N27)/'Calculations Page'!$C$7 -> 0 | L27: =(SUMIFS('Sprint-Z Hardening'!$E$12:$E$22,'Sprint-Z Hardening'!$C$12:$C$22,'Resource Planning'!$A27, 'Sprint-Z Hardening'!$D$12:$D$22,'Resource Planning'!$B27)*'Sprint-Z Hardening'!$D$6/'Sprint-Z Hardening'!$D$4 + SUMIFS('Consulting Services'!$I$9:$I$14,'Consulting Services'!$C$9:$C$14,'Resource Planning'!$A27,'Consulting Services'!$D$9:$D$14,'Resource Planning'!$B27)/SprintZLen)*L$9 -> 0 | M27: =(SUMIFS('Sprint-Z Hardening'!$E$12:$E$22,'Sprint-Z Hardening'!$C$12:$C$22,'Resource Planning'!$A27, 'Sprint-Z Hardening'!$D$12:$D$22,'Resource Planning'!$B27)*'Sprint-Z Hardening'!$D$6/'Sprint-Z Hardening'!$D$4 + SUMIFS('Consulting Services'!$I$9:$I$14,'Consulting Services'!$C$9:$C$14,'Resource Planning'!$A27,'Consulting Services'!$D$9:$D$14,'Resource Planning'!$B27)/SprintZLen)*M$9 -> 0 | N27: =(SUMIFS('Sprint-Z Hardening'!$E$12:$E$22,'Sprint-Z Hardening'!$C$12:$C$22,'Resource Planning'!$A27, 'Sprint-Z Hardening'!$D$12:$D$22,'Resource Planning'!$B27)*'Sprint-Z Hardening'!$D$6/'Sprint-Z Hardening'!$D$4 + SUMIFS('Consulting Services'!$I$9:$I$14,'Consulting Services'!$C$9:$C$14,'Resource Planning'!$A27,'Consulting Services'!$D$9:$D$14,'Resource Planning'!$B27)/SprintZLen)*N$9 -> 0 | O27: 0 | P27: Hide
A28: Pega | B28: Deployment Architect | C28: =SUM(D28:F28)/'Calculations Page'!$C$5 -> 0 | D28: =(SUMIFS('Sprint-Prepare'!$E$12:$E$23,'Sprint-Prepare'!$C$12:$C$23,'Resource Planning'!$A28, 'Sprint-Prepare'!$D$12:$D$23,'Resource Planning'!$B28)*'Sprint-Prepare'!$D$6/'Sprint-Prepare'!$D$4+ SUMIFS('Consulting Services'!$E$9:$E$14,'Consulting Services'!$C$9:$C$14,'Resource Planning'!$A28,'Consulting Services'!$D$9:$D$14,'Resource Planning'!$B28)/Sprint0Len)*D$9 -> 0 | E28: =(SUMIFS('Sprint-Prepare'!$E$12:$E$23,'Sprint-Prepare'!$C$12:$C$23,'Resource Planning'!$A28, 'Sprint-Prepare'!$D$12:$D$23,'Resource Planning'!$B28)*'Sprint-Prepare'!$D$6/'Sprint-Prepare'!$D$4+ SUMIFS('Consulting Services'!$E$9:$E$14,'Consulting Services'!$C$9:$C$14,'Resource Planning'!$A28,'Consulting Services'!$D$9:$D$14,'Resource Planning'!$B28)/Sprint0Len)*E$9 -> 0 | F28: =(SUMIFS('Sprint-Prepare'!$E$12:$E$23,'Sprint-Prepare'!$C$12:$C$23,'Resource Planning'!$A28, 'Sprint-Prepare'!$D$12:$D$23,'Resource Planning'!$B28)*'Sprint-Prepare'!$D$6/'Sprint-Prepare'!$D$4+ SUMIFS('Consulting Services'!$E$9:$E$14,'Consulting Services'!$C$9:$C$14,'Resource Planning'!$A28,'Consulting Services'!$D$9:$D$14,'Resource Planning'!$B28)/Sprint0Len)*F$9 -> 0 | G28: =IFERROR(SUM(H28:J28)/'Calculations Page'!$C$6,0) -> 0 | H28: =(SUMIFS('Sprint 1-Sprint N'!$E$12:$E$24,'Sprint 1-Sprint N'!$C$12:$C$24,'Resource Planning'!$A28, 'Sprint 1-Sprint N'!$D$12:$D$24,'Resource Planning'!$B28)*'Sprint 1-Sprint N'!$D$6/'Sprint 1-Sprint N'!$D$4 + SUMPRODUCT(('Consulting Services'!$C$9:$C$14='Resource Planning'!$A28)*('Consulting Services'!$D$9:$D$14='Resource Planning'!$B28)*(Sprint1NSvc='Resource Planning'!H$5)*('Consulting Services'!$F$9:$H$14))/Sprint1NLen)*H$9 -> 0 | I28: =(SUMIFS('Sprint 1-Sprint N'!$E$12:$E$24,'Sprint 1-Sprint N'!$C$12:$C$24,'Resource Planning'!$A28, 'Sprint 1-Sprint N'!$D$12:$D$24,'Resource Planning'!$B28)*'Sprint 1-Sprint N'!$D$6/'Sprint 1-Sprint N'!$D$4 + SUMPRODUCT(('Consulting Services'!$C$9:$C$14='Resource Planning'!$A28)*('Consulting Services'!$D$9:$D$14='Resource Planning'!$B28)*(Sprint1NSvc='Resource Planning'!I$5)*('Consulting Services'!$F$9:$H$14))/Sprint1NLen)*I$9 -> 0 | J28: =(SUMIFS('Sprint 1-Sprint N'!$E$12:$E$24,'Sprint 1-Sprint N'!$C$12:$C$24,'Resource Planning'!$A28, 'Sprint 1-Sprint N'!$D$12:$D$24,'Resource Planning'!$B28)*'Sprint 1-Sprint N'!$D$6/'Sprint 1-Sprint N'!$D$4 + SUMPRODUCT(('Consulting Services'!$C$9:$C$14='Resource Planning'!$A28)*('Consulting Services'!$D$9:$D$14='Resource Planning'!$B28)*(Sprint1NSvc='Resource Planning'!J$5)*('Consulting Services'!$F$9:$H$14))/Sprint1NLen)*J$9 -> 0 | K28: =SUM(L28:N28)/'Calculations Page'!$C$7 -> 0 | L28: =(SUMIFS('Sprint-Z Hardening'!$E$12:$E$22,'Sprint-Z Hardening'!$C$12:$C$22,'Resource Planning'!$A28, 'Sprint-Z Hardening'!$D$12:$D$22,'Resource Planning'!$B28)*'Sprint-Z Hardening'!$D$6/'Sprint-Z Hardening'!$D$4 + SUMIFS('Consulting Services'!$I$9:$I$14,'Consulting Services'!$C$9:$C$14,'Resource Planning'!$A28,'Consulting Services'!$D$9:$D$14,'Resource Planning'!$B28)/SprintZLen)*L$9 -> 0 | M28: =(SUMIFS('Sprint-Z Hardening'!$E$12:$E$22,'Sprint-Z Hardening'!$C$12:$C$22,'Resource Planning'!$A28, 'Sprint-Z Hardening'!$D$12:$D$22,'Resource Planning'!$B28)*'Sprint-Z Hardening'!$D$6/'Sprint-Z Hardening'!$D$4 + SUMIFS('Consulting Services'!$I$9:$I$14,'Consulting Services'!$C$9:$C$14,'Resource Planning'!$A28,'Consulting Services'!$D$9:$D$14,'Resource Planning'!$B28)/SprintZLen)*M$9 -> 0 | N28: =(SUMIFS('Sprint-Z Hardening'!$E$12:$E$22,'Sprint-Z Hardening'!$C$12:$C$22,'Resource Planning'!$A28, 'Sprint-Z Hardening'!$D$12:$D$22,'Resource Planning'!$B28)*'Sprint-Z Hardening'!$D$6/'Sprint-Z Hardening'!$D$4 + SUMIFS('Consulting Services'!$I$9:$I$14,'Consulting Services'!$C$9:$C$14,'Resource Planning'!$A28,'Consulting Services'!$D$9:$D$14,'Resource Planning'!$B28)/SprintZLen)*N$9 -> 0 | O28: 0 | P28: Hide
A29: Pega | B29: Associate System Architect | C29: =SUM(D29:F29)/'Calculations Page'!$C$5 -> 0 | D29: =(SUMIFS('Sprint-Prepare'!$E$12:$E$23,'Sprint-Prepare'!$C$12:$C$23,'Resource Planning'!$A29, 'Sprint-Prepare'!$D$12:$D$23,'Resource Planning'!$B29)*'Sprint-Prepare'!$D$6/'Sprint-Prepare'!$D$4+ SUMIFS('Consulting Services'!$E$9:$E$14,'Consulting Services'!$C$9:$C$14,'Resource Planning'!$A29,'Consulting Services'!$D$9:$D$14,'Resource Planning'!$B29)/Sprint0Len)*D$9 -> 0 | E29: =(SUMIFS('Sprint-Prepare'!$E$12:$E$23,'Sprint-Prepare'!$C$12:$C$23,'Resource Planning'!$A29, 'Sprint-Prepare'!$D$12:$D$23,'Resource Planning'!$B29)*'Sprint-Prepare'!$D$6/'Sprint-Prepare'!$D$4+ SUMIFS('Consulting Services'!$E$9:$E$14,'Consulting Services'!$C$9:$C$14,'Resource Planning'!$A29,'Consulting Services'!$D$9:$D$14,'Resource Planning'!$B29)/Sprint0Len)*E$9 -> 0 | F29: =(SUMIFS('Sprint-Prepare'!$E$12:$E$23,'Sprint-Prepare'!$C$12:$C$23,'Resource Planning'!$A29, 'Sprint-Prepare'!$D$12:$D$23,'Resource Planning'!$B29)*'Sprint-Prepare'!$D$6/'Sprint-Prepare'!$D$4+ SUMIFS('Consulting Services'!$E$9:$E$14,'Consulting Services'!$C$9:$C$14,'Resource Planning'!$A29,'Consulting Services'!$D$9:$D$14,'Resource Planning'!$B29)/Sprint0Len)*F$9 -> 0 | G29: =IFERROR(SUM(H29:J29)/'Calculations Page'!$C$6,0) -> 0 | H29: =(SUMIFS('Sprint 1-Sprint N'!$E$12:$E$24,'Sprint 1-Sprint N'!$C$12:$C$24,'Resource Planning'!$A29, 'Sprint 1-Sprint N'!$D$12:$D$24,'Resource Planning'!$B29)*'Sprint 1-Sprint N'!$D$6/'Sprint 1-Sprint N'!$D$4 + SUMPRODUCT(('Consulting Services'!$C$9:$C$14='Resource Planning'!$A29)*('Consulting Services'!$D$9:$D$14='Resource Planning'!$B29)*(Sprint1NSvc='Resource Planning'!H$5)*('Consulting Services'!$F$9:$H$14))/Sprint1NLen)*H$9 -> 0 | I29: =(SUMIFS('Sprint 1-Sprint N'!$E$12:$E$24,'Sprint 1-Sprint N'!$C$12:$C$24,'Resource Planning'!$A29, 'Sprint 1-Sprint N'!$D$12:$D$24,'Resource Planning'!$B29)*'Sprint 1-Sprint N'!$D$6/'Sprint 1-Sprint N'!$D$4 + SUMPRODUCT(('Consulting Services'!$C$9:$C$14='Resource Planning'!$A29)*('Consulting Services'!$D$9:$D$14='Resource Planning'!$B29)*(Sprint1NSvc='Resource Planning'!I$5)*('Consulting Services'!$F$9:$H$14))/Sprint1NLen)*I$9 -> 0 | J29: =(SUMIFS('Sprint 1-Sprint N'!$E$12:$E$24,'Sprint 1-Sprint N'!$C$12:$C$24,'Resource Planning'!$A29, 'Sprint 1-Sprint N'!$D$12:$D$24,'Resource Planning'!$B29)*'Sprint 1-Sprint N'!$D$6/'Sprint 1-Sprint N'!$D$4 + SUMPRODUCT(('Consulting Services'!$C$9:$C$14='Resource Planning'!$A29)*('Consulting Services'!$D$9:$D$14='Resource Planning'!$B29)*(Sprint1NSvc='Resource Planning'!J$5)*('Consulting Services'!$F$9:$H$14))/Sprint1NLen)*J$9 -> 0 | K29: =SUM(L29:N29)/'Calculations Page'!$C$7 -> 0 | L29: =(SUMIFS('Sprint-Z Hardening'!$E$12:$E$22,'Sprint-Z Hardening'!$C$12:$C$22,'Resource Planning'!$A29, 'Sprint-Z Hardening'!$D$12:$D$22,'Resource Planning'!$B29)*'Sprint-Z Hardening'!$D$6/'Sprint-Z Hardening'!$D$4 + SUMIFS('Consulting Services'!$I$9:$I$14,'Consulting Services'!$C$9:$C$14,'Resource Planning'!$A29,'Consulting Services'!$D$9:$D$14,'Resource Planning'!$B29)/SprintZLen)*L$9 -> 0 | M29: =(SUMIFS('Sprint-Z Hardening'!$E$12:$E$22,'Sprint-Z Hardening'!$C$12:$C$22,'Resource Planning'!$A29, 'Sprint-Z Hardening'!$D$12:$D$22,'Resource Planning'!$B29)*'Sprint-Z Hardening'!$D$6/'Sprint-Z Hardening'!$D$4 + SUMIFS('Consulting Services'!$I$9:$I$14,'Consulting Services'!$C$9:$C$14,'Resource Planning'!$A29,'Consulting Services'!$D$9:$D$14,'Resource Planning'!$B29)/SprintZLen)*M$9 -> 0 | N29: =(SUMIFS('Sprint-Z Hardening'!$E$12:$E$22,'Sprint-Z Hardening'!$C$12:$C$22,'Resource Planning'!$A29, 'Sprint-Z Hardening'!$D$12:$D$22,'Resource Planning'!$B29)*'Sprint-Z Hardening'!$D$6/'Sprint-Z Hardening'!$D$4 + SUMIFS('Consulting Services'!$I$9:$I$14,'Consulting Services'!$C$9:$C$14,'Resource Planning'!$A29,'Consulting Services'!$D$9:$D$14,'Resource Planning'!$B29)/SprintZLen)*N$9 -> 0 | O29: 0 | P29: Hide
A30: Partner | B30: Practice Leader | C30: =SUM(D30:F30)/'Calculations Page'!$C$5 -> 0 | D30: =(SUMIFS('Sprint-Prepare'!$E$12:$E$23,'Sprint-Prepare'!$C$12:$C$23,'Resource Planning'!$A30, 'Sprint-Prepare'!$D$12:$D$23,'Resource Planning'!$B30)*'Sprint-Prepare'!$D$6/'Sprint-Prepare'!$D$4+ SUMIFS('Consulting Services'!$E$9:$E$14,'Consulting Services'!$C$9:$C$14,'Resource Planning'!$A30,'Consulting Services'!$D$9:$D$14,'Resource Planning'!$B30)/Sprint0Len)*D$9 -> 0 | E30: =(SUMIFS('Sprint-Prepare'!$E$12:$E$23,'Sprint-Prepare'!$C$12:$C$23,'Resource Planning'!$A30, 'Sprint-Prepare'!$D$12:$D$23,'Resource Planning'!$B30)*'Sprint-Prepare'!$D$6/'Sprint-Prepare'!$D$4+ SUMIFS('Consulting Services'!$E$9:$E$14,'Consulting Services'!$C$9:$C$14,'Resource Planning'!$A30,'Consulting Services'!$D$9:$D$14,'Resource Planning'!$B30)/Sprint0Len)*E$9 -> 0 | F30: =(SUMIFS('Sprint-Prepare'!$E$12:$E$23,'Sprint-Prepare'!$C$12:$C$23,'Resource Planning'!$A30, 'Sprint-Prepare'!$D$12:$D$23,'Resource Planning'!$B30)*'Sprint-Prepare'!$D$6/'Sprint-Prepare'!$D$4+ SUMIFS('Consulting Services'!$E$9:$E$14,'Consulting Services'!$C$9:$C$14,'Resource Planning'!$A30,'Consulting Services'!$D$9:$D$14,'Resource Planning'!$B30)/Sprint0Len)*F$9 -> 0 | G30: =IFERROR(SUM(H30:J30)/'Calculations Page'!$C$6,0) -> 0 | H30: =(SUMIFS('Sprint 1-Sprint N'!$E$12:$E$24,'Sprint 1-Sprint N'!$C$12:$C$24,'Resource Planning'!$A30, 'Sprint 1-Sprint N'!$D$12:$D$24,'Resource Planning'!$B30)*'Sprint 1-Sprint N'!$D$6/'Sprint 1-Sprint N'!$D$4 + SUMPRODUCT(('Consulting Services'!$C$9:$C$14='Resource Planning'!$A30)*('Consulting Services'!$D$9:$D$14='Resource Planning'!$B30)*(Sprint1NSvc='Resource Planning'!H$5)*('Consulting Services'!$F$9:$H$14))/Sprint1NLen)*H$9 -> 0 | I30: =(SUMIFS('Sprint 1-Sprint N'!$E$12:$E$24,'Sprint 1-Sprint N'!$C$12:$C$24,'Resource Planning'!$A30, 'Sprint 1-Sprint N'!$D$12:$D$24,'Resource Planning'!$B30)*'Sprint 1-Sprint N'!$D$6/'Sprint 1-Sprint N'!$D$4 + SUMPRODUCT(('Consulting Services'!$C$9:$C$14='Resource Planning'!$A30)*('Consulting Services'!$D$9:$D$14='Resource Planning'!$B30)*(Sprint1NSvc='Resource Planning'!I$5)*('Consulting Services'!$F$9:$H$14))/Sprint1NLen)*I$9 -> 0 | J30: =(SUMIFS('Sprint 1-Sprint N'!$E$12:$E$24,'Sprint 1-Sprint N'!$C$12:$C$24,'Resource Planning'!$A30, 'Sprint 1-Sprint N'!$D$12:$D$24,'Resource Planning'!$B30)*'Sprint 1-Sprint N'!$D$6/'Sprint 1-Sprint N'!$D$4 + SUMPRODUCT(('Consulting Services'!$C$9:$C$14='Resource Planning'!$A30)*('Consulting Services'!$D$9:$D$14='Resource Planning'!$B30)*(Sprint1NSvc='Resource Planning'!J$5)*('Consulting Services'!$F$9:$H$14))/Sprint1NLen)*J$9 -> 0 | K30: =SUM(L30:N30)/'Calculations Page'!$C$7 -> 0 | L30: =(SUMIFS('Sprint-Z Hardening'!$E$12:$E$22,'Sprint-Z Hardening'!$C$12:$C$22,'Resource Planning'!$A30, 'Sprint-Z Hardening'!$D$12:$D$22,'Resource Planning'!$B30)*'Sprint-Z Hardening'!$D$6/'Sprint-Z Hardening'!$D$4 + SUMIFS('Consulting Services'!$I$9:$I$14,'Consulting Services'!$C$9:$C$14,'Resource Planning'!$A30,'Consulting Services'!$D$9:$D$14,'Resource Planning'!$B30)/SprintZLen)*L$9 -> 0 | M30: =(SUMIFS('Sprint-Z Hardening'!$E$12:$E$22,'Sprint-Z Hardening'!$C$12:$C$22,'Resource Planning'!$A30, 'Sprint-Z Hardening'!$D$12:$D$22,'Resource Planning'!$B30)*'Sprint-Z Hardening'!$D$6/'Sprint-Z Hardening'!$D$4 + SUMIFS('Consulting Services'!$I$9:$I$14,'Consulting Services'!$C$9:$C$14,'Resource Planning'!$A30,'Consulting Services'!$D$9:$D$14,'Resource Planning'!$B30)/SprintZLen)*M$9 -> 0 | N30: =(SUMIFS('Sprint-Z Hardening'!$E$12:$E$22,'Sprint-Z Hardening'!$C$12:$C$22,'Resource Planning'!$A30, 'Sprint-Z Hardening'!$D$12:$D$22,'Resource Planning'!$B30)*'Sprint-Z Hardening'!$D$6/'Sprint-Z Hardening'!$D$4 + SUMIFS('Consulting Services'!$I$9:$I$14,'Consulting Services'!$C$9:$C$14,'Resource Planning'!$A30,'Consulting Services'!$D$9:$D$14,'Resource Planning'!$B30)/SprintZLen)*N$9 -> 0 | O30: 0 | P30: Hide
A31: Partner | B31: Project Delivery Leader | C31: =SUM(D31:F31)/'Calculations Page'!$C$5 -> 0 | D31: =(SUMIFS('Sprint-Prepare'!$E$12:$E$23,'Sprint-Prepare'!$C$12:$C$23,'Resource Planning'!$A31, 'Sprint-Prepare'!$D$12:$D$23,'Resource Planning'!$B31)*'Sprint-Prepare'!$D$6/'Sprint-Prepare'!$D$4+ SUMIFS('Consulting Services'!$E$9:$E$14,'Consulting Services'!$C$9:$C$14,'Resource Planning'!$A31,'Consulting Services'!$D$9:$D$14,'Resource Planning'!$B31)/Sprint0Len)*D$9 -> 0 | E31: =(SUMIFS('Sprint-Prepare'!$E$12:$E$23,'Sprint-Prepare'!$C$12:$C$23,'Resource Planning'!$A31, 'Sprint-Prepare'!$D$12:$D$23,'Resource Planning'!$B31)*'Sprint-Prepare'!$D$6/'Sprint-Prepare'!$D$4+ SUMIFS('Consulting Services'!$E$9:$E$14,'Consulting Services'!$C$9:$C$14,'Resource Planning'!$A31,'Consulting Services'!$D$9:$D$14,'Resource Planning'!$B31)/Sprint0Len)*E$9 -> 0 | F31: =(SUMIFS('Sprint-Prepare'!$E$12:$E$23,'Sprint-Prepare'!$C$12:$C$23,'Resource Planning'!$A31, 'Sprint-Prepare'!$D$12:$D$23,'Resource Planning'!$B31)*'Sprint-Prepare'!$D$6/'Sprint-Prepare'!$D$4+ SUMIFS('Consulting Services'!$E$9:$E$14,'Consulting Services'!$C$9:$C$14,'Resource Planning'!$A31,'Consulting Services'!$D$9:$D$14,'Resource Planning'!$B31)/Sprint0Len)*F$9 -> 0 | G31: =IFERROR(SUM(H31:J31)/'Calculations Page'!$C$6,0) -> 0 | H31: =(SUMIFS('Sprint 1-Sprint N'!$E$12:$E$24,'Sprint 1-Sprint N'!$C$12:$C$24,'Resource Planning'!$A31, 'Sprint 1-Sprint N'!$D$12:$D$24,'Resource Planning'!$B31)*'Sprint 1-Sprint N'!$D$6/'Sprint 1-Sprint N'!$D$4 + SUMPRODUCT(('Consulting Services'!$C$9:$C$14='Resource Planning'!$A31)*('Consulting Services'!$D$9:$D$14='Resource Planning'!$B31)*(Sprint1NSvc='Resource Planning'!H$5)*('Consulting Services'!$F$9:$H$14))/Sprint1NLen)*H$9 -> 0 | I31: =(SUMIFS('Sprint 1-Sprint N'!$E$12:$E$24,'Sprint 1-Sprint N'!$C$12:$C$24,'Resource Planning'!$A31, 'Sprint 1-Sprint N'!$D$12:$D$24,'Resource Planning'!$B31)*'Sprint 1-Sprint N'!$D$6/'Sprint 1-Sprint N'!$D$4 + SUMPRODUCT(('Consulting Services'!$C$9:$C$14='Resource Planning'!$A31)*('Consulting Services'!$D$9:$D$14='Resource Planning'!$B31)*(Sprint1NSvc='Resource Planning'!I$5)*('Consulting Services'!$F$9:$H$14))/Sprint1NLen)*I$9 -> 0 | J31: =(SUMIFS('Sprint 1-Sprint N'!$E$12:$E$24,'Sprint 1-Sprint N'!$C$12:$C$24,'Resource Planning'!$A31, 'Sprint 1-Sprint N'!$D$12:$D$24,'Resource Planning'!$B31)*'Sprint 1-Sprint N'!$D$6/'Sprint 1-Sprint N'!$D$4 + SUMPRODUCT(('Consulting Services'!$C$9:$C$14='Resource Planning'!$A31)*('Consulting Services'!$D$9:$D$14='Resource Planning'!$B31)*(Sprint1NSvc='Resource Planning'!J$5)*('Consulting Services'!$F$9:$H$14))/Sprint1NLen)*J$9 -> 0 | K31: =SUM(L31:N31)/'Calculations Page'!$C$7 -> 0 | L31: =(SUMIFS('Sprint-Z Hardening'!$E$12:$E$22,'Sprint-Z Hardening'!$C$12:$C$22,'Resource Planning'!$A31, 'Sprint-Z Hardening'!$D$12:$D$22,'Resource Planning'!$B31)*'Sprint-Z Hardening'!$D$6/'Sprint-Z Hardening'!$D$4 + SUMIFS('Consulting Services'!$I$9:$I$14,'Consulting Services'!$C$9:$C$14,'Resource Planning'!$A31,'Consulting Services'!$D$9:$D$14,'Resource Planning'!$B31)/SprintZLen)*L$9 -> 0 | M31: =(SUMIFS('Sprint-Z Hardening'!$E$12:$E$22,'Sprint-Z Hardening'!$C$12:$C$22,'Resource Planning'!$A31, 'Sprint-Z Hardening'!$D$12:$D$22,'Resource Planning'!$B31)*'Sprint-Z Hardening'!$D$6/'Sprint-Z Hardening'!$D$4 + SUMIFS('Consulting Services'!$I$9:$I$14,'Consulting Services'!$C$9:$C$14,'Resource Planning'!$A31,'Consulting Services'!$D$9:$D$14,'Resource Planning'!$B31)/SprintZLen)*M$9 -> 0 | N31: =(SUMIFS('Sprint-Z Hardening'!$E$12:$E$22,'Sprint-Z Hardening'!$C$12:$C$22,'Resource Planning'!$A31, 'Sprint-Z Hardening'!$D$12:$D$22,'Resource Planning'!$B31)*'Sprint-Z Hardening'!$D$6/'Sprint-Z Hardening'!$D$4 + SUMIFS('Consulting Services'!$I$9:$I$14,'Consulting Services'!$C$9:$C$14,'Resource Planning'!$A31,'Consulting Services'!$D$9:$D$14,'Resource Planning'!$B31)/SprintZLen)*N$9 -> 0 | O31: 0 | P31: Hide
A32: Partner | B32: (L/S) Business Architect | C32: =SUM(D32:F32)/'Calculations Page'!$C$5 -> 0 | D32: =(SUMIFS('Sprint-Prepare'!$E$12:$E$23,'Sprint-Prepare'!$C$12:$C$23,'Resource Planning'!$A32, 'Sprint-Prepare'!$D$12:$D$23,'Resource Planning'!$B32)*'Sprint-Prepare'!$D$6/'Sprint-Prepare'!$D$4+ SUMIFS('Consulting Services'!$E$9:$E$14,'Consulting Services'!$C$9:$C$14,'Resource Planning'!$A32,'Consulting Services'!$D$9:$D$14,'Resource Planning'!$B32)/Sprint0Len)*D$9 -> 0 | E32: =(SUMIFS('Sprint-Prepare'!$E$12:$E$23,'Sprint-Prepare'!$C$12:$C$23,'Resource Planning'!$A32, 'Sprint-Prepare'!$D$12:$D$23,'Resource Planning'!$B32)*'Sprint-Prepare'!$D$6/'Sprint-Prepare'!$D$4+ SUMIFS('Consulting Services'!$E$9:$E$14,'Consulting Services'!$C$9:$C$14,'Resource Planning'!$A32,'Consulting Services'!$D$9:$D$14,'Resource Planning'!$B32)/Sprint0Len)*E$9 -> 0 | F32: =(SUMIFS('Sprint-Prepare'!$E$12:$E$23,'Sprint-Prepare'!$C$12:$C$23,'Resource Planning'!$A32, 'Sprint-Prepare'!$D$12:$D$23,'Resource Planning'!$B32)*'Sprint-Prepare'!$D$6/'Sprint-Prepare'!$D$4+ SUMIFS('Consulting Services'!$E$9:$E$14,'Consulting Services'!$C$9:$C$14,'Resource Planning'!$A32,'Consulting Services'!$D$9:$D$14,'Resource Planning'!$B32)/Sprint0Len)*F$9 -> 0 | G32: =IFERROR(SUM(H32:J32)/'Calculations Page'!$C$6,0) -> 0 | H32: =(SUMIFS('Sprint 1-Sprint N'!$E$12:$E$24,'Sprint 1-Sprint N'!$C$12:$C$24,'Resource Planning'!$A32, 'Sprint 1-Sprint N'!$D$12:$D$24,'Resource Planning'!$B32)*'Sprint 1-Sprint N'!$D$6/'Sprint 1-Sprint N'!$D$4 + SUMPRODUCT(('Consulting Services'!$C$9:$C$14='Resource Planning'!$A32)*('Consulting Services'!$D$9:$D$14='Resource Planning'!$B32)*(Sprint1NSvc='Resource Planning'!H$5)*('Consulting Services'!$F$9:$H$14))/Sprint1NLen)*H$9 -> 0 | I32: =(SUMIFS('Sprint 1-Sprint N'!$E$12:$E$24,'Sprint 1-Sprint N'!$C$12:$C$24,'Resource Planning'!$A32, 'Sprint 1-Sprint N'!$D$12:$D$24,'Resource Planning'!$B32)*'Sprint 1-Sprint N'!$D$6/'Sprint 1-Sprint N'!$D$4 + SUMPRODUCT(('Consulting Services'!$C$9:$C$14='Resource Planning'!$A32)*('Consulting Services'!$D$9:$D$14='Resource Planning'!$B32)*(Sprint1NSvc='Resource Planning'!I$5)*('Consulting Services'!$F$9:$H$14))/Sprint1NLen)*I$9 -> 0 | J32: =(SUMIFS('Sprint 1-Sprint N'!$E$12:$E$24,'Sprint 1-Sprint N'!$C$12:$C$24,'Resource Planning'!$A32, 'Sprint 1-Sprint N'!$D$12:$D$24,'Resource Planning'!$B32)*'Sprint 1-Sprint N'!$D$6/'Sprint 1-Sprint N'!$D$4 + SUMPRODUCT(('Consulting Services'!$C$9:$C$14='Resource Planning'!$A32)*('Consulting Services'!$D$9:$D$14='Resource Planning'!$B32)*(Sprint1NSvc='Resource Planning'!J$5)*('Consulting Services'!$F$9:$H$14))/Sprint1NLen)*J$9 -> 0 | K32: =SUM(L32:N32)/'Calculations Page'!$C$7 -> 0 | L32: =(SUMIFS('Sprint-Z Hardening'!$E$12:$E$22,'Sprint-Z Hardening'!$C$12:$C$22,'Resource Planning'!$A32, 'Sprint-Z Hardening'!$D$12:$D$22,'Resource Planning'!$B32)*'Sprint-Z Hardening'!$D$6/'Sprint-Z Hardening'!$D$4 + SUMIFS('Consulting Services'!$I$9:$I$14,'Consulting Services'!$C$9:$C$14,'Resource Planning'!$A32,'Consulting Services'!$D$9:$D$14,'Resource Planning'!$B32)/SprintZLen)*L$9 -> 0 | M32: =(SUMIFS('Sprint-Z Hardening'!$E$12:$E$22,'Sprint-Z Hardening'!$C$12:$C$22,'Resource Planning'!$A32, 'Sprint-Z Hardening'!$D$12:$D$22,'Resource Planning'!$B32)*'Sprint-Z Hardening'!$D$6/'Sprint-Z Hardening'!$D$4 + SUMIFS('Consulting Services'!$I$9:$I$14,'Consulting Services'!$C$9:$C$14,'Resource Planning'!$A32,'Consulting Services'!$D$9:$D$14,'Resource Planning'!$B32)/SprintZLen)*M$9 -> 0 | N32: =(SUMIFS('Sprint-Z Hardening'!$E$12:$E$22,'Sprint-Z Hardening'!$C$12:$C$22,'Resource Planning'!$A32, 'Sprint-Z Hardening'!$D$12:$D$22,'Resource Planning'!$B32)*'Sprint-Z Hardening'!$D$6/'Sprint-Z Hardening'!$D$4 + SUMIFS('Consulting Services'!$I$9:$I$14,'Consulting Services'!$C$9:$C$14,'Resource Planning'!$A32,'Consulting Services'!$D$9:$D$14,'Resource Planning'!$B32)/SprintZLen)*N$9 -> 0 | O32: 0 | P32: Hide
A33: Partner | B33: Lead System Architect | C33: =SUM(D33:F33)/'Calculations Page'!$C$5 -> 0 | D33: =(SUMIFS('Sprint-Prepare'!$E$12:$E$23,'Sprint-Prepare'!$C$12:$C$23,'Resource Planning'!$A33, 'Sprint-Prepare'!$D$12:$D$23,'Resource Planning'!$B33)*'Sprint-Prepare'!$D$6/'Sprint-Prepare'!$D$4+ SUMIFS('Consulting Services'!$E$9:$E$14,'Consulting Services'!$C$9:$C$14,'Resource Planning'!$A33,'Consulting Services'!$D$9:$D$14,'Resource Planning'!$B33)/Sprint0Len)*D$9 -> 0 | E33: =(SUMIFS('Sprint-Prepare'!$E$12:$E$23,'Sprint-Prepare'!$C$12:$C$23,'Resource Planning'!$A33, 'Sprint-Prepare'!$D$12:$D$23,'Resource Planning'!$B33)*'Sprint-Prepare'!$D$6/'Sprint-Prepare'!$D$4+ SUMIFS('Consulting Services'!$E$9:$E$14,'Consulting Services'!$C$9:$C$14,'Resource Planning'!$A33,'Consulting Services'!$D$9:$D$14,'Resource Planning'!$B33)/Sprint0Len)*E$9 -> 0 | F33: =(SUMIFS('Sprint-Prepare'!$E$12:$E$23,'Sprint-Prepare'!$C$12:$C$23,'Resource Planning'!$A33, 'Sprint-Prepare'!$D$12:$D$23,'Resource Planning'!$B33)*'Sprint-Prepare'!$D$6/'Sprint-Prepare'!$D$4+ SUMIFS('Consulting Services'!$E$9:$E$14,'Consulting Services'!$C$9:$C$14,'Resource Planning'!$A33,'Consulting Services'!$D$9:$D$14,'Resource Planning'!$B33)/Sprint0Len)*F$9 -> 0 | G33: =IFERROR(SUM(H33:J33)/'Calculations Page'!$C$6,0) -> 0 | H33: =(SUMIFS('Sprint 1-Sprint N'!$E$12:$E$24,'Sprint 1-Sprint N'!$C$12:$C$24,'Resource Planning'!$A33, 'Sprint 1-Sprint N'!$D$12:$D$24,'Resource Planning'!$B33)*'Sprint 1-Sprint N'!$D$6/'Sprint 1-Sprint N'!$D$4 + SUMPRODUCT(('Consulting Services'!$C$9:$C$14='Resource Planning'!$A33)*('Consulting Services'!$D$9:$D$14='Resource Planning'!$B33)*(Sprint1NSvc='Resource Planning'!H$5)*('Consulting Services'!$F$9:$H$14))/Sprint1NLen)*H$9 -> 0 | I33: =(SUMIFS('Sprint 1-Sprint N'!$E$12:$E$24,'Sprint 1-Sprint N'!$C$12:$C$24,'Resource Planning'!$A33, 'Sprint 1-Sprint N'!$D$12:$D$24,'Resource Planning'!$B33)*'Sprint 1-Sprint N'!$D$6/'Sprint 1-Sprint N'!$D$4 + SUMPRODUCT(('Consulting Services'!$C$9:$C$14='Resource Planning'!$A33)*('Consulting Services'!$D$9:$D$14='Resource Planning'!$B33)*(Sprint1NSvc='Resource Planning'!I$5)*('Consulting Services'!$F$9:$H$14))/Sprint1NLen)*I$9 -> 0 | J33: =(SUMIFS('Sprint 1-Sprint N'!$E$12:$E$24,'Sprint 1-Sprint N'!$C$12:$C$24,'Resource Planning'!$A33, 'Sprint 1-Sprint N'!$D$12:$D$24,'Resource Planning'!$B33)*'Sprint 1-Sprint N'!$D$6/'Sprint 1-Sprint N'!$D$4 + SUMPRODUCT(('Consulting Services'!$C$9:$C$14='Resource Planning'!$A33)*('Consulting Services'!$D$9:$D$14='Resource Planning'!$B33)*(Sprint1NSvc='Resource Planning'!J$5)*('Consulting Services'!$F$9:$H$14))/Sprint1NLen)*J$9 -> 0 | K33: =SUM(L33:N33)/'Calculations Page'!$C$7 -> 0 | L33: =(SUMIFS('Sprint-Z Hardening'!$E$12:$E$22,'Sprint-Z Hardening'!$C$12:$C$22,'Resource Planning'!$A33, 'Sprint-Z Hardening'!$D$12:$D$22,'Resource Planning'!$B33)*'Sprint-Z Hardening'!$D$6/'Sprint-Z Hardening'!$D$4 + SUMIFS('Consulting Services'!$I$9:$I$14,'Consulting Services'!$C$9:$C$14,'Resource Planning'!$A33,'Consulting Services'!$D$9:$D$14,'Resource Planning'!$B33)/SprintZLen)*L$9 -> 0 | M33: =(SUMIFS('Sprint-Z Hardening'!$E$12:$E$22,'Sprint-Z Hardening'!$C$12:$C$22,'Resource Planning'!$A33, 'Sprint-Z Hardening'!$D$12:$D$22,'Resource Planning'!$B33)*'Sprint-Z Hardening'!$D$6/'Sprint-Z Hardening'!$D$4 + SUMIFS('Consulting Services'!$I$9:$I$14,'Consulting Services'!$C$9:$C$14,'Resource Planning'!$A33,'Consulting Services'!$D$9:$D$14,'Resource Planning'!$B33)/SprintZLen)*M$9 -> 0 | N33: =(SUMIFS('Sprint-Z Hardening'!$E$12:$E$22,'Sprint-Z Hardening'!$C$12:$C$22,'Resource Planning'!$A33, 'Sprint-Z Hardening'!$D$12:$D$22,'Resource Planning'!$B33)*'Sprint-Z Hardening'!$D$6/'Sprint-Z Hardening'!$D$4 + SUMIFS('Consulting Services'!$I$9:$I$14,'Consulting Services'!$C$9:$C$14,'Resource Planning'!$A33,'Consulting Services'!$D$9:$D$14,'Resource Planning'!$B33)/SprintZLen)*N$9 -> 0 | O33: 0 | P33: Hide
A34: Partner | B34: (Sr) System Architect | C34: =SUM(D34:F34)/'Calculations Page'!$C$5 -> 0 | D34: =(SUMIFS('Sprint-Prepare'!$E$12:$E$23,'Sprint-Prepare'!$C$12:$C$23,'Resource Planning'!$A34, 'Sprint-Prepare'!$D$12:$D$23,'Resource Planning'!$B34)*'Sprint-Prepare'!$D$6/'Sprint-Prepare'!$D$4+ SUMIFS('Consulting Services'!$E$9:$E$14,'Consulting Services'!$C$9:$C$14,'Resource Planning'!$A34,'Consulting Services'!$D$9:$D$14,'Resource Planning'!$B34)/Sprint0Len)*D$9 -> 0 | E34: =(SUMIFS('Sprint-Prepare'!$E$12:$E$23,'Sprint-Prepare'!$C$12:$C$23,'Resource Planning'!$A34, 'Sprint-Prepare'!$D$12:$D$23,'Resource Planning'!$B34)*'Sprint-Prepare'!$D$6/'Sprint-Prepare'!$D$4+ SUMIFS('Consulting Services'!$E$9:$E$14,'Consulting Services'!$C$9:$C$14,'Resource Planning'!$A34,'Consulting Services'!$D$9:$D$14,'Resource Planning'!$B34)/Sprint0Len)*E$9 -> 0 | F34: =(SUMIFS('Sprint-Prepare'!$E$12:$E$23,'Sprint-Prepare'!$C$12:$C$23,'Resource Planning'!$A34, 'Sprint-Prepare'!$D$12:$D$23,'Resource Planning'!$B34)*'Sprint-Prepare'!$D$6/'Sprint-Prepare'!$D$4+ SUMIFS('Consulting Services'!$E$9:$E$14,'Consulting Services'!$C$9:$C$14,'Resource Planning'!$A34,'Consulting Services'!$D$9:$D$14,'Resource Planning'!$B34)/Sprint0Len)*F$9 -> 0 | G34: =IFERROR(SUM(H34:J34)/'Calculations Page'!$C$6,0) -> 0 | H34: =(SUMIFS('Sprint 1-Sprint N'!$E$12:$E$24,'Sprint 1-Sprint N'!$C$12:$C$24,'Resource Planning'!$A34, 'Sprint 1-Sprint N'!$D$12:$D$24,'Resource Planning'!$B34)*'Sprint 1-Sprint N'!$D$6/'Sprint 1-Sprint N'!$D$4 + SUMPRODUCT(('Consulting Services'!$C$9:$C$14='Resource Planning'!$A34)*('Consulting Services'!$D$9:$D$14='Resource Planning'!$B34)*(Sprint1NSvc='Resource Planning'!H$5)*('Consulting Services'!$F$9:$H$14))/Sprint1NLen)*H$9 -> 0 | I34: =(SUMIFS('Sprint 1-Sprint N'!$E$12:$E$24,'Sprint 1-Sprint N'!$C$12:$C$24,'Resource Planning'!$A34, 'Sprint 1-Sprint N'!$D$12:$D$24,'Resource Planning'!$B34)*'Sprint 1-Sprint N'!$D$6/'Sprint 1-Sprint N'!$D$4 + SUMPRODUCT(('Consulting Services'!$C$9:$C$14='Resource Planning'!$A34)*('Consulting Services'!$D$9:$D$14='Resource Planning'!$B34)*(Sprint1NSvc='Resource Planning'!I$5)*('Consulting Services'!$F$9:$H$14))/Sprint1NLen)*I$9 -> 0 | J34: =(SUMIFS('Sprint 1-Sprint N'!$E$12:$E$24,'Sprint 1-Sprint N'!$C$12:$C$24,'Resource Planning'!$A34, 'Sprint 1-Sprint N'!$D$12:$D$24,'Resource Planning'!$B34)*'Sprint 1-Sprint N'!$D$6/'Sprint 1-Sprint N'!$D$4 + SUMPRODUCT(('Consulting Services'!$C$9:$C$14='Resource Planning'!$A34)*('Consulting Services'!$D$9:$D$14='Resource Planning'!$B34)*(Sprint1NSvc='Resource Planning'!J$5)*('Consulting Services'!$F$9:$H$14))/Sprint1NLen)*J$9 -> 0 | K34: =SUM(L34:N34)/'Calculations Page'!$C$7 -> 0 | L34: =(SUMIFS('Sprint-Z Hardening'!$E$12:$E$22,'Sprint-Z Hardening'!$C$12:$C$22,'Resource Planning'!$A34, 'Sprint-Z Hardening'!$D$12:$D$22,'Resource Planning'!$B34)*'Sprint-Z Hardening'!$D$6/'Sprint-Z Hardening'!$D$4 + SUMIFS('Consulting Services'!$I$9:$I$14,'Consulting Services'!$C$9:$C$14,'Resource Planning'!$A34,'Consulting Services'!$D$9:$D$14,'Resource Planning'!$B34)/SprintZLen)*L$9 -> 0 | M34: =(SUMIFS('Sprint-Z Hardening'!$E$12:$E$22,'Sprint-Z Hardening'!$C$12:$C$22,'Resource Planning'!$A34, 'Sprint-Z Hardening'!$D$12:$D$22,'Resource Planning'!$B34)*'Sprint-Z Hardening'!$D$6/'Sprint-Z Hardening'!$D$4 + SUMIFS('Consulting Services'!$I$9:$I$14,'Consulting Services'!$C$9:$C$14,'Resource Planning'!$A34,'Consulting Services'!$D$9:$D$14,'Resource Planning'!$B34)/SprintZLen)*M$9 -> 0 | N34: =(SUMIFS('Sprint-Z Hardening'!$E$12:$E$22,'Sprint-Z Hardening'!$C$12:$C$22,'Resource Planning'!$A34, 'Sprint-Z Hardening'!$D$12:$D$22,'Resource Planning'!$B34)*'Sprint-Z Hardening'!$D$6/'Sprint-Z Hardening'!$D$4 + SUMIFS('Consulting Services'!$I$9:$I$14,'Consulting Services'!$C$9:$C$14,'Resource Planning'!$A34,'Consulting Services'!$D$9:$D$14,'Resource Planning'!$B34)/SprintZLen)*N$9 -> 0 | O34: 0 | P34: Hide
A35: Partner | B35: Experience Designer | C35: =SUM(D35:F35)/'Calculations Page'!$C$5 -> 0 | D35: =(SUMIFS('Sprint-Prepare'!$E$12:$E$23,'Sprint-Prepare'!$C$12:$C$23,'Resource Planning'!$A35, 'Sprint-Prepare'!$D$12:$D$23,'Resource Planning'!$B35)*'Sprint-Prepare'!$D$6/'Sprint-Prepare'!$D$4+ SUMIFS('Consulting Services'!$E$9:$E$14,'Consulting Services'!$C$9:$C$14,'Resource Planning'!$A35,'Consulting Services'!$D$9:$D$14,'Resource Planning'!$B35)/Sprint0Len)*D$9 -> 0 | E35: =(SUMIFS('Sprint-Prepare'!$E$12:$E$23,'Sprint-Prepare'!$C$12:$C$23,'Resource Planning'!$A35, 'Sprint-Prepare'!$D$12:$D$23,'Resource Planning'!$B35)*'Sprint-Prepare'!$D$6/'Sprint-Prepare'!$D$4+ SUMIFS('Consulting Services'!$E$9:$E$14,'Consulting Services'!$C$9:$C$14,'Resource Planning'!$A35,'Consulting Services'!$D$9:$D$14,'Resource Planning'!$B35)/Sprint0Len)*E$9 -> 0 | F35: =(SUMIFS('Sprint-Prepare'!$E$12:$E$23,'Sprint-Prepare'!$C$12:$C$23,'Resource Planning'!$A35, 'Sprint-Prepare'!$D$12:$D$23,'Resource Planning'!$B35)*'Sprint-Prepare'!$D$6/'Sprint-Prepare'!$D$4+ SUMIFS('Consulting Services'!$E$9:$E$14,'Consulting Services'!$C$9:$C$14,'Resource Planning'!$A35,'Consulting Services'!$D$9:$D$14,'Resource Planning'!$B35)/Sprint0Len)*F$9 -> 0 | G35: =IFERROR(SUM(H35:J35)/'Calculations Page'!$C$6,0) -> 0 | H35: =(SUMIFS('Sprint 1-Sprint N'!$E$12:$E$24,'Sprint 1-Sprint N'!$C$12:$C$24,'Resource Planning'!$A35, 'Sprint 1-Sprint N'!$D$12:$D$24,'Resource Planning'!$B35)*'Sprint 1-Sprint N'!$D$6/'Sprint 1-Sprint N'!$D$4 + SUMPRODUCT(('Consulting Services'!$C$9:$C$14='Resource Planning'!$A35)*('Consulting Services'!$D$9:$D$14='Resource Planning'!$B35)*(Sprint1NSvc='Resource Planning'!H$5)*('Consulting Services'!$F$9:$H$14))/Sprint1NLen)*H$9 -> 0 | I35: =(SUMIFS('Sprint 1-Sprint N'!$E$12:$E$24,'Sprint 1-Sprint N'!$C$12:$C$24,'Resource Planning'!$A35, 'Sprint 1-Sprint N'!$D$12:$D$24,'Resource Planning'!$B35)*'Sprint 1-Sprint N'!$D$6/'Sprint 1-Sprint N'!$D$4 + SUMPRODUCT(('Consulting Services'!$C$9:$C$14='Resource Planning'!$A35)*('Consulting Services'!$D$9:$D$14='Resource Planning'!$B35)*(Sprint1NSvc='Resource Planning'!I$5)*('Consulting Services'!$F$9:$H$14))/Sprint1NLen)*I$9 -> 0 | J35: =(SUMIFS('Sprint 1-Sprint N'!$E$12:$E$24,'Sprint 1-Sprint N'!$C$12:$C$24,'Resource Planning'!$A35, 'Sprint 1-Sprint N'!$D$12:$D$24,'Resource Planning'!$B35)*'Sprint 1-Sprint N'!$D$6/'Sprint 1-Sprint N'!$D$4 + SUMPRODUCT(('Consulting Services'!$C$9:$C$14='Resource Planning'!$A35)*('Consulting Services'!$D$9:$D$14='Resource Planning'!$B35)*(Sprint1NSvc='Resource Planning'!J$5)*('Consulting Services'!$F$9:$H$14))/Sprint1NLen)*J$9 -> 0 | K35: =SUM(L35:N35)/'Calculations Page'!$C$7 -> 0 | L35: =(SUMIFS('Sprint-Z Hardening'!$E$12:$E$22,'Sprint-Z Hardening'!$C$12:$C$22,'Resource Planning'!$A35, 'Sprint-Z Hardening'!$D$12:$D$22,'Resource Planning'!$B35)*'Sprint-Z Hardening'!$D$6/'Sprint-Z Hardening'!$D$4 + SUMIFS('Consulting Services'!$I$9:$I$14,'Consulting Services'!$C$9:$C$14,'Resource Planning'!$A35,'Consulting Services'!$D$9:$D$14,'Resource Planning'!$B35)/SprintZLen)*L$9 -> 0 | M35: =(SUMIFS('Sprint-Z Hardening'!$E$12:$E$22,'Sprint-Z Hardening'!$C$12:$C$22,'Resource Planning'!$A35, 'Sprint-Z Hardening'!$D$12:$D$22,'Resource Planning'!$B35)*'Sprint-Z Hardening'!$D$6/'Sprint-Z Hardening'!$D$4 + SUMIFS('Consulting Services'!$I$9:$I$14,'Consulting Services'!$C$9:$C$14,'Resource Planning'!$A35,'Consulting Services'!$D$9:$D$14,'Resource Planning'!$B35)/SprintZLen)*M$9 -> 0 | N35: =(SUMIFS('Sprint-Z Hardening'!$E$12:$E$22,'Sprint-Z Hardening'!$C$12:$C$22,'Resource Planning'!$A35, 'Sprint-Z Hardening'!$D$12:$D$22,'Resource Planning'!$B35)*'Sprint-Z Hardening'!$D$6/'Sprint-Z Hardening'!$D$4 + SUMIFS('Consulting Services'!$I$9:$I$14,'Consulting Services'!$C$9:$C$14,'Resource Planning'!$A35,'Consulting Services'!$D$9:$D$14,'Resource Planning'!$B35)/SprintZLen)*N$9 -> 0 | O35: 0 | P35: Hide
A36: Partner | B36: Lead Robotics BA | C36: =SUM(D36:F36)/'Calculations Page'!$C$5 -> 0 | D36: =(SUMIFS('Sprint-Prepare'!$E$12:$E$23,'Sprint-Prepare'!$C$12:$C$23,'Resource Planning'!$A36, 'Sprint-Prepare'!$D$12:$D$23,'Resource Planning'!$B36)*'Sprint-Prepare'!$D$6/'Sprint-Prepare'!$D$4+ SUMIFS('Consulting Services'!$E$9:$E$14,'Consulting Services'!$C$9:$C$14,'Resource Planning'!$A36,'Consulting Services'!$D$9:$D$14,'Resource Planning'!$B36)/Sprint0Len)*D$9 -> 0 | E36: =(SUMIFS('Sprint-Prepare'!$E$12:$E$23,'Sprint-Prepare'!$C$12:$C$23,'Resource Planning'!$A36, 'Sprint-Prepare'!$D$12:$D$23,'Resource Planning'!$B36)*'Sprint-Prepare'!$D$6/'Sprint-Prepare'!$D$4+ SUMIFS('Consulting Services'!$E$9:$E$14,'Consulting Services'!$C$9:$C$14,'Resource Planning'!$A36,'Consulting Services'!$D$9:$D$14,'Resource Planning'!$B36)/Sprint0Len)*E$9 -> 0 | F36: =(SUMIFS('Sprint-Prepare'!$E$12:$E$23,'Sprint-Prepare'!$C$12:$C$23,'Resource Planning'!$A36, 'Sprint-Prepare'!$D$12:$D$23,'Resource Planning'!$B36)*'Sprint-Prepare'!$D$6/'Sprint-Prepare'!$D$4+ SUMIFS('Consulting Services'!$E$9:$E$14,'Consulting Services'!$C$9:$C$14,'Resource Planning'!$A36,'Consulting Services'!$D$9:$D$14,'Resource Planning'!$B36)/Sprint0Len)*F$9 -> 0 | G36: =IFERROR(SUM(H36:J36)/'Calculations Page'!$C$6,0) -> 0 | H36: =(SUMIFS('Sprint 1-Sprint N'!$E$12:$E$24,'Sprint 1-Sprint N'!$C$12:$C$24,'Resource Planning'!$A36, 'Sprint 1-Sprint N'!$D$12:$D$24,'Resource Planning'!$B36)*'Sprint 1-Sprint N'!$D$6/'Sprint 1-Sprint N'!$D$4 + SUMPRODUCT(('Consulting Services'!$C$9:$C$14='Resource Planning'!$A36)*('Consulting Services'!$D$9:$D$14='Resource Planning'!$B36)*(Sprint1NSvc='Resource Planning'!H$5)*('Consulting Services'!$F$9:$H$14))/Sprint1NLen)*H$9 -> 0 | I36: =(SUMIFS('Sprint 1-Sprint N'!$E$12:$E$24,'Sprint 1-Sprint N'!$C$12:$C$24,'Resource Planning'!$A36, 'Sprint 1-Sprint N'!$D$12:$D$24,'Resource Planning'!$B36)*'Sprint 1-Sprint N'!$D$6/'Sprint 1-Sprint N'!$D$4 + SUMPRODUCT(('Consulting Services'!$C$9:$C$14='Resource Planning'!$A36)*('Consulting Services'!$D$9:$D$14='Resource Planning'!$B36)*(Sprint1NSvc='Resource Planning'!I$5)*('Consulting Services'!$F$9:$H$14))/Sprint1NLen)*I$9 -> 0 | J36: =(SUMIFS('Sprint 1-Sprint N'!$E$12:$E$24,'Sprint 1-Sprint N'!$C$12:$C$24,'Resource Planning'!$A36, 'Sprint 1-Sprint N'!$D$12:$D$24,'Resource Planning'!$B36)*'Sprint 1-Sprint N'!$D$6/'Sprint 1-Sprint N'!$D$4 + SUMPRODUCT(('Consulting Services'!$C$9:$C$14='Resource Planning'!$A36)*('Consulting Services'!$D$9:$D$14='Resource Planning'!$B36)*(Sprint1NSvc='Resource Planning'!J$5)*('Consulting Services'!$F$9:$H$14))/Sprint1NLen)*J$9 -> 0 | K36: =SUM(L36:N36)/'Calculations Page'!$C$7 -> 0 | L36: =(SUMIFS('Sprint-Z Hardening'!$E$12:$E$22,'Sprint-Z Hardening'!$C$12:$C$22,'Resource Planning'!$A36, 'Sprint-Z Hardening'!$D$12:$D$22,'Resource Planning'!$B36)*'Sprint-Z Hardening'!$D$6/'Sprint-Z Hardening'!$D$4 + SUMIFS('Consulting Services'!$I$9:$I$14,'Consulting Services'!$C$9:$C$14,'Resource Planning'!$A36,'Consulting Services'!$D$9:$D$14,'Resource Planning'!$B36)/SprintZLen)*L$9 -> 0 | M36: =(SUMIFS('Sprint-Z Hardening'!$E$12:$E$22,'Sprint-Z Hardening'!$C$12:$C$22,'Resource Planning'!$A36, 'Sprint-Z Hardening'!$D$12:$D$22,'Resource Planning'!$B36)*'Sprint-Z Hardening'!$D$6/'Sprint-Z Hardening'!$D$4 + SUMIFS('Consulting Services'!$I$9:$I$14,'Consulting Services'!$C$9:$C$14,'Resource Planning'!$A36,'Consulting Services'!$D$9:$D$14,'Resource Planning'!$B36)/SprintZLen)*M$9 -> 0 | N36: =(SUMIFS('Sprint-Z Hardening'!$E$12:$E$22,'Sprint-Z Hardening'!$C$12:$C$22,'Resource Planning'!$A36, 'Sprint-Z Hardening'!$D$12:$D$22,'Resource Planning'!$B36)*'Sprint-Z Hardening'!$D$6/'Sprint-Z Hardening'!$D$4 + SUMIFS('Consulting Services'!$I$9:$I$14,'Consulting Services'!$C$9:$C$14,'Resource Planning'!$A36,'Consulting Services'!$D$9:$D$14,'Resource Planning'!$B36)/SprintZLen)*N$9 -> 0 | O36: 0 | P36: Hide
A37: Partner | B37: Lead Robotics SA | C37: =SUM(D37:F37)/'Calculations Page'!$C$5 -> 0 | D37: =(SUMIFS('Sprint-Prepare'!$E$12:$E$23,'Sprint-Prepare'!$C$12:$C$23,'Resource Planning'!$A37, 'Sprint-Prepare'!$D$12:$D$23,'Resource Planning'!$B37)*'Sprint-Prepare'!$D$6/'Sprint-Prepare'!$D$4+ SUMIFS('Consulting Services'!$E$9:$E$14,'Consulting Services'!$C$9:$C$14,'Resource Planning'!$A37,'Consulting Services'!$D$9:$D$14,'Resource Planning'!$B37)/Sprint0Len)*D$9 -> 0 | E37: =(SUMIFS('Sprint-Prepare'!$E$12:$E$23,'Sprint-Prepare'!$C$12:$C$23,'Resource Planning'!$A37, 'Sprint-Prepare'!$D$12:$D$23,'Resource Planning'!$B37)*'Sprint-Prepare'!$D$6/'Sprint-Prepare'!$D$4+ SUMIFS('Consulting Services'!$E$9:$E$14,'Consulting Services'!$C$9:$C$14,'Resource Planning'!$A37,'Consulting Services'!$D$9:$D$14,'Resource Planning'!$B37)/Sprint0Len)*E$9 -> 0 | F37: =(SUMIFS('Sprint-Prepare'!$E$12:$E$23,'Sprint-Prepare'!$C$12:$C$23,'Resource Planning'!$A37, 'Sprint-Prepare'!$D$12:$D$23,'Resource Planning'!$B37)*'Sprint-Prepare'!$D$6/'Sprint-Prepare'!$D$4+ SUMIFS('Consulting Services'!$E$9:$E$14,'Consulting Services'!$C$9:$C$14,'Resource Planning'!$A37,'Consulting Services'!$D$9:$D$14,'Resource Planning'!$B37)/Sprint0Len)*F$9 -> 0 | G37: =IFERROR(SUM(H37:J37)/'Calculations Page'!$C$6,0) -> 0 | H37: =(SUMIFS('Sprint 1-Sprint N'!$E$12:$E$24,'Sprint 1-Sprint N'!$C$12:$C$24,'Resource Planning'!$A37, 'Sprint 1-Sprint N'!$D$12:$D$24,'Resource Planning'!$B37)*'Sprint 1-Sprint N'!$D$6/'Sprint 1-Sprint N'!$D$4 + SUMPRODUCT(('Consulting Services'!$C$9:$C$14='Resource Planning'!$A37)*('Consulting Services'!$D$9:$D$14='Resource Planning'!$B37)*(Sprint1NSvc='Resource Planning'!H$5)*('Consulting Services'!$F$9:$H$14))/Sprint1NLen)*H$9 -> 0 | I37: =(SUMIFS('Sprint 1-Sprint N'!$E$12:$E$24,'Sprint 1-Sprint N'!$C$12:$C$24,'Resource Planning'!$A37, 'Sprint 1-Sprint N'!$D$12:$D$24,'Resource Planning'!$B37)*'Sprint 1-Sprint N'!$D$6/'Sprint 1-Sprint N'!$D$4 + SUMPRODUCT(('Consulting Services'!$C$9:$C$14='Resource Planning'!$A37)*('Consulting Services'!$D$9:$D$14='Resource Planning'!$B37)*(Sprint1NSvc='Resource Planning'!I$5)*('Consulting Services'!$F$9:$H$14))/Sprint1NLen)*I$9 -> 0 | J37: =(SUMIFS('Sprint 1-Sprint N'!$E$12:$E$24,'Sprint 1-Sprint N'!$C$12:$C$24,'Resource Planning'!$A37, 'Sprint 1-Sprint N'!$D$12:$D$24,'Resource Planning'!$B37)*'Sprint 1-Sprint N'!$D$6/'Sprint 1-Sprint N'!$D$4 + SUMPRODUCT(('Consulting Services'!$C$9:$C$14='Resource Planning'!$A37)*('Consulting Services'!$D$9:$D$14='Resource Planning'!$B37)*(Sprint1NSvc='Resource Planning'!J$5)*('Consulting Services'!$F$9:$H$14))/Sprint1NLen)*J$9 -> 0 | K37: =SUM(L37:N37)/'Calculations Page'!$C$7 -> 0 | L37: =(SUMIFS('Sprint-Z Hardening'!$E$12:$E$22,'Sprint-Z Hardening'!$C$12:$C$22,'Resource Planning'!$A37, 'Sprint-Z Hardening'!$D$12:$D$22,'Resource Planning'!$B37)*'Sprint-Z Hardening'!$D$6/'Sprint-Z Hardening'!$D$4 + SUMIFS('Consulting Services'!$I$9:$I$14,'Consulting Services'!$C$9:$C$14,'Resource Planning'!$A37,'Consulting Services'!$D$9:$D$14,'Resource Planning'!$B37)/SprintZLen)*L$9 -> 0 | M37: =(SUMIFS('Sprint-Z Hardening'!$E$12:$E$22,'Sprint-Z Hardening'!$C$12:$C$22,'Resource Planning'!$A37, 'Sprint-Z Hardening'!$D$12:$D$22,'Resource Planning'!$B37)*'Sprint-Z Hardening'!$D$6/'Sprint-Z Hardening'!$D$4 + SUMIFS('Consulting Services'!$I$9:$I$14,'Consulting Services'!$C$9:$C$14,'Resource Planning'!$A37,'Consulting Services'!$D$9:$D$14,'Resource Planning'!$B37)/SprintZLen)*M$9 -> 0 | N37: =(SUMIFS('Sprint-Z Hardening'!$E$12:$E$22,'Sprint-Z Hardening'!$C$12:$C$22,'Resource Planning'!$A37, 'Sprint-Z Hardening'!$D$12:$D$22,'Resource Planning'!$B37)*'Sprint-Z Hardening'!$D$6/'Sprint-Z Hardening'!$D$4 + SUMIFS('Consulting Services'!$I$9:$I$14,'Consulting Services'!$C$9:$C$14,'Resource Planning'!$A37,'Consulting Services'!$D$9:$D$14,'Resource Planning'!$B37)/SprintZLen)*N$9 -> 0 | O37: 0 | P37: Hide
A38: Partner | B38: (Sr) Robotics SA | C38: =SUM(D38:F38)/'Calculations Page'!$C$5 -> 0 | D38: =(SUMIFS('Sprint-Prepare'!$E$12:$E$23,'Sprint-Prepare'!$C$12:$C$23,'Resource Planning'!$A38, 'Sprint-Prepare'!$D$12:$D$23,'Resource Planning'!$B38)*'Sprint-Prepare'!$D$6/'Sprint-Prepare'!$D$4+ SUMIFS('Consulting Services'!$E$9:$E$14,'Consulting Services'!$C$9:$C$14,'Resource Planning'!$A38,'Consulting Services'!$D$9:$D$14,'Resource Planning'!$B38)/Sprint0Len)*D$9 -> 0 | E38: =(SUMIFS('Sprint-Prepare'!$E$12:$E$23,'Sprint-Prepare'!$C$12:$C$23,'Resource Planning'!$A38, 'Sprint-Prepare'!$D$12:$D$23,'Resource Planning'!$B38)*'Sprint-Prepare'!$D$6/'Sprint-Prepare'!$D$4+ SUMIFS('Consulting Services'!$E$9:$E$14,'Consulting Services'!$C$9:$C$14,'Resource Planning'!$A38,'Consulting Services'!$D$9:$D$14,'Resource Planning'!$B38)/Sprint0Len)*E$9 -> 0 | F38: =(SUMIFS('Sprint-Prepare'!$E$12:$E$23,'Sprint-Prepare'!$C$12:$C$23,'Resource Planning'!$A38, 'Sprint-Prepare'!$D$12:$D$23,'Resource Planning'!$B38)*'Sprint-Prepare'!$D$6/'Sprint-Prepare'!$D$4+ SUMIFS('Consulting Services'!$E$9:$E$14,'Consulting Services'!$C$9:$C$14,'Resource Planning'!$A38,'Consulting Services'!$D$9:$D$14,'Resource Planning'!$B38)/Sprint0Len)*F$9 -> 0 | G38: =IFERROR(SUM(H38:J38)/'Calculations Page'!$C$6,0) -> 0 | H38: =(SUMIFS('Sprint 1-Sprint N'!$E$12:$E$24,'Sprint 1-Sprint N'!$C$12:$C$24,'Resource Planning'!$A38, 'Sprint 1-Sprint N'!$D$12:$D$24,'Resource Planning'!$B38)*'Sprint 1-Sprint N'!$D$6/'Sprint 1-Sprint N'!$D$4 + SUMPRODUCT(('Consulting Services'!$C$9:$C$14='Resource Planning'!$A38)*('Consulting Services'!$D$9:$D$14='Resource Planning'!$B38)*(Sprint1NSvc='Resource Planning'!H$5)*('Consulting Services'!$F$9:$H$14))/Sprint1NLen)*H$9 -> 0 | I38: =(SUMIFS('Sprint 1-Sprint N'!$E$12:$E$24,'Sprint 1-Sprint N'!$C$12:$C$24,'Resource Planning'!$A38, 'Sprint 1-Sprint N'!$D$12:$D$24,'Resource Planning'!$B38)*'Sprint 1-Sprint N'!$D$6/'Sprint 1-Sprint N'!$D$4 + SUMPRODUCT(('Consulting Services'!$C$9:$C$14='Resource Planning'!$A38)*('Consulting Services'!$D$9:$D$14='Resource Planning'!$B38)*(Sprint1NSvc='Resource Planning'!I$5)*('Consulting Services'!$F$9:$H$14))/Sprint1NLen)*I$9 -> 0 | J38: =(SUMIFS('Sprint 1-Sprint N'!$E$12:$E$24,'Sprint 1-Sprint N'!$C$12:$C$24,'Resource Planning'!$A38, 'Sprint 1-Sprint N'!$D$12:$D$24,'Resource Planning'!$B38)*'Sprint 1-Sprint N'!$D$6/'Sprint 1-Sprint N'!$D$4 + SUMPRODUCT(('Consulting Services'!$C$9:$C$14='Resource Planning'!$A38)*('Consulting Services'!$D$9:$D$14='Resource Planning'!$B38)*(Sprint1NSvc='Resource Planning'!J$5)*('Consulting Services'!$F$9:$H$14))/Sprint1NLen)*J$9 -> 0 | K38: =SUM(L38:N38)/'Calculations Page'!$C$7 -> 0 | L38: =(SUMIFS('Sprint-Z Hardening'!$E$12:$E$22,'Sprint-Z Hardening'!$C$12:$C$22,'Resource Planning'!$A38, 'Sprint-Z Hardening'!$D$12:$D$22,'Resource Planning'!$B38)*'Sprint-Z Hardening'!$D$6/'Sprint-Z Hardening'!$D$4 + SUMIFS('Consulting Services'!$I$9:$I$14,'Consulting Services'!$C$9:$C$14,'Resource Planning'!$A38,'Consulting Services'!$D$9:$D$14,'Resource Planning'!$B38)/SprintZLen)*L$9 -> 0 | M38: =(SUMIFS('Sprint-Z Hardening'!$E$12:$E$22,'Sprint-Z Hardening'!$C$12:$C$22,'Resource Planning'!$A38, 'Sprint-Z Hardening'!$D$12:$D$22,'Resource Planning'!$B38)*'Sprint-Z Hardening'!$D$6/'Sprint-Z Hardening'!$D$4 + SUMIFS('Consulting Services'!$I$9:$I$14,'Consulting Services'!$C$9:$C$14,'Resource Planning'!$A38,'Consulting Services'!$D$9:$D$14,'Resource Planning'!$B38)/SprintZLen)*M$9 -> 0 | N38: =(SUMIFS('Sprint-Z Hardening'!$E$12:$E$22,'Sprint-Z Hardening'!$C$12:$C$22,'Resource Planning'!$A38, 'Sprint-Z Hardening'!$D$12:$D$22,'Resource Planning'!$B38)*'Sprint-Z Hardening'!$D$6/'Sprint-Z Hardening'!$D$4 + SUMIFS('Consulting Services'!$I$9:$I$14,'Consulting Services'!$C$9:$C$14,'Resource Planning'!$A38,'Consulting Services'!$D$9:$D$14,'Resource Planning'!$B38)/SprintZLen)*N$9 -> 0 | O38: 0 | P38: Hide
A39: Partner | B39: Lead Decisioning Architect | C39: =SUM(D39:F39)/'Calculations Page'!$C$5 -> 0 | D39: =(SUMIFS('Sprint-Prepare'!$E$12:$E$23,'Sprint-Prepare'!$C$12:$C$23,'Resource Planning'!$A39, 'Sprint-Prepare'!$D$12:$D$23,'Resource Planning'!$B39)*'Sprint-Prepare'!$D$6/'Sprint-Prepare'!$D$4+ SUMIFS('Consulting Services'!$E$9:$E$14,'Consulting Services'!$C$9:$C$14,'Resource Planning'!$A39,'Consulting Services'!$D$9:$D$14,'Resource Planning'!$B39)/Sprint0Len)*D$9 -> 0 | E39: =(SUMIFS('Sprint-Prepare'!$E$12:$E$23,'Sprint-Prepare'!$C$12:$C$23,'Resource Planning'!$A39, 'Sprint-Prepare'!$D$12:$D$23,'Resource Planning'!$B39)*'Sprint-Prepare'!$D$6/'Sprint-Prepare'!$D$4+ SUMIFS('Consulting Services'!$E$9:$E$14,'Consulting Services'!$C$9:$C$14,'Resource Planning'!$A39,'Consulting Services'!$D$9:$D$14,'Resource Planning'!$B39)/Sprint0Len)*E$9 -> 0 | F39: =(SUMIFS('Sprint-Prepare'!$E$12:$E$23,'Sprint-Prepare'!$C$12:$C$23,'Resource Planning'!$A39, 'Sprint-Prepare'!$D$12:$D$23,'Resource Planning'!$B39)*'Sprint-Prepare'!$D$6/'Sprint-Prepare'!$D$4+ SUMIFS('Consulting Services'!$E$9:$E$14,'Consulting Services'!$C$9:$C$14,'Resource Planning'!$A39,'Consulting Services'!$D$9:$D$14,'Resource Planning'!$B39)/Sprint0Len)*F$9 -> 0 | G39: =IFERROR(SUM(H39:J39)/'Calculations Page'!$C$6,0) -> 0 | H39: =(SUMIFS('Sprint 1-Sprint N'!$E$12:$E$24,'Sprint 1-Sprint N'!$C$12:$C$24,'Resource Planning'!$A39, 'Sprint 1-Sprint N'!$D$12:$D$24,'Resource Planning'!$B39)*'Sprint 1-Sprint N'!$D$6/'Sprint 1-Sprint N'!$D$4 + SUMPRODUCT(('Consulting Services'!$C$9:$C$14='Resource Planning'!$A39)*('Consulting Services'!$D$9:$D$14='Resource Planning'!$B39)*(Sprint1NSvc='Resource Planning'!H$5)*('Consulting Services'!$F$9:$H$14))/Sprint1NLen)*H$9 -> 0 | I39: =(SUMIFS('Sprint 1-Sprint N'!$E$12:$E$24,'Sprint 1-Sprint N'!$C$12:$C$24,'Resource Planning'!$A39, 'Sprint 1-Sprint N'!$D$12:$D$24,'Resource Planning'!$B39)*'Sprint 1-Sprint N'!$D$6/'Sprint 1-Sprint N'!$D$4 + SUMPRODUCT(('Consulting Services'!$C$9:$C$14='Resource Planning'!$A39)*('Consulting Services'!$D$9:$D$14='Resource Planning'!$B39)*(Sprint1NSvc='Resource Planning'!I$5)*('Consulting Services'!$F$9:$H$14))/Sprint1NLen)*I$9 -> 0 | J39: =(SUMIFS('Sprint 1-Sprint N'!$E$12:$E$24,'Sprint 1-Sprint N'!$C$12:$C$24,'Resource Planning'!$A39, 'Sprint 1-Sprint N'!$D$12:$D$24,'Resource Planning'!$B39)*'Sprint 1-Sprint N'!$D$6/'Sprint 1-Sprint N'!$D$4 + SUMPRODUCT(('Consulting Services'!$C$9:$C$14='Resource Planning'!$A39)*('Consulting Services'!$D$9:$D$14='Resource Planning'!$B39)*(Sprint1NSvc='Resource Planning'!J$5)*('Consulting Services'!$F$9:$H$14))/Sprint1NLen)*J$9 -> 0 | K39: =SUM(L39:N39)/'Calculations Page'!$C$7 -> 0 | L39: =(SUMIFS('Sprint-Z Hardening'!$E$12:$E$22,'Sprint-Z Hardening'!$C$12:$C$22,'Resource Planning'!$A39, 'Sprint-Z Hardening'!$D$12:$D$22,'Resource Planning'!$B39)*'Sprint-Z Hardening'!$D$6/'Sprint-Z Hardening'!$D$4 + SUMIFS('Consulting Services'!$I$9:$I$14,'Consulting Services'!$C$9:$C$14,'Resource Planning'!$A39,'Consulting Services'!$D$9:$D$14,'Resource Planning'!$B39)/SprintZLen)*L$9 -> 0 | M39: =(SUMIFS('Sprint-Z Hardening'!$E$12:$E$22,'Sprint-Z Hardening'!$C$12:$C$22,'Resource Planning'!$A39, 'Sprint-Z Hardening'!$D$12:$D$22,'Resource Planning'!$B39)*'Sprint-Z Hardening'!$D$6/'Sprint-Z Hardening'!$D$4 + SUMIFS('Consulting Services'!$I$9:$I$14,'Consulting Services'!$C$9:$C$14,'Resource Planning'!$A39,'Consulting Services'!$D$9:$D$14,'Resource Planning'!$B39)/SprintZLen)*M$9 -> 0 | N39: =(SUMIFS('Sprint-Z Hardening'!$E$12:$E$22,'Sprint-Z Hardening'!$C$12:$C$22,'Resource Planning'!$A39, 'Sprint-Z Hardening'!$D$12:$D$22,'Resource Planning'!$B39)*'Sprint-Z Hardening'!$D$6/'Sprint-Z Hardening'!$D$4 + SUMIFS('Consulting Services'!$I$9:$I$14,'Consulting Services'!$C$9:$C$14,'Resource Planning'!$A39,'Consulting Services'!$D$9:$D$14,'Resource Planning'!$B39)/SprintZLen)*N$9 -> 0 | O39: 0 | P39: Hide
A40: Partner | B40: Sr. Decisioning Architect | C40: =SUM(D40:F40)/'Calculations Page'!$C$5 -> 0 | D40: =(SUMIFS('Sprint-Prepare'!$E$12:$E$23,'Sprint-Prepare'!$C$12:$C$23,'Resource Planning'!$A40, 'Sprint-Prepare'!$D$12:$D$23,'Resource Planning'!$B40)*'Sprint-Prepare'!$D$6/'Sprint-Prepare'!$D$4+ SUMIFS('Consulting Services'!$E$9:$E$14,'Consulting Services'!$C$9:$C$14,'Resource Planning'!$A40,'Consulting Services'!$D$9:$D$14,'Resource Planning'!$B40)/Sprint0Len)*D$9 -> 0 | E40: =(SUMIFS('Sprint-Prepare'!$E$12:$E$23,'Sprint-Prepare'!$C$12:$C$23,'Resource Planning'!$A40, 'Sprint-Prepare'!$D$12:$D$23,'Resource Planning'!$B40)*'Sprint-Prepare'!$D$6/'Sprint-Prepare'!$D$4+ SUMIFS('Consulting Services'!$E$9:$E$14,'Consulting Services'!$C$9:$C$14,'Resource Planning'!$A40,'Consulting Services'!$D$9:$D$14,'Resource Planning'!$B40)/Sprint0Len)*E$9 -> 0 | F40: =(SUMIFS('Sprint-Prepare'!$E$12:$E$23,'Sprint-Prepare'!$C$12:$C$23,'Resource Planning'!$A40, 'Sprint-Prepare'!$D$12:$D$23,'Resource Planning'!$B40)*'Sprint-Prepare'!$D$6/'Sprint-Prepare'!$D$4+ SUMIFS('Consulting Services'!$E$9:$E$14,'Consulting Services'!$C$9:$C$14,'Resource Planning'!$A40,'Consulting Services'!$D$9:$D$14,'Resource Planning'!$B40)/Sprint0Len)*F$9 -> 0 | G40: =IFERROR(SUM(H40:J40)/'Calculations Page'!$C$6,0) -> 0 | H40: =(SUMIFS('Sprint 1-Sprint N'!$E$12:$E$24,'Sprint 1-Sprint N'!$C$12:$C$24,'Resource Planning'!$A40, 'Sprint 1-Sprint N'!$D$12:$D$24,'Resource Planning'!$B40)*'Sprint 1-Sprint N'!$D$6/'Sprint 1-Sprint N'!$D$4 + SUMPRODUCT(('Consulting Services'!$C$9:$C$14='Resource Planning'!$A40)*('Consulting Services'!$D$9:$D$14='Resource Planning'!$B40)*(Sprint1NSvc='Resource Planning'!H$5)*('Consulting Services'!$F$9:$H$14))/Sprint1NLen)*H$9 -> 0 | I40: =(SUMIFS('Sprint 1-Sprint N'!$E$12:$E$24,'Sprint 1-Sprint N'!$C$12:$C$24,'Resource Planning'!$A40, 'Sprint 1-Sprint N'!$D$12:$D$24,'Resource Planning'!$B40)*'Sprint 1-Sprint N'!$D$6/'Sprint 1-Sprint N'!$D$4 + SUMPRODUCT(('Consulting Services'!$C$9:$C$14='Resource Planning'!$A40)*('Consulting Services'!$D$9:$D$14='Resource Planning'!$B40)*(Sprint1NSvc='Resource Planning'!I$5)*('Consulting Services'!$F$9:$H$14))/Sprint1NLen)*I$9 -> 0 | J40: =(SUMIFS('Sprint 1-Sprint N'!$E$12:$E$24,'Sprint 1-Sprint N'!$C$12:$C$24,'Resource Planning'!$A40, 'Sprint 1-Sprint N'!$D$12:$D$24,'Resource Planning'!$B40)*'Sprint 1-Sprint N'!$D$6/'Sprint 1-Sprint N'!$D$4 + SUMPRODUCT(('Consulting Services'!$C$9:$C$14='Resource Planning'!$A40)*('Consulting Services'!$D$9:$D$14='Resource Planning'!$B40)*(Sprint1NSvc='Resource Planning'!J$5)*('Consulting Services'!$F$9:$H$14))/Sprint1NLen)*J$9 -> 0 | K40: =SUM(L40:N40)/'Calculations Page'!$C$7 -> 0 | L40: =(SUMIFS('Sprint-Z Hardening'!$E$12:$E$22,'Sprint-Z Hardening'!$C$12:$C$22,'Resource Planning'!$A40, 'Sprint-Z Hardening'!$D$12:$D$22,'Resource Planning'!$B40)*'Sprint-Z Hardening'!$D$6/'Sprint-Z Hardening'!$D$4 + SUMIFS('Consulting Services'!$I$9:$I$14,'Consulting Services'!$C$9:$C$14,'Resource Planning'!$A40,'Consulting Services'!$D$9:$D$14,'Resource Planning'!$B40)/SprintZLen)*L$9 -> 0 | M40: =(SUMIFS('Sprint-Z Hardening'!$E$12:$E$22,'Sprint-Z Hardening'!$C$12:$C$22,'Resource Planning'!$A40, 'Sprint-Z Hardening'!$D$12:$D$22,'Resource Planning'!$B40)*'Sprint-Z Hardening'!$D$6/'Sprint-Z Hardening'!$D$4 + SUMIFS('Consulting Services'!$I$9:$I$14,'Consulting Services'!$C$9:$C$14,'Resource Planning'!$A40,'Consulting Services'!$D$9:$D$14,'Resource Planning'!$B40)/SprintZLen)*M$9 -> 0 | N40: =(SUMIFS('Sprint-Z Hardening'!$E$12:$E$22,'Sprint-Z Hardening'!$C$12:$C$22,'Resource Planning'!$A40, 'Sprint-Z Hardening'!$D$12:$D$22,'Resource Planning'!$B40)*'Sprint-Z Hardening'!$D$6/'Sprint-Z Hardening'!$D$4 + SUMIFS('Consulting Services'!$I$9:$I$14,'Consulting Services'!$C$9:$C$14,'Resource Planning'!$A40,'Consulting Services'!$D$9:$D$14,'Resource Planning'!$B40)/SprintZLen)*N$9 -> 0 | O40: 0 | P40: Hide
A41: Partner | B41: Mktg & Dec Bus Consultant | C41: =SUM(D41:F41)/'Calculations Page'!$C$5 -> 0 | D41: =(SUMIFS('Sprint-Prepare'!$E$12:$E$23,'Sprint-Prepare'!$C$12:$C$23,'Resource Planning'!$A41, 'Sprint-Prepare'!$D$12:$D$23,'Resource Planning'!$B41)*'Sprint-Prepare'!$D$6/'Sprint-Prepare'!$D$4+ SUMIFS('Consulting Services'!$E$9:$E$14,'Consulting Services'!$C$9:$C$14,'Resource Planning'!$A41,'Consulting Services'!$D$9:$D$14,'Resource Planning'!$B41)/Sprint0Len)*D$9 -> 0 | E41: =(SUMIFS('Sprint-Prepare'!$E$12:$E$23,'Sprint-Prepare'!$C$12:$C$23,'Resource Planning'!$A41, 'Sprint-Prepare'!$D$12:$D$23,'Resource Planning'!$B41)*'Sprint-Prepare'!$D$6/'Sprint-Prepare'!$D$4+ SUMIFS('Consulting Services'!$E$9:$E$14,'Consulting Services'!$C$9:$C$14,'Resource Planning'!$A41,'Consulting Services'!$D$9:$D$14,'Resource Planning'!$B41)/Sprint0Len)*E$9 -> 0 | F41: =(SUMIFS('Sprint-Prepare'!$E$12:$E$23,'Sprint-Prepare'!$C$12:$C$23,'Resource Planning'!$A41, 'Sprint-Prepare'!$D$12:$D$23,'Resource Planning'!$B41)*'Sprint-Prepare'!$D$6/'Sprint-Prepare'!$D$4+ SUMIFS('Consulting Services'!$E$9:$E$14,'Consulting Services'!$C$9:$C$14,'Resource Planning'!$A41,'Consulting Services'!$D$9:$D$14,'Resource Planning'!$B41)/Sprint0Len)*F$9 -> 0 | G41: =IFERROR(SUM(H41:J41)/'Calculations Page'!$C$6,0) -> 0 | H41: =(SUMIFS('Sprint 1-Sprint N'!$E$12:$E$24,'Sprint 1-Sprint N'!$C$12:$C$24,'Resource Planning'!$A41, 'Sprint 1-Sprint N'!$D$12:$D$24,'Resource Planning'!$B41)*'Sprint 1-Sprint N'!$D$6/'Sprint 1-Sprint N'!$D$4 + SUMPRODUCT(('Consulting Services'!$C$9:$C$14='Resource Planning'!$A41)*('Consulting Services'!$D$9:$D$14='Resource Planning'!$B41)*(Sprint1NSvc='Resource Planning'!H$5)*('Consulting Services'!$F$9:$H$14))/Sprint1NLen)*H$9 -> 0 | I41: =(SUMIFS('Sprint 1-Sprint N'!$E$12:$E$24,'Sprint 1-Sprint N'!$C$12:$C$24,'Resource Planning'!$A41, 'Sprint 1-Sprint N'!$D$12:$D$24,'Resource Planning'!$B41)*'Sprint 1-Sprint N'!$D$6/'Sprint 1-Sprint N'!$D$4 + SUMPRODUCT(('Consulting Services'!$C$9:$C$14='Resource Planning'!$A41)*('Consulting Services'!$D$9:$D$14='Resource Planning'!$B41)*(Sprint1NSvc='Resource Planning'!I$5)*('Consulting Services'!$F$9:$H$14))/Sprint1NLen)*I$9 -> 0 | J41: =(SUMIFS('Sprint 1-Sprint N'!$E$12:$E$24,'Sprint 1-Sprint N'!$C$12:$C$24,'Resource Planning'!$A41, 'Sprint 1-Sprint N'!$D$12:$D$24,'Resource Planning'!$B41)*'Sprint 1-Sprint N'!$D$6/'Sprint 1-Sprint N'!$D$4 + SUMPRODUCT(('Consulting Services'!$C$9:$C$14='Resource Planning'!$A41)*('Consulting Services'!$D$9:$D$14='Resource Planning'!$B41)*(Sprint1NSvc='Resource Planning'!J$5)*('Consulting Services'!$F$9:$H$14))/Sprint1NLen)*J$9 -> 0 | K41: =SUM(L41:N41)/'Calculations Page'!$C$7 -> 0 | L41: =(SUMIFS('Sprint-Z Hardening'!$E$12:$E$22,'Sprint-Z Hardening'!$C$12:$C$22,'Resource Planning'!$A41, 'Sprint-Z Hardening'!$D$12:$D$22,'Resource Planning'!$B41)*'Sprint-Z Hardening'!$D$6/'Sprint-Z Hardening'!$D$4 + SUMIFS('Consulting Services'!$I$9:$I$14,'Consulting Services'!$C$9:$C$14,'Resource Planning'!$A41,'Consulting Services'!$D$9:$D$14,'Resource Planning'!$B41)/SprintZLen)*L$9 -> 0 | M41: =(SUMIFS('Sprint-Z Hardening'!$E$12:$E$22,'Sprint-Z Hardening'!$C$12:$C$22,'Resource Planning'!$A41, 'Sprint-Z Hardening'!$D$12:$D$22,'Resource Planning'!$B41)*'Sprint-Z Hardening'!$D$6/'Sprint-Z Hardening'!$D$4 + SUMIFS('Consulting Services'!$I$9:$I$14,'Consulting Services'!$C$9:$C$14,'Resource Planning'!$A41,'Consulting Services'!$D$9:$D$14,'Resource Planning'!$B41)/SprintZLen)*M$9 -> 0 | N41: =(SUMIFS('Sprint-Z Hardening'!$E$12:$E$22,'Sprint-Z Hardening'!$C$12:$C$22,'Resource Planning'!$A41, 'Sprint-Z Hardening'!$D$12:$D$22,'Resource Planning'!$B41)*'Sprint-Z Hardening'!$D$6/'Sprint-Z Hardening'!$D$4 + SUMIFS('Consulting Services'!$I$9:$I$14,'Consulting Services'!$C$9:$C$14,'Resource Planning'!$A41,'Consulting Services'!$D$9:$D$14,'Resource Planning'!$B41)/SprintZLen)*N$9 -> 0 | O41: 0 | P41: Hide
A42: Partner | B42: Product Owner | C42: =SUM(D42:F42)/'Calculations Page'!$C$5 -> 0 | D42: =(SUMIFS('Sprint-Prepare'!$E$12:$E$23,'Sprint-Prepare'!$C$12:$C$23,'Resource Planning'!$A42, 'Sprint-Prepare'!$D$12:$D$23,'Resource Planning'!$B42)*'Sprint-Prepare'!$D$6/'Sprint-Prepare'!$D$4+ SUMIFS('Consulting Services'!$E$9:$E$14,'Consulting Services'!$C$9:$C$14,'Resource Planning'!$A42,'Consulting Services'!$D$9:$D$14,'Resource Planning'!$B42)/Sprint0Len)*D$9 -> 0 | E42: =(SUMIFS('Sprint-Prepare'!$E$12:$E$23,'Sprint-Prepare'!$C$12:$C$23,'Resource Planning'!$A42, 'Sprint-Prepare'!$D$12:$D$23,'Resource Planning'!$B42)*'Sprint-Prepare'!$D$6/'Sprint-Prepare'!$D$4+ SUMIFS('Consulting Services'!$E$9:$E$14,'Consulting Services'!$C$9:$C$14,'Resource Planning'!$A42,'Consulting Services'!$D$9:$D$14,'Resource Planning'!$B42)/Sprint0Len)*E$9 -> 0 | F42: =(SUMIFS('Sprint-Prepare'!$E$12:$E$23,'Sprint-Prepare'!$C$12:$C$23,'Resource Planning'!$A42, 'Sprint-Prepare'!$D$12:$D$23,'Resource Planning'!$B42)*'Sprint-Prepare'!$D$6/'Sprint-Prepare'!$D$4+ SUMIFS('Consulting Services'!$E$9:$E$14,'Consulting Services'!$C$9:$C$14,'Resource Planning'!$A42,'Consulting Services'!$D$9:$D$14,'Resource Planning'!$B42)/Sprint0Len)*F$9 -> 0 | G42: =IFERROR(SUM(H42:J42)/'Calculations Page'!$C$6,0) -> 0 | H42: =(SUMIFS('Sprint 1-Sprint N'!$E$12:$E$24,'Sprint 1-Sprint N'!$C$12:$C$24,'Resource Planning'!$A42, 'Sprint 1-Sprint N'!$D$12:$D$24,'Resource Planning'!$B42)*'Sprint 1-Sprint N'!$D$6/'Sprint 1-Sprint N'!$D$4 + SUMPRODUCT(('Consulting Services'!$C$9:$C$14='Resource Planning'!$A42)*('Consulting Services'!$D$9:$D$14='Resource Planning'!$B42)*(Sprint1NSvc='Resource Planning'!H$5)*('Consulting Services'!$F$9:$H$14))/Sprint1NLen)*H$9 -> 0 | I42: =(SUMIFS('Sprint 1-Sprint N'!$E$12:$E$24,'Sprint 1-Sprint N'!$C$12:$C$24,'Resource Planning'!$A42, 'Sprint 1-Sprint N'!$D$12:$D$24,'Resource Planning'!$B42)*'Sprint 1-Sprint N'!$D$6/'Sprint 1-Sprint N'!$D$4 + SUMPRODUCT(('Consulting Services'!$C$9:$C$14='Resource Planning'!$A42)*('Consulting Services'!$D$9:$D$14='Resource Planning'!$B42)*(Sprint1NSvc='Resource Planning'!I$5)*('Consulting Services'!$F$9:$H$14))/Sprint1NLen)*I$9 -> 0 | J42: =(SUMIFS('Sprint 1-Sprint N'!$E$12:$E$24,'Sprint 1-Sprint N'!$C$12:$C$24,'Resource Planning'!$A42, 'Sprint 1-Sprint N'!$D$12:$D$24,'Resource Planning'!$B42)*'Sprint 1-Sprint N'!$D$6/'Sprint 1-Sprint N'!$D$4 + SUMPRODUCT(('Consulting Services'!$C$9:$C$14='Resource Planning'!$A42)*('Consulting Services'!$D$9:$D$14='Resource Planning'!$B42)*(Sprint1NSvc='Resource Planning'!J$5)*('Consulting Services'!$F$9:$H$14))/Sprint1NLen)*J$9 -> 0 | K42: =SUM(L42:N42)/'Calculations Page'!$C$7 -> 0 | L42: =(SUMIFS('Sprint-Z Hardening'!$E$12:$E$22,'Sprint-Z Hardening'!$C$12:$C$22,'Resource Planning'!$A42, 'Sprint-Z Hardening'!$D$12:$D$22,'Resource Planning'!$B42)*'Sprint-Z Hardening'!$D$6/'Sprint-Z Hardening'!$D$4 + SUMIFS('Consulting Services'!$I$9:$I$14,'Consulting Services'!$C$9:$C$14,'Resource Planning'!$A42,'Consulting Services'!$D$9:$D$14,'Resource Planning'!$B42)/SprintZLen)*L$9 -> 0 | M42: =(SUMIFS('Sprint-Z Hardening'!$E$12:$E$22,'Sprint-Z Hardening'!$C$12:$C$22,'Resource Planning'!$A42, 'Sprint-Z Hardening'!$D$12:$D$22,'Resource Planning'!$B42)*'Sprint-Z Hardening'!$D$6/'Sprint-Z Hardening'!$D$4 + SUMIFS('Consulting Services'!$I$9:$I$14,'Consulting Services'!$C$9:$C$14,'Resource Planning'!$A42,'Consulting Services'!$D$9:$D$14,'Resource Planning'!$B42)/SprintZLen)*M$9 -> 0 | N42: =(SUMIFS('Sprint-Z Hardening'!$E$12:$E$22,'Sprint-Z Hardening'!$C$12:$C$22,'Resource Planning'!$A42, 'Sprint-Z Hardening'!$D$12:$D$22,'Resource Planning'!$B42)*'Sprint-Z Hardening'!$D$6/'Sprint-Z Hardening'!$D$4 + SUMIFS('Consulting Services'!$I$9:$I$14,'Consulting Services'!$C$9:$C$14,'Resource Planning'!$A42,'Consulting Services'!$D$9:$D$14,'Resource Planning'!$B42)/SprintZLen)*N$9 -> 0 | O42: 0 | P42: Hide
A43: Partner | B43: Test Lead | C43: =SUM(D43:F43)/'Calculations Page'!$C$5 -> 0 | D43: =(SUMIFS('Sprint-Prepare'!$E$12:$E$23,'Sprint-Prepare'!$C$12:$C$23,'Resource Planning'!$A43, 'Sprint-Prepare'!$D$12:$D$23,'Resource Planning'!$B43)*'Sprint-Prepare'!$D$6/'Sprint-Prepare'!$D$4+ SUMIFS('Consulting Services'!$E$9:$E$14,'Consulting Services'!$C$9:$C$14,'Resource Planning'!$A43,'Consulting Services'!$D$9:$D$14,'Resource Planning'!$B43)/Sprint0Len)*D$9 -> 0 | E43: =(SUMIFS('Sprint-Prepare'!$E$12:$E$23,'Sprint-Prepare'!$C$12:$C$23,'Resource Planning'!$A43, 'Sprint-Prepare'!$D$12:$D$23,'Resource Planning'!$B43)*'Sprint-Prepare'!$D$6/'Sprint-Prepare'!$D$4+ SUMIFS('Consulting Services'!$E$9:$E$14,'Consulting Services'!$C$9:$C$14,'Resource Planning'!$A43,'Consulting Services'!$D$9:$D$14,'Resource Planning'!$B43)/Sprint0Len)*E$9 -> 0 | F43: =(SUMIFS('Sprint-Prepare'!$E$12:$E$23,'Sprint-Prepare'!$C$12:$C$23,'Resource Planning'!$A43, 'Sprint-Prepare'!$D$12:$D$23,'Resource Planning'!$B43)*'Sprint-Prepare'!$D$6/'Sprint-Prepare'!$D$4+ SUMIFS('Consulting Services'!$E$9:$E$14,'Consulting Services'!$C$9:$C$14,'Resource Planning'!$A43,'Consulting Services'!$D$9:$D$14,'Resource Planning'!$B43)/Sprint0Len)*F$9 -> 0 | G43: =IFERROR(SUM(H43:J43)/'Calculations Page'!$C$6,0) -> 0 | H43: =(SUMIFS('Sprint 1-Sprint N'!$E$12:$E$24,'Sprint 1-Sprint N'!$C$12:$C$24,'Resource Planning'!$A43, 'Sprint 1-Sprint N'!$D$12:$D$24,'Resource Planning'!$B43)*'Sprint 1-Sprint N'!$D$6/'Sprint 1-Sprint N'!$D$4 + SUMPRODUCT(('Consulting Services'!$C$9:$C$14='Resource Planning'!$A43)*('Consulting Services'!$D$9:$D$14='Resource Planning'!$B43)*(Sprint1NSvc='Resource Planning'!H$5)*('Consulting Services'!$F$9:$H$14))/Sprint1NLen)*H$9 -> 0 | I43: =(SUMIFS('Sprint 1-Sprint N'!$E$12:$E$24,'Sprint 1-Sprint N'!$C$12:$C$24,'Resource Planning'!$A43, 'Sprint 1-Sprint N'!$D$12:$D$24,'Resource Planning'!$B43)*'Sprint 1-Sprint N'!$D$6/'Sprint 1-Sprint N'!$D$4 + SUMPRODUCT(('Consulting Services'!$C$9:$C$14='Resource Planning'!$A43)*('Consulting Services'!$D$9:$D$14='Resource Planning'!$B43)*(Sprint1NSvc='Resource Planning'!I$5)*('Consulting Services'!$F$9:$H$14))/Sprint1NLen)*I$9 -> 0 | J43: =(SUMIFS('Sprint 1-Sprint N'!$E$12:$E$24,'Sprint 1-Sprint N'!$C$12:$C$24,'Resource Planning'!$A43, 'Sprint 1-Sprint N'!$D$12:$D$24,'Resource Planning'!$B43)*'Sprint 1-Sprint N'!$D$6/'Sprint 1-Sprint N'!$D$4 + SUMPRODUCT(('Consulting Services'!$C$9:$C$14='Resource Planning'!$A43)*('Consulting Services'!$D$9:$D$14='Resource Planning'!$B43)*(Sprint1NSvc='Resource Planning'!J$5)*('Consulting Services'!$F$9:$H$14))/Sprint1NLen)*J$9 -> 0 | K43: =SUM(L43:N43)/'Calculations Page'!$C$7 -> 0 | L43: =(SUMIFS('Sprint-Z Hardening'!$E$12:$E$22,'Sprint-Z Hardening'!$C$12:$C$22,'Resource Planning'!$A43, 'Sprint-Z Hardening'!$D$12:$D$22,'Resource Planning'!$B43)*'Sprint-Z Hardening'!$D$6/'Sprint-Z Hardening'!$D$4 + SUMIFS('Consulting Services'!$I$9:$I$14,'Consulting Services'!$C$9:$C$14,'Resource Planning'!$A43,'Consulting Services'!$D$9:$D$14,'Resource Planning'!$B43)/SprintZLen)*L$9 -> 0 | M43: =(SUMIFS('Sprint-Z Hardening'!$E$12:$E$22,'Sprint-Z Hardening'!$C$12:$C$22,'Resource Planning'!$A43, 'Sprint-Z Hardening'!$D$12:$D$22,'Resource Planning'!$B43)*'Sprint-Z Hardening'!$D$6/'Sprint-Z Hardening'!$D$4 + SUMIFS('Consulting Services'!$I$9:$I$14,'Consulting Services'!$C$9:$C$14,'Resource Planning'!$A43,'Consulting Services'!$D$9:$D$14,'Resource Planning'!$B43)/SprintZLen)*M$9 -> 0 | N43: =(SUMIFS('Sprint-Z Hardening'!$E$12:$E$22,'Sprint-Z Hardening'!$C$12:$C$22,'Resource Planning'!$A43, 'Sprint-Z Hardening'!$D$12:$D$22,'Resource Planning'!$B43)*'Sprint-Z Hardening'!$D$6/'Sprint-Z Hardening'!$D$4 + SUMIFS('Consulting Services'!$I$9:$I$14,'Consulting Services'!$C$9:$C$14,'Resource Planning'!$A43,'Consulting Services'!$D$9:$D$14,'Resource Planning'!$B43)/SprintZLen)*N$9 -> 0 | O43: =SUM(D43:F43,H43:J43,L43:N43) -> 0 | P43: Hide
A44: Partner | B44: Tester | C44: =SUM(D44:F44)/'Calculations Page'!$C$5 -> 0 | D44: =(SUMIFS('Sprint-Prepare'!$E$12:$E$23,'Sprint-Prepare'!$C$12:$C$23,'Resource Planning'!$A44, 'Sprint-Prepare'!$D$12:$D$23,'Resource Planning'!$B44)*'Sprint-Prepare'!$D$6/'Sprint-Prepare'!$D$4+ SUMIFS('Consulting Services'!$E$9:$E$14,'Consulting Services'!$C$9:$C$14,'Resource Planning'!$A44,'Consulting Services'!$D$9:$D$14,'Resource Planning'!$B44)/Sprint0Len)*D$9 -> 0 | E44: =(SUMIFS('Sprint-Prepare'!$E$12:$E$23,'Sprint-Prepare'!$C$12:$C$23,'Resource Planning'!$A44, 'Sprint-Prepare'!$D$12:$D$23,'Resource Planning'!$B44)*'Sprint-Prepare'!$D$6/'Sprint-Prepare'!$D$4+ SUMIFS('Consulting Services'!$E$9:$E$14,'Consulting Services'!$C$9:$C$14,'Resource Planning'!$A44,'Consulting Services'!$D$9:$D$14,'Resource Planning'!$B44)/Sprint0Len)*E$9 -> 0 | F44: =(SUMIFS('Sprint-Prepare'!$E$12:$E$23,'Sprint-Prepare'!$C$12:$C$23,'Resource Planning'!$A44, 'Sprint-Prepare'!$D$12:$D$23,'Resource Planning'!$B44)*'Sprint-Prepare'!$D$6/'Sprint-Prepare'!$D$4+ SUMIFS('Consulting Services'!$E$9:$E$14,'Consulting Services'!$C$9:$C$14,'Resource Planning'!$A44,'Consulting Services'!$D$9:$D$14,'Resource Planning'!$B44)/Sprint0Len)*F$9 -> 0 | G44: =IFERROR(SUM(H44:J44)/'Calculations Page'!$C$6,0) -> 0 | H44: =(SUMIFS('Sprint 1-Sprint N'!$E$12:$E$24,'Sprint 1-Sprint N'!$C$12:$C$24,'Resource Planning'!$A44, 'Sprint 1-Sprint N'!$D$12:$D$24,'Resource Planning'!$B44)*'Sprint 1-Sprint N'!$D$6/'Sprint 1-Sprint N'!$D$4 + SUMPRODUCT(('Consulting Services'!$C$9:$C$14='Resource Planning'!$A44)*('Consulting Services'!$D$9:$D$14='Resource Planning'!$B44)*(Sprint1NSvc='Resource Planning'!H$5)*('Consulting Services'!$F$9:$H$14))/Sprint1NLen)*H$9 -> 0 | I44: =(SUMIFS('Sprint 1-Sprint N'!$E$12:$E$24,'Sprint 1-Sprint N'!$C$12:$C$24,'Resource Planning'!$A44, 'Sprint 1-Sprint N'!$D$12:$D$24,'Resource Planning'!$B44)*'Sprint 1-Sprint N'!$D$6/'Sprint 1-Sprint N'!$D$4 + SUMPRODUCT(('Consulting Services'!$C$9:$C$14='Resource Planning'!$A44)*('Consulting Services'!$D$9:$D$14='Resource Planning'!$B44)*(Sprint1NSvc='Resource Planning'!I$5)*('Consulting Services'!$F$9:$H$14))/Sprint1NLen)*I$9 -> 0 | J44: =(SUMIFS('Sprint 1-Sprint N'!$E$12:$E$24,'Sprint 1-Sprint N'!$C$12:$C$24,'Resource Planning'!$A44, 'Sprint 1-Sprint N'!$D$12:$D$24,'Resource Planning'!$B44)*'Sprint 1-Sprint N'!$D$6/'Sprint 1-Sprint N'!$D$4 + SUMPRODUCT(('Consulting Services'!$C$9:$C$14='Resource Planning'!$A44)*('Consulting Services'!$D$9:$D$14='Resource Planning'!$B44)*(Sprint1NSvc='Resource Planning'!J$5)*('Consulting Services'!$F$9:$H$14))/Sprint1NLen)*J$9 -> 0 | K44: =SUM(L44:N44)/'Calculations Page'!$C$7 -> 0 | L44: =(SUMIFS('Sprint-Z Hardening'!$E$12:$E$22,'Sprint-Z Hardening'!$C$12:$C$22,'Resource Planning'!$A44, 'Sprint-Z Hardening'!$D$12:$D$22,'Resource Planning'!$B44)*'Sprint-Z Hardening'!$D$6/'Sprint-Z Hardening'!$D$4 + SUMIFS('Consulting Services'!$I$9:$I$14,'Consulting Services'!$C$9:$C$14,'Resource Planning'!$A44,'Consulting Services'!$D$9:$D$14,'Resource Planning'!$B44)/SprintZLen)*L$9 -> 0 | M44: =(SUMIFS('Sprint-Z Hardening'!$E$12:$E$22,'Sprint-Z Hardening'!$C$12:$C$22,'Resource Planning'!$A44, 'Sprint-Z Hardening'!$D$12:$D$22,'Resource Planning'!$B44)*'Sprint-Z Hardening'!$D$6/'Sprint-Z Hardening'!$D$4 + SUMIFS('Consulting Services'!$I$9:$I$14,'Consulting Services'!$C$9:$C$14,'Resource Planning'!$A44,'Consulting Services'!$D$9:$D$14,'Resource Planning'!$B44)/SprintZLen)*M$9 -> 0 | N44: =(SUMIFS('Sprint-Z Hardening'!$E$12:$E$22,'Sprint-Z Hardening'!$C$12:$C$22,'Resource Planning'!$A44, 'Sprint-Z Hardening'!$D$12:$D$22,'Resource Planning'!$B44)*'Sprint-Z Hardening'!$D$6/'Sprint-Z Hardening'!$D$4 + SUMIFS('Consulting Services'!$I$9:$I$14,'Consulting Services'!$C$9:$C$14,'Resource Planning'!$A44,'Consulting Services'!$D$9:$D$14,'Resource Planning'!$B44)/SprintZLen)*N$9 -> 0 | O44: 0 | P44: Hide
A45: Partner | B45: Business Architect | C45: =SUM(D45:F45)/'Calculations Page'!$C$5 -> 0 | D45: =(SUMIFS('Sprint-Prepare'!$E$12:$E$23,'Sprint-Prepare'!$C$12:$C$23,'Resource Planning'!$A45, 'Sprint-Prepare'!$D$12:$D$23,'Resource Planning'!$B45)*'Sprint-Prepare'!$D$6/'Sprint-Prepare'!$D$4+ SUMIFS('Consulting Services'!$E$9:$E$14,'Consulting Services'!$C$9:$C$14,'Resource Planning'!$A45,'Consulting Services'!$D$9:$D$14,'Resource Planning'!$B45)/Sprint0Len)*D$9 -> 0 | E45: =(SUMIFS('Sprint-Prepare'!$E$12:$E$23,'Sprint-Prepare'!$C$12:$C$23,'Resource Planning'!$A45, 'Sprint-Prepare'!$D$12:$D$23,'Resource Planning'!$B45)*'Sprint-Prepare'!$D$6/'Sprint-Prepare'!$D$4+ SUMIFS('Consulting Services'!$E$9:$E$14,'Consulting Services'!$C$9:$C$14,'Resource Planning'!$A45,'Consulting Services'!$D$9:$D$14,'Resource Planning'!$B45)/Sprint0Len)*E$9 -> 0 | F45: =(SUMIFS('Sprint-Prepare'!$E$12:$E$23,'Sprint-Prepare'!$C$12:$C$23,'Resource Planning'!$A45, 'Sprint-Prepare'!$D$12:$D$23,'Resource Planning'!$B45)*'Sprint-Prepare'!$D$6/'Sprint-Prepare'!$D$4+ SUMIFS('Consulting Services'!$E$9:$E$14,'Consulting Services'!$C$9:$C$14,'Resource Planning'!$A45,'Consulting Services'!$D$9:$D$14,'Resource Planning'!$B45)/Sprint0Len)*F$9 -> 0 | G45: =IFERROR(SUM(H45:J45)/'Calculations Page'!$C$6,0) -> 0 | H45: =(SUMIFS('Sprint 1-Sprint N'!$E$12:$E$24,'Sprint 1-Sprint N'!$C$12:$C$24,'Resource Planning'!$A45, 'Sprint 1-Sprint N'!$D$12:$D$24,'Resource Planning'!$B45)*'Sprint 1-Sprint N'!$D$6/'Sprint 1-Sprint N'!$D$4 + SUMPRODUCT(('Consulting Services'!$C$9:$C$14='Resource Planning'!$A45)*('Consulting Services'!$D$9:$D$14='Resource Planning'!$B45)*(Sprint1NSvc='Resource Planning'!H$5)*('Consulting Services'!$F$9:$H$14))/Sprint1NLen)*H$9 -> 0 | I45: =(SUMIFS('Sprint 1-Sprint N'!$E$12:$E$24,'Sprint 1-Sprint N'!$C$12:$C$24,'Resource Planning'!$A45, 'Sprint 1-Sprint N'!$D$12:$D$24,'Resource Planning'!$B45)*'Sprint 1-Sprint N'!$D$6/'Sprint 1-Sprint N'!$D$4 + SUMPRODUCT(('Consulting Services'!$C$9:$C$14='Resource Planning'!$A45)*('Consulting Services'!$D$9:$D$14='Resource Planning'!$B45)*(Sprint1NSvc='Resource Planning'!I$5)*('Consulting Services'!$F$9:$H$14))/Sprint1NLen)*I$9 -> 0 | J45: =(SUMIFS('Sprint 1-Sprint N'!$E$12:$E$24,'Sprint 1-Sprint N'!$C$12:$C$24,'Resource Planning'!$A45, 'Sprint 1-Sprint N'!$D$12:$D$24,'Resource Planning'!$B45)*'Sprint 1-Sprint N'!$D$6/'Sprint 1-Sprint N'!$D$4 + SUMPRODUCT(('Consulting Services'!$C$9:$C$14='Resource Planning'!$A45)*('Consulting Services'!$D$9:$D$14='Resource Planning'!$B45)*(Sprint1NSvc='Resource Planning'!J$5)*('Consulting Services'!$F$9:$H$14))/Sprint1NLen)*J$9 -> 0 | K45: =SUM(L45:N45)/'Calculations Page'!$C$7 -> 0 | L45: =(SUMIFS('Sprint-Z Hardening'!$E$12:$E$22,'Sprint-Z Hardening'!$C$12:$C$22,'Resource Planning'!$A45, 'Sprint-Z Hardening'!$D$12:$D$22,'Resource Planning'!$B45)*'Sprint-Z Hardening'!$D$6/'Sprint-Z Hardening'!$D$4 + SUMIFS('Consulting Services'!$I$9:$I$14,'Consulting Services'!$C$9:$C$14,'Resource Planning'!$A45,'Consulting Services'!$D$9:$D$14,'Resource Planning'!$B45)/SprintZLen)*L$9 -> 0 | M45: =(SUMIFS('Sprint-Z Hardening'!$E$12:$E$22,'Sprint-Z Hardening'!$C$12:$C$22,'Resource Planning'!$A45, 'Sprint-Z Hardening'!$D$12:$D$22,'Resource Planning'!$B45)*'Sprint-Z Hardening'!$D$6/'Sprint-Z Hardening'!$D$4 + SUMIFS('Consulting Services'!$I$9:$I$14,'Consulting Services'!$C$9:$C$14,'Resource Planning'!$A45,'Consulting Services'!$D$9:$D$14,'Resource Planning'!$B45)/SprintZLen)*M$9 -> 0 | N45: =(SUMIFS('Sprint-Z Hardening'!$E$12:$E$22,'Sprint-Z Hardening'!$C$12:$C$22,'Resource Planning'!$A45, 'Sprint-Z Hardening'!$D$12:$D$22,'Resource Planning'!$B45)*'Sprint-Z Hardening'!$D$6/'Sprint-Z Hardening'!$D$4 + SUMIFS('Consulting Services'!$I$9:$I$14,'Consulting Services'!$C$9:$C$14,'Resource Planning'!$A45,'Consulting Services'!$D$9:$D$14,'Resource Planning'!$B45)/SprintZLen)*N$9 -> 0 | O45: 0 | P45: Hide
A46: Partner | B46: System Architect | C46: =SUM(D46:F46)/'Calculations Page'!$C$5 -> 0 | D46: =(SUMIFS('Sprint-Prepare'!$E$12:$E$23,'Sprint-Prepare'!$C$12:$C$23,'Resource Planning'!$A46, 'Sprint-Prepare'!$D$12:$D$23,'Resource Planning'!$B46)*'Sprint-Prepare'!$D$6/'Sprint-Prepare'!$D$4+ SUMIFS('Consulting Services'!$E$9:$E$14,'Consulting Services'!$C$9:$C$14,'Resource Planning'!$A46,'Consulting Services'!$D$9:$D$14,'Resource Planning'!$B46)/Sprint0Len)*D$9 -> 0 | E46: =(SUMIFS('Sprint-Prepare'!$E$12:$E$23,'Sprint-Prepare'!$C$12:$C$23,'Resource Planning'!$A46, 'Sprint-Prepare'!$D$12:$D$23,'Resource Planning'!$B46)*'Sprint-Prepare'!$D$6/'Sprint-Prepare'!$D$4+ SUMIFS('Consulting Services'!$E$9:$E$14,'Consulting Services'!$C$9:$C$14,'Resource Planning'!$A46,'Consulting Services'!$D$9:$D$14,'Resource Planning'!$B46)/Sprint0Len)*E$9 -> 0 | F46: =(SUMIFS('Sprint-Prepare'!$E$12:$E$23,'Sprint-Prepare'!$C$12:$C$23,'Resource Planning'!$A46, 'Sprint-Prepare'!$D$12:$D$23,'Resource Planning'!$B46)*'Sprint-Prepare'!$D$6/'Sprint-Prepare'!$D$4+ SUMIFS('Consulting Services'!$E$9:$E$14,'Consulting Services'!$C$9:$C$14,'Resource Planning'!$A46,'Consulting Services'!$D$9:$D$14,'Resource Planning'!$B46)/Sprint0Len)*F$9 -> 0 | G46: =IFERROR(SUM(H46:J46)/'Calculations Page'!$C$6,0) -> 0 | H46: =(SUMIFS('Sprint 1-Sprint N'!$E$12:$E$24,'Sprint 1-Sprint N'!$C$12:$C$24,'Resource Planning'!$A46, 'Sprint 1-Sprint N'!$D$12:$D$24,'Resource Planning'!$B46)*'Sprint 1-Sprint N'!$D$6/'Sprint 1-Sprint N'!$D$4 + SUMPRODUCT(('Consulting Services'!$C$9:$C$14='Resource Planning'!$A46)*('Consulting Services'!$D$9:$D$14='Resource Planning'!$B46)*(Sprint1NSvc='Resource Planning'!H$5)*('Consulting Services'!$F$9:$H$14))/Sprint1NLen)*H$9 -> 0 | I46: =(SUMIFS('Sprint 1-Sprint N'!$E$12:$E$24,'Sprint 1-Sprint N'!$C$12:$C$24,'Resource Planning'!$A46, 'Sprint 1-Sprint N'!$D$12:$D$24,'Resource Planning'!$B46)*'Sprint 1-Sprint N'!$D$6/'Sprint 1-Sprint N'!$D$4 + SUMPRODUCT(('Consulting Services'!$C$9:$C$14='Resource Planning'!$A46)*('Consulting Services'!$D$9:$D$14='Resource Planning'!$B46)*(Sprint1NSvc='Resource Planning'!I$5)*('Consulting Services'!$F$9:$H$14))/Sprint1NLen)*I$9 -> 0 | J46: =(SUMIFS('Sprint 1-Sprint N'!$E$12:$E$24,'Sprint 1-Sprint N'!$C$12:$C$24,'Resource Planning'!$A46, 'Sprint 1-Sprint N'!$D$12:$D$24,'Resource Planning'!$B46)*'Sprint 1-Sprint N'!$D$6/'Sprint 1-Sprint N'!$D$4 + SUMPRODUCT(('Consulting Services'!$C$9:$C$14='Resource Planning'!$A46)*('Consulting Services'!$D$9:$D$14='Resource Planning'!$B46)*(Sprint1NSvc='Resource Planning'!J$5)*('Consulting Services'!$F$9:$H$14))/Sprint1NLen)*J$9 -> 0 | K46: =SUM(L46:N46)/'Calculations Page'!$C$7 -> 0 | L46: =(SUMIFS('Sprint-Z Hardening'!$E$12:$E$22,'Sprint-Z Hardening'!$C$12:$C$22,'Resource Planning'!$A46, 'Sprint-Z Hardening'!$D$12:$D$22,'Resource Planning'!$B46)*'Sprint-Z Hardening'!$D$6/'Sprint-Z Hardening'!$D$4 + SUMIFS('Consulting Services'!$I$9:$I$14,'Consulting Services'!$C$9:$C$14,'Resource Planning'!$A46,'Consulting Services'!$D$9:$D$14,'Resource Planning'!$B46)/SprintZLen)*L$9 -> 0 | M46: =(SUMIFS('Sprint-Z Hardening'!$E$12:$E$22,'Sprint-Z Hardening'!$C$12:$C$22,'Resource Planning'!$A46, 'Sprint-Z Hardening'!$D$12:$D$22,'Resource Planning'!$B46)*'Sprint-Z Hardening'!$D$6/'Sprint-Z Hardening'!$D$4 + SUMIFS('Consulting Services'!$I$9:$I$14,'Consulting Services'!$C$9:$C$14,'Resource Planning'!$A46,'Consulting Services'!$D$9:$D$14,'Resource Planning'!$B46)/SprintZLen)*M$9 -> 0 | N46: =(SUMIFS('Sprint-Z Hardening'!$E$12:$E$22,'Sprint-Z Hardening'!$C$12:$C$22,'Resource Planning'!$A46, 'Sprint-Z Hardening'!$D$12:$D$22,'Resource Planning'!$B46)*'Sprint-Z Hardening'!$D$6/'Sprint-Z Hardening'!$D$4 + SUMIFS('Consulting Services'!$I$9:$I$14,'Consulting Services'!$C$9:$C$14,'Resource Planning'!$A46,'Consulting Services'!$D$9:$D$14,'Resource Planning'!$B46)/SprintZLen)*N$9 -> 0 | O46: 0 | P46: Hide
A47: Partner | B47: Deployment Architect | C47: =SUM(D47:F47)/'Calculations Page'!$C$5 -> 0 | D47: =(SUMIFS('Sprint-Prepare'!$E$12:$E$23,'Sprint-Prepare'!$C$12:$C$23,'Resource Planning'!$A47, 'Sprint-Prepare'!$D$12:$D$23,'Resource Planning'!$B47)*'Sprint-Prepare'!$D$6/'Sprint-Prepare'!$D$4+ SUMIFS('Consulting Services'!$E$9:$E$14,'Consulting Services'!$C$9:$C$14,'Resource Planning'!$A47,'Consulting Services'!$D$9:$D$14,'Resource Planning'!$B47)/Sprint0Len)*D$9 -> 0 | E47: =(SUMIFS('Sprint-Prepare'!$E$12:$E$23,'Sprint-Prepare'!$C$12:$C$23,'Resource Planning'!$A47, 'Sprint-Prepare'!$D$12:$D$23,'Resource Planning'!$B47)*'Sprint-Prepare'!$D$6/'Sprint-Prepare'!$D$4+ SUMIFS('Consulting Services'!$E$9:$E$14,'Consulting Services'!$C$9:$C$14,'Resource Planning'!$A47,'Consulting Services'!$D$9:$D$14,'Resource Planning'!$B47)/Sprint0Len)*E$9 -> 0 | F47: =(SUMIFS('Sprint-Prepare'!$E$12:$E$23,'Sprint-Prepare'!$C$12:$C$23,'Resource Planning'!$A47, 'Sprint-Prepare'!$D$12:$D$23,'Resource Planning'!$B47)*'Sprint-Prepare'!$D$6/'Sprint-Prepare'!$D$4+ SUMIFS('Consulting Services'!$E$9:$E$14,'Consulting Services'!$C$9:$C$14,'Resource Planning'!$A47,'Consulting Services'!$D$9:$D$14,'Resource Planning'!$B47)/Sprint0Len)*F$9 -> 0 | G47: =IFERROR(SUM(H47:J47)/'Calculations Page'!$C$6,0) -> 0 | H47: =(SUMIFS('Sprint 1-Sprint N'!$E$12:$E$24,'Sprint 1-Sprint N'!$C$12:$C$24,'Resource Planning'!$A47, 'Sprint 1-Sprint N'!$D$12:$D$24,'Resource Planning'!$B47)*'Sprint 1-Sprint N'!$D$6/'Sprint 1-Sprint N'!$D$4 + SUMPRODUCT(('Consulting Services'!$C$9:$C$14='Resource Planning'!$A47)*('Consulting Services'!$D$9:$D$14='Resource Planning'!$B47)*(Sprint1NSvc='Resource Planning'!H$5)*('Consulting Services'!$F$9:$H$14))/Sprint1NLen)*H$9 -> 0 | I47: =(SUMIFS('Sprint 1-Sprint N'!$E$12:$E$24,'Sprint 1-Sprint N'!$C$12:$C$24,'Resource Planning'!$A47, 'Sprint 1-Sprint N'!$D$12:$D$24,'Resource Planning'!$B47)*'Sprint 1-Sprint N'!$D$6/'Sprint 1-Sprint N'!$D$4 + SUMPRODUCT(('Consulting Services'!$C$9:$C$14='Resource Planning'!$A47)*('Consulting Services'!$D$9:$D$14='Resource Planning'!$B47)*(Sprint1NSvc='Resource Planning'!I$5)*('Consulting Services'!$F$9:$H$14))/Sprint1NLen)*I$9 -> 0 | J47: =(SUMIFS('Sprint 1-Sprint N'!$E$12:$E$24,'Sprint 1-Sprint N'!$C$12:$C$24,'Resource Planning'!$A47, 'Sprint 1-Sprint N'!$D$12:$D$24,'Resource Planning'!$B47)*'Sprint 1-Sprint N'!$D$6/'Sprint 1-Sprint N'!$D$4 + SUMPRODUCT(('Consulting Services'!$C$9:$C$14='Resource Planning'!$A47)*('Consulting Services'!$D$9:$D$14='Resource Planning'!$B47)*(Sprint1NSvc='Resource Planning'!J$5)*('Consulting Services'!$F$9:$H$14))/Sprint1NLen)*J$9 -> 0 | K47: =SUM(L47:N47)/'Calculations Page'!$C$7 -> 0 | L47: =(SUMIFS('Sprint-Z Hardening'!$E$12:$E$22,'Sprint-Z Hardening'!$C$12:$C$22,'Resource Planning'!$A47, 'Sprint-Z Hardening'!$D$12:$D$22,'Resource Planning'!$B47)*'Sprint-Z Hardening'!$D$6/'Sprint-Z Hardening'!$D$4 + SUMIFS('Consulting Services'!$I$9:$I$14,'Consulting Services'!$C$9:$C$14,'Resource Planning'!$A47,'Consulting Services'!$D$9:$D$14,'Resource Planning'!$B47)/SprintZLen)*L$9 -> 0 | M47: =(SUMIFS('Sprint-Z Hardening'!$E$12:$E$22,'Sprint-Z Hardening'!$C$12:$C$22,'Resource Planning'!$A47, 'Sprint-Z Hardening'!$D$12:$D$22,'Resource Planning'!$B47)*'Sprint-Z Hardening'!$D$6/'Sprint-Z Hardening'!$D$4 + SUMIFS('Consulting Services'!$I$9:$I$14,'Consulting Services'!$C$9:$C$14,'Resource Planning'!$A47,'Consulting Services'!$D$9:$D$14,'Resource Planning'!$B47)/SprintZLen)*M$9 -> 0 | N47: =(SUMIFS('Sprint-Z Hardening'!$E$12:$E$22,'Sprint-Z Hardening'!$C$12:$C$22,'Resource Planning'!$A47, 'Sprint-Z Hardening'!$D$12:$D$22,'Resource Planning'!$B47)*'Sprint-Z Hardening'!$D$6/'Sprint-Z Hardening'!$D$4 + SUMIFS('Consulting Services'!$I$9:$I$14,'Consulting Services'!$C$9:$C$14,'Resource Planning'!$A47,'Consulting Services'!$D$9:$D$14,'Resource Planning'!$B47)/SprintZLen)*N$9 -> 0 | O47: 0 | P47: Hide
A48: Partner | B48: Associate System Architect | C48: =SUM(D48:F48)/'Calculations Page'!$C$5 -> 0 | D48: =(SUMIFS('Sprint-Prepare'!$E$12:$E$23,'Sprint-Prepare'!$C$12:$C$23,'Resource Planning'!$A48, 'Sprint-Prepare'!$D$12:$D$23,'Resource Planning'!$B48)*'Sprint-Prepare'!$D$6/'Sprint-Prepare'!$D$4+ SUMIFS('Consulting Services'!$E$9:$E$14,'Consulting Services'!$C$9:$C$14,'Resource Planning'!$A48,'Consulting Services'!$D$9:$D$14,'Resource Planning'!$B48)/Sprint0Len)*D$9 -> 0 | E48: =(SUMIFS('Sprint-Prepare'!$E$12:$E$23,'Sprint-Prepare'!$C$12:$C$23,'Resource Planning'!$A48, 'Sprint-Prepare'!$D$12:$D$23,'Resource Planning'!$B48)*'Sprint-Prepare'!$D$6/'Sprint-Prepare'!$D$4+ SUMIFS('Consulting Services'!$E$9:$E$14,'Consulting Services'!$C$9:$C$14,'Resource Planning'!$A48,'Consulting Services'!$D$9:$D$14,'Resource Planning'!$B48)/Sprint0Len)*E$9 -> 0 | F48: =(SUMIFS('Sprint-Prepare'!$E$12:$E$23,'Sprint-Prepare'!$C$12:$C$23,'Resource Planning'!$A48, 'Sprint-Prepare'!$D$12:$D$23,'Resource Planning'!$B48)*'Sprint-Prepare'!$D$6/'Sprint-Prepare'!$D$4+ SUMIFS('Consulting Services'!$E$9:$E$14,'Consulting Services'!$C$9:$C$14,'Resource Planning'!$A48,'Consulting Services'!$D$9:$D$14,'Resource Planning'!$B48)/Sprint0Len)*F$9 -> 0 | G48: =IFERROR(SUM(H48:J48)/'Calculations Page'!$C$6,0) -> 0 | H48: =(SUMIFS('Sprint 1-Sprint N'!$E$12:$E$24,'Sprint 1-Sprint N'!$C$12:$C$24,'Resource Planning'!$A48, 'Sprint 1-Sprint N'!$D$12:$D$24,'Resource Planning'!$B48)*'Sprint 1-Sprint N'!$D$6/'Sprint 1-Sprint N'!$D$4 + SUMPRODUCT(('Consulting Services'!$C$9:$C$14='Resource Planning'!$A48)*('Consulting Services'!$D$9:$D$14='Resource Planning'!$B48)*(Sprint1NSvc='Resource Planning'!H$5)*('Consulting Services'!$F$9:$H$14))/Sprint1NLen)*H$9 -> 0 | I48: =(SUMIFS('Sprint 1-Sprint N'!$E$12:$E$24,'Sprint 1-Sprint N'!$C$12:$C$24,'Resource Planning'!$A48, 'Sprint 1-Sprint N'!$D$12:$D$24,'Resource Planning'!$B48)*'Sprint 1-Sprint N'!$D$6/'Sprint 1-Sprint N'!$D$4 + SUMPRODUCT(('Consulting Services'!$C$9:$C$14='Resource Planning'!$A48)*('Consulting Services'!$D$9:$D$14='Resource Planning'!$B48)*(Sprint1NSvc='Resource Planning'!I$5)*('Consulting Services'!$F$9:$H$14))/Sprint1NLen)*I$9 -> 0 | J48: =(SUMIFS('Sprint 1-Sprint N'!$E$12:$E$24,'Sprint 1-Sprint N'!$C$12:$C$24,'Resource Planning'!$A48, 'Sprint 1-Sprint N'!$D$12:$D$24,'Resource Planning'!$B48)*'Sprint 1-Sprint N'!$D$6/'Sprint 1-Sprint N'!$D$4 + SUMPRODUCT(('Consulting Services'!$C$9:$C$14='Resource Planning'!$A48)*('Consulting Services'!$D$9:$D$14='Resource Planning'!$B48)*(Sprint1NSvc='Resource Planning'!J$5)*('Consulting Services'!$F$9:$H$14))/Sprint1NLen)*J$9 -> 0 | K48: =SUM(L48:N48)/'Calculations Page'!$C$7 -> 0 | L48: =(SUMIFS('Sprint-Z Hardening'!$E$12:$E$22,'Sprint-Z Hardening'!$C$12:$C$22,'Resource Planning'!$A48, 'Sprint-Z Hardening'!$D$12:$D$22,'Resource Planning'!$B48)*'Sprint-Z Hardening'!$D$6/'Sprint-Z Hardening'!$D$4 + SUMIFS('Consulting Services'!$I$9:$I$14,'Consulting Services'!$C$9:$C$14,'Resource Planning'!$A48,'Consulting Services'!$D$9:$D$14,'Resource Planning'!$B48)/SprintZLen)*L$9 -> 0 | M48: =(SUMIFS('Sprint-Z Hardening'!$E$12:$E$22,'Sprint-Z Hardening'!$C$12:$C$22,'Resource Planning'!$A48, 'Sprint-Z Hardening'!$D$12:$D$22,'Resource Planning'!$B48)*'Sprint-Z Hardening'!$D$6/'Sprint-Z Hardening'!$D$4 + SUMIFS('Consulting Services'!$I$9:$I$14,'Consulting Services'!$C$9:$C$14,'Resource Planning'!$A48,'Consulting Services'!$D$9:$D$14,'Resource Planning'!$B48)/SprintZLen)*M$9 -> 0 | N48: =(SUMIFS('Sprint-Z Hardening'!$E$12:$E$22,'Sprint-Z Hardening'!$C$12:$C$22,'Resource Planning'!$A48, 'Sprint-Z Hardening'!$D$12:$D$22,'Resource Planning'!$B48)*'Sprint-Z Hardening'!$D$6/'Sprint-Z Hardening'!$D$4 + SUMIFS('Consulting Services'!$I$9:$I$14,'Consulting Services'!$C$9:$C$14,'Resource Planning'!$A48,'Consulting Services'!$D$9:$D$14,'Resource Planning'!$B48)/SprintZLen)*N$9 -> 0 | O48: 0 | P48: Hide
A49: Client | B49: Practice Leader | C49: =SUM(D49:F49)/'Calculations Page'!$C$5 -> 0 | D49: =(SUMIFS('Sprint-Prepare'!$E$12:$E$23,'Sprint-Prepare'!$C$12:$C$23,'Resource Planning'!$A49, 'Sprint-Prepare'!$D$12:$D$23,'Resource Planning'!$B49)*'Sprint-Prepare'!$D$6/'Sprint-Prepare'!$D$4+ SUMIFS('Consulting Services'!$E$9:$E$14,'Consulting Services'!$C$9:$C$14,'Resource Planning'!$A49,'Consulting Services'!$D$9:$D$14,'Resource Planning'!$B49)/Sprint0Len)*D$9 -> 0 | E49: =(SUMIFS('Sprint-Prepare'!$E$12:$E$23,'Sprint-Prepare'!$C$12:$C$23,'Resource Planning'!$A49, 'Sprint-Prepare'!$D$12:$D$23,'Resource Planning'!$B49)*'Sprint-Prepare'!$D$6/'Sprint-Prepare'!$D$4+ SUMIFS('Consulting Services'!$E$9:$E$14,'Consulting Services'!$C$9:$C$14,'Resource Planning'!$A49,'Consulting Services'!$D$9:$D$14,'Resource Planning'!$B49)/Sprint0Len)*E$9 -> 0 | F49: =(SUMIFS('Sprint-Prepare'!$E$12:$E$23,'Sprint-Prepare'!$C$12:$C$23,'Resource Planning'!$A49, 'Sprint-Prepare'!$D$12:$D$23,'Resource Planning'!$B49)*'Sprint-Prepare'!$D$6/'Sprint-Prepare'!$D$4+ SUMIFS('Consulting Services'!$E$9:$E$14,'Consulting Services'!$C$9:$C$14,'Resource Planning'!$A49,'Consulting Services'!$D$9:$D$14,'Resource Planning'!$B49)/Sprint0Len)*F$9 -> 0 | G49: =IFERROR(SUM(H49:J49)/'Calculations Page'!$C$6,0) -> 0 | H49: =(SUMIFS('Sprint 1-Sprint N'!$E$12:$E$24,'Sprint 1-Sprint N'!$C$12:$C$24,'Resource Planning'!$A49, 'Sprint 1-Sprint N'!$D$12:$D$24,'Resource Planning'!$B49)*'Sprint 1-Sprint N'!$D$6/'Sprint 1-Sprint N'!$D$4 + SUMPRODUCT(('Consulting Services'!$C$9:$C$14='Resource Planning'!$A49)*('Consulting Services'!$D$9:$D$14='Resource Planning'!$B49)*(Sprint1NSvc='Resource Planning'!H$5)*('Consulting Services'!$F$9:$H$14))/Sprint1NLen)*H$9 -> 0 | I49: =(SUMIFS('Sprint 1-Sprint N'!$E$12:$E$24,'Sprint 1-Sprint N'!$C$12:$C$24,'Resource Planning'!$A49, 'Sprint 1-Sprint N'!$D$12:$D$24,'Resource Planning'!$B49)*'Sprint 1-Sprint N'!$D$6/'Sprint 1-Sprint N'!$D$4 + SUMPRODUCT(('Consulting Services'!$C$9:$C$14='Resource Planning'!$A49)*('Consulting Services'!$D$9:$D$14='Resource Planning'!$B49)*(Sprint1NSvc='Resource Planning'!I$5)*('Consulting Services'!$F$9:$H$14))/Sprint1NLen)*I$9 -> 0 | J49: =(SUMIFS('Sprint 1-Sprint N'!$E$12:$E$24,'Sprint 1-Sprint N'!$C$12:$C$24,'Resource Planning'!$A49, 'Sprint 1-Sprint N'!$D$12:$D$24,'Resource Planning'!$B49)*'Sprint 1-Sprint N'!$D$6/'Sprint 1-Sprint N'!$D$4 + SUMPRODUCT(('Consulting Services'!$C$9:$C$14='Resource Planning'!$A49)*('Consulting Services'!$D$9:$D$14='Resource Planning'!$B49)*(Sprint1NSvc='Resource Planning'!J$5)*('Consulting Services'!$F$9:$H$14))/Sprint1NLen)*J$9 -> 0 | K49: =SUM(L49:N49)/'Calculations Page'!$C$7 -> 0 | L49: =(SUMIFS('Sprint-Z Hardening'!$E$12:$E$22,'Sprint-Z Hardening'!$C$12:$C$22,'Resource Planning'!$A49, 'Sprint-Z Hardening'!$D$12:$D$22,'Resource Planning'!$B49)*'Sprint-Z Hardening'!$D$6/'Sprint-Z Hardening'!$D$4 + SUMIFS('Consulting Services'!$I$9:$I$14,'Consulting Services'!$C$9:$C$14,'Resource Planning'!$A49,'Consulting Services'!$D$9:$D$14,'Resource Planning'!$B49)/SprintZLen)*L$9 -> 0 | M49: =(SUMIFS('Sprint-Z Hardening'!$E$12:$E$22,'Sprint-Z Hardening'!$C$12:$C$22,'Resource Planning'!$A49, 'Sprint-Z Hardening'!$D$12:$D$22,'Resource Planning'!$B49)*'Sprint-Z Hardening'!$D$6/'Sprint-Z Hardening'!$D$4 + SUMIFS('Consulting Services'!$I$9:$I$14,'Consulting Services'!$C$9:$C$14,'Resource Planning'!$A49,'Consulting Services'!$D$9:$D$14,'Resource Planning'!$B49)/SprintZLen)*M$9 -> 0 | N49: =(SUMIFS('Sprint-Z Hardening'!$E$12:$E$22,'Sprint-Z Hardening'!$C$12:$C$22,'Resource Planning'!$A49, 'Sprint-Z Hardening'!$D$12:$D$22,'Resource Planning'!$B49)*'Sprint-Z Hardening'!$D$6/'Sprint-Z Hardening'!$D$4 + SUMIFS('Consulting Services'!$I$9:$I$14,'Consulting Services'!$C$9:$C$14,'Resource Planning'!$A49,'Consulting Services'!$D$9:$D$14,'Resource Planning'!$B49)/SprintZLen)*N$9 -> 0 | O49: 0 | P49: Hide
A50: Client | B50: Project Delivery Leader | C50: =SUM(D50:F50)/'Calculations Page'!$C$5 -> 0 | D50: =(SUMIFS('Sprint-Prepare'!$E$12:$E$23,'Sprint-Prepare'!$C$12:$C$23,'Resource Planning'!$A50, 'Sprint-Prepare'!$D$12:$D$23,'Resource Planning'!$B50)*'Sprint-Prepare'!$D$6/'Sprint-Prepare'!$D$4+ SUMIFS('Consulting Services'!$E$9:$E$14,'Consulting Services'!$C$9:$C$14,'Resource Planning'!$A50,'Consulting Services'!$D$9:$D$14,'Resource Planning'!$B50)/Sprint0Len)*D$9 -> 0 | E50: =(SUMIFS('Sprint-Prepare'!$E$12:$E$23,'Sprint-Prepare'!$C$12:$C$23,'Resource Planning'!$A50, 'Sprint-Prepare'!$D$12:$D$23,'Resource Planning'!$B50)*'Sprint-Prepare'!$D$6/'Sprint-Prepare'!$D$4+ SUMIFS('Consulting Services'!$E$9:$E$14,'Consulting Services'!$C$9:$C$14,'Resource Planning'!$A50,'Consulting Services'!$D$9:$D$14,'Resource Planning'!$B50)/Sprint0Len)*E$9 -> 0 | F50: =(SUMIFS('Sprint-Prepare'!$E$12:$E$23,'Sprint-Prepare'!$C$12:$C$23,'Resource Planning'!$A50, 'Sprint-Prepare'!$D$12:$D$23,'Resource Planning'!$B50)*'Sprint-Prepare'!$D$6/'Sprint-Prepare'!$D$4+ SUMIFS('Consulting Services'!$E$9:$E$14,'Consulting Services'!$C$9:$C$14,'Resource Planning'!$A50,'Consulting Services'!$D$9:$D$14,'Resource Planning'!$B50)/Sprint0Len)*F$9 -> 0 | G50: =IFERROR(SUM(H50:J50)/'Calculations Page'!$C$6,0) -> 0 | H50: =(SUMIFS('Sprint 1-Sprint N'!$E$12:$E$24,'Sprint 1-Sprint N'!$C$12:$C$24,'Resource Planning'!$A50, 'Sprint 1-Sprint N'!$D$12:$D$24,'Resource Planning'!$B50)*'Sprint 1-Sprint N'!$D$6/'Sprint 1-Sprint N'!$D$4 + SUMPRODUCT(('Consulting Services'!$C$9:$C$14='Resource Planning'!$A50)*('Consulting Services'!$D$9:$D$14='Resource Planning'!$B50)*(Sprint1NSvc='Resource Planning'!H$5)*('Consulting Services'!$F$9:$H$14))/Sprint1NLen)*H$9 -> 0 | I50: =(SUMIFS('Sprint 1-Sprint N'!$E$12:$E$24,'Sprint 1-Sprint N'!$C$12:$C$24,'Resource Planning'!$A50, 'Sprint 1-Sprint N'!$D$12:$D$24,'Resource Planning'!$B50)*'Sprint 1-Sprint N'!$D$6/'Sprint 1-Sprint N'!$D$4 + SUMPRODUCT(('Consulting Services'!$C$9:$C$14='Resource Planning'!$A50)*('Consulting Services'!$D$9:$D$14='Resource Planning'!$B50)*(Sprint1NSvc='Resource Planning'!I$5)*('Consulting Services'!$F$9:$H$14))/Sprint1NLen)*I$9 -> 0 | J50: =(SUMIFS('Sprint 1-Sprint N'!$E$12:$E$24,'Sprint 1-Sprint N'!$C$12:$C$24,'Resource Planning'!$A50, 'Sprint 1-Sprint N'!$D$12:$D$24,'Resource Planning'!$B50)*'Sprint 1-Sprint N'!$D$6/'Sprint 1-Sprint N'!$D$4 + SUMPRODUCT(('Consulting Services'!$C$9:$C$14='Resource Planning'!$A50)*('Consulting Services'!$D$9:$D$14='Resource Planning'!$B50)*(Sprint1NSvc='Resource Planning'!J$5)*('Consulting Services'!$F$9:$H$14))/Sprint1NLen)*J$9 -> 0 | K50: =SUM(L50:N50)/'Calculations Page'!$C$7 -> 0 | L50: =(SUMIFS('Sprint-Z Hardening'!$E$12:$E$22,'Sprint-Z Hardening'!$C$12:$C$22,'Resource Planning'!$A50, 'Sprint-Z Hardening'!$D$12:$D$22,'Resource Planning'!$B50)*'Sprint-Z Hardening'!$D$6/'Sprint-Z Hardening'!$D$4 + SUMIFS('Consulting Services'!$I$9:$I$14,'Consulting Services'!$C$9:$C$14,'Resource Planning'!$A50,'Consulting Services'!$D$9:$D$14,'Resource Planning'!$B50)/SprintZLen)*L$9 -> 0 | M50: =(SUMIFS('Sprint-Z Hardening'!$E$12:$E$22,'Sprint-Z Hardening'!$C$12:$C$22,'Resource Planning'!$A50, 'Sprint-Z Hardening'!$D$12:$D$22,'Resource Planning'!$B50)*'Sprint-Z Hardening'!$D$6/'Sprint-Z Hardening'!$D$4 + SUMIFS('Consulting Services'!$I$9:$I$14,'Consulting Services'!$C$9:$C$14,'Resource Planning'!$A50,'Consulting Services'!$D$9:$D$14,'Resource Planning'!$B50)/SprintZLen)*M$9 -> 0 | N50: =(SUMIFS('Sprint-Z Hardening'!$E$12:$E$22,'Sprint-Z Hardening'!$C$12:$C$22,'Resource Planning'!$A50, 'Sprint-Z Hardening'!$D$12:$D$22,'Resource Planning'!$B50)*'Sprint-Z Hardening'!$D$6/'Sprint-Z Hardening'!$D$4 + SUMIFS('Consulting Services'!$I$9:$I$14,'Consulting Services'!$C$9:$C$14,'Resource Planning'!$A50,'Consulting Services'!$D$9:$D$14,'Resource Planning'!$B50)/SprintZLen)*N$9 -> 0 | O50: 0 | P50: Hide
A51: Client | B51: (L/S) Business Architect | C51: =SUM(D51:F51)/'Calculations Page'!$C$5 -> 0 | D51: =(SUMIFS('Sprint-Prepare'!$E$12:$E$23,'Sprint-Prepare'!$C$12:$C$23,'Resource Planning'!$A51, 'Sprint-Prepare'!$D$12:$D$23,'Resource Planning'!$B51)*'Sprint-Prepare'!$D$6/'Sprint-Prepare'!$D$4+ SUMIFS('Consulting Services'!$E$9:$E$14,'Consulting Services'!$C$9:$C$14,'Resource Planning'!$A51,'Consulting Services'!$D$9:$D$14,'Resource Planning'!$B51)/Sprint0Len)*D$9 -> 0 | E51: =(SUMIFS('Sprint-Prepare'!$E$12:$E$23,'Sprint-Prepare'!$C$12:$C$23,'Resource Planning'!$A51, 'Sprint-Prepare'!$D$12:$D$23,'Resource Planning'!$B51)*'Sprint-Prepare'!$D$6/'Sprint-Prepare'!$D$4+ SUMIFS('Consulting Services'!$E$9:$E$14,'Consulting Services'!$C$9:$C$14,'Resource Planning'!$A51,'Consulting Services'!$D$9:$D$14,'Resource Planning'!$B51)/Sprint0Len)*E$9 -> 0 | F51: =(SUMIFS('Sprint-Prepare'!$E$12:$E$23,'Sprint-Prepare'!$C$12:$C$23,'Resource Planning'!$A51, 'Sprint-Prepare'!$D$12:$D$23,'Resource Planning'!$B51)*'Sprint-Prepare'!$D$6/'Sprint-Prepare'!$D$4+ SUMIFS('Consulting Services'!$E$9:$E$14,'Consulting Services'!$C$9:$C$14,'Resource Planning'!$A51,'Consulting Services'!$D$9:$D$14,'Resource Planning'!$B51)/Sprint0Len)*F$9 -> 0 | G51: =IFERROR(SUM(H51:J51)/'Calculations Page'!$C$6,0) -> 0 | H51: =(SUMIFS('Sprint 1-Sprint N'!$E$12:$E$24,'Sprint 1-Sprint N'!$C$12:$C$24,'Resource Planning'!$A51, 'Sprint 1-Sprint N'!$D$12:$D$24,'Resource Planning'!$B51)*'Sprint 1-Sprint N'!$D$6/'Sprint 1-Sprint N'!$D$4 + SUMPRODUCT(('Consulting Services'!$C$9:$C$14='Resource Planning'!$A51)*('Consulting Services'!$D$9:$D$14='Resource Planning'!$B51)*(Sprint1NSvc='Resource Planning'!H$5)*('Consulting Services'!$F$9:$H$14))/Sprint1NLen)*H$9 -> 0 | I51: =(SUMIFS('Sprint 1-Sprint N'!$E$12:$E$24,'Sprint 1-Sprint N'!$C$12:$C$24,'Resource Planning'!$A51, 'Sprint 1-Sprint N'!$D$12:$D$24,'Resource Planning'!$B51)*'Sprint 1-Sprint N'!$D$6/'Sprint 1-Sprint N'!$D$4 + SUMPRODUCT(('Consulting Services'!$C$9:$C$14='Resource Planning'!$A51)*('Consulting Services'!$D$9:$D$14='Resource Planning'!$B51)*(Sprint1NSvc='Resource Planning'!I$5)*('Consulting Services'!$F$9:$H$14))/Sprint1NLen)*I$9 -> 0 | J51: =(SUMIFS('Sprint 1-Sprint N'!$E$12:$E$24,'Sprint 1-Sprint N'!$C$12:$C$24,'Resource Planning'!$A51, 'Sprint 1-Sprint N'!$D$12:$D$24,'Resource Planning'!$B51)*'Sprint 1-Sprint N'!$D$6/'Sprint 1-Sprint N'!$D$4 + SUMPRODUCT(('Consulting Services'!$C$9:$C$14='Resource Planning'!$A51)*('Consulting Services'!$D$9:$D$14='Resource Planning'!$B51)*(Sprint1NSvc='Resource Planning'!J$5)*('Consulting Services'!$F$9:$H$14))/Sprint1NLen)*J$9 -> 0 | K51: =SUM(L51:N51)/'Calculations Page'!$C$7 -> 0 | L51: =(SUMIFS('Sprint-Z Hardening'!$E$12:$E$22,'Sprint-Z Hardening'!$C$12:$C$22,'Resource Planning'!$A51, 'Sprint-Z Hardening'!$D$12:$D$22,'Resource Planning'!$B51)*'Sprint-Z Hardening'!$D$6/'Sprint-Z Hardening'!$D$4 + SUMIFS('Consulting Services'!$I$9:$I$14,'Consulting Services'!$C$9:$C$14,'Resource Planning'!$A51,'Consulting Services'!$D$9:$D$14,'Resource Planning'!$B51)/SprintZLen)*L$9 -> 0 | M51: =(SUMIFS('Sprint-Z Hardening'!$E$12:$E$22,'Sprint-Z Hardening'!$C$12:$C$22,'Resource Planning'!$A51, 'Sprint-Z Hardening'!$D$12:$D$22,'Resource Planning'!$B51)*'Sprint-Z Hardening'!$D$6/'Sprint-Z Hardening'!$D$4 + SUMIFS('Consulting Services'!$I$9:$I$14,'Consulting Services'!$C$9:$C$14,'Resource Planning'!$A51,'Consulting Services'!$D$9:$D$14,'Resource Planning'!$B51)/SprintZLen)*M$9 -> 0 | N51: =(SUMIFS('Sprint-Z Hardening'!$E$12:$E$22,'Sprint-Z Hardening'!$C$12:$C$22,'Resource Planning'!$A51, 'Sprint-Z Hardening'!$D$12:$D$22,'Resource Planning'!$B51)*'Sprint-Z Hardening'!$D$6/'Sprint-Z Hardening'!$D$4 + SUMIFS('Consulting Services'!$I$9:$I$14,'Consulting Services'!$C$9:$C$14,'Resource Planning'!$A51,'Consulting Services'!$D$9:$D$14,'Resource Planning'!$B51)/SprintZLen)*N$9 -> 0 | O51: 0 | P51: Hide
A52: Client | B52: Lead System Architect | C52: =SUM(D52:F52)/'Calculations Page'!$C$5 -> 0 | D52: =(SUMIFS('Sprint-Prepare'!$E$12:$E$23,'Sprint-Prepare'!$C$12:$C$23,'Resource Planning'!$A52, 'Sprint-Prepare'!$D$12:$D$23,'Resource Planning'!$B52)*'Sprint-Prepare'!$D$6/'Sprint-Prepare'!$D$4+ SUMIFS('Consulting Services'!$E$9:$E$14,'Consulting Services'!$C$9:$C$14,'Resource Planning'!$A52,'Consulting Services'!$D$9:$D$14,'Resource Planning'!$B52)/Sprint0Len)*D$9 -> 0 | E52: =(SUMIFS('Sprint-Prepare'!$E$12:$E$23,'Sprint-Prepare'!$C$12:$C$23,'Resource Planning'!$A52, 'Sprint-Prepare'!$D$12:$D$23,'Resource Planning'!$B52)*'Sprint-Prepare'!$D$6/'Sprint-Prepare'!$D$4+ SUMIFS('Consulting Services'!$E$9:$E$14,'Consulting Services'!$C$9:$C$14,'Resource Planning'!$A52,'Consulting Services'!$D$9:$D$14,'Resource Planning'!$B52)/Sprint0Len)*E$9 -> 0 | F52: =(SUMIFS('Sprint-Prepare'!$E$12:$E$23,'Sprint-Prepare'!$C$12:$C$23,'Resource Planning'!$A52, 'Sprint-Prepare'!$D$12:$D$23,'Resource Planning'!$B52)*'Sprint-Prepare'!$D$6/'Sprint-Prepare'!$D$4+ SUMIFS('Consulting Services'!$E$9:$E$14,'Consulting Services'!$C$9:$C$14,'Resource Planning'!$A52,'Consulting Services'!$D$9:$D$14,'Resource Planning'!$B52)/Sprint0Len)*F$9 -> 0 | G52: =IFERROR(SUM(H52:J52)/'Calculations Page'!$C$6,0) -> 0 | H52: =(SUMIFS('Sprint 1-Sprint N'!$E$12:$E$24,'Sprint 1-Sprint N'!$C$12:$C$24,'Resource Planning'!$A52, 'Sprint 1-Sprint N'!$D$12:$D$24,'Resource Planning'!$B52)*'Sprint 1-Sprint N'!$D$6/'Sprint 1-Sprint N'!$D$4 + SUMPRODUCT(('Consulting Services'!$C$9:$C$14='Resource Planning'!$A52)*('Consulting Services'!$D$9:$D$14='Resource Planning'!$B52)*(Sprint1NSvc='Resource Planning'!H$5)*('Consulting Services'!$F$9:$H$14))/Sprint1NLen)*H$9 -> 0 | I52: =(SUMIFS('Sprint 1-Sprint N'!$E$12:$E$24,'Sprint 1-Sprint N'!$C$12:$C$24,'Resource Planning'!$A52, 'Sprint 1-Sprint N'!$D$12:$D$24,'Resource Planning'!$B52)*'Sprint 1-Sprint N'!$D$6/'Sprint 1-Sprint N'!$D$4 + SUMPRODUCT(('Consulting Services'!$C$9:$C$14='Resource Planning'!$A52)*('Consulting Services'!$D$9:$D$14='Resource Planning'!$B52)*(Sprint1NSvc='Resource Planning'!I$5)*('Consulting Services'!$F$9:$H$14))/Sprint1NLen)*I$9 -> 0 | J52: =(SUMIFS('Sprint 1-Sprint N'!$E$12:$E$24,'Sprint 1-Sprint N'!$C$12:$C$24,'Resource Planning'!$A52, 'Sprint 1-Sprint N'!$D$12:$D$24,'Resource Planning'!$B52)*'Sprint 1-Sprint N'!$D$6/'Sprint 1-Sprint N'!$D$4 + SUMPRODUCT(('Consulting Services'!$C$9:$C$14='Resource Planning'!$A52)*('Consulting Services'!$D$9:$D$14='Resource Planning'!$B52)*(Sprint1NSvc='Resource Planning'!J$5)*('Consulting Services'!$F$9:$H$14))/Sprint1NLen)*J$9 -> 0 | K52: =SUM(L52:N52)/'Calculations Page'!$C$7 -> 0 | L52: =(SUMIFS('Sprint-Z Hardening'!$E$12:$E$22,'Sprint-Z Hardening'!$C$12:$C$22,'Resource Planning'!$A52, 'Sprint-Z Hardening'!$D$12:$D$22,'Resource Planning'!$B52)*'Sprint-Z Hardening'!$D$6/'Sprint-Z Hardening'!$D$4 + SUMIFS('Consulting Services'!$I$9:$I$14,'Consulting Services'!$C$9:$C$14,'Resource Planning'!$A52,'Consulting Services'!$D$9:$D$14,'Resource Planning'!$B52)/SprintZLen)*L$9 -> 0 | M52: =(SUMIFS('Sprint-Z Hardening'!$E$12:$E$22,'Sprint-Z Hardening'!$C$12:$C$22,'Resource Planning'!$A52, 'Sprint-Z Hardening'!$D$12:$D$22,'Resource Planning'!$B52)*'Sprint-Z Hardening'!$D$6/'Sprint-Z Hardening'!$D$4 + SUMIFS('Consulting Services'!$I$9:$I$14,'Consulting Services'!$C$9:$C$14,'Resource Planning'!$A52,'Consulting Services'!$D$9:$D$14,'Resource Planning'!$B52)/SprintZLen)*M$9 -> 0 | N52: =(SUMIFS('Sprint-Z Hardening'!$E$12:$E$22,'Sprint-Z Hardening'!$C$12:$C$22,'Resource Planning'!$A52, 'Sprint-Z Hardening'!$D$12:$D$22,'Resource Planning'!$B52)*'Sprint-Z Hardening'!$D$6/'Sprint-Z Hardening'!$D$4 + SUMIFS('Consulting Services'!$I$9:$I$14,'Consulting Services'!$C$9:$C$14,'Resource Planning'!$A52,'Consulting Services'!$D$9:$D$14,'Resource Planning'!$B52)/SprintZLen)*N$9 -> 0 | O52: 0 | P52: Hide
A53: Client | B53: (Sr) System Architect | C53: =SUM(D53:F53)/'Calculations Page'!$C$5 -> 0 | D53: =(SUMIFS('Sprint-Prepare'!$E$12:$E$23,'Sprint-Prepare'!$C$12:$C$23,'Resource Planning'!$A53, 'Sprint-Prepare'!$D$12:$D$23,'Resource Planning'!$B53)*'Sprint-Prepare'!$D$6/'Sprint-Prepare'!$D$4+ SUMIFS('Consulting Services'!$E$9:$E$14,'Consulting Services'!$C$9:$C$14,'Resource Planning'!$A53,'Consulting Services'!$D$9:$D$14,'Resource Planning'!$B53)/Sprint0Len)*D$9 -> 0 | E53: =(SUMIFS('Sprint-Prepare'!$E$12:$E$23,'Sprint-Prepare'!$C$12:$C$23,'Resource Planning'!$A53, 'Sprint-Prepare'!$D$12:$D$23,'Resource Planning'!$B53)*'Sprint-Prepare'!$D$6/'Sprint-Prepare'!$D$4+ SUMIFS('Consulting Services'!$E$9:$E$14,'Consulting Services'!$C$9:$C$14,'Resource Planning'!$A53,'Consulting Services'!$D$9:$D$14,'Resource Planning'!$B53)/Sprint0Len)*E$9 -> 0 | F53: =(SUMIFS('Sprint-Prepare'!$E$12:$E$23,'Sprint-Prepare'!$C$12:$C$23,'Resource Planning'!$A53, 'Sprint-Prepare'!$D$12:$D$23,'Resource Planning'!$B53)*'Sprint-Prepare'!$D$6/'Sprint-Prepare'!$D$4+ SUMIFS('Consulting Services'!$E$9:$E$14,'Consulting Services'!$C$9:$C$14,'Resource Planning'!$A53,'Consulting Services'!$D$9:$D$14,'Resource Planning'!$B53)/Sprint0Len)*F$9 -> 0 | G53: =IFERROR(SUM(H53:J53)/'Calculations Page'!$C$6,0) -> 0 | H53: =(SUMIFS('Sprint 1-Sprint N'!$E$12:$E$24,'Sprint 1-Sprint N'!$C$12:$C$24,'Resource Planning'!$A53, 'Sprint 1-Sprint N'!$D$12:$D$24,'Resource Planning'!$B53)*'Sprint 1-Sprint N'!$D$6/'Sprint 1-Sprint N'!$D$4 + SUMPRODUCT(('Consulting Services'!$C$9:$C$14='Resource Planning'!$A53)*('Consulting Services'!$D$9:$D$14='Resource Planning'!$B53)*(Sprint1NSvc='Resource Planning'!H$5)*('Consulting Services'!$F$9:$H$14))/Sprint1NLen)*H$9 -> 0 | I53: =(SUMIFS('Sprint 1-Sprint N'!$E$12:$E$24,'Sprint 1-Sprint N'!$C$12:$C$24,'Resource Planning'!$A53, 'Sprint 1-Sprint N'!$D$12:$D$24,'Resource Planning'!$B53)*'Sprint 1-Sprint N'!$D$6/'Sprint 1-Sprint N'!$D$4 + SUMPRODUCT(('Consulting Services'!$C$9:$C$14='Resource Planning'!$A53)*('Consulting Services'!$D$9:$D$14='Resource Planning'!$B53)*(Sprint1NSvc='Resource Planning'!I$5)*('Consulting Services'!$F$9:$H$14))/Sprint1NLen)*I$9 -> 0 | J53: =(SUMIFS('Sprint 1-Sprint N'!$E$12:$E$24,'Sprint 1-Sprint N'!$C$12:$C$24,'Resource Planning'!$A53, 'Sprint 1-Sprint N'!$D$12:$D$24,'Resource Planning'!$B53)*'Sprint 1-Sprint N'!$D$6/'Sprint 1-Sprint N'!$D$4 + SUMPRODUCT(('Consulting Services'!$C$9:$C$14='Resource Planning'!$A53)*('Consulting Services'!$D$9:$D$14='Resource Planning'!$B53)*(Sprint1NSvc='Resource Planning'!J$5)*('Consulting Services'!$F$9:$H$14))/Sprint1NLen)*J$9 -> 0 | K53: =SUM(L53:N53)/'Calculations Page'!$C$7 -> 0 | L53: =(SUMIFS('Sprint-Z Hardening'!$E$12:$E$22,'Sprint-Z Hardening'!$C$12:$C$22,'Resource Planning'!$A53, 'Sprint-Z Hardening'!$D$12:$D$22,'Resource Planning'!$B53)*'Sprint-Z Hardening'!$D$6/'Sprint-Z Hardening'!$D$4 + SUMIFS('Consulting Services'!$I$9:$I$14,'Consulting Services'!$C$9:$C$14,'Resource Planning'!$A53,'Consulting Services'!$D$9:$D$14,'Resource Planning'!$B53)/SprintZLen)*L$9 -> 0 | M53: =(SUMIFS('Sprint-Z Hardening'!$E$12:$E$22,'Sprint-Z Hardening'!$C$12:$C$22,'Resource Planning'!$A53, 'Sprint-Z Hardening'!$D$12:$D$22,'Resource Planning'!$B53)*'Sprint-Z Hardening'!$D$6/'Sprint-Z Hardening'!$D$4 + SUMIFS('Consulting Services'!$I$9:$I$14,'Consulting Services'!$C$9:$C$14,'Resource Planning'!$A53,'Consulting Services'!$D$9:$D$14,'Resource Planning'!$B53)/SprintZLen)*M$9 -> 0 | N53: =(SUMIFS('Sprint-Z Hardening'!$E$12:$E$22,'Sprint-Z Hardening'!$C$12:$C$22,'Resource Planning'!$A53, 'Sprint-Z Hardening'!$D$12:$D$22,'Resource Planning'!$B53)*'Sprint-Z Hardening'!$D$6/'Sprint-Z Hardening'!$D$4 + SUMIFS('Consulting Services'!$I$9:$I$14,'Consulting Services'!$C$9:$C$14,'Resource Planning'!$A53,'Consulting Services'!$D$9:$D$14,'Resource Planning'!$B53)/SprintZLen)*N$9 -> 0 | O53: 0 | P53: Hide
A54: Client | B54: Experience Designer | C54: =SUM(D54:F54)/'Calculations Page'!$C$5 -> 0 | D54: =(SUMIFS('Sprint-Prepare'!$E$12:$E$23,'Sprint-Prepare'!$C$12:$C$23,'Resource Planning'!$A54, 'Sprint-Prepare'!$D$12:$D$23,'Resource Planning'!$B54)*'Sprint-Prepare'!$D$6/'Sprint-Prepare'!$D$4+ SUMIFS('Consulting Services'!$E$9:$E$14,'Consulting Services'!$C$9:$C$14,'Resource Planning'!$A54,'Consulting Services'!$D$9:$D$14,'Resource Planning'!$B54)/Sprint0Len)*D$9 -> 0 | E54: =(SUMIFS('Sprint-Prepare'!$E$12:$E$23,'Sprint-Prepare'!$C$12:$C$23,'Resource Planning'!$A54, 'Sprint-Prepare'!$D$12:$D$23,'Resource Planning'!$B54)*'Sprint-Prepare'!$D$6/'Sprint-Prepare'!$D$4+ SUMIFS('Consulting Services'!$E$9:$E$14,'Consulting Services'!$C$9:$C$14,'Resource Planning'!$A54,'Consulting Services'!$D$9:$D$14,'Resource Planning'!$B54)/Sprint0Len)*E$9 -> 0 | F54: =(SUMIFS('Sprint-Prepare'!$E$12:$E$23,'Sprint-Prepare'!$C$12:$C$23,'Resource Planning'!$A54, 'Sprint-Prepare'!$D$12:$D$23,'Resource Planning'!$B54)*'Sprint-Prepare'!$D$6/'Sprint-Prepare'!$D$4+ SUMIFS('Consulting Services'!$E$9:$E$14,'Consulting Services'!$C$9:$C$14,'Resource Planning'!$A54,'Consulting Services'!$D$9:$D$14,'Resource Planning'!$B54)/Sprint0Len)*F$9 -> 0 | G54: =IFERROR(SUM(H54:J54)/'Calculations Page'!$C$6,0) -> 0 | H54: =(SUMIFS('Sprint 1-Sprint N'!$E$12:$E$24,'Sprint 1-Sprint N'!$C$12:$C$24,'Resource Planning'!$A54, 'Sprint 1-Sprint N'!$D$12:$D$24,'Resource Planning'!$B54)*'Sprint 1-Sprint N'!$D$6/'Sprint 1-Sprint N'!$D$4 + SUMPRODUCT(('Consulting Services'!$C$9:$C$14='Resource Planning'!$A54)*('Consulting Services'!$D$9:$D$14='Resource Planning'!$B54)*(Sprint1NSvc='Resource Planning'!H$5)*('Consulting Services'!$F$9:$H$14))/Sprint1NLen)*H$9 -> 0 | I54: =(SUMIFS('Sprint 1-Sprint N'!$E$12:$E$24,'Sprint 1-Sprint N'!$C$12:$C$24,'Resource Planning'!$A54, 'Sprint 1-Sprint N'!$D$12:$D$24,'Resource Planning'!$B54)*'Sprint 1-Sprint N'!$D$6/'Sprint 1-Sprint N'!$D$4 + SUMPRODUCT(('Consulting Services'!$C$9:$C$14='Resource Planning'!$A54)*('Consulting Services'!$D$9:$D$14='Resource Planning'!$B54)*(Sprint1NSvc='Resource Planning'!I$5)*('Consulting Services'!$F$9:$H$14))/Sprint1NLen)*I$9 -> 0 | J54: =(SUMIFS('Sprint 1-Sprint N'!$E$12:$E$24,'Sprint 1-Sprint N'!$C$12:$C$24,'Resource Planning'!$A54, 'Sprint 1-Sprint N'!$D$12:$D$24,'Resource Planning'!$B54)*'Sprint 1-Sprint N'!$D$6/'Sprint 1-Sprint N'!$D$4 + SUMPRODUCT(('Consulting Services'!$C$9:$C$14='Resource Planning'!$A54)*('Consulting Services'!$D$9:$D$14='Resource Planning'!$B54)*(Sprint1NSvc='Resource Planning'!J$5)*('Consulting Services'!$F$9:$H$14))/Sprint1NLen)*J$9 -> 0 | K54: =SUM(L54:N54)/'Calculations Page'!$C$7 -> 0 | L54: =(SUMIFS('Sprint-Z Hardening'!$E$12:$E$22,'Sprint-Z Hardening'!$C$12:$C$22,'Resource Planning'!$A54, 'Sprint-Z Hardening'!$D$12:$D$22,'Resource Planning'!$B54)*'Sprint-Z Hardening'!$D$6/'Sprint-Z Hardening'!$D$4 + SUMIFS('Consulting Services'!$I$9:$I$14,'Consulting Services'!$C$9:$C$14,'Resource Planning'!$A54,'Consulting Services'!$D$9:$D$14,'Resource Planning'!$B54)/SprintZLen)*L$9 -> 0 | M54: =(SUMIFS('Sprint-Z Hardening'!$E$12:$E$22,'Sprint-Z Hardening'!$C$12:$C$22,'Resource Planning'!$A54, 'Sprint-Z Hardening'!$D$12:$D$22,'Resource Planning'!$B54)*'Sprint-Z Hardening'!$D$6/'Sprint-Z Hardening'!$D$4 + SUMIFS('Consulting Services'!$I$9:$I$14,'Consulting Services'!$C$9:$C$14,'Resource Planning'!$A54,'Consulting Services'!$D$9:$D$14,'Resource Planning'!$B54)/SprintZLen)*M$9 -> 0 | N54: =(SUMIFS('Sprint-Z Hardening'!$E$12:$E$22,'Sprint-Z Hardening'!$C$12:$C$22,'Resource Planning'!$A54, 'Sprint-Z Hardening'!$D$12:$D$22,'Resource Planning'!$B54)*'Sprint-Z Hardening'!$D$6/'Sprint-Z Hardening'!$D$4 + SUMIFS('Consulting Services'!$I$9:$I$14,'Consulting Services'!$C$9:$C$14,'Resource Planning'!$A54,'Consulting Services'!$D$9:$D$14,'Resource Planning'!$B54)/SprintZLen)*N$9 -> 0 | O54: 0 | P54: Hide
A55: Client | B55: Lead Robotics BA | C55: =SUM(D55:F55)/'Calculations Page'!$C$5 -> 0 | D55: =(SUMIFS('Sprint-Prepare'!$E$12:$E$23,'Sprint-Prepare'!$C$12:$C$23,'Resource Planning'!$A55, 'Sprint-Prepare'!$D$12:$D$23,'Resource Planning'!$B55)*'Sprint-Prepare'!$D$6/'Sprint-Prepare'!$D$4+ SUMIFS('Consulting Services'!$E$9:$E$14,'Consulting Services'!$C$9:$C$14,'Resource Planning'!$A55,'Consulting Services'!$D$9:$D$14,'Resource Planning'!$B55)/Sprint0Len)*D$9 -> 0 | E55: =(SUMIFS('Sprint-Prepare'!$E$12:$E$23,'Sprint-Prepare'!$C$12:$C$23,'Resource Planning'!$A55, 'Sprint-Prepare'!$D$12:$D$23,'Resource Planning'!$B55)*'Sprint-Prepare'!$D$6/'Sprint-Prepare'!$D$4+ SUMIFS('Consulting Services'!$E$9:$E$14,'Consulting Services'!$C$9:$C$14,'Resource Planning'!$A55,'Consulting Services'!$D$9:$D$14,'Resource Planning'!$B55)/Sprint0Len)*E$9 -> 0 | F55: =(SUMIFS('Sprint-Prepare'!$E$12:$E$23,'Sprint-Prepare'!$C$12:$C$23,'Resource Planning'!$A55, 'Sprint-Prepare'!$D$12:$D$23,'Resource Planning'!$B55)*'Sprint-Prepare'!$D$6/'Sprint-Prepare'!$D$4+ SUMIFS('Consulting Services'!$E$9:$E$14,'Consulting Services'!$C$9:$C$14,'Resource Planning'!$A55,'Consulting Services'!$D$9:$D$14,'Resource Planning'!$B55)/Sprint0Len)*F$9 -> 0 | G55: =IFERROR(SUM(H55:J55)/'Calculations Page'!$C$6,0) -> 0 | H55: =(SUMIFS('Sprint 1-Sprint N'!$E$12:$E$24,'Sprint 1-Sprint N'!$C$12:$C$24,'Resource Planning'!$A55, 'Sprint 1-Sprint N'!$D$12:$D$24,'Resource Planning'!$B55)*'Sprint 1-Sprint N'!$D$6/'Sprint 1-Sprint N'!$D$4 + SUMPRODUCT(('Consulting Services'!$C$9:$C$14='Resource Planning'!$A55)*('Consulting Services'!$D$9:$D$14='Resource Planning'!$B55)*(Sprint1NSvc='Resource Planning'!H$5)*('Consulting Services'!$F$9:$H$14))/Sprint1NLen)*H$9 -> 0 | I55: =(SUMIFS('Sprint 1-Sprint N'!$E$12:$E$24,'Sprint 1-Sprint N'!$C$12:$C$24,'Resource Planning'!$A55, 'Sprint 1-Sprint N'!$D$12:$D$24,'Resource Planning'!$B55)*'Sprint 1-Sprint N'!$D$6/'Sprint 1-Sprint N'!$D$4 + SUMPRODUCT(('Consulting Services'!$C$9:$C$14='Resource Planning'!$A55)*('Consulting Services'!$D$9:$D$14='Resource Planning'!$B55)*(Sprint1NSvc='Resource Planning'!I$5)*('Consulting Services'!$F$9:$H$14))/Sprint1NLen)*I$9 -> 0 | J55: =(SUMIFS('Sprint 1-Sprint N'!$E$12:$E$24,'Sprint 1-Sprint N'!$C$12:$C$24,'Resource Planning'!$A55, 'Sprint 1-Sprint N'!$D$12:$D$24,'Resource Planning'!$B55)*'Sprint 1-Sprint N'!$D$6/'Sprint 1-Sprint N'!$D$4 + SUMPRODUCT(('Consulting Services'!$C$9:$C$14='Resource Planning'!$A55)*('Consulting Services'!$D$9:$D$14='Resource Planning'!$B55)*(Sprint1NSvc='Resource Planning'!J$5)*('Consulting Services'!$F$9:$H$14))/Sprint1NLen)*J$9 -> 0 | K55: =SUM(L55:N55)/'Calculations Page'!$C$7 -> 0 | L55: =(SUMIFS('Sprint-Z Hardening'!$E$12:$E$22,'Sprint-Z Hardening'!$C$12:$C$22,'Resource Planning'!$A55, 'Sprint-Z Hardening'!$D$12:$D$22,'Resource Planning'!$B55)*'Sprint-Z Hardening'!$D$6/'Sprint-Z Hardening'!$D$4 + SUMIFS('Consulting Services'!$I$9:$I$14,'Consulting Services'!$C$9:$C$14,'Resource Planning'!$A55,'Consulting Services'!$D$9:$D$14,'Resource Planning'!$B55)/SprintZLen)*L$9 -> 0 | M55: =(SUMIFS('Sprint-Z Hardening'!$E$12:$E$22,'Sprint-Z Hardening'!$C$12:$C$22,'Resource Planning'!$A55, 'Sprint-Z Hardening'!$D$12:$D$22,'Resource Planning'!$B55)*'Sprint-Z Hardening'!$D$6/'Sprint-Z Hardening'!$D$4 + SUMIFS('Consulting Services'!$I$9:$I$14,'Consulting Services'!$C$9:$C$14,'Resource Planning'!$A55,'Consulting Services'!$D$9:$D$14,'Resource Planning'!$B55)/SprintZLen)*M$9 -> 0 | N55: =(SUMIFS('Sprint-Z Hardening'!$E$12:$E$22,'Sprint-Z Hardening'!$C$12:$C$22,'Resource Planning'!$A55, 'Sprint-Z Hardening'!$D$12:$D$22,'Resource Planning'!$B55)*'Sprint-Z Hardening'!$D$6/'Sprint-Z Hardening'!$D$4 + SUMIFS('Consulting Services'!$I$9:$I$14,'Consulting Services'!$C$9:$C$14,'Resource Planning'!$A55,'Consulting Services'!$D$9:$D$14,'Resource Planning'!$B55)/SprintZLen)*N$9 -> 0 | O55: 0 | P55: Hide
A56: Client | B56: Lead Robotics SA | C56: =SUM(D56:F56)/'Calculations Page'!$C$5 -> 0 | D56: =(SUMIFS('Sprint-Prepare'!$E$12:$E$23,'Sprint-Prepare'!$C$12:$C$23,'Resource Planning'!$A56, 'Sprint-Prepare'!$D$12:$D$23,'Resource Planning'!$B56)*'Sprint-Prepare'!$D$6/'Sprint-Prepare'!$D$4+ SUMIFS('Consulting Services'!$E$9:$E$14,'Consulting Services'!$C$9:$C$14,'Resource Planning'!$A56,'Consulting Services'!$D$9:$D$14,'Resource Planning'!$B56)/Sprint0Len)*D$9 -> 0 | E56: =(SUMIFS('Sprint-Prepare'!$E$12:$E$23,'Sprint-Prepare'!$C$12:$C$23,'Resource Planning'!$A56, 'Sprint-Prepare'!$D$12:$D$23,'Resource Planning'!$B56)*'Sprint-Prepare'!$D$6/'Sprint-Prepare'!$D$4+ SUMIFS('Consulting Services'!$E$9:$E$14,'Consulting Services'!$C$9:$C$14,'Resource Planning'!$A56,'Consulting Services'!$D$9:$D$14,'Resource Planning'!$B56)/Sprint0Len)*E$9 -> 0 | F56: =(SUMIFS('Sprint-Prepare'!$E$12:$E$23,'Sprint-Prepare'!$C$12:$C$23,'Resource Planning'!$A56, 'Sprint-Prepare'!$D$12:$D$23,'Resource Planning'!$B56)*'Sprint-Prepare'!$D$6/'Sprint-Prepare'!$D$4+ SUMIFS('Consulting Services'!$E$9:$E$14,'Consulting Services'!$C$9:$C$14,'Resource Planning'!$A56,'Consulting Services'!$D$9:$D$14,'Resource Planning'!$B56)/Sprint0Len)*F$9 -> 0 | G56: =IFERROR(SUM(H56:J56)/'Calculations Page'!$C$6,0) -> 0 | H56: =(SUMIFS('Sprint 1-Sprint N'!$E$12:$E$24,'Sprint 1-Sprint N'!$C$12:$C$24,'Resource Planning'!$A56, 'Sprint 1-Sprint N'!$D$12:$D$24,'Resource Planning'!$B56)*'Sprint 1-Sprint N'!$D$6/'Sprint 1-Sprint N'!$D$4 + SUMPRODUCT(('Consulting Services'!$C$9:$C$14='Resource Planning'!$A56)*('Consulting Services'!$D$9:$D$14='Resource Planning'!$B56)*(Sprint1NSvc='Resource Planning'!H$5)*('Consulting Services'!$F$9:$H$14))/Sprint1NLen)*H$9 -> 0 | I56: =(SUMIFS('Sprint 1-Sprint N'!$E$12:$E$24,'Sprint 1-Sprint N'!$C$12:$C$24,'Resource Planning'!$A56, 'Sprint 1-Sprint N'!$D$12:$D$24,'Resource Planning'!$B56)*'Sprint 1-Sprint N'!$D$6/'Sprint 1-Sprint N'!$D$4 + SUMPRODUCT(('Consulting Services'!$C$9:$C$14='Resource Planning'!$A56)*('Consulting Services'!$D$9:$D$14='Resource Planning'!$B56)*(Sprint1NSvc='Resource Planning'!I$5)*('Consulting Services'!$F$9:$H$14))/Sprint1NLen)*I$9 -> 0 | J56: =(SUMIFS('Sprint 1-Sprint N'!$E$12:$E$24,'Sprint 1-Sprint N'!$C$12:$C$24,'Resource Planning'!$A56, 'Sprint 1-Sprint N'!$D$12:$D$24,'Resource Planning'!$B56)*'Sprint 1-Sprint N'!$D$6/'Sprint 1-Sprint N'!$D$4 + SUMPRODUCT(('Consulting Services'!$C$9:$C$14='Resource Planning'!$A56)*('Consulting Services'!$D$9:$D$14='Resource Planning'!$B56)*(Sprint1NSvc='Resource Planning'!J$5)*('Consulting Services'!$F$9:$H$14))/Sprint1NLen)*J$9 -> 0 | K56: =SUM(L56:N56)/'Calculations Page'!$C$7 -> 0 | L56: =(SUMIFS('Sprint-Z Hardening'!$E$12:$E$22,'Sprint-Z Hardening'!$C$12:$C$22,'Resource Planning'!$A56, 'Sprint-Z Hardening'!$D$12:$D$22,'Resource Planning'!$B56)*'Sprint-Z Hardening'!$D$6/'Sprint-Z Hardening'!$D$4 + SUMIFS('Consulting Services'!$I$9:$I$14,'Consulting Services'!$C$9:$C$14,'Resource Planning'!$A56,'Consulting Services'!$D$9:$D$14,'Resource Planning'!$B56)/SprintZLen)*L$9 -> 0 | M56: =(SUMIFS('Sprint-Z Hardening'!$E$12:$E$22,'Sprint-Z Hardening'!$C$12:$C$22,'Resource Planning'!$A56, 'Sprint-Z Hardening'!$D$12:$D$22,'Resource Planning'!$B56)*'Sprint-Z Hardening'!$D$6/'Sprint-Z Hardening'!$D$4 + SUMIFS('Consulting Services'!$I$9:$I$14,'Consulting Services'!$C$9:$C$14,'Resource Planning'!$A56,'Consulting Services'!$D$9:$D$14,'Resource Planning'!$B56)/SprintZLen)*M$9 -> 0 | N56: =(SUMIFS('Sprint-Z Hardening'!$E$12:$E$22,'Sprint-Z Hardening'!$C$12:$C$22,'Resource Planning'!$A56, 'Sprint-Z Hardening'!$D$12:$D$22,'Resource Planning'!$B56)*'Sprint-Z Hardening'!$D$6/'Sprint-Z Hardening'!$D$4 + SUMIFS('Consulting Services'!$I$9:$I$14,'Consulting Services'!$C$9:$C$14,'Resource Planning'!$A56,'Consulting Services'!$D$9:$D$14,'Resource Planning'!$B56)/SprintZLen)*N$9 -> 0 | O56: 0 | P56: Hide
A57: Client | B57: (Sr) Robotics SA | C57: =SUM(D57:F57)/'Calculations Page'!$C$5 -> 0 | D57: =(SUMIFS('Sprint-Prepare'!$E$12:$E$23,'Sprint-Prepare'!$C$12:$C$23,'Resource Planning'!$A57, 'Sprint-Prepare'!$D$12:$D$23,'Resource Planning'!$B57)*'Sprint-Prepare'!$D$6/'Sprint-Prepare'!$D$4+ SUMIFS('Consulting Services'!$E$9:$E$14,'Consulting Services'!$C$9:$C$14,'Resource Planning'!$A57,'Consulting Services'!$D$9:$D$14,'Resource Planning'!$B57)/Sprint0Len)*D$9 -> 0 | E57: =(SUMIFS('Sprint-Prepare'!$E$12:$E$23,'Sprint-Prepare'!$C$12:$C$23,'Resource Planning'!$A57, 'Sprint-Prepare'!$D$12:$D$23,'Resource Planning'!$B57)*'Sprint-Prepare'!$D$6/'Sprint-Prepare'!$D$4+ SUMIFS('Consulting Services'!$E$9:$E$14,'Consulting Services'!$C$9:$C$14,'Resource Planning'!$A57,'Consulting Services'!$D$9:$D$14,'Resource Planning'!$B57)/Sprint0Len)*E$9 -> 0 | F57: =(SUMIFS('Sprint-Prepare'!$E$12:$E$23,'Sprint-Prepare'!$C$12:$C$23,'Resource Planning'!$A57, 'Sprint-Prepare'!$D$12:$D$23,'Resource Planning'!$B57)*'Sprint-Prepare'!$D$6/'Sprint-Prepare'!$D$4+ SUMIFS('Consulting Services'!$E$9:$E$14,'Consulting Services'!$C$9:$C$14,'Resource Planning'!$A57,'Consulting Services'!$D$9:$D$14,'Resource Planning'!$B57)/Sprint0Len)*F$9 -> 0 | G57: =IFERROR(SUM(H57:J57)/'Calculations Page'!$C$6,0) -> 0 | H57: =(SUMIFS('Sprint 1-Sprint N'!$E$12:$E$24,'Sprint 1-Sprint N'!$C$12:$C$24,'Resource Planning'!$A57, 'Sprint 1-Sprint N'!$D$12:$D$24,'Resource Planning'!$B57)*'Sprint 1-Sprint N'!$D$6/'Sprint 1-Sprint N'!$D$4 + SUMPRODUCT(('Consulting Services'!$C$9:$C$14='Resource Planning'!$A57)*('Consulting Services'!$D$9:$D$14='Resource Planning'!$B57)*(Sprint1NSvc='Resource Planning'!H$5)*('Consulting Services'!$F$9:$H$14))/Sprint1NLen)*H$9 -> 0 | I57: =(SUMIFS('Sprint 1-Sprint N'!$E$12:$E$24,'Sprint 1-Sprint N'!$C$12:$C$24,'Resource Planning'!$A57, 'Sprint 1-Sprint N'!$D$12:$D$24,'Resource Planning'!$B57)*'Sprint 1-Sprint N'!$D$6/'Sprint 1-Sprint N'!$D$4 + SUMPRODUCT(('Consulting Services'!$C$9:$C$14='Resource Planning'!$A57)*('Consulting Services'!$D$9:$D$14='Resource Planning'!$B57)*(Sprint1NSvc='Resource Planning'!I$5)*('Consulting Services'!$F$9:$H$14))/Sprint1NLen)*I$9 -> 0 | J57: =(SUMIFS('Sprint 1-Sprint N'!$E$12:$E$24,'Sprint 1-Sprint N'!$C$12:$C$24,'Resource Planning'!$A57, 'Sprint 1-Sprint N'!$D$12:$D$24,'Resource Planning'!$B57)*'Sprint 1-Sprint N'!$D$6/'Sprint 1-Sprint N'!$D$4 + SUMPRODUCT(('Consulting Services'!$C$9:$C$14='Resource Planning'!$A57)*('Consulting Services'!$D$9:$D$14='Resource Planning'!$B57)*(Sprint1NSvc='Resource Planning'!J$5)*('Consulting Services'!$F$9:$H$14))/Sprint1NLen)*J$9 -> 0 | K57: =SUM(L57:N57)/'Calculations Page'!$C$7 -> 0 | L57: =(SUMIFS('Sprint-Z Hardening'!$E$12:$E$22,'Sprint-Z Hardening'!$C$12:$C$22,'Resource Planning'!$A57, 'Sprint-Z Hardening'!$D$12:$D$22,'Resource Planning'!$B57)*'Sprint-Z Hardening'!$D$6/'Sprint-Z Hardening'!$D$4 + SUMIFS('Consulting Services'!$I$9:$I$14,'Consulting Services'!$C$9:$C$14,'Resource Planning'!$A57,'Consulting Services'!$D$9:$D$14,'Resource Planning'!$B57)/SprintZLen)*L$9 -> 0 | M57: =(SUMIFS('Sprint-Z Hardening'!$E$12:$E$22,'Sprint-Z Hardening'!$C$12:$C$22,'Resource Planning'!$A57, 'Sprint-Z Hardening'!$D$12:$D$22,'Resource Planning'!$B57)*'Sprint-Z Hardening'!$D$6/'Sprint-Z Hardening'!$D$4 + SUMIFS('Consulting Services'!$I$9:$I$14,'Consulting Services'!$C$9:$C$14,'Resource Planning'!$A57,'Consulting Services'!$D$9:$D$14,'Resource Planning'!$B57)/SprintZLen)*M$9 -> 0 | N57: =(SUMIFS('Sprint-Z Hardening'!$E$12:$E$22,'Sprint-Z Hardening'!$C$12:$C$22,'Resource Planning'!$A57, 'Sprint-Z Hardening'!$D$12:$D$22,'Resource Planning'!$B57)*'Sprint-Z Hardening'!$D$6/'Sprint-Z Hardening'!$D$4 + SUMIFS('Consulting Services'!$I$9:$I$14,'Consulting Services'!$C$9:$C$14,'Resource Planning'!$A57,'Consulting Services'!$D$9:$D$14,'Resource Planning'!$B57)/SprintZLen)*N$9 -> 0 | O57: 0 | P57: Hide
A58: Client | B58: Lead Decisioning Architect | C58: =SUM(D58:F58)/'Calculations Page'!$C$5 -> 0 | D58: =(SUMIFS('Sprint-Prepare'!$E$12:$E$23,'Sprint-Prepare'!$C$12:$C$23,'Resource Planning'!$A58, 'Sprint-Prepare'!$D$12:$D$23,'Resource Planning'!$B58)*'Sprint-Prepare'!$D$6/'Sprint-Prepare'!$D$4+ SUMIFS('Consulting Services'!$E$9:$E$14,'Consulting Services'!$C$9:$C$14,'Resource Planning'!$A58,'Consulting Services'!$D$9:$D$14,'Resource Planning'!$B58)/Sprint0Len)*D$9 -> 0 | E58: =(SUMIFS('Sprint-Prepare'!$E$12:$E$23,'Sprint-Prepare'!$C$12:$C$23,'Resource Planning'!$A58, 'Sprint-Prepare'!$D$12:$D$23,'Resource Planning'!$B58)*'Sprint-Prepare'!$D$6/'Sprint-Prepare'!$D$4+ SUMIFS('Consulting Services'!$E$9:$E$14,'Consulting Services'!$C$9:$C$14,'Resource Planning'!$A58,'Consulting Services'!$D$9:$D$14,'Resource Planning'!$B58)/Sprint0Len)*E$9 -> 0 | F58: =(SUMIFS('Sprint-Prepare'!$E$12:$E$23,'Sprint-Prepare'!$C$12:$C$23,'Resource Planning'!$A58, 'Sprint-Prepare'!$D$12:$D$23,'Resource Planning'!$B58)*'Sprint-Prepare'!$D$6/'Sprint-Prepare'!$D$4+ SUMIFS('Consulting Services'!$E$9:$E$14,'Consulting Services'!$C$9:$C$14,'Resource Planning'!$A58,'Consulting Services'!$D$9:$D$14,'Resource Planning'!$B58)/Sprint0Len)*F$9 -> 0 | G58: =IFERROR(SUM(H58:J58)/'Calculations Page'!$C$6,0) -> 0 | H58: =(SUMIFS('Sprint 1-Sprint N'!$E$12:$E$24,'Sprint 1-Sprint N'!$C$12:$C$24,'Resource Planning'!$A58, 'Sprint 1-Sprint N'!$D$12:$D$24,'Resource Planning'!$B58)*'Sprint 1-Sprint N'!$D$6/'Sprint 1-Sprint N'!$D$4 + SUMPRODUCT(('Consulting Services'!$C$9:$C$14='Resource Planning'!$A58)*('Consulting Services'!$D$9:$D$14='Resource Planning'!$B58)*(Sprint1NSvc='Resource Planning'!H$5)*('Consulting Services'!$F$9:$H$14))/Sprint1NLen)*H$9 -> 0 | I58: =(SUMIFS('Sprint 1-Sprint N'!$E$12:$E$24,'Sprint 1-Sprint N'!$C$12:$C$24,'Resource Planning'!$A58, 'Sprint 1-Sprint N'!$D$12:$D$24,'Resource Planning'!$B58)*'Sprint 1-Sprint N'!$D$6/'Sprint 1-Sprint N'!$D$4 + SUMPRODUCT(('Consulting Services'!$C$9:$C$14='Resource Planning'!$A58)*('Consulting Services'!$D$9:$D$14='Resource Planning'!$B58)*(Sprint1NSvc='Resource Planning'!I$5)*('Consulting Services'!$F$9:$H$14))/Sprint1NLen)*I$9 -> 0 | J58: =(SUMIFS('Sprint 1-Sprint N'!$E$12:$E$24,'Sprint 1-Sprint N'!$C$12:$C$24,'Resource Planning'!$A58, 'Sprint 1-Sprint N'!$D$12:$D$24,'Resource Planning'!$B58)*'Sprint 1-Sprint N'!$D$6/'Sprint 1-Sprint N'!$D$4 + SUMPRODUCT(('Consulting Services'!$C$9:$C$14='Resource Planning'!$A58)*('Consulting Services'!$D$9:$D$14='Resource Planning'!$B58)*(Sprint1NSvc='Resource Planning'!J$5)*('Consulting Services'!$F$9:$H$14))/Sprint1NLen)*J$9 -> 0 | K58: =SUM(L58:N58)/'Calculations Page'!$C$7 -> 0 | L58: =(SUMIFS('Sprint-Z Hardening'!$E$12:$E$22,'Sprint-Z Hardening'!$C$12:$C$22,'Resource Planning'!$A58, 'Sprint-Z Hardening'!$D$12:$D$22,'Resource Planning'!$B58)*'Sprint-Z Hardening'!$D$6/'Sprint-Z Hardening'!$D$4 + SUMIFS('Consulting Services'!$I$9:$I$14,'Consulting Services'!$C$9:$C$14,'Resource Planning'!$A58,'Consulting Services'!$D$9:$D$14,'Resource Planning'!$B58)/SprintZLen)*L$9 -> 0 | M58: =(SUMIFS('Sprint-Z Hardening'!$E$12:$E$22,'Sprint-Z Hardening'!$C$12:$C$22,'Resource Planning'!$A58, 'Sprint-Z Hardening'!$D$12:$D$22,'Resource Planning'!$B58)*'Sprint-Z Hardening'!$D$6/'Sprint-Z Hardening'!$D$4 + SUMIFS('Consulting Services'!$I$9:$I$14,'Consulting Services'!$C$9:$C$14,'Resource Planning'!$A58,'Consulting Services'!$D$9:$D$14,'Resource Planning'!$B58)/SprintZLen)*M$9 -> 0 | N58: =(SUMIFS('Sprint-Z Hardening'!$E$12:$E$22,'Sprint-Z Hardening'!$C$12:$C$22,'Resource Planning'!$A58, 'Sprint-Z Hardening'!$D$12:$D$22,'Resource Planning'!$B58)*'Sprint-Z Hardening'!$D$6/'Sprint-Z Hardening'!$D$4 + SUMIFS('Consulting Services'!$I$9:$I$14,'Consulting Services'!$C$9:$C$14,'Resource Planning'!$A58,'Consulting Services'!$D$9:$D$14,'Resource Planning'!$B58)/SprintZLen)*N$9 -> 0 | O58: 0 | P58: Hide
A59: Client | B59: Sr. Decisioning Architect | C59: =SUM(D59:F59)/'Calculations Page'!$C$5 -> 0 | D59: =(SUMIFS('Sprint-Prepare'!$E$12:$E$23,'Sprint-Prepare'!$C$12:$C$23,'Resource Planning'!$A59, 'Sprint-Prepare'!$D$12:$D$23,'Resource Planning'!$B59)*'Sprint-Prepare'!$D$6/'Sprint-Prepare'!$D$4+ SUMIFS('Consulting Services'!$E$9:$E$14,'Consulting Services'!$C$9:$C$14,'Resource Planning'!$A59,'Consulting Services'!$D$9:$D$14,'Resource Planning'!$B59)/Sprint0Len)*D$9 -> 0 | E59: =(SUMIFS('Sprint-Prepare'!$E$12:$E$23,'Sprint-Prepare'!$C$12:$C$23,'Resource Planning'!$A59, 'Sprint-Prepare'!$D$12:$D$23,'Resource Planning'!$B59)*'Sprint-Prepare'!$D$6/'Sprint-Prepare'!$D$4+ SUMIFS('Consulting Services'!$E$9:$E$14,'Consulting Services'!$C$9:$C$14,'Resource Planning'!$A59,'Consulting Services'!$D$9:$D$14,'Resource Planning'!$B59)/Sprint0Len)*E$9 -> 0 | F59: =(SUMIFS('Sprint-Prepare'!$E$12:$E$23,'Sprint-Prepare'!$C$12:$C$23,'Resource Planning'!$A59, 'Sprint-Prepare'!$D$12:$D$23,'Resource Planning'!$B59)*'Sprint-Prepare'!$D$6/'Sprint-Prepare'!$D$4+ SUMIFS('Consulting Services'!$E$9:$E$14,'Consulting Services'!$C$9:$C$14,'Resource Planning'!$A59,'Consulting Services'!$D$9:$D$14,'Resource Planning'!$B59)/Sprint0Len)*F$9 -> 0 | G59: =IFERROR(SUM(H59:J59)/'Calculations Page'!$C$6,0) -> 0 | H59: =(SUMIFS('Sprint 1-Sprint N'!$E$12:$E$24,'Sprint 1-Sprint N'!$C$12:$C$24,'Resource Planning'!$A59, 'Sprint 1-Sprint N'!$D$12:$D$24,'Resource Planning'!$B59)*'Sprint 1-Sprint N'!$D$6/'Sprint 1-Sprint N'!$D$4 + SUMPRODUCT(('Consulting Services'!$C$9:$C$14='Resource Planning'!$A59)*('Consulting Services'!$D$9:$D$14='Resource Planning'!$B59)*(Sprint1NSvc='Resource Planning'!H$5)*('Consulting Services'!$F$9:$H$14))/Sprint1NLen)*H$9 -> 0 | I59: =(SUMIFS('Sprint 1-Sprint N'!$E$12:$E$24,'Sprint 1-Sprint N'!$C$12:$C$24,'Resource Planning'!$A59, 'Sprint 1-Sprint N'!$D$12:$D$24,'Resource Planning'!$B59)*'Sprint 1-Sprint N'!$D$6/'Sprint 1-Sprint N'!$D$4 + SUMPRODUCT(('Consulting Services'!$C$9:$C$14='Resource Planning'!$A59)*('Consulting Services'!$D$9:$D$14='Resource Planning'!$B59)*(Sprint1NSvc='Resource Planning'!I$5)*('Consulting Services'!$F$9:$H$14))/Sprint1NLen)*I$9 -> 0 | J59: =(SUMIFS('Sprint 1-Sprint N'!$E$12:$E$24,'Sprint 1-Sprint N'!$C$12:$C$24,'Resource Planning'!$A59, 'Sprint 1-Sprint N'!$D$12:$D$24,'Resource Planning'!$B59)*'Sprint 1-Sprint N'!$D$6/'Sprint 1-Sprint N'!$D$4 + SUMPRODUCT(('Consulting Services'!$C$9:$C$14='Resource Planning'!$A59)*('Consulting Services'!$D$9:$D$14='Resource Planning'!$B59)*(Sprint1NSvc='Resource Planning'!J$5)*('Consulting Services'!$F$9:$H$14))/Sprint1NLen)*J$9 -> 0 | K59: =SUM(L59:N59)/'Calculations Page'!$C$7 -> 0 | L59: =(SUMIFS('Sprint-Z Hardening'!$E$12:$E$22,'Sprint-Z Hardening'!$C$12:$C$22,'Resource Planning'!$A59, 'Sprint-Z Hardening'!$D$12:$D$22,'Resource Planning'!$B59)*'Sprint-Z Hardening'!$D$6/'Sprint-Z Hardening'!$D$4 + SUMIFS('Consulting Services'!$I$9:$I$14,'Consulting Services'!$C$9:$C$14,'Resource Planning'!$A59,'Consulting Services'!$D$9:$D$14,'Resource Planning'!$B59)/SprintZLen)*L$9 -> 0 | M59: =(SUMIFS('Sprint-Z Hardening'!$E$12:$E$22,'Sprint-Z Hardening'!$C$12:$C$22,'Resource Planning'!$A59, 'Sprint-Z Hardening'!$D$12:$D$22,'Resource Planning'!$B59)*'Sprint-Z Hardening'!$D$6/'Sprint-Z Hardening'!$D$4 + SUMIFS('Consulting Services'!$I$9:$I$14,'Consulting Services'!$C$9:$C$14,'Resource Planning'!$A59,'Consulting Services'!$D$9:$D$14,'Resource Planning'!$B59)/SprintZLen)*M$9 -> 0 | N59: =(SUMIFS('Sprint-Z Hardening'!$E$12:$E$22,'Sprint-Z Hardening'!$C$12:$C$22,'Resource Planning'!$A59, 'Sprint-Z Hardening'!$D$12:$D$22,'Resource Planning'!$B59)*'Sprint-Z Hardening'!$D$6/'Sprint-Z Hardening'!$D$4 + SUMIFS('Consulting Services'!$I$9:$I$14,'Consulting Services'!$C$9:$C$14,'Resource Planning'!$A59,'Consulting Services'!$D$9:$D$14,'Resource Planning'!$B59)/SprintZLen)*N$9 -> 0 | O59: 0 | P59: Hide
A60: Client | B60: Mktg & Dec Bus Consultant | C60: =SUM(D60:F60)/'Calculations Page'!$C$5 -> 0 | D60: =(SUMIFS('Sprint-Prepare'!$E$12:$E$23,'Sprint-Prepare'!$C$12:$C$23,'Resource Planning'!$A60, 'Sprint-Prepare'!$D$12:$D$23,'Resource Planning'!$B60)*'Sprint-Prepare'!$D$6/'Sprint-Prepare'!$D$4+ SUMIFS('Consulting Services'!$E$9:$E$14,'Consulting Services'!$C$9:$C$14,'Resource Planning'!$A60,'Consulting Services'!$D$9:$D$14,'Resource Planning'!$B60)/Sprint0Len)*D$9 -> 0 | E60: =(SUMIFS('Sprint-Prepare'!$E$12:$E$23,'Sprint-Prepare'!$C$12:$C$23,'Resource Planning'!$A60, 'Sprint-Prepare'!$D$12:$D$23,'Resource Planning'!$B60)*'Sprint-Prepare'!$D$6/'Sprint-Prepare'!$D$4+ SUMIFS('Consulting Services'!$E$9:$E$14,'Consulting Services'!$C$9:$C$14,'Resource Planning'!$A60,'Consulting Services'!$D$9:$D$14,'Resource Planning'!$B60)/Sprint0Len)*E$9 -> 0 | F60: =(SUMIFS('Sprint-Prepare'!$E$12:$E$23,'Sprint-Prepare'!$C$12:$C$23,'Resource Planning'!$A60, 'Sprint-Prepare'!$D$12:$D$23,'Resource Planning'!$B60)*'Sprint-Prepare'!$D$6/'Sprint-Prepare'!$D$4+ SUMIFS('Consulting Services'!$E$9:$E$14,'Consulting Services'!$C$9:$C$14,'Resource Planning'!$A60,'Consulting Services'!$D$9:$D$14,'Resource Planning'!$B60)/Sprint0Len)*F$9 -> 0 | G60: =IFERROR(SUM(H60:J60)/'Calculations Page'!$C$6,0) -> 0 | H60: =(SUMIFS('Sprint 1-Sprint N'!$E$12:$E$24,'Sprint 1-Sprint N'!$C$12:$C$24,'Resource Planning'!$A60, 'Sprint 1-Sprint N'!$D$12:$D$24,'Resource Planning'!$B60)*'Sprint 1-Sprint N'!$D$6/'Sprint 1-Sprint N'!$D$4 + SUMPRODUCT(('Consulting Services'!$C$9:$C$14='Resource Planning'!$A60)*('Consulting Services'!$D$9:$D$14='Resource Planning'!$B60)*(Sprint1NSvc='Resource Planning'!H$5)*('Consulting Services'!$F$9:$H$14))/Sprint1NLen)*H$9 -> 0 | I60: =(SUMIFS('Sprint 1-Sprint N'!$E$12:$E$24,'Sprint 1-Sprint N'!$C$12:$C$24,'Resource Planning'!$A60, 'Sprint 1-Sprint N'!$D$12:$D$24,'Resource Planning'!$B60)*'Sprint 1-Sprint N'!$D$6/'Sprint 1-Sprint N'!$D$4 + SUMPRODUCT(('Consulting Services'!$C$9:$C$14='Resource Planning'!$A60)*('Consulting Services'!$D$9:$D$14='Resource Planning'!$B60)*(Sprint1NSvc='Resource Planning'!I$5)*('Consulting Services'!$F$9:$H$14))/Sprint1NLen)*I$9 -> 0 | J60: =(SUMIFS('Sprint 1-Sprint N'!$E$12:$E$24,'Sprint 1-Sprint N'!$C$12:$C$24,'Resource Planning'!$A60, 'Sprint 1-Sprint N'!$D$12:$D$24,'Resource Planning'!$B60)*'Sprint 1-Sprint N'!$D$6/'Sprint 1-Sprint N'!$D$4 + SUMPRODUCT(('Consulting Services'!$C$9:$C$14='Resource Planning'!$A60)*('Consulting Services'!$D$9:$D$14='Resource Planning'!$B60)*(Sprint1NSvc='Resource Planning'!J$5)*('Consulting Services'!$F$9:$H$14))/Sprint1NLen)*J$9 -> 0 | K60: =SUM(L60:N60)/'Calculations Page'!$C$7 -> 0 | L60: =(SUMIFS('Sprint-Z Hardening'!$E$12:$E$22,'Sprint-Z Hardening'!$C$12:$C$22,'Resource Planning'!$A60, 'Sprint-Z Hardening'!$D$12:$D$22,'Resource Planning'!$B60)*'Sprint-Z Hardening'!$D$6/'Sprint-Z Hardening'!$D$4 + SUMIFS('Consulting Services'!$I$9:$I$14,'Consulting Services'!$C$9:$C$14,'Resource Planning'!$A60,'Consulting Services'!$D$9:$D$14,'Resource Planning'!$B60)/SprintZLen)*L$9 -> 0 | M60: =(SUMIFS('Sprint-Z Hardening'!$E$12:$E$22,'Sprint-Z Hardening'!$C$12:$C$22,'Resource Planning'!$A60, 'Sprint-Z Hardening'!$D$12:$D$22,'Resource Planning'!$B60)*'Sprint-Z Hardening'!$D$6/'Sprint-Z Hardening'!$D$4 + SUMIFS('Consulting Services'!$I$9:$I$14,'Consulting Services'!$C$9:$C$14,'Resource Planning'!$A60,'Consulting Services'!$D$9:$D$14,'Resource Planning'!$B60)/SprintZLen)*M$9 -> 0 | N60: =(SUMIFS('Sprint-Z Hardening'!$E$12:$E$22,'Sprint-Z Hardening'!$C$12:$C$22,'Resource Planning'!$A60, 'Sprint-Z Hardening'!$D$12:$D$22,'Resource Planning'!$B60)*'Sprint-Z Hardening'!$D$6/'Sprint-Z Hardening'!$D$4 + SUMIFS('Consulting Services'!$I$9:$I$14,'Consulting Services'!$C$9:$C$14,'Resource Planning'!$A60,'Consulting Services'!$D$9:$D$14,'Resource Planning'!$B60)/SprintZLen)*N$9 -> 0 | O60: 0 | P60: Hide
A61: Client | B61: Product Owner | C61: =SUM(D61:F61)/'Calculations Page'!$C$5 -> 1 | D61: =(SUMIFS('Sprint-Prepare'!$E$12:$E$23,'Sprint-Prepare'!$C$12:$C$23,'Resource Planning'!$A61, 'Sprint-Prepare'!$D$12:$D$23,'Resource Planning'!$B61)*'Sprint-Prepare'!$D$6/'Sprint-Prepare'!$D$4+ SUMIFS('Consulting Services'!$E$9:$E$14,'Consulting Services'!$C$9:$C$14,'Resource Planning'!$A61,'Consulting Services'!$D$9:$D$14,'Resource Planning'!$B61)/Sprint0Len)*D$9 -> 40 | E61: =(SUMIFS('Sprint-Prepare'!$E$12:$E$23,'Sprint-Prepare'!$C$12:$C$23,'Resource Planning'!$A61, 'Sprint-Prepare'!$D$12:$D$23,'Resource Planning'!$B61)*'Sprint-Prepare'!$D$6/'Sprint-Prepare'!$D$4+ SUMIFS('Consulting Services'!$E$9:$E$14,'Consulting Services'!$C$9:$C$14,'Resource Planning'!$A61,'Consulting Services'!$D$9:$D$14,'Resource Planning'!$B61)/Sprint0Len)*E$9 -> 40 | F61: =(SUMIFS('Sprint-Prepare'!$E$12:$E$23,'Sprint-Prepare'!$C$12:$C$23,'Resource Planning'!$A61, 'Sprint-Prepare'!$D$12:$D$23,'Resource Planning'!$B61)*'Sprint-Prepare'!$D$6/'Sprint-Prepare'!$D$4+ SUMIFS('Consulting Services'!$E$9:$E$14,'Consulting Services'!$C$9:$C$14,'Resource Planning'!$A61,'Consulting Services'!$D$9:$D$14,'Resource Planning'!$B61)/Sprint0Len)*F$9 -> 0 | G61: =IFERROR(SUM(H61:J61)/'Calculations Page'!$C$6,0) -> 1 | H61: =(SUMIFS('Sprint 1-Sprint N'!$E$12:$E$24,'Sprint 1-Sprint N'!$C$12:$C$24,'Resource Planning'!$A61, 'Sprint 1-Sprint N'!$D$12:$D$24,'Resource Planning'!$B61)*'Sprint 1-Sprint N'!$D$6/'Sprint 1-Sprint N'!$D$4 + SUMPRODUCT(('Consulting Services'!$C$9:$C$14='Resource Planning'!$A61)*('Consulting Services'!$D$9:$D$14='Resource Planning'!$B61)*(Sprint1NSvc='Resource Planning'!H$5)*('Consulting Services'!$F$9:$H$14))/Sprint1NLen)*H$9 -> 40 | I61: =(SUMIFS('Sprint 1-Sprint N'!$E$12:$E$24,'Sprint 1-Sprint N'!$C$12:$C$24,'Resource Planning'!$A61, 'Sprint 1-Sprint N'!$D$12:$D$24,'Resource Planning'!$B61)*'Sprint 1-Sprint N'!$D$6/'Sprint 1-Sprint N'!$D$4 + SUMPRODUCT(('Consulting Services'!$C$9:$C$14='Resource Planning'!$A61)*('Consulting Services'!$D$9:$D$14='Resource Planning'!$B61)*(Sprint1NSvc='Resource Planning'!I$5)*('Consulting Services'!$F$9:$H$14))/Sprint1NLen)*I$9 -> 40 | J61: =(SUMIFS('Sprint 1-Sprint N'!$E$12:$E$24,'Sprint 1-Sprint N'!$C$12:$C$24,'Resource Planning'!$A61, 'Sprint 1-Sprint N'!$D$12:$D$24,'Resource Planning'!$B61)*'Sprint 1-Sprint N'!$D$6/'Sprint 1-Sprint N'!$D$4 + SUMPRODUCT(('Consulting Services'!$C$9:$C$14='Resource Planning'!$A61)*('Consulting Services'!$D$9:$D$14='Resource Planning'!$B61)*(Sprint1NSvc='Resource Planning'!J$5)*('Consulting Services'!$F$9:$H$14))/Sprint1NLen)*J$9 -> 0 | K61: =SUM(L61:N61)/'Calculations Page'!$C$7 -> 1 | L61: =(SUMIFS('Sprint-Z Hardening'!$E$12:$E$22,'Sprint-Z Hardening'!$C$12:$C$22,'Resource Planning'!$A61, 'Sprint-Z Hardening'!$D$12:$D$22,'Resource Planning'!$B61)*'Sprint-Z Hardening'!$D$6/'Sprint-Z Hardening'!$D$4 + SUMIFS('Consulting Services'!$I$9:$I$14,'Consulting Services'!$C$9:$C$14,'Resource Planning'!$A61,'Consulting Services'!$D$9:$D$14,'Resource Planning'!$B61)/SprintZLen)*L$9 -> 40 | M61: =(SUMIFS('Sprint-Z Hardening'!$E$12:$E$22,'Sprint-Z Hardening'!$C$12:$C$22,'Resource Planning'!$A61, 'Sprint-Z Hardening'!$D$12:$D$22,'Resource Planning'!$B61)*'Sprint-Z Hardening'!$D$6/'Sprint-Z Hardening'!$D$4 + SUMIFS('Consulting Services'!$I$9:$I$14,'Consulting Services'!$C$9:$C$14,'Resource Planning'!$A61,'Consulting Services'!$D$9:$D$14,'Resource Planning'!$B61)/SprintZLen)*M$9 -> 40 | N61: =(SUMIFS('Sprint-Z Hardening'!$E$12:$E$22,'Sprint-Z Hardening'!$C$12:$C$22,'Resource Planning'!$A61, 'Sprint-Z Hardening'!$D$12:$D$22,'Resource Planning'!$B61)*'Sprint-Z Hardening'!$D$6/'Sprint-Z Hardening'!$D$4 + SUMIFS('Consulting Services'!$I$9:$I$14,'Consulting Services'!$C$9:$C$14,'Resource Planning'!$A61,'Consulting Services'!$D$9:$D$14,'Resource Planning'!$B61)/SprintZLen)*N$9 -> 0 | O61: 240 | P61: 240
A62: Client | B62: Test Lead | C62: =SUM(D62:F62)/'Calculations Page'!$C$5 -> 1 | D62: =(SUMIFS('Sprint-Prepare'!$E$12:$E$23,'Sprint-Prepare'!$C$12:$C$23,'Resource Planning'!$A62, 'Sprint-Prepare'!$D$12:$D$23,'Resource Planning'!$B62)*'Sprint-Prepare'!$D$6/'Sprint-Prepare'!$D$4+ SUMIFS('Consulting Services'!$E$9:$E$14,'Consulting Services'!$C$9:$C$14,'Resource Planning'!$A62,'Consulting Services'!$D$9:$D$14,'Resource Planning'!$B62)/Sprint0Len)*D$9 -> 40 | E62: =(SUMIFS('Sprint-Prepare'!$E$12:$E$23,'Sprint-Prepare'!$C$12:$C$23,'Resource Planning'!$A62, 'Sprint-Prepare'!$D$12:$D$23,'Resource Planning'!$B62)*'Sprint-Prepare'!$D$6/'Sprint-Prepare'!$D$4+ SUMIFS('Consulting Services'!$E$9:$E$14,'Consulting Services'!$C$9:$C$14,'Resource Planning'!$A62,'Consulting Services'!$D$9:$D$14,'Resource Planning'!$B62)/Sprint0Len)*E$9 -> 40 | F62: =(SUMIFS('Sprint-Prepare'!$E$12:$E$23,'Sprint-Prepare'!$C$12:$C$23,'Resource Planning'!$A62, 'Sprint-Prepare'!$D$12:$D$23,'Resource Planning'!$B62)*'Sprint-Prepare'!$D$6/'Sprint-Prepare'!$D$4+ SUMIFS('Consulting Services'!$E$9:$E$14,'Consulting Services'!$C$9:$C$14,'Resource Planning'!$A62,'Consulting Services'!$D$9:$D$14,'Resource Planning'!$B62)/Sprint0Len)*F$9 -> 0 | G62: =IFERROR(SUM(H62:J62)/'Calculations Page'!$C$6,0) -> 1 | H62: =(SUMIFS('Sprint 1-Sprint N'!$E$12:$E$24,'Sprint 1-Sprint N'!$C$12:$C$24,'Resource Planning'!$A62, 'Sprint 1-Sprint N'!$D$12:$D$24,'Resource Planning'!$B62)*'Sprint 1-Sprint N'!$D$6/'Sprint 1-Sprint N'!$D$4 + SUMPRODUCT(('Consulting Services'!$C$9:$C$14='Resource Planning'!$A62)*('Consulting Services'!$D$9:$D$14='Resource Planning'!$B62)*(Sprint1NSvc='Resource Planning'!H$5)*('Consulting Services'!$F$9:$H$14))/Sprint1NLen)*H$9 -> 40 | I62: =(SUMIFS('Sprint 1-Sprint N'!$E$12:$E$24,'Sprint 1-Sprint N'!$C$12:$C$24,'Resource Planning'!$A62, 'Sprint 1-Sprint N'!$D$12:$D$24,'Resource Planning'!$B62)*'Sprint 1-Sprint N'!$D$6/'Sprint 1-Sprint N'!$D$4 + SUMPRODUCT(('Consulting Services'!$C$9:$C$14='Resource Planning'!$A62)*('Consulting Services'!$D$9:$D$14='Resource Planning'!$B62)*(Sprint1NSvc='Resource Planning'!I$5)*('Consulting Services'!$F$9:$H$14))/Sprint1NLen)*I$9 -> 40 | J62: =(SUMIFS('Sprint 1-Sprint N'!$E$12:$E$24,'Sprint 1-Sprint N'!$C$12:$C$24,'Resource Planning'!$A62, 'Sprint 1-Sprint N'!$D$12:$D$24,'Resource Planning'!$B62)*'Sprint 1-Sprint N'!$D$6/'Sprint 1-Sprint N'!$D$4 + SUMPRODUCT(('Consulting Services'!$C$9:$C$14='Resource Planning'!$A62)*('Consulting Services'!$D$9:$D$14='Resource Planning'!$B62)*(Sprint1NSvc='Resource Planning'!J$5)*('Consulting Services'!$F$9:$H$14))/Sprint1NLen)*J$9 -> 0 | K62: =SUM(L62:N62)/'Calculations Page'!$C$7 -> 1 | L62: =(SUMIFS('Sprint-Z Hardening'!$E$12:$E$22,'Sprint-Z Hardening'!$C$12:$C$22,'Resource Planning'!$A62, 'Sprint-Z Hardening'!$D$12:$D$22,'Resource Planning'!$B62)*'Sprint-Z Hardening'!$D$6/'Sprint-Z Hardening'!$D$4 + SUMIFS('Consulting Services'!$I$9:$I$14,'Consulting Services'!$C$9:$C$14,'Resource Planning'!$A62,'Consulting Services'!$D$9:$D$14,'Resource Planning'!$B62)/SprintZLen)*L$9 -> 40 | M62: =(SUMIFS('Sprint-Z Hardening'!$E$12:$E$22,'Sprint-Z Hardening'!$C$12:$C$22,'Resource Planning'!$A62, 'Sprint-Z Hardening'!$D$12:$D$22,'Resource Planning'!$B62)*'Sprint-Z Hardening'!$D$6/'Sprint-Z Hardening'!$D$4 + SUMIFS('Consulting Services'!$I$9:$I$14,'Consulting Services'!$C$9:$C$14,'Resource Planning'!$A62,'Consulting Services'!$D$9:$D$14,'Resource Planning'!$B62)/SprintZLen)*M$9 -> 40 | N62: =(SUMIFS('Sprint-Z Hardening'!$E$12:$E$22,'Sprint-Z Hardening'!$C$12:$C$22,'Resource Planning'!$A62, 'Sprint-Z Hardening'!$D$12:$D$22,'Resource Planning'!$B62)*'Sprint-Z Hardening'!$D$6/'Sprint-Z Hardening'!$D$4 + SUMIFS('Consulting Services'!$I$9:$I$14,'Consulting Services'!$C$9:$C$14,'Resource Planning'!$A62,'Consulting Services'!$D$9:$D$14,'Resource Planning'!$B62)/SprintZLen)*N$9 -> 0 | O62: 240 | P62: 240
A63: Client | B63: Tester | C63: =SUM(D63:F63)/'Calculations Page'!$C$5 -> 0 | D63: =(SUMIFS('Sprint-Prepare'!$E$12:$E$23,'Sprint-Prepare'!$C$12:$C$23,'Resource Planning'!$A63, 'Sprint-Prepare'!$D$12:$D$23,'Resource Planning'!$B63)*'Sprint-Prepare'!$D$6/'Sprint-Prepare'!$D$4+ SUMIFS('Consulting Services'!$E$9:$E$14,'Consulting Services'!$C$9:$C$14,'Resource Planning'!$A63,'Consulting Services'!$D$9:$D$14,'Resource Planning'!$B63)/Sprint0Len)*D$9 -> 0 | E63: =(SUMIFS('Sprint-Prepare'!$E$12:$E$23,'Sprint-Prepare'!$C$12:$C$23,'Resource Planning'!$A63, 'Sprint-Prepare'!$D$12:$D$23,'Resource Planning'!$B63)*'Sprint-Prepare'!$D$6/'Sprint-Prepare'!$D$4+ SUMIFS('Consulting Services'!$E$9:$E$14,'Consulting Services'!$C$9:$C$14,'Resource Planning'!$A63,'Consulting Services'!$D$9:$D$14,'Resource Planning'!$B63)/Sprint0Len)*E$9 -> 0 | F63: =(SUMIFS('Sprint-Prepare'!$E$12:$E$23,'Sprint-Prepare'!$C$12:$C$23,'Resource Planning'!$A63, 'Sprint-Prepare'!$D$12:$D$23,'Resource Planning'!$B63)*'Sprint-Prepare'!$D$6/'Sprint-Prepare'!$D$4+ SUMIFS('Consulting Services'!$E$9:$E$14,'Consulting Services'!$C$9:$C$14,'Resource Planning'!$A63,'Consulting Services'!$D$9:$D$14,'Resource Planning'!$B63)/Sprint0Len)*F$9 -> 0 | G63: =IFERROR(SUM(H63:J63)/'Calculations Page'!$C$6,0) -> 2 | H63: =(SUMIFS('Sprint 1-Sprint N'!$E$12:$E$24,'Sprint 1-Sprint N'!$C$12:$C$24,'Resource Planning'!$A63, 'Sprint 1-Sprint N'!$D$12:$D$24,'Resource Planning'!$B63)*'Sprint 1-Sprint N'!$D$6/'Sprint 1-Sprint N'!$D$4 + SUMPRODUCT(('Consulting Services'!$C$9:$C$14='Resource Planning'!$A63)*('Consulting Services'!$D$9:$D$14='Resource Planning'!$B63)*(Sprint1NSvc='Resource Planning'!H$5)*('Consulting Services'!$F$9:$H$14))/Sprint1NLen)*H$9 -> 80 | I63: =(SUMIFS('Sprint 1-Sprint N'!$E$12:$E$24,'Sprint 1-Sprint N'!$C$12:$C$24,'Resource Planning'!$A63, 'Sprint 1-Sprint N'!$D$12:$D$24,'Resource Planning'!$B63)*'Sprint 1-Sprint N'!$D$6/'Sprint 1-Sprint N'!$D$4 + SUMPRODUCT(('Consulting Services'!$C$9:$C$14='Resource Planning'!$A63)*('Consulting Services'!$D$9:$D$14='Resource Planning'!$B63)*(Sprint1NSvc='Resource Planning'!I$5)*('Consulting Services'!$F$9:$H$14))/Sprint1NLen)*I$9 -> 80 | J63: =(SUMIFS('Sprint 1-Sprint N'!$E$12:$E$24,'Sprint 1-Sprint N'!$C$12:$C$24,'Resource Planning'!$A63, 'Sprint 1-Sprint N'!$D$12:$D$24,'Resource Planning'!$B63)*'Sprint 1-Sprint N'!$D$6/'Sprint 1-Sprint N'!$D$4 + SUMPRODUCT(('Consulting Services'!$C$9:$C$14='Resource Planning'!$A63)*('Consulting Services'!$D$9:$D$14='Resource Planning'!$B63)*(Sprint1NSvc='Resource Planning'!J$5)*('Consulting Services'!$F$9:$H$14))/Sprint1NLen)*J$9 -> 0 | K63: =SUM(L63:N63)/'Calculations Page'!$C$7 -> 0 | L63: =(SUMIFS('Sprint-Z Hardening'!$E$12:$E$22,'Sprint-Z Hardening'!$C$12:$C$22,'Resource Planning'!$A63, 'Sprint-Z Hardening'!$D$12:$D$22,'Resource Planning'!$B63)*'Sprint-Z Hardening'!$D$6/'Sprint-Z Hardening'!$D$4 + SUMIFS('Consulting Services'!$I$9:$I$14,'Consulting Services'!$C$9:$C$14,'Resource Planning'!$A63,'Consulting Services'!$D$9:$D$14,'Resource Planning'!$B63)/SprintZLen)*L$9 -> 0 | M63: =(SUMIFS('Sprint-Z Hardening'!$E$12:$E$22,'Sprint-Z Hardening'!$C$12:$C$22,'Resource Planning'!$A63, 'Sprint-Z Hardening'!$D$12:$D$22,'Resource Planning'!$B63)*'Sprint-Z Hardening'!$D$6/'Sprint-Z Hardening'!$D$4 + SUMIFS('Consulting Services'!$I$9:$I$14,'Consulting Services'!$C$9:$C$14,'Resource Planning'!$A63,'Consulting Services'!$D$9:$D$14,'Resource Planning'!$B63)/SprintZLen)*M$9 -> 0 | N63: =(SUMIFS('Sprint-Z Hardening'!$E$12:$E$22,'Sprint-Z Hardening'!$C$12:$C$22,'Resource Planning'!$A63, 'Sprint-Z Hardening'!$D$12:$D$22,'Resource Planning'!$B63)*'Sprint-Z Hardening'!$D$6/'Sprint-Z Hardening'!$D$4 + SUMIFS('Consulting Services'!$I$9:$I$14,'Consulting Services'!$C$9:$C$14,'Resource Planning'!$A63,'Consulting Services'!$D$9:$D$14,'Resource Planning'!$B63)/SprintZLen)*N$9 -> 0 | O63: 160 | P63: 160
A64: Client | B64: Business Architect | C64: =SUM(D64:F64)/'Calculations Page'!$C$5 -> 1 | D64: =(SUMIFS('Sprint-Prepare'!$E$12:$E$23,'Sprint-Prepare'!$C$12:$C$23,'Resource Planning'!$A64, 'Sprint-Prepare'!$D$12:$D$23,'Resource Planning'!$B64)*'Sprint-Prepare'!$D$6/'Sprint-Prepare'!$D$4+ SUMIFS('Consulting Services'!$E$9:$E$14,'Consulting Services'!$C$9:$C$14,'Resource Planning'!$A64,'Consulting Services'!$D$9:$D$14,'Resource Planning'!$B64)/Sprint0Len)*D$9 -> 40 | E64: =(SUMIFS('Sprint-Prepare'!$E$12:$E$23,'Sprint-Prepare'!$C$12:$C$23,'Resource Planning'!$A64, 'Sprint-Prepare'!$D$12:$D$23,'Resource Planning'!$B64)*'Sprint-Prepare'!$D$6/'Sprint-Prepare'!$D$4+ SUMIFS('Consulting Services'!$E$9:$E$14,'Consulting Services'!$C$9:$C$14,'Resource Planning'!$A64,'Consulting Services'!$D$9:$D$14,'Resource Planning'!$B64)/Sprint0Len)*E$9 -> 40 | F64: =(SUMIFS('Sprint-Prepare'!$E$12:$E$23,'Sprint-Prepare'!$C$12:$C$23,'Resource Planning'!$A64, 'Sprint-Prepare'!$D$12:$D$23,'Resource Planning'!$B64)*'Sprint-Prepare'!$D$6/'Sprint-Prepare'!$D$4+ SUMIFS('Consulting Services'!$E$9:$E$14,'Consulting Services'!$C$9:$C$14,'Resource Planning'!$A64,'Consulting Services'!$D$9:$D$14,'Resource Planning'!$B64)/Sprint0Len)*F$9 -> 0 | G64: =IFERROR(SUM(H64:J64)/'Calculations Page'!$C$6,0) -> 0 | H64: =(SUMIFS('Sprint 1-Sprint N'!$E$12:$E$24,'Sprint 1-Sprint N'!$C$12:$C$24,'Resource Planning'!$A64, 'Sprint 1-Sprint N'!$D$12:$D$24,'Resource Planning'!$B64)*'Sprint 1-Sprint N'!$D$6/'Sprint 1-Sprint N'!$D$4 + SUMPRODUCT(('Consulting Services'!$C$9:$C$14='Resource Planning'!$A64)*('Consulting Services'!$D$9:$D$14='Resource Planning'!$B64)*(Sprint1NSvc='Resource Planning'!H$5)*('Consulting Services'!$F$9:$H$14))/Sprint1NLen)*H$9 -> 0 | I64: =(SUMIFS('Sprint 1-Sprint N'!$E$12:$E$24,'Sprint 1-Sprint N'!$C$12:$C$24,'Resource Planning'!$A64, 'Sprint 1-Sprint N'!$D$12:$D$24,'Resource Planning'!$B64)*'Sprint 1-Sprint N'!$D$6/'Sprint 1-Sprint N'!$D$4 + SUMPRODUCT(('Consulting Services'!$C$9:$C$14='Resource Planning'!$A64)*('Consulting Services'!$D$9:$D$14='Resource Planning'!$B64)*(Sprint1NSvc='Resource Planning'!I$5)*('Consulting Services'!$F$9:$H$14))/Sprint1NLen)*I$9 -> 0 | J64: =(SUMIFS('Sprint 1-Sprint N'!$E$12:$E$24,'Sprint 1-Sprint N'!$C$12:$C$24,'Resource Planning'!$A64, 'Sprint 1-Sprint N'!$D$12:$D$24,'Resource Planning'!$B64)*'Sprint 1-Sprint N'!$D$6/'Sprint 1-Sprint N'!$D$4 + SUMPRODUCT(('Consulting Services'!$C$9:$C$14='Resource Planning'!$A64)*('Consulting Services'!$D$9:$D$14='Resource Planning'!$B64)*(Sprint1NSvc='Resource Planning'!J$5)*('Consulting Services'!$F$9:$H$14))/Sprint1NLen)*J$9 -> 0 | K64: =SUM(L64:N64)/'Calculations Page'!$C$7 -> 1 | L64: =(SUMIFS('Sprint-Z Hardening'!$E$12:$E$22,'Sprint-Z Hardening'!$C$12:$C$22,'Resource Planning'!$A64, 'Sprint-Z Hardening'!$D$12:$D$22,'Resource Planning'!$B64)*'Sprint-Z Hardening'!$D$6/'Sprint-Z Hardening'!$D$4 + SUMIFS('Consulting Services'!$I$9:$I$14,'Consulting Services'!$C$9:$C$14,'Resource Planning'!$A64,'Consulting Services'!$D$9:$D$14,'Resource Planning'!$B64)/SprintZLen)*L$9 -> 40 | M64: =(SUMIFS('Sprint-Z Hardening'!$E$12:$E$22,'Sprint-Z Hardening'!$C$12:$C$22,'Resource Planning'!$A64, 'Sprint-Z Hardening'!$D$12:$D$22,'Resource Planning'!$B64)*'Sprint-Z Hardening'!$D$6/'Sprint-Z Hardening'!$D$4 + SUMIFS('Consulting Services'!$I$9:$I$14,'Consulting Services'!$C$9:$C$14,'Resource Planning'!$A64,'Consulting Services'!$D$9:$D$14,'Resource Planning'!$B64)/SprintZLen)*M$9 -> 40 | N64: =(SUMIFS('Sprint-Z Hardening'!$E$12:$E$22,'Sprint-Z Hardening'!$C$12:$C$22,'Resource Planning'!$A64, 'Sprint-Z Hardening'!$D$12:$D$22,'Resource Planning'!$B64)*'Sprint-Z Hardening'!$D$6/'Sprint-Z Hardening'!$D$4 + SUMIFS('Consulting Services'!$I$9:$I$14,'Consulting Services'!$C$9:$C$14,'Resource Planning'!$A64,'Consulting Services'!$D$9:$D$14,'Resource Planning'!$B64)/SprintZLen)*N$9 -> 0 | O64: 160 | P64: 160
